Workbook

Sheet Summary
B2: Energy and water benchmark model for a red meat processing plant
B4: AMPC engaged Energetics to construct a model of the energy and water use within a red meat processing plant. This model is designed for plant owners to benchmark their performance and assess the possible opportunities for improvement in water and energy performance.
B6: Methodology
B7: The methodology used to model a plant is:
B8: 1) | C8: First the user provides input data on plant facilities, production, current energy and water usage and cost.
B9: 2) | C9: The production figures and energy and water consumption are used to calculate the performance of the user's plant across three metrics: thermal energy, electrical energy and water.
B10: 3) | C10: The model then retrieves a full-facility benchmark plant to compare to the user's plant for each of these metrics. Specifically, this plant has continuous rendering with no external product inputs. The energy and water use of this benchmark plant has been apportioned across its facilities as listed in the input sheet. This apportioning allows the model to adjust the full-facility benchmark plant to match the user's plant facilities and throughputs.
B11: 4) | C11: Before comparing the user's site to the benchmark plant, the user's performance figures are modified to account for the plant's species mix, production capacity and facility-level production adjustments: smaller species use different energy and water per tonne of production; a plant not at full production uses more energy and water per tonne of production; and, a plant with external rendering, or only diverting some production for boning or freezing will have a different energy and water profile for these facilities compared to the benchmark plant.
B12: 5) | C12: The user's modified performance figures are compared to the benchmark plant and ranked as poor, fair or good for each of the three metrics. Later, the results of these will be presented in a quantified dial-gauge figure.
B13: 6) | C13: The model imports an energy management framework. This framework is based on the rationale that for each metric a plant should implement straightforward performance improvement opportunities first, such as housekeeping, before considering more advanced opportunites, such as cogeneration. This staged approach is visualised as a layered pyramid, with each successive layer representing a more complex category of performance improvement opportunities.
B14: 7) | C14: Each metric of the user's plant is assigned to a layer of the pyramid based on the previous performance categorisation of poor, fair or good for that metric. For each metric, the final output report will present a description of this layer of performance improvements.
B15: 8) | C15: The model imports a library of performance improvement opportunities. This library contains a full range of performance improvement opportunities across all categories, but is then filtered to exclude opportunities outside of the plant's performance category for each metric. The model quantifies each opportunity based on the user's input data of energy and water usage and cost. This data is used to estimate the cost, savings and payback period. Opportunities exceeding the user's acceptable payback period are screened out.
B16: 9) | C16: The final output sheet presents the results of the benchmarking; the categorisation of the plant as poor, fair or good for each metric; and, the category of performance improvement opportunities the plant could consider. This category is supported by a paragraph of explanatory text, in addition to several quantified examples, with hyperlinks to AMPC documentation where available.
B18: Model Inputs
B20: The inputs page to the tool consists of several sections: Facility Data, Production Data, Product Flow Variations, Consumption Data and Investment Decision Data
B21: Each section should be reviewed and completed before progressing to the outputs sheet.
B22: Formatting Key:
C24: Question text
C26: required user input
C28: optional user input
C30: key calculated output
C32: fixed descriptive text
C34: additional information
B36: Model Outputs
B38: The outputs page to the tool has benchmark results, an introduction to the energy management methodology, followed by the benchmark results. Each benchmark result category has suggested improvement areas, along with several quantified examples with cost, savings, payback periods and hyperlinks.
B39: A note on benchmark figures. Benchmarking is based on tHSCW processed, not the total tonnes processed by the plant. As such, plants with a high volume of external material (say, rendering) will have a high benchmark to compare against in order to account for this.

Sheet Inputs
C3: Energy and water benchmark model for a red meat processing plant
C6: 1. Facility data | I6: 2. Production data
C8: What is the company and site name? | I8: What is the maximum production capacity of | N8: What is the average HSCW per species for your plant?
I9: your plant and current production for a year? | N9: If you don't supply figures the model will use default figures shown here.
C10: AMPC Member
D11: =IF(OR(AND(D12="WA",D13<>'Drop-downs'!U18,D13<>'Drop-downs'!U19),AND(D12="NT",D13<>'Drop-downs'!U22,D13<>'Drop-downs'!U21)),"Check electricity connection","OK") -> OK | I11: Species | J11: Maximum | K11: Current | L11: Units | N11: Default | P11: Your Plant | Q11: Figure Used
C12: State/Territory | D12: VIC | I12: Cattle | J12: - | K12: 40000 | L12: tHSCW / yr | N12: 284 | Q12: =IF(L12='Drop-downs'!$E$18,"",IF(IFERROR(AND(ISNUMBER(P12),P12>0),FALSE),P12,N12)) -> 
C13: Electricity connection | D13: Darwin Katherine Interconnected System | I13: Calves | J13: - | L13: tHSCW / yr | N13: 158 | Q13: =IF(L13='Drop-downs'!$E$18,"",IF(IFERROR(AND(ISNUMBER(P13),P13>0),FALSE),P13,N13)) -> 
I14: Pigs | J14: - | L14: tHSCW / yr | N14: 72 | Q14: =IF(L14='Drop-downs'!$E$18,"",IF(IFERROR(AND(ISNUMBER(P14),P14>0),FALSE),P14,N14)) -> 
C15: What facilities do you have in your plant? | I15: Sheep | J15: - | L15: tHSCW / yr | N15: 48 | Q15: =IF(L15='Drop-downs'!$E$18,"",IF(IFERROR(AND(ISNUMBER(P15),P15>0),FALSE),P15,N15)) -> 
D16: Response | E16: Percentage | I16: Rams | J16: - | L16: tHSCW / yr | N16: 48 | Q16: =IF(L16='Drop-downs'!$E$18,"",IF(IFERROR(AND(ISNUMBER(P16),P16>0),FALSE),P16,N16)) -> 
C17: Stockyards | D17: Yes | E17: 1 | I17: Lamb | J17: - | L17: tHSCW / yr | N17: 24 | Q17: =IF(L17='Drop-downs'!$E$18,"",IF(IFERROR(AND(ISNUMBER(P17),P17>0),FALSE),P17,N17)) -> 
C18: Slaughter and Evisceration | D18: Yes | E18: 1 | I18: Goat | J18: - | L18: tHSCW / yr | N18: 19 | Q18: =IF(L18='Drop-downs'!$E$18,"",IF(IFERROR(AND(ISNUMBER(P18),P18>0),FALSE),P18,N18)) -> 
C19: Blood Processing | D19: No | E19: 1 | I19: Capacity | J19: 45000 | K19: =Calculations!H59 -> 40000 | L19: ='Drop-downs'!$E$18 -> tHSCW / yr
C20: Offal Washing | D20: Yes | E20: 1
C21: Wastewater Treatment | D21: Yes | E21: 1 | I21: =IFERROR("Based on these figures you operated at "&ROUND(Calculations!I140/Calculations!I141*100,0)&"% of maximum production for the year"&IF(Calculations!I140/Calculations!I141>1,", which will be modelled as 100%","")&". Adjust the figures if this is not correct.","Input data into the yellow cells.") -> Based on these figures you operated at 89% of maximum production for the year. Adjust the figures if this is not correct.
C22: Packaging | D22: Yes | E22: 1
C26: 3. Product flow variations
C27: The benchmark plant receives no external product to render, sends all carcasses to be boned and freezes all products. Your plant may differ, so this section quantifies these differences.
C29: 3.1. Rendering | D29: Continuous | I29: 3.2. Boning | K29: Yes | N29: 3.3. Freezing | Q29: Yes
C30: How much rendering product is external vs internal? | I30: How much product enters the boning room? | N30: How much final product leaves the site as chilled/frozen?
C31: Internal input (t/yr) | D31: 38000 | I31: Boning room (tonnes/yr) | K31: 34000 | N31: Chilled (t/yr) | Q31: 4000
C32: External input (t/yr) | I32: Carcass only (t/yr) | K32: 4000 | N32: Frozen (t/yr) | Q32: 34000
C35: 3.4. Hide Processing | D35: No | I35: 3.5. Paunch Processing | K35: Yes
C36: How much hide is processed annually? | I36: How much paunch is processed annually?
C37: Hide processed (t/yr) | I37: Paunch processed (t/yr) | K37: 3400
C38: (Hide processed is typically ~16% of tHSCW. Use this figure if not sure) | I38: (Paunch processed is typically ~10% of tHSCW. Use this figure if not sure)
C39: Fleshing | D39: Yes | I39: Open and empty content | K39: Yes
C40: Salting/Curing/Brining | D40: Yes | I40: Paunch cleaning | K40: Yes
C41: Pickling | D41: Yes | I41: Paunch trimming | K41: Yes
C42: Tanning | D42: No | I42: Dewatering | K42: Yes
C46: 4. Consumption data | P46: 5. Investment decision data
C48: What is your annual consumption and spend of the following commodities? | P48: What is the maximum payback period you will consider for a performance improvement project?
C49: The Annual Spend column is optional but important if you would like the model to more accurately calculate your costs and savings.
C50: There is an optional biomass input with a drop-down box to select biomass type.
C51: Cogeneration: all costs of cogeneration fuels are applied to determine electricity generation cost. No costs are applied to waste heat recovery. | P51: 8 | Q51: years
C52: Cogeneration type | D52: Gas engine (with heat recovery)
D54: Annual consumption - Cogen | G54: Annual Spend ($ p.a.) | I54: Calculated rate | J54: Default rate | K54: Figure Used | L54: Units
C55: =IF(D52='Drop-downs'!$AB$20,Inputs!$C$70,Inputs!$C$63) -> Natural gas | D55: 150000 | E55: =INDEX($E$63:$E$84,MATCH(C55,$C$63:$C$84,0)) -> GJ | I55: =IF(D55=0,0,G55/D55) -> 0 | J55: =INDEX($J$63:$J$84,MATCH($C55,$C$63:$C$84,0)) -> 8 | K55: =IF(IFERROR(AND(ISNUMBER(I55),I55>0),FALSE),I55,J55) -> 8 | L55: ="$ / "&E55 -> $ / GJ
C56: =IF(D52='Drop-downs'!$AB$20,Inputs!$C$64,"Biogas") -> Biogas | D56: 50000 | E56: =INDEX($E$63:$E$84,MATCH(IF(C56="Biogas",C75,C56),$C$63:$C$84,0)) -> GJ | I56: =IF(D56=0,0,G56/D56) -> 0 | J56: =INDEX($J$63:$J$84,MATCH(IF(C56="Biogas",C75,C56),$C$63:$C$84,0)) -> 3 | K56: =IF(IFERROR(AND(ISNUMBER(I56),I56>0),FALSE),I56,J56) -> 3 | L56: ="$ / "&E56 -> $ / GJ
C57: Electricity output | D57: 10000000 | E57: kWh
I59: Commodity rates to be used in the tool
P60: 6. Benchmark results
D61: Annual consumption | G61: Annual Spend ($ p.a.) | I61: Calculated rate | J61: Default rate | K61: Figure Used | L61: Units
R62: Usage per tonne | S62: Unit cost rate | V62: Cost per tonne
C63: Natural gas | D63: 31000 | E63: GJ | I63: =IF(D63=0,0,G63/D63) -> 0 | J63: 8 | K63: =IF(IFERROR(AND(ISNUMBER(I63),I63>0),FALSE),I63,J63) -> 8 | L63: ="$ / "&E63 -> $ / GJ | P63: Thermal | R63: =Calculations!$G$205 -> 4875 | S63: =Calculations!$J$64 -> 1.271794872 | V63: =S63*R63/1000 -> 6.2
C64: Coal | E64: tonnes | I64: 0 | J64: 120 | K64: 120 | L64: $ / tonnes | P64: Electricity | R64: =Calculations!$G$208 -> 350 | S64: =Calculations!$J$65 -> 0.1535714286 | V64: =S64*R64 -> 53.75
C65: LPG | E65: litres | I65: 0 | J65: 0.7 | K65: 0.7 | L65: $ / litres | P65: Total Energy | R65: =Calculations!$F$66 -> 6135 | S65: =Calculations!$J$66 -> 9.771801141 | V65: =S65*R65/1000 -> 59.95
C66: Tallow | E66: tonnes | I66: 0 | J66: 800 | K66: 800 | L66: $ / tonnes | P66: Water | R66: =Calculations!$G$211 -> 15 | S66: =Calculations!$J$67 -> 3.875 | V66: =S66*R66 -> 58.125
C67: Fuel Oil | E67: litres | I67: 0 | J67: 1.5 | K67: 1.5 | L67: $ / litres
C68: Diesel | E68: litres | I68: =IF(D68=0,0,G68/D68) -> 0 | J68: 1.2 | K68: =IF(IFERROR(AND(ISNUMBER(I68),I68>0),FALSE),I68,J68) -> 1.2 | L68: ="$ / "&E68 -> $ / litres
C69: Petrol (ULP) | E69: litres | I69: 0 | J69: 1.5 | K69: 1.5 | L69: $ / litres
C70: Sawdust, 50%MC | D70: 0 | E70: tonnes | I70: 0 | J70: 50 | K70: 50 | L70: $ / tonnes | P70: The benchmark results are in tHSCW processed not total tonnes processed. As such, benchmarks have also been adjusted upwards for external rendering input, where relevant.
C71: Custom heat value | D71: 12 | E71: GJ / tonne | P71: If these figures do not look correct, amend your production and consumption figures.
C72: Default heat value | D72: =IFERROR(INDEX('Drop-downs'!$O$18:$O$28,MATCH(Inputs!$C$70,Biomass_Options,0)),"select from drop-down") -> 8 | E72: GJ / tonne
C73: Biomass heat value | D73: =IF(C70<>'Drop-downs'!$M$28,D72,IFERROR(IF(D71="",INDEX('Drop-downs'!$O$18:$O$28,MATCH(Inputs!$C$70,Biomass_Options,0)),D71),0)) -> 8 | E73: GJ / tonne
C74: Biogas - flared | E74: GJ | I74: 0 | J74: 2 | K74: 2 | L74: $ / GJ | P74: =HYPERLINK("#'Output'!$A$1","LINK: Progress to Output Report") -> LINK: Progress to Output Report
C75: Biogas - used in process | E75: GJ | I75: 0 | J75: 3 | K75: 3 | L75: $ / GJ
C76: Grid Electricity | D76: 4000000 | E76: kWh | I76: 0 | J76: 0.2 | K76: 0.2 | L76: $ / kWh
C77: Renewable Electricity (From GreenPower, Renewable PPA, etc.) | E77: kWh | G77: =IF(D77>D76, "Warning: Renewable Energy should be less than or equal to Grid Electricity.","") -> 
P78: 7. Carbon Emissions
C80: Solar PV Electricity | E80: kWh | I80: 0 | J80: 0.1 | K80: 0.1 | L80: $ / kWh | R80: Emissions per tonne | V80: Total emissions
C81: Town Water | D81: 600000 | E81: kL | I81: 0 | J81: 2 | K81: =IF(IFERROR(AND(ISNUMBER(I81),I81>0),FALSE),I81,J81) -> 2 | L81: $ / kL | P81: Scope 1 | R81: =Calculations!H228 -> 233.17325 | V81: =Calculations!G228 -> 9326.93
C82: Bore Water | E82: kL | I82: 0 | J82: 0.2 | K82: =IF(IFERROR(AND(ISNUMBER(I82),I82>0),FALSE),I82,J82) -> 0.2 | L82: ="$ / "&E82 -> $ / kL | P82: Scope 2 | R82: =Calculations!H232 -> 98 | V82: =Calculations!G232 -> 3920
C83: Recycled Water | E83: kL | I83: 0 | J83: 0 | K83: 0 | L83: $ / kL | P83: Scope 1 + 2 | R83: =(Calculations!G228+Calculations!G232)/Calculations!$H$59*1000 -> 331.17325 | V83: =SUM(V81:V82) -> 13246.93
C84: Wastewater | D84: 450000 | E84: kL | I84: 0 | J84: 2.5 | K84: 2.5 | L84: $ / kL

Sheet Output
B2: =HYPERLINK("#'Inputs'!$A$1","LINK: Return to Inputs Page") -> LINK: Return to Inputs Page
B4: ="Energy and water modeling results for "&Inputs!C10 -> Energy and water modeling results for AMPC Member
B6: Benchmarking Results
C16: Energy and Water | D16: Benchmarks | F16: Unit cost | H16: Cost per tonne
C17: Thermal | D17: =Calculations!$G$205 -> 4875 | F17: =Calculations!$J$64 -> 1.271794872 | H17: =F17*D17/1000 -> 6.2
C18: Electricity | D18: =Calculations!$G$208 -> 350 | F18: =Calculations!$J$65 -> 0.1535714286 | H18: =D18*F18 -> 53.75
C19: Total Energy | D19: =Calculations!$F$66 -> 6135 | F19: =Calculations!$J$66 -> 9.771801141 | H19: =F19*D19/1000 -> 59.95
C20: Water | D20: =Calculations!$G$211 -> 15 | F20: =Calculations!$J$67 -> 3.875 | H20: =D20*F20 -> 58.125
C22: Carbon emissions | D22: Benchmarks | F22: Total
C23: Scope 1 emissions | D23: =Inputs!R81 -> 233.17325 | F23: =Inputs!V81 -> 9326.93
C24: Scope 2 emissions | D24: =Inputs!R82 -> 98 | F24: =Inputs!V82 -> 3920
C25: Scope 1 + 2 emissions | D25: =Inputs!R83 -> 331.17325 | F25: =Inputs!V83 -> 13246.93
B27: Energy and Water Management Plan
C47: https://www.ampc.com.au/uploads/cgblog/id149/AN-ENERGY-MANAGEMENT-PLAN.pdf
B51: ="Benchmarking Results - Thermal Energy, "&Inputs!$C$10 -> Benchmarking Results - Thermal Energy, AMPC Member
C54: =IFERROR(INDEX('Performance Pyramid'!$G$49:$G$53,MATCH(INDEX('Performance Pyramid'!$I$59:$K$61,1,MATCH(Calculations!$G$197,'Performance Pyramid'!$D$48:$F$48,0)),Opportunity_Category,0)),"") -> The next step in an effective thermal efficiency improvement plan is to assess the scope for improving the energy efficiency of key thermal equipment such as boilers and hot water systems.
C55: =IFERROR(INDEX('Performance Pyramid'!$G$49:$G$53,MATCH(INDEX('Performance Pyramid'!$I$59:$K$61,2,MATCH(Calculations!$G$197,'Performance Pyramid'!$D$48:$F$48,0)),Opportunity_Category,0)),"") -> Once the housekeeping and energy efficiency elements are under control the next step in the program is to improve thermal energy use at a process level. This involves reviewing thermal energy use in plant areas such as rendering, plant condensers, hot water heat exchangers, sterilisers using hot water and other processes utilising hot water.
C57: =IF('Opp Library - PT'!A165=0,0,'Opp Library - PT'!A165)&IF('Opp Library - PT'!A165=1," opportunity was"," opportunities were")&" screened out due to exceeding the payback period" -> 0 opportunities were screened out due to exceeding the payback period
C59: Performance Opportunity Example | D59: ="Savings ($ / year), to "&'Opp Library - PT'!$B$14&" digits" -> Savings ($ / year), to 2 digits | E59: CAPEX ($), to 2 digits | F59: Payback range (years) | G59: Scope 1 emissions saving (tCO2e/yr) | H59: Link to more information
C60: =IF('Opp Library - PT'!A21=0,"nil",'Opp Library - PT'!A21) -> Enhance heat transfer on fire tube boiler with turbulators. | D60: =IF('Opp Library - PT'!A21=0,"",'Opp Library - PT'!B21) -> 3700 | E60: =IF('Opp Library - PT'!A21=0,"",'Opp Library - PT'!C21) -> 3700 | F60: =IF('Opp Library - PT'!A21=0,"",IF(AND('Opp Library - PT'!D21=0,'Opp Library - PT'!E21=0),"Immediate",'Opp Library - PT'!D21&" - "&'Opp Library - PT'!E21)) -> 0.8 - 1 | G60: =IF('Opp Library - PT'!A21=0,"",'Opp Library - PT'!G21) -> 150 | H60: =IF('Opp Library - PT'!A21=0,"",IF(LEN('Opp Library - PT'!F21)=0,"No link",HYPERLINK('Opp Library - PT'!F21,"Link"))) -> No link
C61: =IF('Opp Library - PT'!A22=0,"",'Opp Library - PT'!A22) -> Install odour bio-filter to replace gas fired burners used to destroy odours from the rendering plant. | D61: =IF('Opp Library - PT'!A22=0,"",'Opp Library - PT'!B22) -> 7400 | E61: =IF('Opp Library - PT'!A22=0,"",'Opp Library - PT'!C22) -> 45000 | F61: =IF('Opp Library - PT'!A22=0,"",IF(AND('Opp Library - PT'!D22=0,'Opp Library - PT'!E22=0),"Immediate",'Opp Library - PT'!D22&" - "&'Opp Library - PT'!E22)) -> 5 - 8 | G61: =IF('Opp Library - PT'!A22=0,"",'Opp Library - PT'!G22) -> 200 | H61: =IF('Opp Library - PT'!A22=0,"",IF(LEN('Opp Library - PT'!F22)=0,"No link",HYPERLINK('Opp Library - PT'!F22,"Link"))) -> No link
C62: =IF('Opp Library - PT'!A23=0,"",'Opp Library - PT'!A23) -> Install a heat recovery system on the air compressor oil cooling circuit to produce hot water suitable for process cleaning (temperatures up to 70 degrees C). This opportunity may not be applicable if the plant already has enough hot water or there is insufficient hot water storage. | D62: =IF('Opp Library - PT'!A23=0,"",'Opp Library - PT'!B23) -> 2500 | E62: =IF('Opp Library - PT'!A23=0,"",'Opp Library - PT'!C23) -> 7400 | F62: =IF('Opp Library - PT'!A23=0,"",IF(AND('Opp Library - PT'!D23=0,'Opp Library - PT'!E23=0),"Immediate",'Opp Library - PT'!D23&" - "&'Opp Library - PT'!E23)) -> 2 - 4 | G62: =IF('Opp Library - PT'!A23=0,"",'Opp Library - PT'!G23) -> 100 | H62: =IF('Opp Library - PT'!A23=0,"",IF(LEN('Opp Library - PT'!F23)=0,"No link",HYPERLINK('Opp Library - PT'!F23,"Link"))) -> No link
C63: =IF('Opp Library - PT'!A24=0,"",'Opp Library - PT'!A24) -> Install a condensing economiser on one or more boilers. This project may be feasible if the site needs to generate additional hot water for the steam or hot water boiler. There may be a need to install additional hot water storage to capture the hot water generated from the condensing economiser. | D63: =IF('Opp Library - PT'!A24=0,"",'Opp Library - PT'!B24) -> 12000 | E63: =IF('Opp Library - PT'!A24=0,"",'Opp Library - PT'!C24) -> 50000 | F63: =IF('Opp Library - PT'!A24=0,"",IF(AND('Opp Library - PT'!D24=0,'Opp Library - PT'!E24=0),"Immediate",'Opp Library - PT'!D24&" - "&'Opp Library - PT'!E24)) -> 3 - 5 | G63: =IF('Opp Library - PT'!A24=0,"",'Opp Library - PT'!G24) -> 500 | H63: =IF('Opp Library - PT'!A24=0,"",IF(LEN('Opp Library - PT'!F24)=0,"No link",HYPERLINK('Opp Library - PT'!F24,"Link"))) -> Link
B66: ="Benchmarking Results - Electrical Energy, "&Inputs!$C$10 -> Benchmarking Results - Electrical Energy, AMPC Member
C70: =IFERROR(INDEX('Performance Pyramid'!$H$49:$H$53,MATCH(INDEX('Performance Pyramid'!$I$59:$K$61,1,MATCH(Calculations!$G$198,'Performance Pyramid'!$D$48:$F$48,0)),Opportunity_Category,0)),"") -> Cogeneration is the generation of both electricity and thermal energy on site. Red meat processing plants generally have high thermal loads. As such, many cogeneration systems are sized to meet the site's electrical load, with heat generated from the system used to offset part of the thermal demand originally supplied by existing boilers.
C71: =IFERROR(INDEX('Performance Pyramid'!$H$49:$H$53,MATCH(INDEX('Performance Pyramid'!$I$59:$K$61,2,MATCH(Calculations!$G$198,'Performance Pyramid'!$D$48:$F$48,0)),Opportunity_Category,0)),"") -> Renewable electricity generation from solar photovoltaic (PV) is becoming cost effective for plants with high electricity prices. The size of a solar PV system is generally limited by the electrical demand during peak periods (in order to reduce exporting electricity to back to the grid) or the roof size available - whichever is smaller. Larger scale systems with electricity export and battery storage are also under consideration.
C73: =IF('Opp Library - PT'!D165=0,0,'Opp Library - PT'!D165)&IF('Opp Library - PT'!D165=1," opportunity was"," opportunities were")&" screened out due to exceeding the payback period" -> 0 opportunities were screened out due to exceeding the payback period
C75: Performance Opportunity Example | D75: ="Savings ($ / year), to "&'Opp Library - PT'!$B$14&" digits" -> Savings ($ / year), to 2 digits | E75: CAPEX ($), to 2 digits | F75: Payback range (years) | G75: Scope 2 emissions saving (tCO2e/yr) | H75: Link to more information
C76: =IF('Opp Library - PT'!A28=0,"nil",'Opp Library - PT'!A28) -> Consider the installation of solar PV electricity generation. | D76: =IF('Opp Library - PT'!A28=0,"",'Opp Library - PT'!B28) -> 430000 | E76: =IF('Opp Library - PT'!A28=0,"",'Opp Library - PT'!C28) -> 1700000 | F76: =IF('Opp Library - PT'!A28=0,"",IF(AND('Opp Library - PT'!D28=0,'Opp Library - PT'!E28=0),"Immediate",'Opp Library - PT'!D28&" - "&'Opp Library - PT'!E28)) -> 3 - 5 | G76: =IF('Opp Library - PT'!A28=0,"",'Opp Library - PT'!G28) -> 2700 | H76: =IF('Opp Library - PT'!A28=0,"",IF(LEN('Opp Library - PT'!F28)=0,"No link",HYPERLINK('Opp Library - PT'!F28,"Link"))) -> Link
C77: =IF('Opp Library - PT'!A29=0,"",'Opp Library - PT'!A29) -> Install a biomass boiler to generate steam and a steam turbine for electricity generation. The steam turbine offsets some or all of the electricity use on site and the remaining low pressure steam is used for hot water generation and, if applicable, in the rendering plant. | D77: =IF('Opp Library - PT'!A29=0,"",'Opp Library - PT'!B29) -> 2200000 | E77: =IF('Opp Library - PT'!A29=0,"",'Opp Library - PT'!C29) -> 11000000 | F77: =IF('Opp Library - PT'!A29=0,"",IF(AND('Opp Library - PT'!D29=0,'Opp Library - PT'!E29=0),"Immediate",'Opp Library - PT'!D29&" - "&'Opp Library - PT'!E29)) -> 4 - 6 | G77: =IF('Opp Library - PT'!A29=0,"",'Opp Library - PT'!G29) -> 14000 | H77: =IF('Opp Library - PT'!A29=0,"",IF(LEN('Opp Library - PT'!F29)=0,"No link",HYPERLINK('Opp Library - PT'!F29,"Link"))) -> Link
C78: =IF('Opp Library - PT'!A30=0,"",'Opp Library - PT'!A30) -> Install wind turbine(s) if you have sufficient land along side your plant operation. The first step is to assess the wind speeds and duration of wind in your area. | D78: =IF('Opp Library - PT'!A30=0,"",'Opp Library - PT'!B30) -> 650000 | E78: =IF('Opp Library - PT'!A30=0,"",'Opp Library - PT'!C30) -> 3200000 | F78: =IF('Opp Library - PT'!A30=0,"",IF(AND('Opp Library - PT'!D30=0,'Opp Library - PT'!E30=0),"Immediate",'Opp Library - PT'!D30&" - "&'Opp Library - PT'!E30)) -> 4 - 6 | G78: =IF('Opp Library - PT'!A30=0,"",'Opp Library - PT'!G30) -> 4100 | H78: =IF('Opp Library - PT'!A30=0,"",IF(LEN('Opp Library - PT'!F30)=0,"No link",HYPERLINK('Opp Library - PT'!F30,"Link"))) -> Link
C79: =IF('Opp Library - PT'!A31=0,"",'Opp Library - PT'!A31) -> Install combined heat and power (CHP) plant (cogeneration or trigeneration) using an existing fuel source. | D79: =IF('Opp Library - PT'!A31=0,"",'Opp Library - PT'!B31) -> 1500000 | E79: =IF('Opp Library - PT'!A31=0,"",'Opp Library - PT'!C31) -> 8900000 | F79: =IF('Opp Library - PT'!A31=0,"",IF(AND('Opp Library - PT'!D31=0,'Opp Library - PT'!E31=0),"Immediate",'Opp Library - PT'!D31&" - "&'Opp Library - PT'!E31)) -> 5 - 8 | G79: =IF('Opp Library - PT'!A31=0,"",'Opp Library - PT'!G31) -> 10000 | H79: =IF('Opp Library - PT'!A31=0,"",IF(LEN('Opp Library - PT'!F31)=0,"No link",HYPERLINK('Opp Library - PT'!F31,"Link"))) -> Link
B82: ="Benchmarking Results - Water Use, "&Inputs!$C$10 -> Benchmarking Results - Water Use, AMPC Member
C86: =IFERROR(INDEX('Performance Pyramid'!$I$49:$I$53,MATCH(INDEX('Performance Pyramid'!$I$59:$K$61,1,MATCH(Calculations!$G$199,'Performance Pyramid'!$D$48:$F$48,0)),Opportunity_Category,0)),"") -> The next step in an effective water efficency improvement program is to assess the scope for improving water use in key water consumption areas such hot and cold water used for cleaning in stockyards, slaughter rooms, boning rooms and rendering plants.
C87: =IFERROR(INDEX('Performance Pyramid'!$I$49:$I$53,MATCH(INDEX('Performance Pyramid'!$I$59:$K$61,2,MATCH(Calculations!$G$199,'Performance Pyramid'!$D$48:$F$48,0)),Opportunity_Category,0)),"") -> Once the housekeeping and water efficiency elements are under control the next step in the program is to improve water use at a process level. This involves reviewing water use in areas such as the water recycle and reuse systems, stockyards, sterilisation and washdown.
C89: =IF('Opp Library - PT'!G165=0,0,'Opp Library - PT'!G165)&IF('Opp Library - PT'!G165=1," opportunity was"," opportunities were")&" screened out due to exceeding the payback period" -> 0 opportunities were screened out due to exceeding the payback period
C94: Performance Opportunity Example | D94: ="Savings ($ / year), to "&'Opp Library - PT'!$B$14&" digits" -> Savings ($ / year), to 2 digits | E94: CAPEX ($), to 2 digits | F94: Payback range (years) | G94: Link to more information
C95: =IF('Opp Library - PT'!A35=0,"nil",'Opp Library - PT'!A35) -> Replace pot-style sterilisers with spray sterilisers. | D95: =IF('Opp Library - PT'!A35=0,"",'Opp Library - PT'!B35) -> 12000 | E95: =IF('Opp Library - PT'!A35=0,"",'Opp Library - PT'!C35) -> 5800 | F95: =IF('Opp Library - PT'!A35=0,"",IF(AND('Opp Library - PT'!D35=0,'Opp Library - PT'!E35=0),"Immediate",'Opp Library - PT'!D35&" - "&'Opp Library - PT'!E35)) -> 0.4 - 0.6 | G95: =IF('Opp Library - PT'!A35=0,"",IF(LEN('Opp Library - PT'!F35)=0,"No link",HYPERLINK('Opp Library - PT'!F35,"Link"))) -> Link
C96: =IF('Opp Library - PT'!A36=0,"",'Opp Library - PT'!A36) -> Automatic spray washer for edible offal. Automatic spray washers for offal washing can reduce water use for offal washing by around 50%. | D96: =IF('Opp Library - PT'!A36=0,"",'Opp Library - PT'!B36) -> 35000 | E96: =IF('Opp Library - PT'!A36=0,"",'Opp Library - PT'!C36) -> 210000 | F96: =IF('Opp Library - PT'!A36=0,"",IF(AND('Opp Library - PT'!D36=0,'Opp Library - PT'!E36=0),"Immediate",'Opp Library - PT'!D36&" - "&'Opp Library - PT'!E36)) -> 5 - 8 | G96: =IF('Opp Library - PT'!A36=0,"",IF(LEN('Opp Library - PT'!F36)=0,"No link",HYPERLINK('Opp Library - PT'!F36,"Link"))) -> Link
C97: =IF('Opp Library - PT'!A37=0,"",'Opp Library - PT'!A37) -> Install energy and water flow meters for major loads and monitor use via a central process control system or web based system. Extend system to provide online alarms and SMS alerts available remotely. | D97: =IF('Opp Library - PT'!A37=0,"",'Opp Library - PT'!B37) -> 94000 | E97: =IF('Opp Library - PT'!A37=0,"",'Opp Library - PT'!C37) -> 190000 | F97: =IF('Opp Library - PT'!A37=0,"",IF(AND('Opp Library - PT'!D37=0,'Opp Library - PT'!E37=0),"Immediate",'Opp Library - PT'!D37&" - "&'Opp Library - PT'!E37)) -> 2 - 3 | G97: =IF('Opp Library - PT'!A37=0,"",IF(LEN('Opp Library - PT'!F37)=0,"No link",HYPERLINK('Opp Library - PT'!F37,"Link"))) -> No link
C98: =IF('Opp Library - PT'!A38=0,"",'Opp Library - PT'!A38) -> Install storm water recovery and collection systems to reduce water used for washing cattle and potentially some process water uses. | D98: =IF('Opp Library - PT'!A38=0,"",'Opp Library - PT'!B38) -> 47000 | E98: =IF('Opp Library - PT'!A38=0,"",'Opp Library - PT'!C38) -> 93000 | F98: =IF('Opp Library - PT'!A38=0,"",IF(AND('Opp Library - PT'!D38=0,'Opp Library - PT'!E38=0),"Immediate",'Opp Library - PT'!D38&" - "&'Opp Library - PT'!E38)) -> 2 - 3 | G98: =IF('Opp Library - PT'!A38=0,"",IF(LEN('Opp Library - PT'!F38)=0,"No link",HYPERLINK('Opp Library - PT'!F38,"Link"))) -> Link
B101: =HYPERLINK("#'Inputs'!$A$1","LINK: Return to Inputs Page") -> LINK: Return to Inputs Page

Sheet Logic Flowchart (hidden)
Q25: =HYPERLINK("#"&ADDRESS(ROW(Calculations!B11),COLUMN(Calculations!B11),1,1,"Calculations"),"LINK") -> LINK
Q29: See:
Q30: "Benchmark-Energy"
Q31: "Benchmark-Water"
Q32: "Benchmark-Adjustments"
Q39: =HYPERLINK("#"&ADDRESS(ROW(Calculations!B69),COLUMN(Calculations!B69),1,1,"Calculations"),"LINK") -> LINK
Q45: =HYPERLINK("#"&ADDRESS(ROW(Calculations!B129),COLUMN(Calculations!B129),1,1,"Calculations"),"LINK") -> LINK
Q52: =HYPERLINK("#"&ADDRESS(ROW(Calculations!B173),COLUMN(Calculations!B173),1,1,"Calculations"),"LINK") -> LINK
Q58: See:
Q59: "Performance Pyramid"
Q60: "Opportunity Library"
Q66: =HYPERLINK("#"&ADDRESS(ROW('Performance Pyramid'!B1),COLUMN('Performance Pyramid'!B1),1,1,"Performance Pyramid"),"LINK") -> LINK
Q82: =HYPERLINK("#"&ADDRESS(ROW('Opportunity Library'!B2),COLUMN('Opportunity Library'!B2),1,1,"Opportunity Library"),"LINK") -> LINK
Q90: =HYPERLINK("#"&ADDRESS(ROW('Opp Library - PT'!A2),COLUMN('Opp Library - PT'!A2),1,1,"Opp Library - PT"),"LINK") -> LINK
Q98: =HYPERLINK("#"&ADDRESS(ROW(Output!B27),COLUMN(Output!B27),1,1,"Output"),"LINK") -> LINK

Sheet Logic Flowchart (2) (hidden)
U58: See:
U59: "Performance Pyramid"
U60: "Opportunity Library"
U66: =HYPERLINK("#"&ADDRESS(ROW('Performance Pyramid'!B1),COLUMN('Performance Pyramid'!B1),1,1,"Performance Pyramid"),"LINK") -> LINK
U82: =HYPERLINK("#"&ADDRESS(ROW('Opportunity Library'!B2),COLUMN('Opportunity Library'!B2),1,1,"Opportunity Library"),"LINK") -> LINK
U90: =HYPERLINK("#"&ADDRESS(ROW('Opp Library - PT'!A2),COLUMN('Opp Library - PT'!A2),1,1,"Opp Library - PT"),"LINK") -> LINK
U98: =HYPERLINK("#"&ADDRESS(ROW(Output!B27),COLUMN(Output!B27),1,1,"Output"),"LINK") -> LINK

Sheet Calculations (hidden)
C2: literature review reference required / needs QA
C3: imports from another worksheet
C4: exports to another worksheet
C5: method step
C6: heading
B11: "Calculate user's plant performance for each benchmark category"
B13: Method
B15: 1) Convert consumption and cost values to SI units
B16: 2) Calculate tHSCW for the site
B17: 3) Calculate site performance, ready for comparison to benchmark
A20: =B15 -> 1) Convert consumption and cost values to SI units
B22: Cogeneration | C22: =Inputs!D52 -> Gas engine (with heat recovery)
B23: =Inputs!C55 -> Natural gas | C23: =Inputs!G55 -> 0 | D23: =IF($C$22='Drop-downs'!$AB$18,0,Inputs!D55) -> 150000 | E23: =Inputs!E55 -> GJ | F23: GJ | G23: =INDEX($G$30:$G$45,MATCH(B23,$B$30:$B$45,0)) -> 1 | I23: =D23*$G23 -> 150000 | J23: =F23 -> GJ | K23: =Inputs!I55 -> 0 | L23: =Inputs!J55 -> 8 | M23: =Inputs!K55 -> 8 | N23: =Inputs!E55 -> GJ | O23: =L23/$G23 -> 8 | P23: =M23/$G23 -> 8 | Q23: =O23*I23 -> 1200000 | R23: =P23*I23 -> 1200000
B24: =IF(Inputs!C56="Biogas",B39,Inputs!C56) -> Biogas - used in process | C24: =Inputs!G56 -> 0 | D24: =IF($C$22='Drop-downs'!$AB$18,0,Inputs!D56) -> 50000 | E24: =Inputs!E56 -> GJ | F24: GJ | G24: =INDEX($G$30:$G$45,MATCH(B24,$B$30:$B$45,0)) -> 1 | I24: =D24*$G24 -> 50000 | J24: =F24 -> GJ | K24: =Inputs!I56 -> 0 | L24: =Inputs!J56 -> 3 | M24: =Inputs!K56 -> 3 | N24: =Inputs!E56 -> GJ | O24: =L24/$G24 -> 3 | P24: =M24/$G24 -> 3 | Q24: 150000 | R24: 150000
B25: Electricity output | C25: =Inputs!G57 -> 0 | D25: =IF($C$22='Drop-downs'!$AB$18,0,Inputs!D57) -> 10000000 | E25: =Inputs!E57 -> kWh | F25: kWh | G25: 1 | I25: =D25*$G25 -> 10000000 | J25: kWh | K25: =Inputs!I57 -> 0 | L25: =Inputs!J57 -> 0 | M25: =Inputs!K57 -> 0 | N25: =Inputs!E57 -> kWh
B27: Additonal fuel | C27: =IF(C23=0,0,C23*D27/D23) -> 0 | D27: =I23+I24-D25*NGERFactors!G151 -> 164000 | E27: GJ | F27: GJ | G27: 1 | I27: =D27*$G27 -> 164000 | J27: =F27 -> GJ | K27: =K23 -> 0 | L27: =L23 -> 8 | M27: 8 | N27: GJ
B29: Commodity | C29: Total Cost per year | D29: Volume per year, per unit of measure | E29: Unit of Measure | F29: convert to SI unit of measure | G29: multiplier | H29: UOM | I29: Volume per year, SI units | J29: SI unit of Measure | K29: Calculated rate | L29: Default rate | M29: Figure Used | N29: Unit of Measure | O29: Default cost per SI unit of measure | P29: Actual cost per SI unit of measure | Q29: Default cost | R29: Actual cost
B30: =Inputs!C63 -> Natural gas | C30: =Inputs!G63 -> 0 | D30: =Inputs!D63 -> 31000 | E30: =Inputs!E63 -> GJ | F30: GJ | G30: 1 | I30: =D30*$G30 -> 31000 | J30: =F30 -> GJ | K30: =Inputs!I63 -> 0 | L30: =Inputs!J63 -> 8 | M30: =Inputs!K63 -> 8 | N30: =Inputs!E63 -> GJ | O30: =IF($G30=0,0,L30/$G30) -> 8 | P30: =IF($G30=0,0,M30/$G30) -> 8 | Q30: =O30*I30 -> 248000 | R30: =P30*I30 -> 248000
B31: =Inputs!C64 -> Coal | C31: =Inputs!G64 -> 0 | D31: =Inputs!D64 -> 0 | E31: =Inputs!E64 -> tonnes | F31: GJ | G31: =NGERFactors!$F$22 -> 27 | H31: GJ / tonne | I31: 0 | J31: GJ | K31: =Inputs!I64 -> 0 | L31: =Inputs!J64 -> 120 | M31: =Inputs!K64 -> 120 | N31: =Inputs!E64 -> tonnes | O31: =IF($G31=0,0,L31/$G31) -> 4.444444444 | P31: =IF($G31=0,0,M31/$G31) -> 4.444444444 | Q31: =O31*I31 -> 0 | R31: =P31*I31 -> 0
B32: =Inputs!C65 -> LPG | C32: =Inputs!G65 -> 0 | D32: =Inputs!D65 -> 0 | E32: =Inputs!E65 -> litres | F32: GJ | G32: =NGERFactors!$G$86/1000 -> 0.0257 | H32: GJ / litre | I32: 0 | J32: GJ | K32: =Inputs!I65 -> 0 | L32: =Inputs!J65 -> 0.7 | M32: =Inputs!K65 -> 0.7 | N32: =Inputs!E65 -> litres | O32: 27.23735409 | P32: 27.23735409 | Q32: 0 | R32: 0
B33: =Inputs!C66 -> Tallow | C33: =Inputs!G66 -> 0 | D33: =Inputs!D66 -> 0 | E33: =Inputs!E66 -> tonnes | F33: GJ | G33: =NGERFactors!$G$8 -> 38.85 | H33: GJ / tonne | I33: 0 | J33: GJ | K33: =Inputs!I66 -> 0 | L33: =Inputs!J66 -> 800 | M33: =Inputs!K66 -> 800 | N33: =Inputs!E66 -> tonnes | O33: 20.59202059 | P33: 20.59202059 | Q33: 0 | R33: 0
B34: =Inputs!C67 -> Fuel Oil | C34: =Inputs!G67 -> 0 | D34: =Inputs!D67 -> 0 | E34: =Inputs!E67 -> litres | F34: GJ | G34: =NGERFactors!$G$83/1000 -> 0.0397 | H34: GJ / litre | I34: 0 | J34: GJ | K34: =Inputs!I67 -> 0 | L34: =Inputs!J67 -> 1.5 | M34: =Inputs!K67 -> 1.5 | N34: =Inputs!E67 -> litres | O34: 37.78337531 | P34: 37.78337531 | Q34: 0 | R34: 0
B35: =Inputs!C68 -> Diesel | C35: =Inputs!G68 -> 0 | D35: =Inputs!D68 -> 0 | E35: =Inputs!E68 -> litres | F35: GJ | G35: =NGERFactors!G127/1000 -> 0.0386 | H35: GJ / litre | I35: 0 | J35: GJ | K35: =Inputs!I68 -> 0 | L35: =Inputs!J68 -> 1.2 | M35: =Inputs!K68 -> 1.2 | N35: =Inputs!E68 -> litres | O35: =IF($G35=0,0,L35/$G35) -> 31.0880829 | P35: =IF($G35=0,0,M35/$G35) -> 31.0880829 | Q35: =O35*I35 -> 0 | R35: =P35*I35 -> 0
B36: =Inputs!C69 -> Petrol (ULP) | C36: =Inputs!G69 -> 0 | D36: =Inputs!D69 -> 0 | E36: =Inputs!E69 -> litres | F36: GJ | G36: =NGERFactors!G122/1000 -> 0.0342 | H36: GJ / litre | I36: 0 | J36: GJ | K36: =Inputs!I69 -> 0 | L36: =Inputs!J69 -> 1.5 | M36: =Inputs!K69 -> 1.5 | N36: =Inputs!E69 -> litres | O36: 43.85964912 | P36: 43.85964912 | Q36: 0 | R36: 0
B37: =Inputs!C70 -> Sawdust, 50%MC | C37: =Inputs!G70 -> 0 | D37: =Inputs!D70 -> 0 | E37: =Inputs!E70 -> tonnes | F37: GJ | G37: =IF(Inputs!$D$73="N/A",0,Inputs!$D$73) -> 8 | H37: GJ / tonne | I37: =D37*$G37 -> 0 | J37: =F37 -> GJ | K37: =Inputs!I70 -> 0 | L37: =Inputs!J70 -> 50 | M37: =Inputs!K70 -> 50 | N37: =Inputs!E70 -> tonnes | O37: 6.25 | P37: 6.25 | Q37: 0 | R37: 0
B38: =Inputs!C74 -> Biogas - flared | C38: =Inputs!G74 -> 0 | D38: =Inputs!D74 -> 0 | E38: =Inputs!E74 -> GJ | F38: GJ | G38: 1 | I38: 0 | J38: GJ | K38: =Inputs!I74 -> 0 | L38: =Inputs!J74 -> 2 | M38: =Inputs!K74 -> 2 | N38: =Inputs!E74 -> GJ | O38: 2 | P38: 2 | Q38: 0 | R38: 0
B39: =Inputs!C75 -> Biogas - used in process | C39: =Inputs!G75 -> 0 | D39: =Inputs!D75 -> 0 | E39: =Inputs!E75 -> GJ | F39: GJ | G39: 1 | I39: 0 | J39: GJ | K39: =Inputs!I75 -> 0 | L39: =Inputs!J75 -> 3 | M39: =Inputs!K75 -> 3 | N39: =Inputs!E75 -> GJ | O39: 3 | P39: 3 | Q39: 0 | R39: 0
B40: =Inputs!C76 -> Grid Electricity | C40: =Inputs!G76 -> 0 | D40: =Inputs!D76 -> 4000000 | E40: =Inputs!E76 -> kWh | F40: kWh | G40: 1 | I40: 4000000 | J40: kWh | K40: =Inputs!I76 -> 0 | L40: =Inputs!J76 -> 0.2 | M40: =Inputs!K76 -> 0.2 | N40: =Inputs!E76 -> kWh | O40: 0.2 | P40: 0.2 | Q40: 800000 | R40: 800000
B41: =Inputs!C80 -> Solar PV Electricity | C41: =Inputs!G80 -> 0 | D41: =Inputs!D80 -> 0 | E41: =Inputs!E80 -> kWh | F41: kWh | G41: 1 | I41: 0 | J41: kWh | K41: =Inputs!I80 -> 0 | L41: =Inputs!J80 -> 0.1 | M41: =Inputs!K80 -> 0.1 | N41: =Inputs!E80 -> kWh | O41: 0.1 | P41: 0.1 | Q41: 0 | R41: 0
B42: =Inputs!C81 -> Town Water | C42: =Inputs!G81 -> 0 | D42: =Inputs!D81 -> 600000 | E42: =Inputs!E81 -> kL | F42: kL | G42: 1 | I42: 600000 | J42: kL | K42: =Inputs!I81 -> 0 | L42: =Inputs!J81 -> 2 | M42: =Inputs!K81 -> 2 | N42: =Inputs!E81 -> kL | O42: 2 | P42: 2 | Q42: 1200000 | R42: 1200000
B43: =Inputs!C82 -> Bore Water | C43: =Inputs!G82 -> 0 | D43: =Inputs!D82 -> 0 | E43: =Inputs!E82 -> kL | F43: kL | G43: 1 | I43: 0 | J43: kL | K43: =Inputs!I82 -> 0 | L43: =Inputs!J82 -> 0.2 | M43: =Inputs!K82 -> 0.2 | N43: =Inputs!E82 -> kL | O43: 0.2 | P43: 0.2 | Q43: 0 | R43: 0
B44: =Inputs!C83 -> Recycled Water | C44: =Inputs!G83 -> 0 | D44: =Inputs!D83 -> 0 | E44: =Inputs!E83 -> kL | F44: kL | G44: 1 | I44: 0 | J44: kL | K44: =Inputs!I83 -> 0 | L44: =Inputs!J83 -> 0 | M44: =Inputs!K83 -> 0 | N44: =Inputs!E83 -> kL | O44: 0 | P44: 0 | Q44: 0 | R44: 0
B45: =Inputs!C84 -> Wastewater | C45: =Inputs!G84 -> 0 | D45: =Inputs!D84 -> 450000 | E45: =Inputs!E84 -> kL | F45: kL | G45: 1 | I45: 450000 | J45: kL | K45: =Inputs!I84 -> 0 | L45: =Inputs!J84 -> 2.5 | M45: =Inputs!K84 -> 2.5 | N45: =Inputs!E84 -> kL | O45: 2.5 | P45: 2.5 | Q45: 1125000 | R45: 1125000
A47: =B16 -> 2) Calculate tHSCW for the site
H50: Current | I50: Maximum
B51: Large or Small body? | C51: Species | D51: Current | E51: Maximum | F51: Unit | G51: tonnes / head | H51: tHSCW p.a. | I51: tHSCW p.a.
B52: Large | C52: =Inputs!I12 -> Cattle | D52: =Inputs!K12 -> 40000 | E52: =Inputs!J12 -> - | F52: =Inputs!L12 -> tHSCW / yr | G52: =IF($F52='Drop-downs'!$E$19,Inputs!Q12/1000,"") ->  | H52: =IF($F52='Drop-downs'!$E$19,D52*$G52,D52) -> 40000
B53: Large | C53: =Inputs!I13 -> Calves | D53: =Inputs!K13 -> 0 | E53: =Inputs!J13 -> - | F53: =Inputs!L13 -> tHSCW / yr | G53: =IF($F53='Drop-downs'!$E$19,Inputs!Q13/1000,"") ->  | H53: =IF($F53='Drop-downs'!$E$19,D53*$G53,D53) -> 0
B54: Small | C54: =Inputs!I14 -> Pigs | D54: =Inputs!K14 -> 0 | E54: =Inputs!J14 -> - | F54: =Inputs!L14 -> tHSCW / yr | G54: =IF($F54='Drop-downs'!$E$19,Inputs!Q14/1000,"") ->  | H54: =IF($F54='Drop-downs'!$E$19,D54*$G54,D54) -> 0
B55: Small | C55: =Inputs!I15 -> Sheep | D55: =Inputs!K15 -> 0 | E55: =Inputs!J15 -> - | F55: =Inputs!L15 -> tHSCW / yr | G55: =IF($F55='Drop-downs'!$E$19,Inputs!Q15/1000,"") ->  | H55: =IF($F55='Drop-downs'!$E$19,D55*$G55,D55) -> 0
B56: Small | C56: =Inputs!I16 -> Rams | D56: =Inputs!K16 -> 0 | E56: =Inputs!J16 -> - | F56: =Inputs!L16 -> tHSCW / yr | G56: =IF($F56='Drop-downs'!$E$19,Inputs!Q16/1000,"") ->  | H56: =IF($F56='Drop-downs'!$E$19,D56*$G56,D56) -> 0
B57: Small | C57: =Inputs!I17 -> Lamb | D57: =Inputs!K17 -> 0 | E57: =Inputs!J17 -> - | F57: =Inputs!L17 -> tHSCW / yr | G57: =IF($F57='Drop-downs'!$E$19,Inputs!Q17/1000,"") ->  | H57: =IF($F57='Drop-downs'!$E$19,D57*$G57,D57) -> 0
B58: Small | C58: =Inputs!I18 -> Goat | D58: =Inputs!K18 -> 0 | E58: =Inputs!J18 -> - | F58: =Inputs!L18 -> tHSCW / yr | G58: =IF($F58='Drop-downs'!$E$19,Inputs!Q18/1000,"") ->  | H58: =IF($F58='Drop-downs'!$E$19,D58*$G58,D58) -> 0
H59: =SUM(H52:H58) -> 40000 | I59: =Inputs!$J$19 -> 45000 | J59: tHSCW / year
A62: =B17 -> 3) Calculate site performance, ready for comparison to benchmark
B64: Total Thermal | D64: =SUM(I30:I39,I27)*1000 -> 195000000 | E64: MJ / year | F64: =D64/$H$59 -> 4875 | G64: MJ / tHSCW | I64: =SUM(Q30:Q39)/SUM(I27:I39) -> 1.271794872 | J64: =SUM(R30:R39)/SUM(I27:I39) -> 1.271794872 | K64: $ / GJ | L64: =I64/J64 -> 1
B65: Total Electricity | D65: =SUM(I40:I41,I25) -> 14000000 | E65: kWh / year | F65: =D65/$H$59 -> 350 | G65: kWh / tHSCW | I65: =SUM(Q40:Q41,Q23:Q24)/SUM(I25,I40:I41) -> 0.1535714286 | J65: =SUM(R40:R41,R23:R24)/SUM(I25,I40:I41) -> 0.1535714286 | K65: $ / kWh | L65: =I65/J65 -> 1
B66: Total Energy | D66: =D64+D65*NGERFactors!$G$151*1000 -> 245400000 | E66: MJ / year | F66: =D66/$H$59 -> 6135 | G66: MJ / tHSCW | I66: =SUM(Q23:Q41)/(SUM(I27:I39)+SUM(I25,I40:I41)*NGERFactors!$G$151) -> 9.771801141 | J66: =SUM(R23:R41)/(SUM(I27:I39)+SUM(I25,I40:I41)*NGERFactors!$G$151) -> 9.771801141 | K66: $ / GJ | L66: 1
B67: Total Water | D67: =SUM(I42:I43) -> 600000 | E67: kL / year | F67: =D67/$H$59 -> 15 | G67: kL / tHSCW | I67: =SUMPRODUCT(I42:I45,L42:L45)/SUM(I42:I43) -> 3.875 | J67: =SUM(R42:R45)/SUM(I42:I43) -> 3.875 | K67: $ / kL | L67: 1
B69: "To compare against user's plant, modify benchmark plant based on user's plant facilities and facility througputs."
B71: Method
B73: 1) Import the relevant best-practice benchmark dataset based on if the user's site has rendering
B74: 2) Import the user's plant facilities and facility throughputs
B75: 3) Import adjustment factors for facilities, based on Live Weight recovery rates
B76: 4) Calculate the energy and water consumption per facility, then adjust for facility throughputs
B77: 5) Modify the benchmark plant based on the user's plant facilities and throughputs
A79: =B73 -> 1) Import the relevant best-practice benchmark dataset based on if the user's site has rendering
B81: =Inputs!C29 -> 3.1. Rendering | C81: =Inputs!D29 -> Continuous
A84: Best-practice benchmark dataset:
B85: Thermal | C85: =IF($C$81='Drop-downs'!$K$21,'Benchmark-Energy'!$AY$70,'Benchmark-Energy'!$AB$70) -> 2334 | D85: MJ / tHSCW
B86: Electricity | C86: =IF($C$81='Drop-downs'!$K$21,'Benchmark-Energy'!$AY$71,'Benchmark-Energy'!$AB$71) -> 257 | D86: kWh / tHSCW
B87: Water | C87: ='Benchmark-Water'!$AB$61 -> 7.8 | D87: kL / tHSCW
A89: =B74 -> 2) Import the user's plant facilities and facility throughputs
C91: Stockyards | D91: Slaughter and Evisceration | E91: Hide Processing | F91: Blood Processing | G91: Rendering | H91: Paunch Processing | I91: Offal Washing | J91: Wastewater Treatment | K91: Chilling | L91: Boning | M91: Packaging | N91: Freezing
B92: User's plant facilities | C92: =Inputs!D17 -> Yes | D92: =Inputs!D18 -> Yes | E92: =Inputs!D35 -> No | F92: =Inputs!D19 -> No | G92: =Inputs!D29 -> Continuous | H92: =Inputs!K35 -> Yes | I92: =Inputs!D20 -> Yes | J92: =Inputs!D21 -> Yes | K92: Yes | L92: =Inputs!K29 -> Yes | M92: =Inputs!D22 -> Yes | N92: =Inputs!Q29 -> Yes
B93: Conversion to yes/no | C93: =C92 -> Yes | D93: =D92 -> Yes | E93: No | F93: No | G93: =IF(G92='Drop-downs'!$K$21,"No","Yes") -> Yes | H93: Yes | I93: Yes | J93: Yes | K93: Yes | L93: Yes | M93: Yes | N93: Yes
B94: Percentage | C94: =Inputs!E17 -> 1 | D94: =Inputs!E18 -> 1 | E94: 1 | F94: =Inputs!E19 -> 1 | G94: 1 | H94: 1 | I94: =Inputs!E20 -> 1 | J94: =Inputs!E21 -> 1 | K94: 1 | L94: 1 | M94: =Inputs!E22 -> 1 | N94: 1
B96: =Inputs!C30 -> How much rendering product is external vs internal? | G96: =Inputs!I30 -> How much product enters the boning room? | K96: =Inputs!N30 -> How much final product leaves the site as chilled/frozen?
B97: =Inputs!C31 -> Internal input (t/yr) | E97: =Inputs!D31 -> 38000 | G97: =Inputs!I31 -> Boning room (tonnes/yr) | I97: =Inputs!K31 -> 34000 | K97: Chilled (t/yr) | M97: =Inputs!Q31 -> 4000
B98: =Inputs!C32 -> External input (t/yr) | E98: =Inputs!D32 -> 0 | G98: =Inputs!I32 -> Carcass only (t/yr) | I98: =Inputs!K32 -> 4000 | K98: Frozen (t/yr) | M98: =Inputs!Q32 -> 34000
A100: =B75 -> 3) Import adjustment factors for facilities, based on Live Weight recovery rates
B103: Ratio to uplift rendering | E103: ='Benchmark-Adjustments'!E142 -> 1.357142857 | G103: Ratio to derate boning | I103: ='Benchmark-Adjustments'!I142 -> 1.230263158 | K103: Ratio to derate freezing | M103: ='Benchmark-Adjustments'!M147 -> 1.230263158
B104: (assuming all kills are rendered) | K104: Ratio to derate chilling | M104: ='Benchmark-Adjustments'!Q147 -> 1.375
B106: Ratio to hide processing | E106: ='Benchmark-Adjustments'!E168 -> 0 | G106: Ratio to paunch processing | I106: ='Benchmark-Adjustments'!E198 -> 0.8613586592
A109: =B76 -> 4) Calculate the energy and water consumption per facility, then adjust for facility throughputs
B111: [% of full-facility consumption] | C111: =C91 -> Stockyards | D111: Slaughter and Evisceration | E111: Hide Processing | F111: Blood Processing | G111: Rendering | H111: Paunch Processing | I111: Offal Washing | J111: Wastewater Treatment | K111: Chilling | L111: Boning | M111: Packaging | N111: Freezing
A112: Before Adjustment | B112: Thermal | C112: =(C$93="Yes")*'Benchmark-Energy'!P59*C$94 -> 0.004846974103 | D112: =(D$93="Yes")*'Benchmark-Energy'!Q59*D$94 -> 0.0615981166 | E112: =(E$93="Yes")*'Benchmark-Energy'!R59*E$94 -> 0 | F112: =(F$93="Yes")*'Benchmark-Energy'!S59*F$94 -> 0 | G112: =(G$93="Yes")*'Benchmark-Energy'!T59*G$94 -> 0.7717174115 | H112: =(H$93="Yes")*'Benchmark-Energy'!U59*H$94 -> 0.007755158565 | I112: =(I$93="Yes")*'Benchmark-Energy'!V59*I$94 -> 0.00443151918 | J112: =(J$93="Yes")*'Benchmark-Energy'!W59*J$94 -> 0.003600609334 | K112: =(K$93="Yes")*'Benchmark-Energy'!X59*K$94 -> 0.001523334718 | L112: =(L$93="Yes")*'Benchmark-Energy'!Y59*L$94 -> 0.03625536629 | M112: =(M$93="Yes")*'Benchmark-Energy'!Z59*M$94 -> 0.001855698657 | N112: =(N$93="Yes")*'Benchmark-Energy'!AA59*N$94 -> 0.0006924248719 | O112: =SUM(C112:N112)*C85 -> 2087.241617
B113: Electrical | C113: =(C$93="Yes")*'Benchmark-Energy'!P60*C$94 -> 0.0134180791 | D113: =(D$93="Yes")*'Benchmark-Energy'!Q60*D$94 -> 0.04307909605 | E113: =(E$93="Yes")*'Benchmark-Energy'!R60*E$94 -> 0 | F113: =(F$93="Yes")*'Benchmark-Energy'!S60*F$94 -> 0 | G113: =(G$93="Yes")*'Benchmark-Energy'!T60*G$94 -> 0.04307909605 | H113: =(H$93="Yes")*'Benchmark-Energy'!U60*H$94 -> 0.0261299435 | I113: =(I$93="Yes")*'Benchmark-Energy'!V60*I$94 -> 0.0261299435 | J113: =(J$93="Yes")*'Benchmark-Energy'!W60*J$94 -> 0.0261299435 | K113: =(K$93="Yes")*'Benchmark-Energy'!X60*K$94 -> 0.1532485876 | L113: =(L$93="Yes")*'Benchmark-Energy'!Y60*L$94 -> 0.04307909605 | M113: =(M$93="Yes")*'Benchmark-Energy'!Z60*M$94 -> 0.01765536723 | N113: =(N$93="Yes")*'Benchmark-Energy'!AA60*N$94 -> 0.5557909605 | O113: =SUM(C113:N113)*C86 -> 243.569209
B114: Water | C114: =(C$93="Yes")*'Benchmark-Water'!P43*C$94 -> 0.2578925479 | D114: =(D$93="Yes")*'Benchmark-Water'!Q43*D$94 -> 0.2157588011 | E114: =(E$93="Yes")*'Benchmark-Water'!R43*E$94 -> 0 | F114: =(F$93="Yes")*'Benchmark-Water'!S43*F$94 -> 0 | G114: =(G$93="Yes")*'Benchmark-Water'!T43*G$94 -> 0.06129531479 | H114: =(H$93="Yes")*'Benchmark-Water'!U43*H$94 -> 0.1610990157 | I114: =(I$93="Yes")*'Benchmark-Water'!V43*I$94 -> 0.08085656552 | J114: =(J$93="Yes")*'Benchmark-Water'!W43*J$94 -> 0.009140952447 | K114: =(K$93="Yes")*'Benchmark-Water'!X43*K$94 -> 0.02054541068 | L114: =(L$93="Yes")*'Benchmark-Water'!Y43*L$94 -> 0.0823578812 | M114: =(M$93="Yes")*'Benchmark-Water'!Z43*M$94 -> 0.00813792182 | N114: =(N$93="Yes")*'Benchmark-Water'!AA43*N$94 -> 0.0405046434 | O114: =SUM(C114:N114)*C87 -> 7.313194625
A115: After Adjustment | B115: Thermal | C115: =C112 -> 0.004846974103 | D115: =D112 -> 0.0615981166 | E115: =E112*$E$106 -> 0 | F115: 0 | G115: =G112*$E$103 -> 1.047330773 | H115: =H112*$I$106 -> 0.006679972984 | I115: 0.00443151918 | J115: 0.003600609334 | K115: =IF($N$93="Yes",K112*$M$104,K112) -> 0.002094585238 | L115: =L112*$I$103 -> 0.04460364143 | M115: 0.001855698657 | N115: =N112*$M$103 -> 0.0008518648095 | O115: =SUM(C115:N115)*C85 -> 2749.204024
B116: Electrical | C116: =C113 -> 0.0134180791 | D116: 0.04307909605 | E116: =E113*$E$106 -> 0 | F116: 0 | G116: =G113*$E$103 -> 0.05846448749 | H116: =H113*$I$106 -> 0.0225072531 | I116: 0.0261299435 | J116: 0.0261299435 | K116: =IF($N$93="Yes",K113*$M$104,K113) -> 0.2107168079 | L116: =L113*$I$103 -> 0.05299862474 | M116: 0.01765536723 | N116: =N113*$M$103 -> 0.6837691421 | O116: =SUM(C116:N116)*C86 -> 296.8012674
B117: Water | C117: =C114 -> 0.2578925479 | D117: 0.2157588011 | E117: 0 | F117: 0 | G117: 0.08318649864 | H117: 0.1387640321 | I117: 0.08085656552 | J117: 0.009140952447 | K117: =IF($N$93="Yes",K114*$M$104,K114) -> 0.02824993968 | L117: 0.101321867 | M117: 0.00813792182 | N117: 0.0498313705 | O117: =SUM(C117:N117)*C87 -> 7.590495875
A120: =B77 -> 5) Modify the benchmark plant based on the user's plant facilities and throughputs
B122: Modified best-practice benchmarks (before species and production adjustments):
C123: Thermal | D123: =SUM(C115:N115)*C85 -> 2749.204024 | E123: =F85 -> 0
C124: Electricity | D124: =SUM(C116:N116)*C86 -> 296.8012674 | E124: =F86 -> 0
C125: Water | D125: =SUM(C117:N117)*C87 -> 7.590495875 | E125: =F87 -> 0
B127: These figures are yet to be adjusted for the user's plant capacity and species mix.
B129: "Further modify the benchmark plant based on user's production capacity and predominant species."
B131: Method
B133: 1) From user input, import production metrics
B134: 2) Calculate predominant species based on production rates calculated earlier, and calculate adjustment factor
B135: 3) Calculate adjustment factor to allow for performance degradation when not at full capacity, and calculate adjustment factor
B136: 4) Apply benchmark adjustments for species mix and production to calculate adjusted best-practice benchmarks
A138: =B133 -> 1) From user input, import production metrics
C140: What is your current production? | I140: =H59 -> 40000 | J140: tHSCW / year
C141: What is your maximum production? | I141: =I59 -> 45000 | J141: tHSCW / year
C142: Current production as a % of maximum production | I142: =MIN(I140/I141,1) -> 0.8888888889
A144: =B134 -> 2) Calculate predominant species based on production rates calculated earlier, and calculate adjustment factor
F146: Energy | G146: Water | H146: Index
D147: ='Benchmark-Adjustments'!E35 -> Large body (cattle & calves) | F147: ='Benchmark-Adjustments'!H35 -> 1 | G147: ='Benchmark-Adjustments'!I35 -> 1 | H147: 0
D148: ='Benchmark-Adjustments'!E36 -> Small body (all else) | F148: ='Benchmark-Adjustments'!H36 -> 0.5 | G148: ='Benchmark-Adjustments'!I36 -> 1.16 | H148: 1
C150: Calculate the weighted proportion of species that are large or small body:
D151: =SUMIF($B$52:$B$58,"Small",$H$52:$H$58)/SUM($H$52:$H$58) -> 0 | F151: (if 0 then production is all large body, if 1 then all small body)
C153: Apply linear interpolation to identify production adjustment factor, using the 'Index':
F155: Energy | G155: Water
C156: Species mix adjustment factor | F156: =TREND($F147:$F148,$H$147:$H$148,$D$151,TRUE) -> 1 | G156: =TREND($G147:$G148,$H$147:$H$148,$D$151,TRUE) -> 1
A158: =B135 -> 3) Calculate adjustment factor to allow for performance degradation when not at full capacity, and calculate adjustment factor
C160: Apply linear interpolation to identify production adjustment factor by first looking up category:
D161: Lower bound | F161: =INDEX('Benchmark-Adjustments'!$D$51:$D$53,MATCH(Calculations!$I$142,'Benchmark-Adjustments'!$D$51:$D$53,1)) -> 0.5 | G161: =INDEX('Benchmark-Adjustments'!$G$51:$G$53,MATCH(Calculations!$I$142,'Benchmark-Adjustments'!$D$51:$D$53,1)) -> 1.25
D162: Upper bound | F162: =IFERROR(INDEX('Benchmark-Adjustments'!$D$51:$D$53,MATCH(Calculations!$I$142,'Benchmark-Adjustments'!$D$51:$D$53,1)+1),INDEX('Benchmark-Adjustments'!$D$51:$D$53,MATCH(Calculations!$I$142,'Benchmark-Adjustments'!$D$51:$D$53,1))) -> 1 | G162: =IFERROR(INDEX('Benchmark-Adjustments'!$G$51:$G$53,MATCH(Calculations!$I$142,'Benchmark-Adjustments'!$D$51:$D$53,1)+1),INDEX('Benchmark-Adjustments'!$G$51:$G$53,MATCH(Calculations!$I$142,'Benchmark-Adjustments'!$D$51:$D$53,1))) -> 1
C164: Production adjustment factor | F164: =TREND(G161:G162,F161:F162,I142,TRUE) -> 1.055555556
A166: =B136 -> 4) Apply benchmark adjustments for species mix and production to calculate adjusted best-practice benchmarks
B168: Modified & adjusted best-practice benchmarks (after species and production adjustments):
C169: =C123 -> Thermal | D169: =D123*$F$156*$F$164 -> 2901.937581 | E169: =E123 -> 0
C170: =C124 -> Electricity | D170: =D124*$G$156*$F$164 -> 313.2902267 | E170: =E124 -> 0
C171: =C125 -> Water | D171: =D125*$G$156*$F$164 -> 8.01219009 | E171: =E125 -> 0
B173: "For each benchmark category (electrical, thermal, water): compare user's plant performance against modified benchmark plant performance and rank each category as poor, average or good performance."
B175: Method
B177: 1) Import best-practice benchmarks, dial gauge range, performance bands and user's site performance
B178: 2) Calculate user's site performance against benchmark
B179: 3) Prepare 'dial gauge' figures, ready for graphing
A181: =B177 -> 1) Import best-practice benchmarks, dial gauge range, performance bands and user's site performance
C183: Modified & adjusted best-practice benchmarks (after species and production adjustments) | F183: dial gauge range | G183: upper bound of dial gauge | H183: user's site performance
B184: Thermal | C184: =D169 -> 2901.937581 | F184: ='Benchmark-Energy'!U128 -> 2.953700393 | G184: =C184*F184 -> 8571.454175 | H184: =F64 -> 4875
B185: Electricity | C185: =D170 -> 313.2902267 | F185: ='Benchmark-Energy'!U128 -> 2.953700393 | G185: =C185*F185 -> 925.3654658 | H185: =F65 -> 350
B186: Water | C186: =D171 -> 8.01219009 | F186: ='Benchmark-Water'!U107 -> 3.294326241 | G186: =C186*F186 -> 26.39476806 | H186: =F67 -> 15
C188: Thermal & Electrical | E188: Water
C189: Lower Bound | D189: Upper Bound | E189: Lower Bound | F189: Upper Bound
B190: =Performance_Descriptor_List -> Good | C190: ='Benchmark-Energy'!N142 -> 0 | D190: ='Benchmark-Energy'!O142 -> 0.25 | E190: ='Benchmark-Water'!N120 -> 0 | F190: ='Benchmark-Water'!O120 -> 0.25
B191: Fair | C191: ='Benchmark-Energy'!N143 -> 0.25 | D191: ='Benchmark-Energy'!O143 -> 0.75 | E191: ='Benchmark-Water'!N121 -> 0.25 | F191: ='Benchmark-Water'!O121 -> 0.75
B192: Poor | C192: ='Benchmark-Energy'!N144 -> 0.75 | D192: ='Benchmark-Energy'!O144 -> 1 | E192: ='Benchmark-Water'!N122 -> 0.75 | F192: ='Benchmark-Water'!O122 -> 1
A194: =B178 -> 2) Calculate user's site performance against benchmark
C196: Best | D196: Worst | E196: User's site | F196: % position | G196: Rating
B197: Thermal | C197: =MIN(C184,H184) -> 2901.937581 | D197: =MAX(G184,H184) -> 8571.454175 | E197: =H184 -> 4875 | F197: =(E197-C197)/(D197-C197) -> 0.3480124603 | G197: =INDEX($B$190:$B$192,MATCH(F197,$C$190:$C$192,1)) -> Fair
B198: Electricity | C198: =MIN(C185,H185) -> 313.2902267 | D198: =MAX(G185,H185) -> 925.3654658 | E198: =H185 -> 350 | F198: 0.05997591628 | G198: =INDEX($B$190:$B$192,MATCH(F198,$C$190:$C$192,1)) -> Good
B199: Water | C199: 8.01219009 | D199: 26.39476806 | E199: 15 | F199: 0.3801322056 | G199: =INDEX($B$190:$B$192,MATCH(F199,$E$190:$E$192,1)) -> Fair
A201: =B179 -> 3) Prepare 'dial gauge' figures, ready for graphing
F203: Actual [UOM] | G203: Comparative [min/max] | H203: % | I203: Dial on dial gauge | K203: Doughnut | L203: Rounded Comparative figures [min/max]
B204: Thermal (MJ / tHSCW) | C204: Best practice / minimum value | F204: =C184 -> 2901.937581 | G204: =MIN(F204:F205) -> 2901.937581 | H204: =(G204-MIN(G204:G206))/(MAX(G204:G206)-MIN(G204:G206)) -> 0 | I204: 0 | J204: 0 | K204: 180 | L204: =ROUND(Calculations!$G$204,'Opp Library - PT'!$B$16-(1+INT(LOG10(ABS(Calculations!$G$204))))) -> 2900
C205: Actual performance | F205: =F64 -> 4875 | G205: =F205 -> 4875 | H205: =(G205-MIN(G204:G206))/(MAX(G204:G206)-MIN(G204:G206)) -> 0.3480124603 | I205: =-COS(RADIANS((H205-H204)*180/(H206-H204))) -> -0.459545094 | J205: =SIN(RADIANS((H205-H204)*180/(H206-H204))) -> 0.8881544385 | K205: 0 | L205: =G205 -> 4875
C206: Worst / maximum value | F206: =G184 -> 8571.454175 | G206: =MAX(F205:F206) -> 8571.454175 | H206: =(G206-MIN(G204:G206))/(MAX(G204:G206)-MIN(G204:G206)) -> 1 | I206: 0 | J206: 0 | K206: =K204-K205 -> 180 | L206: =ROUND(Calculations!$G$206,'Opp Library - PT'!$B$16-(1+INT(LOG10(ABS(Calculations!$G$206))))) -> 8600
B207: Electricity (kWh / tHSCW) | C207: =C204 -> Best practice / minimum value | F207: =C185 -> 313.2902267 | G207: =MIN(F207:F208) -> 313.2902267 | H207: =(G207-MIN(G207:G209))/(MAX(G207:G209)-MIN(G207:G209)) -> 0 | I207: 0 | J207: 0 | K207: 180 | L207: =ROUND(Calculations!$G$207,'Opp Library - PT'!$B$16-(1+INT(LOG10(ABS(Calculations!$G$207))))) -> 310
C208: =C205 -> Actual performance | F208: =F65 -> 350 | G208: =F208 -> 350 | H208: =(G208-MIN(G207:G209))/(MAX(G207:G209)-MIN(G207:G209)) -> 0.05997591628 | I208: =-COS(RADIANS((H208-H207)*180/(H209-H207))) -> -0.9823014254 | J208: =SIN(RADIANS((H208-H207)*180/(H209-H207))) -> 0.187306993 | K208: 0 | L208: =G208 -> 350
C209: Worst / maximum value | F209: =G185 -> 925.3654658 | G209: =MAX(F208:F209) -> 925.3654658 | H209: =(G209-MIN(G207:G209))/(MAX(G207:G209)-MIN(G207:G209)) -> 1 | I209: 0 | J209: 0 | K209: =K207-K208 -> 180 | L209: =ROUND(Calculations!$G$209,'Opp Library - PT'!$B$16-(1+INT(LOG10(ABS(Calculations!$G$209))))) -> 930
B210: Water (kL / tHSCW) | C210: Best practice / minimum value | F210: =C186 -> 8.01219009 | G210: =MIN(F210:F211) -> 8.01219009 | H210: =(G210-MIN(G210:G212))/(MAX(G210:G212)-MIN(G210:G212)) -> 0 | I210: 0 | J210: 0 | K210: 180 | L210: =ROUND(Calculations!$G$210,'Opp Library - PT'!$B$16-(1+INT(LOG10(ABS(Calculations!$G$210))))) -> 8
C211: Actual performance | F211: =F67 -> 15 | G211: =F211 -> 15 | H211: =(G211-MIN(G210:G212))/(MAX(G210:G212)-MIN(G210:G212)) -> 0.3801322056 | I211: =-COS(RADIANS((H211-H210)*180/(H212-H210))) -> -0.367738351 | J211: =SIN(RADIANS((H211-H210)*180/(H212-H210))) -> 0.9299293012 | K211: 0 | L211: =G211 -> 15
C212: Worst / maximum value | F212: =G186 -> 26.39476806 | G212: =MAX(F211:F212) -> 26.39476806 | H212: =(G212-MIN(G210:G212))/(MAX(G210:G212)-MIN(G210:G212)) -> 1 | I212: 0 | J212: 0 | K212: =K210-K211 -> 180 | L212: =ROUND(Calculations!$G$212,'Opp Library - PT'!$B$16-(1+INT(LOG10(ABS(Calculations!$G$212))))) -> 26
B216: Emissions calculation
B218: Scope 1:
B220: Fuel type | C220: Consumption amount | D220: Unit | E220: Emissions factor | F220: Unit | G220: Scope 1 emissions (tCO2e)
B221: =Inputs!C63 -> Natural gas | C221: =I30+IF($B$23=$B221,$I$23,0) -> 181000 | D221: GJ | E221: =SUM(NGERFactors!G50:I50) -> 51.53 | F221: kgCO2e/GJ | G221: =E221*C221/1000 -> 9326.93
B222: =Inputs!C64 -> Coal | C222: =I31+IF($B$23=$B222,$I$23,0) -> 0 | D222: GJ | E222: =SUM(NGERFactors!H22:L22) -> 90.23 | F222: kgCO2e/GJ | G222: =E222*C222/1000 -> 0
B223: =Inputs!C65 -> LPG | C223: 0 | D223: GJ | E223: =SUM(NGERFactors!H86:J86) -> 60.6 | F223: kgCO2e/GJ | G223: 0
B224: =Inputs!C66 -> Tallow | C224: 0 | D224: GJ | F224: Assume kgCO2e/GJ | G224: 0
B225: =Inputs!C67 -> Fuel Oil | C225: 0 | D225: GJ | E225: =SUM(NGERFactors!H83:J83) -> 73.84 | F225: kgCO2e/GJ | G225: 0
B226: =Inputs!C68 -> Diesel | C226: 0 | D226: GJ | E226: =SUM(NGERFactors!H82:J82) -> 70.2 | F226: kgCO2e/GJ | G226: 0
B227: =Inputs!C69 -> Petrol (ULP) | C227: 0 | D227: GJ | E227: =SUM(NGERFactors!H77:J77) -> 67.8 | F227: kgCO2e/GJ | G227: 0
B228: Total | C228: =SUM(C221:C227) -> 181000 | F228: Total | G228: =SUM(G221:G227) -> 9326.93 | H228: =G228/$H$59*1000 -> 233.17325 | I228: kgCO2e / tHSCW
B229: Scope 2:
B231: Fuel type | C231: Consumption amount | D231: Unit | E231: Emissions factor | F231: Unit | G231: Scope 2 emissions (tCO2e)
B232: Elcetricity | C232: =MAX(0,Inputs!D76-Inputs!D77) -> 4000000 | D232: kWh | E232: =NGERFactors!F178 -> 0.98 | F232: kg CO2-e/kWh | G232: =E232*C232/1000 -> 3920 | H232: =G232/$H$59*1000 -> 98 | I232: kgCO2e / tHSCW

Sheet Benchmark-Energy (hidden)
B1: Development of Energy Benchmarks
B3: Method
B5: 1) From literature review, import typical energy use breakdown at a typical meat plant
B6: 2) Subdivide by plants with / without rendering and apply industry experience to apportion this energy use (hot water, steam, electricity) across the site facilities
B7: 3) From literature review, import figures for best-practice energy use at a full-facility plant
B8: 4) Import performance figures from real-world sites to cross-check best-practice figures for validation
B9: 5) From literature review, import spread of site performance to establish dial gauge range
B10: 6) Establish performance range within dial gauge range for poor, average and good performance
A13: =B5 -> 1) From literature review, import typical energy use breakdown at a typical meat plant | M13: =B6 -> 2) Subdivide by plants with / without rendering and apply industry experience to apportion this energy use (hot water, steam, electricity) across the site facilities
B14: Source: Eco-Efficiency Manual for Meat Processing, Meat and Livestock Australia Ltd, 2002
N15: Rendering | AK15: No rendering
P17: =TRANSPOSE(Facilities_List) -> Stockyards | Q17: Slaughter and Evisceration | R17: Hide Processing | S17: Blood Processing | T17: Rendering | U17: Paunch Processing | V17: Offal Washing | W17: Wastewater Treatment | X17: Chilling | Y17: Boning | Z17: Packaging | AA17: Freezing | AM17: =TRANSPOSE(Facilities_List) -> Stockyards | AN17: Slaughter and Evisceration | AO17: Hide Processing | AP17: Blood Processing | AQ17: Rendering | AR17: Paunch Processing | AS17: Offal Washing | AT17: Wastewater Treatment | AU17: Chilling | AV17: Boning | AW17: Packaging | AX17: Freezing
N18: Hot Water Use | O18: MJ / day | AK18: Hot Water Use | AL18: MJ / day
N19: Knife and equipment sterilisers | O19: 30000 | P19: 0 | Q19: 0.4 | R19: 0 | S19: 0 | T19: 0 | U19: 0 | V19: 0 | W19: 0 | X19: 0 | Y19: 0.6 | Z19: 0 | AA19: 0 | AB19: =SUM(P19:AA19) -> 1 | AK19: Knife and equipment sterilisers | AL19: 30000 | AM19: 0 | AN19: 0.2 | AO19: 0 | AP19: 0 | AQ19: 0 | AR19: 0 | AS19: 0 | AT19: 0 | AU19: 0 | AV19: 0.8 | AW19: 0 | AX19: 0 | AY19: =SUM(AM19:AX19) -> 1
N20: Hand wash stations | O20: 5000 | P20: 0 | Q20: 0.1 | R20: 0.1 | S20: 0.1 | T20: 0.1 | U20: 0.1 | V20: 0.1 | W20: 0.1 | X20: 0.1 | Y20: 0.1 | Z20: 0.1 | AA20: 0 | AB20: 1 | AK20: Hand wash stations | AL20: 4500 | AM20: 0 | AN20: 0.15 | AO20: 0.05 | AP20: 0.05 | AR20: 0.1 | AS20: 0.1 | AT20: 0.1 | AU20: 0.05 | AV20: 0.3 | AW20: 0.1 | AX20: 0 | AY20: 1
N21: Slaughter and evisceration | O21: 15000 | P21: 0 | Q21: 1 | R21: 0 | S21: 0 | T21: 0 | U21: 0 | V21: 0 | W21: 0 | X21: 0 | Y21: 0 | Z21: 0 | AA21: 0 | AB21: 1 | AK21: Slaughter and evisceration | AL21: 15000 | AM21: 0 | AN21: 1 | AO21: 0 | AP21: 0 | AQ21: 0 | AR21: 0 | AS21: 0 | AT21: 0 | AU21: 0 | AV21: 0 | AW21: 0 | AX21: 0 | AY21: 1
N22: Plant cleaning | O22: 25000 | P22: 0.1 | Q22: 0.35 | R22: 0.05 | S22: 0.05 | T22: 0.16 | U22: 0.07 | V22: 0.07 | W22: 0.05 | X22: 0 | Y22: 0.1 | Z22: 0 | AA22: 0 | AB22: 1 | AK22: Plant cleaning | AL22: 20000 | AM22: 0.1 | AN22: 0.35 | AO22: 0.05 | AP22: 0.02 | AR22: 0.1 | AS22: 0.1 | AU22: 0 | AV22: 0.28 | AW22: 0 | AX22: 0 | AY22: 1
N23: Amenities | O23: 5000 | P23: =1/COUNTA($P$17:$AA$17) -> 0.08333333333 | Q23: =1/COUNTA($P$17:$AA$17) -> 0.08333333333 | R23: 0.08333333333 | S23: 0.08333333333 | T23: 0.08333333333 | U23: 0.08333333333 | V23: 0.08333333333 | W23: 0.08333333333 | X23: 0.08333333333 | Y23: 0.08333333333 | Z23: 0.08333333333 | AA23: 0.08333333333 | AB23: 1 | AK23: Amenities | AL23: 4500 | AM23: =1/COUNTA($P$17:$AA$17) -> 0.08333333333 | AN23: 0.12 | AO23: =1/COUNTA($P$17:$AA$17) -> 0.08333333333 | AP23: 0.08333333333 | AR23: 0.08333333333 | AS23: 0.08333333333 | AT23: 0.08333333333 | AU23: 0.08333333333 | AV23: 0.13 | AW23: 0.08333333333 | AX23: 0.08333333333 | AY23: 1
N24: Tripe / bible washing | O24: 2000 | P24: 0 | Q24: 0 | R24: 0 | S24: 0 | T24: 0 | U24: 1 | V24: 0 | W24: 0 | X24: 0 | Y24: 0 | Z24: 0 | AA24: 0 | AB24: 1 | AK24: Tripe / bible washing | AL24: 2000 | AM24: 0 | AN24: 0 | AO24: 0 | AP24: 0 | AQ24: 0 | AR24: 1 | AS24: 0 | AT24: 0 | AU24: 0 | AV24: 0 | AW24: 0 | AX24: 0 | AY24: 1
N25: Hook wash tanks | O25: 1000 | P25: 0 | Q25: 0.4 | R25: 0 | S25: 0 | T25: 0 | U25: 0 | V25: 0 | W25: 0 | X25: 0 | Y25: 0.4 | Z25: 0.2 | AA25: 0 | AB25: 1 | AK25: Hook wash tanks | AL25: 1000 | AM25: 0 | AN25: 0.4 | AO25: 0 | AP25: 0 | AQ25: 0 | AR25: 0 | AS25: 0 | AT25: 0 | AU25: 0 | AV25: 0.4 | AW25: 0.2 | AX25: 0 | AY25: 1
N26: Heat loss from hot water pipes | O26: 5000 | P26: =SUMPRODUCT($O19:$O25,P19:P25)/SUM($O19:$O25) -> 0.03514056225 | Q26: =SUMPRODUCT($O19:$O25,Q19:Q25)/SUM($O19:$O25) -> 0.4465863454 | R26: 0.02610441767 | S26: 0.02610441767 | T26: 0.05923694779 | U26: 0.0562248996 | V26: 0.03212851406 | W26: 0.02610441767 | X26: 0.01104417671 | Y26: 0.2628514056 | Z26: 0.01345381526 | AA26: 0.005020080321 | AB26: 1 | AK26: Heat loss from hot water pipes | AL26: 5000 | AM26: =SUMPRODUCT($O19:$O25,AM19:AM25)/SUM($O19:$O25) -> 0.03514056225 | AN26: =SUMPRODUCT($O19:$O25,AN19:AN25)/SUM($O19:$O25) -> 0.3795180723 | AO26: 0.02309236948 | AP26: 0.0140562249 | AQ26: 0 | AR26: 0.06526104418 | AS26: 0.04116465863 | AT26: 0.01104417671 | AU26: 0.008032128514 | AV26: 0.4042168675 | AW26: 0.01345381526 | AX26: 0.005020080321 | AY26: 1
N27: Total | O27: =SUM(O19:O26) -> 88000 | AK27: Total | AL27: =SUM(AL19:AL26) -> 82000
N29: Recovered heat | O29: 60000 | AK29: Recovered heat | AL29: 0
N30: Supplementary steam heating | O30: =O27-O29 -> 28000 | AK30: Supplementary steam heating | AL30: =AL27-AL29 -> 82000
N34: Steam Use | O34: MJ / day | AK34: Steam Use | AL34: MJ / day
N35: Rendering | O35: 150000 | P35: 0 | Q35: 0 | R35: 0 | S35: 0 | T35: 1 | U35: 0 | V35: 0 | W35: 0 | X35: 0 | Y35: 0 | Z35: 0 | AA35: 0 | AB35: =SUM(P35:AA35) -> 1 | AK35: Rendering | AM35: 0 | AN35: 0 | AO35: 0 | AP35: 0 | AR35: 0 | AS35: 0 | AT35: 0 | AU35: 0 | AV35: 0 | AW35: 0 | AX35: 0 | AY35: =SUM(AM35:AX35) -> 0
N36: Hot water production | O36: =O30 -> 28000 | P36: =SUMPRODUCT($O19:$O26,P19:P26)/SUM($O19:$O26) -> 0.03514056225 | Q36: 0.4465863454 | R36: 0.02610441767 | S36: 0.02610441767 | T36: 0.05923694779 | U36: 0.0562248996 | V36: 0.03212851406 | W36: 0.02610441767 | X36: 0.01104417671 | Y36: 0.2628514056 | Z36: 0.01345381526 | AA36: 0.005020080321 | AB36: 1 | AK36: Hot water production | AL36: =AL30 -> 82000 | AM36: =SUMPRODUCT($O19:$O26,AM19:AM26)/SUM($O19:$O26) -> 0.03514056225 | AN36: 0.3795180723 | AO36: 0.02309236948 | AP36: 0.0140562249 | AQ36: 0 | AR36: 0.06526104418 | AS36: 0.04116465863 | AT36: 0.01104417671 | AU36: 0.008032128514 | AV36: 0.4042168675 | AW36: 0.01345381526 | AX36: 0.005020080321 | AY36: 1
N37: Blood processing | O37: 20000 | P37: 0 | Q37: 0 | R37: 0 | S37: 1 | T37: 0 | U37: 0 | V37: 0 | W37: 0 | X37: 0 | Y37: 0 | Z37: 0 | AA37: 0 | AB37: 1 | AK37: Blood processing | AL37: 20000 | AM37: 0 | AN37: 0 | AO37: 0 | AP37: 1 | AQ37: 0 | AR37: 0 | AS37: 0 | AT37: 0 | AU37: 0 | AV37: 0 | AW37: 0 | AX37: 0 | AY37: 1
N38: Tallow processing | O38: 5000 | P38: 0 | Q38: 0 | R38: 0 | S38: 0 | T38: 1 | U38: 0 | V38: 0 | W38: 0 | X38: 0 | Y38: 0 | Z38: 0 | AA38: 0 | AB38: 1 | AK38: Tallow processing | AM38: 0 | AN38: 0 | AO38: 0 | AP38: 0 | AR38: 0 | AS38: 0 | AT38: 0 | AU38: 0 | AV38: 0 | AW38: 0 | AX38: 0 | AY38: 0
N39: Heat loss from steam pipes | O39: 10000 | P39: =SUMPRODUCT($O35:$O38,P35:P38)/SUM($O35:$O38) -> 0.004846974103 | Q39: =SUMPRODUCT($O35:$O38,Q35:Q38)/SUM($O35:$O38) -> 0.0615981166 | R39: 0.003600609334 | S39: 0.1021227768 | T39: 0.7717174115 | U39: 0.007755158565 | V39: 0.00443151918 | W39: 0.003600609334 | X39: 0.001523334718 | Y39: 0.03625536629 | Z39: 0.001855698657 | AA39: 0.0006924248719 | AB39: 1 | AK39: Heat loss from steam pipes | AM39: =SUMPRODUCT($O35:$O38,AM35:AM38)/SUM($O35:$O38) -> 0.004846974103 | AN39: =SUMPRODUCT($O35:$O38,AN35:AN38)/SUM($O35:$O38) -> 0.05234732032 | AO39: 0.003185154411 | AP39: 0.1004609571 | AQ39: 0 | AR39: 0.009001523335 | AS39: 0.00567788395 | AT39: 0.001523334718 | AU39: 0.001107879795 | AV39: 0.05575405069 | AW39: 0.001855698657 | AX39: 0.0006924248719 | AY39: 0.236453202
N41: Subtotal | O41: =SUM(O35:O39) -> 213000 | AK41: Subtotal | AL41: =SUM(AL35:AL39) -> 102000
N42: Boiler Efficiency | O42: =213000/236667 -> 0.8999987324 | AK42: Boiler Efficiency | AL42: =213000/236667 -> 0.8999987324
N43: Boiler Consumption | O43: =O41/O42 -> 236667 | AK43: Boiler Consumption | AL43: =AL41/AL42 -> 113333.493
N45: Electricity Use | O45: MJ / day | AK45: Electricity Use | AL45: MJ / day
N46: Refrigeration | O46: 80000 | P46: 0 | Q46: 0 | R46: 0 | S46: 0 | T46: 0 | U46: 0 | V46: 0 | W46: 0 | X46: 0.2 | Y46: 0 | Z46: 0 | AA46: 0.8 | AB46: =SUM(P46:AA46) -> 1 | AK46: Refrigeration | AL46: 80000 | AM46: 0 | AN46: 0 | AO46: 0 | AP46: 0 | AQ46: 0 | AR46: 0 | AS46: 0 | AT46: 0 | AU46: 0.2 | AV46: 0 | AW46: 0 | AX46: 0.8 | AY46: =SUM(AM46:AX46) -> 1
N47: Motors (pumps, fans, conveyors etc.) | O47: 25000 | P47: 0.02 | Q47: 0.16 | R47: 0.08 | S47: 0.08 | T47: 0.16 | U47: 0.08 | V47: 0.08 | W47: 0.08 | X47: 0.04 | Y47: 0.16 | Z47: 0.04 | AA47: 0.02 | AB47: =SUM(P47:AA47) -> 1 | AK47: Motors (pumps, fans, conveyors etc.) | AL47: 25000 | AM47: 0.02 | AN47: 0.2 | AO47: 0.08 | AP47: 0.02 | AR47: 0.08 | AS47: 0.08 | AT47: 0.08 | AU47: 0.1 | AV47: 0.22 | AW47: 0.1 | AX47: 0.02 | AY47: =SUM(AM47:AX47) -> 1
N48: Lighting | O48: 3000 | P48: =1/COUNTA($P$17:$AA$17) -> 0.08333333333 | Q48: 0.08333333333 | R48: 0.08333333333 | S48: 0.08333333333 | T48: 0.08333333333 | U48: 0.08333333333 | V48: 0.08333333333 | W48: 0.08333333333 | X48: 0.08333333333 | Y48: 0.08333333333 | Z48: 0.08333333333 | AA48: 0.08333333333 | AB48: 1 | AK48: Lighting | AL48: 3000 | AM48: =1/COUNTA($P$17:$AA$17) -> 0.08333333333 | AN48: 0.08333333333 | AO48: 0.08333333333 | AP48: 0.02 | AR48: 0.03 | AS48: 0.08333333333 | AT48: 0.08333333333 | AU48: 0.08333333333 | AV48: 0.2 | AW48: 0.17 | AX48: 0.08333333333 | AY48: 1.003333333
N49: Air compression | O49: 10000 | P49: 0.08333333333 | Q49: 0.08333333333 | R49: 0.08333333333 | S49: 0.08333333333 | T49: 0.08333333333 | U49: 0.08333333333 | V49: 0.08333333333 | W49: 0.08333333333 | X49: 0.08333333333 | Y49: 0.08333333333 | Z49: 0.08333333333 | AA49: 0.08333333333 | AB49: 1 | AK49: Air compression | AL49: 10000 | AM49: 0.08333333333 | AN49: 0.08333333333 | AO49: 0.08333333333 | AP49: 0.02 | AR49: 0.08333333333 | AS49: 0.08333333333 | AT49: 0.08333333333 | AU49: 0.08333333333 | AV49: 0.08333333333 | AW49: 0.23 | AX49: 0.08333333333 | AY49: 1
N50: Total | O50: =SUM(O46:O49) -> 118000 | AK50: Total | AL50: =SUM(AL46:AL49) -> 118000
N59: Total thermal input | O59: =O43 -> 236667 | P59: =(SUMPRODUCT(P35:P39,$O$35:$O$39)/$O$42)/$O$59 -> 0.004846974103 | Q59: 0.0615981166 | R59: 0.003600609334 | S59: 0.1021227768 | T59: 0.7717174115 | U59: 0.007755158565 | V59: 0.00443151918 | W59: 0.003600609334 | X59: 0.001523334718 | Y59: 0.03625536629 | Z59: 0.001855698657 | AA59: 0.0006924248719 | AB59: =SUM(P59:AA59) -> 1 | AK59: Total thermal input | AL59: =AL43 -> 113333.493 | AM59: =(SUMPRODUCT(AM35:AM39,$AL$35:$AL$39)/$AL$42)/$AL$59 -> 0.02825025593 | AN59: 0.305102764 | AO59: 0.01856445389 | AP59: 0.2073785337 | AQ59: 0 | AR59: 0.052464761 | AS59: 0.03309315694 | AT59: 0.008878651862 | AU59: 0.006457201354 | AV59: 0.3249586582 | AW59: 0.01081581227 | AX59: 0.004035750847 | AY59: =SUM(AM59:AX59) -> 1
N60: Total electricity input | O60: =O50 -> 118000 | P60: =SUMPRODUCT(P46:P49,$O$46:$O$49)/$O$60 -> 0.0134180791 | Q60: 0.04307909605 | R60: 0.0261299435 | S60: 0.0261299435 | T60: 0.04307909605 | U60: 0.0261299435 | V60: 0.0261299435 | W60: 0.0261299435 | X60: 0.1532485876 | Y60: 0.04307909605 | Z60: 0.01765536723 | AA60: 0.5557909605 | AB60: 1 | AK60: Total electricity input | AL60: =AL50 -> 118000 | AM60: =SUMPRODUCT(AM46:AM49,$AL$46:$AL$49)/$AL$60 -> 0.0134180791 | AN60: 0.05155367232 | AO60: 0.0261299435 | AP60: 0.006440677966 | AQ60: 0 | AR60: 0.0247740113 | AS60: 0.0261299435 | AT60: 0.0261299435 | AU60: 0.165960452 | AV60: 0.05875706215 | AW60: 0.045 | AX60: 0.5557909605 | AY60: 1.000084746
N61: Total energy input | O61: =O43+O50 -> 354667 | P61: =(SUMPRODUCT(P35:P39,$O$35:$O$39)/$O$42+SUMPRODUCT(P46:P49,$O$46:$O$49))/$O$61 -> 0.007698636054 | Q61: 0.05543671894 | R61: 0.01109626422 | S61: 0.0768394707 | T61: 0.5292947412 | U61: 0.01386856811 | V61: 0.011650725 | W61: 0.01109626422 | X61: 0.05200330561 | Y61: 0.03852566522 | Z61: 0.007112350366 | AA61: 0.1853772904 | AB61: 1 | AK61: Total energy input | AL61: =AL43+AL50 -> 231333.493 | AM61: =(SUMPRODUCT(AM35:AM39,$AL$35:$AL$39)/$AL$42+SUMPRODUCT(AM46:AM49,$AL$46:$AL$49))/$AL$61 -> 0.02068456864 | AN61: 0.1757708958 | AO61: 0.02242350501 | AP61: 0.1048829259 | AQ61: 0 | AR61: 0.03834009439 | AS61: 0.02954131853 | AT61: 0.01767829599 | AU61: 0.08781759294 | AV61: 0.1891729233 | AW61: 0.02825269139 | AX61: 0.2854784157 | AY61: 1.000043228
K65: =B7 -> 3) From literature review, import figures for best-practice energy use at a full-facility plant
L69: Manual Input of Production Uplift Factor | M69: Benchmark | N69: Site | O69: Species Mix | P69: =TRANSPOSE(Facilities_List) -> Stockyards | Q69: Slaughter and Evisceration | R69: Hide Processing | S69: Blood Processing | T69: Rendering | U69: Paunch Processing | V69: Offal Washing | W69: Wastewater Treatment | X69: Chilling | Y69: Boning | Z69: Packaging | AA69: Freezing | AB69: Benchmark | AC69: Actual | AI69: Manual Input of Production Uplift Factor | AJ69: Benchmark | AK69: Site | AL69: Species Mix | AM69: =TRANSPOSE(Facilities_List) -> Stockyards | AN69: Slaughter and Evisceration | AO69: Hide Processing | AP69: Blood Processing | AQ69: Rendering | AR69: Paunch Processing | AS69: Offal Washing | AT69: Wastewater Treatment | AU69: Chilling | AV69: Boning | AW69: Packaging | AX69: Freezing | AY69: Benchmark | AZ69: Actual
L70: 1 | M70: Thermal | N70: E | O70: Large body (cattle & calves) | P70: Yes | Q70: Yes | R70: Yes | S70: Yes | T70: Yes | U70: Yes | V70: Yes | W70: Yes | X70: Yes | Y70: Yes | Z70: Yes | AA70: Yes | AB70: =AC70 -> 2334 | AC70: 2334 | AD70: =IF(M70="Thermal"," MJ / tHSCW", " kWh / tHSCW") -> MJ / tHSCW | AI70: 1 | AJ70: Thermal | AK70: E | AL70: Large body (cattle & calves) | AM70: Yes | AN70: Yes | AO70: Yes | AP70: Yes | AQ70: Yes | AR70: Yes | AS70: Yes | AT70: Yes | AU70: Yes | AV70: Yes | AW70: Yes | AX70: Yes | AY70: =AZ70 -> 2334 | AZ70: 2334 | BA70: =IF(AJ70="Thermal"," MJ / tHSCW", " kWh / tHSCW") -> MJ / tHSCW
M71: Electricity | N71: E | P71: Yes | Q71: Yes | R71: Yes | S71: Yes | T71: Yes | U71: Yes | V71: Yes | W71: Yes | X71: Yes | Y71: Yes | Z71: Yes | AA71: Yes | AB71: =AC71 -> 257 | AC71: 257 | AD71: =IF(M71="Thermal"," MJ / tHSCW", " kWh / tHSCW") -> kWh / tHSCW | AJ71: Electricity | AK71: E | AM71: Yes | AN71: Yes | AO71: Yes | AP71: Yes | AQ71: Yes | AR71: Yes | AS71: Yes | AT71: Yes | AU71: Yes | AV71: Yes | AW71: Yes | AX71: Yes | AY71: =AZ71 -> 257 | AZ71: 257 | BA71: =IF(AJ71="Thermal"," MJ / tHSCW", " kWh / tHSCW") -> kWh / tHSCW
K73: =B8 -> 4) Import performance figures from real-world sites to cross-check best-practice figures for validation
L75: Manual Input of Production Uplift Factor | M75: Benchmark | N75: Site | O75: Species Mix | P75: =P17 -> Stockyards | Q75: Slaughter and Evisceration | R75: Hide Processing | S75: Blood Processing | T75: Rendering | U75: Paunch Processing | V75: Offal Washing | W75: Wastewater Treatment | X75: Chilling | Y75: Boning | Z75: Packaging | AA75: Freezing | AB75: Benchmark | AC75: Actual | AD75: UOM | AI75: Manual Input of Production Uplift Factor | AJ75: Benchmark | AK75: Site | AL75: Species Mix | AM75: =AM17 -> Stockyards | AN75: Slaughter and Evisceration | AO75: Hide Processing | AP75: Blood Processing | AQ75: Rendering | AR75: Paunch Processing | AS75: Offal Washing | AT75: Wastewater Treatment | AU75: Chilling | AV75: Boning | AW75: Packaging | AX75: Freezing | AY75: Benchmark | AZ75: Actual | BA75: UOM
L76: 1 | M76: Thermal | N76: A | O76: Large body (cattle & calves) | P76: Yes | Q76: Yes | S76: Yes | T76: Yes | U76: Yes | V76: Yes | W76: Yes | X76: Yes | Y76: Yes | Z76: Yes | AA76: Yes | AB76: =IF(M76="Thermal",AB$70*SUMPRODUCT(((P76:AA76)="Yes")*P$59:AA$59)/SUMPRODUCT(((P$70:AA$70)="Yes")*P$59:AA$59),AB$71*SUMPRODUCT(((P76:AA76)="Yes")*P$60:AA$60)/SUMPRODUCT(((P$71:AA$71)="Yes")*P$60:AA$60))*(L76/$L$70)*(INDEX('Benchmark-Adjustments'!$H$35:$H$36,MATCH($O$70,'Benchmark-Adjustments'!$E$35:$E$36,0))/INDEX('Benchmark-Adjustments'!$H$35:$H$36,MATCH(O76,'Benchmark-Adjustments'!$E$35:$E$36,0))) -> 2325.596178 | AC76: 3730 | AD76: =IF(M76="Thermal"," MJ / tHSCW", " kWh / tHSCW") -> MJ / tHSCW | AI76: 1 | AJ76: Thermal | AK76: F | AL76: Large body (cattle & calves) | AM76: Yes | AN76: Yes | AQ76: No | AT76: Yes | AU76: Yes | AV76: Yes | AX76: Yes | AY76: =IF(AJ76="Thermal",AY$70*SUMPRODUCT(((AM76:AX76)="Yes")*AM$59:AX$59)/SUMPRODUCT(((AM$70:AX$70)="Yes")*AM$59:AX$59),AY$71*SUMPRODUCT(((AM76:AX76)="Yes")*AM$60:AX$60)/SUMPRODUCT(((AM$71:AX$71)="Yes")*AM$60:AX$60))*(AI76/$AI$70)*(INDEX('Benchmark-Adjustments'!$H$35:$H$36,MATCH(AL76,'Benchmark-Adjustments'!$E$35:$E$36,0))/INDEX('Benchmark-Adjustments'!$H$35:$H$36,MATCH($AL$70,'Benchmark-Adjustments'!$E$35:$E$36,0))) -> 1581.712781 | AZ76: 1570 | BA76: =IF(AJ76="Thermal"," MJ / tHSCW", " kWh / tHSCW") -> MJ / tHSCW
L77: 1 | M77: Electricity | N77: A | O77: Large body (cattle & calves) | P77: Yes | Q77: Yes | S77: Yes | T77: Yes | U77: Yes | V77: Yes | W77: Yes | X77: Yes | Y77: Yes | Z77: Yes | AA77: Yes | AB77: =IF(M77="Thermal",AB$70*SUMPRODUCT(((P77:AA77)="Yes")*P$59:AA$59)/SUMPRODUCT(((P$70:AA$70)="Yes")*P$59:AA$59),AB$71*SUMPRODUCT(((P77:AA77)="Yes")*P$60:AA$60)/SUMPRODUCT(((P$71:AA$71)="Yes")*P$60:AA$60))*(L77/$L$70)*(INDEX('Benchmark-Adjustments'!$H$35:$H$36,MATCH($O$70,'Benchmark-Adjustments'!$E$35:$E$36,0))/INDEX('Benchmark-Adjustments'!$H$35:$H$36,MATCH(O77,'Benchmark-Adjustments'!$E$35:$E$36,0))) -> 250.2846045 | AC77: 251 | AD77: =IF(M77="Thermal"," MJ / tHSCW", " kWh / tHSCW") -> kWh / tHSCW | AI77: 1 | AJ77: Electricity | AK77: F | AL77: Large body (cattle & calves) | AM77: Yes | AN77: Yes | AQ77: No | AT77: Yes | AU77: Yes | AV77: Yes | AX77: Yes | AY77: =IF(AJ77="Thermal",AY$70*SUMPRODUCT(((AM77:AX77)="Yes")*AM$59:AX$59)/SUMPRODUCT(((AM$70:AX$70)="Yes")*AM$59:AX$59),AY$71*SUMPRODUCT(((AM77:AX77)="Yes")*AM$60:AX$60)/SUMPRODUCT(((AM$71:AX$71)="Yes")*AM$60:AX$60))*(AI77/$AI$70)*(INDEX('Benchmark-Adjustments'!$H$35:$H$36,MATCH(AL77,'Benchmark-Adjustments'!$E$35:$E$36,0))/INDEX('Benchmark-Adjustments'!$H$35:$H$36,MATCH($AL$70,'Benchmark-Adjustments'!$E$35:$E$36,0))) -> 223.9848318 | AZ77: 363 | BA77: =IF(AJ77="Thermal"," MJ / tHSCW", " kWh / tHSCW") -> kWh / tHSCW
L78: 1 | M78: Thermal | N78: B | O78: Large body (cattle & calves) | P78: Yes | Q78: Yes | R78: Yes | S78: Yes | T78: Yes | U78: Yes | V78: Yes | W78: Yes | X78: Yes | Y78: Yes | Z78: Yes | AA78: Yes | AB78: =IF(M78="Thermal",AB$70*SUMPRODUCT(((P78:AA78)="Yes")*P$59:AA$59)/SUMPRODUCT(((P$70:AA$70)="Yes")*P$59:AA$59),AB$71*SUMPRODUCT(((P78:AA78)="Yes")*P$60:AA$60)/SUMPRODUCT(((P$71:AA$71)="Yes")*P$60:AA$60))*(L78/$L$70)*(INDEX('Benchmark-Adjustments'!$H$35:$H$36,MATCH($O$70,'Benchmark-Adjustments'!$E$35:$E$36,0))/INDEX('Benchmark-Adjustments'!$H$35:$H$36,MATCH(O78,'Benchmark-Adjustments'!$E$35:$E$36,0))) -> 2334 | AC78: 1819 | AD78: MJ / tHSCW | AI78: 1 | AJ78: Thermal | AK78: G | AL78: Small body (all else) | AM78: Yes | AN78: Yes | AQ78: No | AT78: Yes | AU78: Yes | AY78: =IF(AJ78="Thermal",AY$70*SUMPRODUCT(((AM78:AX78)="Yes")*AM$59:AX$59)/SUMPRODUCT(((AM$70:AX$70)="Yes")*AM$59:AX$59),AY$71*SUMPRODUCT(((AM78:AX78)="Yes")*AM$60:AX$60)/SUMPRODUCT(((AM$71:AX$71)="Yes")*AM$60:AX$60))*(AI78/$AI$70)*(INDEX('Benchmark-Adjustments'!$H$35:$H$36,MATCH(AL78,'Benchmark-Adjustments'!$E$35:$E$36,0))/INDEX('Benchmark-Adjustments'!$H$35:$H$36,MATCH($AL$70,'Benchmark-Adjustments'!$E$35:$E$36,0))) -> 406.919915 | AZ78: 380 | BA78: MJ / tHSCW
L79: 1 | M79: Electricity | N79: B | O79: Large body (cattle & calves) | P79: Yes | Q79: Yes | R79: Yes | S79: Yes | T79: Yes | U79: Yes | V79: Yes | W79: Yes | X79: Yes | Y79: Yes | Z79: Yes | AA79: Yes | AB79: =IF(M79="Thermal",AB$70*SUMPRODUCT(((P79:AA79)="Yes")*P$59:AA$59)/SUMPRODUCT(((P$70:AA$70)="Yes")*P$59:AA$59),AB$71*SUMPRODUCT(((P79:AA79)="Yes")*P$60:AA$60)/SUMPRODUCT(((P$71:AA$71)="Yes")*P$60:AA$60))*(L79/$L$70)*(INDEX('Benchmark-Adjustments'!$H$35:$H$36,MATCH($O$70,'Benchmark-Adjustments'!$E$35:$E$36,0))/INDEX('Benchmark-Adjustments'!$H$35:$H$36,MATCH(O79,'Benchmark-Adjustments'!$E$35:$E$36,0))) -> 257 | AC79: 243 | AD79: kWh / tHSCW | AI79: 1 | AJ79: Electricity | AK79: G | AL79: Small body (all else) | AM79: Yes | AN79: Yes | AQ79: No | AT79: Yes | AU79: Yes | AY79: =IF(AJ79="Thermal",AY$70*SUMPRODUCT(((AM79:AX79)="Yes")*AM$59:AX$59)/SUMPRODUCT(((AM$70:AX$70)="Yes")*AM$59:AX$59),AY$71*SUMPRODUCT(((AM79:AX79)="Yes")*AM$60:AX$60)/SUMPRODUCT(((AM$71:AX$71)="Yes")*AM$60:AX$60))*(AI79/$AI$70)*(INDEX('Benchmark-Adjustments'!$H$35:$H$36,MATCH(AL79,'Benchmark-Adjustments'!$E$35:$E$36,0))/INDEX('Benchmark-Adjustments'!$H$35:$H$36,MATCH($AL$70,'Benchmark-Adjustments'!$E$35:$E$36,0))) -> 33.02968675 | AZ79: 63 | BA79: kWh / tHSCW
L80: 1 | M80: Thermal | N80: C | O80: Large body (cattle & calves) | P80: Yes | Q80: Yes | R80: Yes | S80: Yes | T80: Yes | U80: Yes | V80: Yes | W80: Yes | X80: Yes | Y80: Yes | Z80: Yes | AA80: Yes | AB80: =IF(M80="Thermal",AB$70*SUMPRODUCT(((P80:AA80)="Yes")*P$59:AA$59)/SUMPRODUCT(((P$70:AA$70)="Yes")*P$59:AA$59),AB$71*SUMPRODUCT(((P80:AA80)="Yes")*P$60:AA$60)/SUMPRODUCT(((P$71:AA$71)="Yes")*P$60:AA$60))*(L80/$L$70)*(INDEX('Benchmark-Adjustments'!$H$35:$H$36,MATCH($O$70,'Benchmark-Adjustments'!$E$35:$E$36,0))/INDEX('Benchmark-Adjustments'!$H$35:$H$36,MATCH(O80,'Benchmark-Adjustments'!$E$35:$E$36,0))) -> 2334 | AC80: 2236 | AD80: MJ / tHSCW | AI80: 1 | AJ80: Thermal | AM80: Yes | AN80: Yes | AQ80: No | AT80: Yes | AU80: Yes | AY80: =IF(AJ80="Thermal",AY$70*SUMPRODUCT(((AM80:AX80)="Yes")*AM$59:AX$59)/SUMPRODUCT(((AM$70:AX$70)="Yes")*AM$59:AX$59),AY$71*SUMPRODUCT(((AM80:AX80)="Yes")*AM$60:AX$60)/SUMPRODUCT(((AM$71:AX$71)="Yes")*AM$60:AX$60))*(AI80/$AI$70)*(INDEX('Benchmark-Adjustments'!$H$35:$H$36,MATCH(AL80,'Benchmark-Adjustments'!$E$35:$E$36,0))/INDEX('Benchmark-Adjustments'!$H$35:$H$36,MATCH($AL$70,'Benchmark-Adjustments'!$E$35:$E$36,0))) ->  | BA80: MJ / tHSCW
L81: 1 | M81: Electricity | N81: C | O81: Large body (cattle & calves) | P81: Yes | Q81: Yes | R81: Yes | S81: Yes | T81: Yes | U81: Yes | V81: Yes | W81: Yes | X81: Yes | Y81: Yes | Z81: Yes | AA81: Yes | AB81: =IF(M81="Thermal",AB$70*SUMPRODUCT(((P81:AA81)="Yes")*P$59:AA$59)/SUMPRODUCT(((P$70:AA$70)="Yes")*P$59:AA$59),AB$71*SUMPRODUCT(((P81:AA81)="Yes")*P$60:AA$60)/SUMPRODUCT(((P$71:AA$71)="Yes")*P$60:AA$60))*(L81/$L$70)*(INDEX('Benchmark-Adjustments'!$H$35:$H$36,MATCH($O$70,'Benchmark-Adjustments'!$E$35:$E$36,0))/INDEX('Benchmark-Adjustments'!$H$35:$H$36,MATCH(O81,'Benchmark-Adjustments'!$E$35:$E$36,0))) -> 257 | AC81: 297 | AD81: kWh / tHSCW | AI81: 1 | AJ81: Electricity | AM81: Yes | AN81: Yes | AQ81: No | AT81: Yes | AU81: Yes | AY81: =IF(AJ81="Thermal",AY$70*SUMPRODUCT(((AM81:AX81)="Yes")*AM$59:AX$59)/SUMPRODUCT(((AM$70:AX$70)="Yes")*AM$59:AX$59),AY$71*SUMPRODUCT(((AM81:AX81)="Yes")*AM$60:AX$60)/SUMPRODUCT(((AM$71:AX$71)="Yes")*AM$60:AX$60))*(AI81/$AI$70)*(INDEX('Benchmark-Adjustments'!$H$35:$H$36,MATCH(AL81,'Benchmark-Adjustments'!$E$35:$E$36,0))/INDEX('Benchmark-Adjustments'!$H$35:$H$36,MATCH($AL$70,'Benchmark-Adjustments'!$E$35:$E$36,0))) ->  | BA81: kWh / tHSCW
L82: 1 | M82: Thermal | N82: D | O82: Large body (cattle & calves) | P82: Yes | Q82: Yes | R82: Yes | S82: Yes | T82: Yes | U82: Yes | V82: Yes | W82: Yes | X82: Yes | Y82: Yes | Z82: Yes | AA82: Yes | AB82: =IF(M82="Thermal",AB$70*SUMPRODUCT(((P82:AA82)="Yes")*P$59:AA$59)/SUMPRODUCT(((P$70:AA$70)="Yes")*P$59:AA$59),AB$71*SUMPRODUCT(((P82:AA82)="Yes")*P$60:AA$60)/SUMPRODUCT(((P$71:AA$71)="Yes")*P$60:AA$60))*(L82/$L$70)*(INDEX('Benchmark-Adjustments'!$H$35:$H$36,MATCH($O$70,'Benchmark-Adjustments'!$E$35:$E$36,0))/INDEX('Benchmark-Adjustments'!$H$35:$H$36,MATCH(O82,'Benchmark-Adjustments'!$E$35:$E$36,0))) -> 2334 | AC82: 2115 | AD82: MJ / tHSCW | AI82: 1 | AJ82: Thermal | AM82: Yes | AN82: Yes | AQ82: No | AT82: Yes | AU82: Yes | AY82: =IF(AJ82="Thermal",AY$70*SUMPRODUCT(((AM82:AX82)="Yes")*AM$59:AX$59)/SUMPRODUCT(((AM$70:AX$70)="Yes")*AM$59:AX$59),AY$71*SUMPRODUCT(((AM82:AX82)="Yes")*AM$60:AX$60)/SUMPRODUCT(((AM$71:AX$71)="Yes")*AM$60:AX$60))*(AI82/$AI$70)*(INDEX('Benchmark-Adjustments'!$H$35:$H$36,MATCH(AL82,'Benchmark-Adjustments'!$E$35:$E$36,0))/INDEX('Benchmark-Adjustments'!$H$35:$H$36,MATCH($AL$70,'Benchmark-Adjustments'!$E$35:$E$36,0))) ->  | BA82: MJ / tHSCW
L83: 1 | M83: Electricity | N83: D | O83: Large body (cattle & calves) | P83: Yes | Q83: Yes | R83: Yes | S83: Yes | T83: Yes | U83: Yes | V83: Yes | W83: Yes | X83: Yes | Y83: Yes | Z83: Yes | AA83: Yes | AB83: =IF(M83="Thermal",AB$70*SUMPRODUCT(((P83:AA83)="Yes")*P$59:AA$59)/SUMPRODUCT(((P$70:AA$70)="Yes")*P$59:AA$59),AB$71*SUMPRODUCT(((P83:AA83)="Yes")*P$60:AA$60)/SUMPRODUCT(((P$71:AA$71)="Yes")*P$60:AA$60))*(L83/$L$70)*(INDEX('Benchmark-Adjustments'!$H$35:$H$36,MATCH($O$70,'Benchmark-Adjustments'!$E$35:$E$36,0))/INDEX('Benchmark-Adjustments'!$H$35:$H$36,MATCH(O83,'Benchmark-Adjustments'!$E$35:$E$36,0))) -> 257 | AC83: 255 | AD83: kWh / tHSCW | AI83: 1 | AJ83: Electricity | AM83: Yes | AN83: Yes | AQ83: No | AT83: Yes | AU83: Yes | AY83: =IF(AJ83="Thermal",AY$70*SUMPRODUCT(((AM83:AX83)="Yes")*AM$59:AX$59)/SUMPRODUCT(((AM$70:AX$70)="Yes")*AM$59:AX$59),AY$71*SUMPRODUCT(((AM83:AX83)="Yes")*AM$60:AX$60)/SUMPRODUCT(((AM$71:AX$71)="Yes")*AM$60:AX$60))*(AI83/$AI$70)*(INDEX('Benchmark-Adjustments'!$H$35:$H$36,MATCH(AL83,'Benchmark-Adjustments'!$E$35:$E$36,0))/INDEX('Benchmark-Adjustments'!$H$35:$H$36,MATCH($AL$70,'Benchmark-Adjustments'!$E$35:$E$36,0))) ->  | BA83: kWh / tHSCW
L84: 1 | M84: Thermal | P84: Yes | Q84: Yes | T84: Yes | W84: Yes | X84: Yes | AB84: =IF(M84="Thermal",AB$70*SUMPRODUCT(((P84:AA84)="Yes")*P$59:AA$59)/SUMPRODUCT(((P$70:AA$70)="Yes")*P$59:AA$59),AB$71*SUMPRODUCT(((P84:AA84)="Yes")*P$60:AA$60)/SUMPRODUCT(((P$71:AA$71)="Yes")*P$60:AA$60))*(L84/$L$70)*(INDEX('Benchmark-Adjustments'!$H$35:$H$36,MATCH($O$70,'Benchmark-Adjustments'!$E$35:$E$36,0))/INDEX('Benchmark-Adjustments'!$H$35:$H$36,MATCH(O84,'Benchmark-Adjustments'!$E$35:$E$36,0))) ->  | AD84: MJ / tHSCW | AI84: 1 | AJ84: Thermal | AM84: Yes | AN84: Yes | AQ84: No | AT84: Yes | AU84: Yes | AY84: =IF(AJ84="Thermal",AY$70*SUMPRODUCT(((AM84:AX84)="Yes")*AM$59:AX$59)/SUMPRODUCT(((AM$70:AX$70)="Yes")*AM$59:AX$59),AY$71*SUMPRODUCT(((AM84:AX84)="Yes")*AM$60:AX$60)/SUMPRODUCT(((AM$71:AX$71)="Yes")*AM$60:AX$60))*(AI84/$AI$70)*(INDEX('Benchmark-Adjustments'!$H$35:$H$36,MATCH(AL84,'Benchmark-Adjustments'!$E$35:$E$36,0))/INDEX('Benchmark-Adjustments'!$H$35:$H$36,MATCH($AL$70,'Benchmark-Adjustments'!$E$35:$E$36,0))) ->  | BA84: MJ / tHSCW
L85: 1 | M85: Electricity | P85: Yes | Q85: Yes | T85: Yes | W85: Yes | X85: Yes | AB85: =IF(M85="Thermal",AB$70*SUMPRODUCT(((P85:AA85)="Yes")*P$59:AA$59)/SUMPRODUCT(((P$70:AA$70)="Yes")*P$59:AA$59),AB$71*SUMPRODUCT(((P85:AA85)="Yes")*P$60:AA$60)/SUMPRODUCT(((P$71:AA$71)="Yes")*P$60:AA$60))*(L85/$L$70)*(INDEX('Benchmark-Adjustments'!$H$35:$H$36,MATCH($O$70,'Benchmark-Adjustments'!$E$35:$E$36,0))/INDEX('Benchmark-Adjustments'!$H$35:$H$36,MATCH(O85,'Benchmark-Adjustments'!$E$35:$E$36,0))) ->  | AD85: kWh / tHSCW | AI85: 1 | AJ85: Electricity | AM85: Yes | AN85: Yes | AQ85: No | AT85: Yes | AU85: Yes | AY85: =IF(AJ85="Thermal",AY$70*SUMPRODUCT(((AM85:AX85)="Yes")*AM$59:AX$59)/SUMPRODUCT(((AM$70:AX$70)="Yes")*AM$59:AX$59),AY$71*SUMPRODUCT(((AM85:AX85)="Yes")*AM$60:AX$60)/SUMPRODUCT(((AM$71:AX$71)="Yes")*AM$60:AX$60))*(AI85/$AI$70)*(INDEX('Benchmark-Adjustments'!$H$35:$H$36,MATCH(AL85,'Benchmark-Adjustments'!$E$35:$E$36,0))/INDEX('Benchmark-Adjustments'!$H$35:$H$36,MATCH($AL$70,'Benchmark-Adjustments'!$E$35:$E$36,0))) ->  | BA85: kWh / tHSCW
L86: 1 | M86: Thermal | P86: Yes | Q86: Yes | T86: Yes | W86: Yes | X86: Yes | AB86: =IF(M86="Thermal",AB$70*SUMPRODUCT(((P86:AA86)="Yes")*P$59:AA$59)/SUMPRODUCT(((P$70:AA$70)="Yes")*P$59:AA$59),AB$71*SUMPRODUCT(((P86:AA86)="Yes")*P$60:AA$60)/SUMPRODUCT(((P$71:AA$71)="Yes")*P$60:AA$60))*(L86/$L$70)*(INDEX('Benchmark-Adjustments'!$H$35:$H$36,MATCH($O$70,'Benchmark-Adjustments'!$E$35:$E$36,0))/INDEX('Benchmark-Adjustments'!$H$35:$H$36,MATCH(O86,'Benchmark-Adjustments'!$E$35:$E$36,0))) ->  | AD86: MJ / tHSCW | AI86: 1 | AJ86: Thermal | AM86: Yes | AN86: Yes | AQ86: No | AT86: Yes | AU86: Yes | AY86: =IF(AJ86="Thermal",AY$70*SUMPRODUCT(((AM86:AX86)="Yes")*AM$59:AX$59)/SUMPRODUCT(((AM$70:AX$70)="Yes")*AM$59:AX$59),AY$71*SUMPRODUCT(((AM86:AX86)="Yes")*AM$60:AX$60)/SUMPRODUCT(((AM$71:AX$71)="Yes")*AM$60:AX$60))*(AI86/$AI$70)*(INDEX('Benchmark-Adjustments'!$H$35:$H$36,MATCH(AL86,'Benchmark-Adjustments'!$E$35:$E$36,0))/INDEX('Benchmark-Adjustments'!$H$35:$H$36,MATCH($AL$70,'Benchmark-Adjustments'!$E$35:$E$36,0))) ->  | BA86: MJ / tHSCW
L87: 1 | M87: Electricity | P87: Yes | Q87: Yes | T87: Yes | W87: Yes | X87: Yes | AB87: =IF(M87="Thermal",AB$70*SUMPRODUCT(((P87:AA87)="Yes")*P$59:AA$59)/SUMPRODUCT(((P$70:AA$70)="Yes")*P$59:AA$59),AB$71*SUMPRODUCT(((P87:AA87)="Yes")*P$60:AA$60)/SUMPRODUCT(((P$71:AA$71)="Yes")*P$60:AA$60))*(L87/$L$70)*(INDEX('Benchmark-Adjustments'!$H$35:$H$36,MATCH($O$70,'Benchmark-Adjustments'!$E$35:$E$36,0))/INDEX('Benchmark-Adjustments'!$H$35:$H$36,MATCH(O87,'Benchmark-Adjustments'!$E$35:$E$36,0))) ->  | AD87: kWh / tHSCW | AI87: 1 | AJ87: Electricity | AM87: Yes | AN87: Yes | AQ87: No | AT87: Yes | AU87: Yes | AY87: =IF(AJ87="Thermal",AY$70*SUMPRODUCT(((AM87:AX87)="Yes")*AM$59:AX$59)/SUMPRODUCT(((AM$70:AX$70)="Yes")*AM$59:AX$59),AY$71*SUMPRODUCT(((AM87:AX87)="Yes")*AM$60:AX$60)/SUMPRODUCT(((AM$71:AX$71)="Yes")*AM$60:AX$60))*(AI87/$AI$70)*(INDEX('Benchmark-Adjustments'!$H$35:$H$36,MATCH(AL87,'Benchmark-Adjustments'!$E$35:$E$36,0))/INDEX('Benchmark-Adjustments'!$H$35:$H$36,MATCH($AL$70,'Benchmark-Adjustments'!$E$35:$E$36,0))) ->  | BA87: kWh / tHSCW
L88: 1 | M88: Thermal | P88: Yes | Q88: Yes | T88: Yes | W88: Yes | X88: Yes | AB88: =IF(M88="Thermal",AB$70*SUMPRODUCT(((P88:AA88)="Yes")*P$59:AA$59)/SUMPRODUCT(((P$70:AA$70)="Yes")*P$59:AA$59),AB$71*SUMPRODUCT(((P88:AA88)="Yes")*P$60:AA$60)/SUMPRODUCT(((P$71:AA$71)="Yes")*P$60:AA$60))*(L88/$L$70)*(INDEX('Benchmark-Adjustments'!$H$35:$H$36,MATCH($O$70,'Benchmark-Adjustments'!$E$35:$E$36,0))/INDEX('Benchmark-Adjustments'!$H$35:$H$36,MATCH(O88,'Benchmark-Adjustments'!$E$35:$E$36,0))) ->  | AD88: MJ / tHSCW | AI88: 1 | AJ88: Thermal | AM88: Yes | AN88: Yes | AQ88: No | AT88: Yes | AU88: Yes | AY88: =IF(AJ88="Thermal",AY$70*SUMPRODUCT(((AM88:AX88)="Yes")*AM$59:AX$59)/SUMPRODUCT(((AM$70:AX$70)="Yes")*AM$59:AX$59),AY$71*SUMPRODUCT(((AM88:AX88)="Yes")*AM$60:AX$60)/SUMPRODUCT(((AM$71:AX$71)="Yes")*AM$60:AX$60))*(AI88/$AI$70)*(INDEX('Benchmark-Adjustments'!$H$35:$H$36,MATCH(AL88,'Benchmark-Adjustments'!$E$35:$E$36,0))/INDEX('Benchmark-Adjustments'!$H$35:$H$36,MATCH($AL$70,'Benchmark-Adjustments'!$E$35:$E$36,0))) ->  | BA88: MJ / tHSCW
L89: 1 | M89: Electricity | P89: Yes | Q89: Yes | T89: Yes | W89: Yes | X89: Yes | AB89: =IF(M89="Thermal",AB$70*SUMPRODUCT(((P89:AA89)="Yes")*P$59:AA$59)/SUMPRODUCT(((P$70:AA$70)="Yes")*P$59:AA$59),AB$71*SUMPRODUCT(((P89:AA89)="Yes")*P$60:AA$60)/SUMPRODUCT(((P$71:AA$71)="Yes")*P$60:AA$60))*(L89/$L$70)*(INDEX('Benchmark-Adjustments'!$H$35:$H$36,MATCH($O$70,'Benchmark-Adjustments'!$E$35:$E$36,0))/INDEX('Benchmark-Adjustments'!$H$35:$H$36,MATCH(O89,'Benchmark-Adjustments'!$E$35:$E$36,0))) ->  | AD89: kWh / tHSCW | AI89: 1 | AJ89: Electricity | AM89: Yes | AN89: Yes | AQ89: No | AT89: Yes | AU89: Yes | AY89: =IF(AJ89="Thermal",AY$70*SUMPRODUCT(((AM89:AX89)="Yes")*AM$59:AX$59)/SUMPRODUCT(((AM$70:AX$70)="Yes")*AM$59:AX$59),AY$71*SUMPRODUCT(((AM89:AX89)="Yes")*AM$60:AX$60)/SUMPRODUCT(((AM$71:AX$71)="Yes")*AM$60:AX$60))*(AI89/$AI$70)*(INDEX('Benchmark-Adjustments'!$H$35:$H$36,MATCH(AL89,'Benchmark-Adjustments'!$E$35:$E$36,0))/INDEX('Benchmark-Adjustments'!$H$35:$H$36,MATCH($AL$70,'Benchmark-Adjustments'!$E$35:$E$36,0))) ->  | BA89: kWh / tHSCW
L90: 1 | M90: Thermal | P90: Yes | Q90: Yes | T90: Yes | W90: Yes | X90: Yes | AB90: =IF(M90="Thermal",AB$70*SUMPRODUCT(((P90:AA90)="Yes")*P$59:AA$59)/SUMPRODUCT(((P$70:AA$70)="Yes")*P$59:AA$59),AB$71*SUMPRODUCT(((P90:AA90)="Yes")*P$60:AA$60)/SUMPRODUCT(((P$71:AA$71)="Yes")*P$60:AA$60))*(L90/$L$70)*(INDEX('Benchmark-Adjustments'!$H$35:$H$36,MATCH($O$70,'Benchmark-Adjustments'!$E$35:$E$36,0))/INDEX('Benchmark-Adjustments'!$H$35:$H$36,MATCH(O90,'Benchmark-Adjustments'!$E$35:$E$36,0))) ->  | AD90: MJ / tHSCW | AI90: 1 | AJ90: Thermal | AM90: Yes | AN90: Yes | AQ90: No | AT90: Yes | AU90: Yes | AY90: =IF(AJ90="Thermal",AY$70*SUMPRODUCT(((AM90:AX90)="Yes")*AM$59:AX$59)/SUMPRODUCT(((AM$70:AX$70)="Yes")*AM$59:AX$59),AY$71*SUMPRODUCT(((AM90:AX90)="Yes")*AM$60:AX$60)/SUMPRODUCT(((AM$71:AX$71)="Yes")*AM$60:AX$60))*(AI90/$AI$70)*(INDEX('Benchmark-Adjustments'!$H$35:$H$36,MATCH(AL90,'Benchmark-Adjustments'!$E$35:$E$36,0))/INDEX('Benchmark-Adjustments'!$H$35:$H$36,MATCH($AL$70,'Benchmark-Adjustments'!$E$35:$E$36,0))) ->  | BA90: MJ / tHSCW
L91: 1 | M91: Electricity | P91: Yes | Q91: Yes | T91: Yes | W91: Yes | X91: Yes | AB91: =IF(M91="Thermal",AB$70*SUMPRODUCT(((P91:AA91)="Yes")*P$59:AA$59)/SUMPRODUCT(((P$70:AA$70)="Yes")*P$59:AA$59),AB$71*SUMPRODUCT(((P91:AA91)="Yes")*P$60:AA$60)/SUMPRODUCT(((P$71:AA$71)="Yes")*P$60:AA$60))*(L91/$L$70)*(INDEX('Benchmark-Adjustments'!$H$35:$H$36,MATCH($O$70,'Benchmark-Adjustments'!$E$35:$E$36,0))/INDEX('Benchmark-Adjustments'!$H$35:$H$36,MATCH(O91,'Benchmark-Adjustments'!$E$35:$E$36,0))) ->  | AD91: kWh / tHSCW | AI91: 1 | AJ91: Electricity | AM91: Yes | AN91: Yes | AQ91: No | AT91: Yes | AU91: Yes | AY91: =IF(AJ91="Thermal",AY$70*SUMPRODUCT(((AM91:AX91)="Yes")*AM$59:AX$59)/SUMPRODUCT(((AM$70:AX$70)="Yes")*AM$59:AX$59),AY$71*SUMPRODUCT(((AM91:AX91)="Yes")*AM$60:AX$60)/SUMPRODUCT(((AM$71:AX$71)="Yes")*AM$60:AX$60))*(AI91/$AI$70)*(INDEX('Benchmark-Adjustments'!$H$35:$H$36,MATCH(AL91,'Benchmark-Adjustments'!$E$35:$E$36,0))/INDEX('Benchmark-Adjustments'!$H$35:$H$36,MATCH($AL$70,'Benchmark-Adjustments'!$E$35:$E$36,0))) ->  | BA91: kWh / tHSCW
L92: 1 | M92: Thermal | P92: Yes | Q92: Yes | T92: Yes | W92: Yes | X92: Yes | AB92: =IF(M92="Thermal",AB$70*SUMPRODUCT(((P92:AA92)="Yes")*P$59:AA$59)/SUMPRODUCT(((P$70:AA$70)="Yes")*P$59:AA$59),AB$71*SUMPRODUCT(((P92:AA92)="Yes")*P$60:AA$60)/SUMPRODUCT(((P$71:AA$71)="Yes")*P$60:AA$60))*(L92/$L$70)*(INDEX('Benchmark-Adjustments'!$H$35:$H$36,MATCH($O$70,'Benchmark-Adjustments'!$E$35:$E$36,0))/INDEX('Benchmark-Adjustments'!$H$35:$H$36,MATCH(O92,'Benchmark-Adjustments'!$E$35:$E$36,0))) ->  | AD92: MJ / tHSCW | AI92: 1 | AJ92: Thermal | AM92: Yes | AN92: Yes | AQ92: No | AT92: Yes | AU92: Yes | AY92: =IF(AJ92="Thermal",AY$70*SUMPRODUCT(((AM92:AX92)="Yes")*AM$59:AX$59)/SUMPRODUCT(((AM$70:AX$70)="Yes")*AM$59:AX$59),AY$71*SUMPRODUCT(((AM92:AX92)="Yes")*AM$60:AX$60)/SUMPRODUCT(((AM$71:AX$71)="Yes")*AM$60:AX$60))*(AI92/$AI$70)*(INDEX('Benchmark-Adjustments'!$H$35:$H$36,MATCH(AL92,'Benchmark-Adjustments'!$E$35:$E$36,0))/INDEX('Benchmark-Adjustments'!$H$35:$H$36,MATCH($AL$70,'Benchmark-Adjustments'!$E$35:$E$36,0))) ->  | BA92: MJ / tHSCW
L93: 1 | M93: Electricity | P93: Yes | Q93: Yes | T93: Yes | W93: Yes | X93: Yes | AB93: =IF(M93="Thermal",AB$70*SUMPRODUCT(((P93:AA93)="Yes")*P$59:AA$59)/SUMPRODUCT(((P$70:AA$70)="Yes")*P$59:AA$59),AB$71*SUMPRODUCT(((P93:AA93)="Yes")*P$60:AA$60)/SUMPRODUCT(((P$71:AA$71)="Yes")*P$60:AA$60))*(L93/$L$70)*(INDEX('Benchmark-Adjustments'!$H$35:$H$36,MATCH($O$70,'Benchmark-Adjustments'!$E$35:$E$36,0))/INDEX('Benchmark-Adjustments'!$H$35:$H$36,MATCH(O93,'Benchmark-Adjustments'!$E$35:$E$36,0))) ->  | AD93: kWh / tHSCW | AI93: 1 | AJ93: Electricity | AM93: Yes | AN93: Yes | AQ93: No | AT93: Yes | AU93: Yes | AY93: =IF(AJ93="Thermal",AY$70*SUMPRODUCT(((AM93:AX93)="Yes")*AM$59:AX$59)/SUMPRODUCT(((AM$70:AX$70)="Yes")*AM$59:AX$59),AY$71*SUMPRODUCT(((AM93:AX93)="Yes")*AM$60:AX$60)/SUMPRODUCT(((AM$71:AX$71)="Yes")*AM$60:AX$60))*(AI93/$AI$70)*(INDEX('Benchmark-Adjustments'!$H$35:$H$36,MATCH(AL93,'Benchmark-Adjustments'!$E$35:$E$36,0))/INDEX('Benchmark-Adjustments'!$H$35:$H$36,MATCH($AL$70,'Benchmark-Adjustments'!$E$35:$E$36,0))) ->  | BA93: kWh / tHSCW
L96: =B9 -> 5) From literature review, import spread of site performance to establish dial gauge range
N98: Source: Eco-Efficiency Manual for Meat Processing, Meat and Livestock Australia Ltd, 2002
U103: Leading | V103: Lagging | W103: Average | X103: Lagging / Leading | Y103: Source
U104: 1200 | V104: 4800 | W104: 3400 | X104: =V104/U104 -> 4 | Y104: 1MLA (1998b). Benchmarking of environmental performance. Sydney.
N107: Source: Energy efficiency opportunities program report, Meat & Livestock Australia Ltd, March 2011 [Doc#:2215368v1 pg 9]
U113: MJ / tHSCW
U114: =(5.144)*1000 -> 5144
U115: 5335
U116: 4694
U117: 4961
U118: 3195
U119: 3468
U120: 2797
S122: Lagging | U122: =MAX($U$114:$U$120) -> 5335
S123: Leading | U123: =MIN($U$114:$U$120) -> 2797
S124: Lagging / Leading | U124: =U122/U123 -> 1.907400787
T128: Dial gauge range (as a multiple of best-practice benchmark): | U128: =AVERAGE(X104,U124) -> 2.953700393
P132: Dial gauge ranges: | Q132: Calculation description | T132: For example, for a full-facility plant:
T133: Thermal | V133: Electricity
P134: Min | Q134: Best-practice benchmark facility | T134: =AB70 -> 2334 | U134: =AD70 -> MJ / tHSCW | V134: =AB71 -> 257 | W134: =AD71 -> kWh / tHSCW
P135: Max | Q135: Best-practice benchmark facility x [lagging / leading] | T135: =AB70*U128 -> 6893.936718 | U135: =AD70 -> MJ / tHSCW | V135: =AB71*U128 -> 759.1010011 | W135: =AD71 -> kWh / tHSCW
L138: =B10 -> 6) Establish performance range within dial gauge range for poor, average and good performance
P140: For example, for a full-facility plant:
M141: Performance | N141: Lower Bound | O141: Upper Bound | P141: Thermal | T141: Electricity
M142: =Performance_Descriptor_List -> Good | N142: 0 | O142: 0.25 | P142: =($T$135-$T$134)*$N142+$T$134 -> 2334 | Q142: to | R142: =($T$135-$T$134)*$N142+$T$134 -> 2334 | S142: =$AD$70 -> MJ / tHSCW | T142: =($V$135-$V$134)*$N142+$V$134 -> 257 | U142: to | V142: =($V$135-$V$134)*$O142+$V$134 -> 382.5252503 | W142: =$AD$71 -> kWh / tHSCW
M143: Fair | N143: =O142 -> 0.25 | O143: 0.75 | P143: =($T$135-$T$134)*$N143+$T$134 -> 3473.984179 | Q143: to | R143: 3473.984179 | S143: =$AD$70 -> MJ / tHSCW | T143: =($V$135-$V$134)*$N143+$V$134 -> 382.5252503 | U143: to | V143: =($V$135-$V$134)*$O143+$V$134 -> 633.5757508 | W143: =$AD$71 -> kWh / tHSCW
M144: Poor | N144: =O143 -> 0.75 | O144: 1 | P144: 5753.952538 | Q144: to | R144: 5753.952538 | S144: MJ / tHSCW | T144: 633.5757508 | U144: to | V144: 759.1010011 | W144: kWh / tHSCW

Sheet Benchmark-Water (hidden)
B1: Development of Water Benchmark
B3: Method
B5: 1) From literature review, import typical water use breakdown at a typical meat plant
B6: 2) Apply industry experience to apportion this water use across the site facilities
B7: 3) From literature review, import figures for best-practice water use at a full-facility plant
B8: 4) Import performance figures from real-world sites to cross-check best-practice figures for validation
B9: 5) From literature review, import spread of site performance to establish dial gauge range
B10: 6) Establish performance range within dial gauge range for poor, average and good performance
A12: =B5 -> 1) From literature review, import typical water use breakdown at a typical meat plant | L12: =B6 -> 2) Apply industry experience to apportion this water use across the site facilities
B13: Source: Eco-Efficiency Manual for Meat Processing, Meat and Livestock Australia Ltd, 2002
O15: kL / day | P15: =TRANSPOSE(Facilities_List) -> Stockyards | Q15: Slaughter and Evisceration | R15: Hide Processing | S15: Blood Processing | T15: Rendering | U15: Paunch Processing | V15: Offal Washing | W15: Wastewater Treatment | X15: Chilling | Y15: Boning | Z15: Packaging | AA15: Freezing
L16: Variable water use | M16: Stockyards | N16: Stock watering | O16: 10.03009027 | P16: 1 | Q16: 0 | R16: 0 | S16: 0 | T16: 0 | U16: 0 | V16: 0 | W16: 0 | X16: 0 | Y16: 0 | Z16: 0 | AA16: 0 | AB16: =SUM(P16:AA16) -> 1
N17: Stock washing | O17: 70.2106319 | P17: 1 | Q17: 0 | R17: 0 | S17: 0 | T17: 0 | U17: 0 | V17: 0 | W17: 0 | X17: 0 | Y17: 0 | Z17: 0 | AA17: 0 | AB17: =SUM(P17:AA17) -> 1
N18: Stockyard washing | O18: 130.3911735 | P18: 1 | Q18: 0 | R18: 0 | S18: 0 | T18: 0 | U18: 0 | V18: 0 | W18: 0 | X18: 0 | Y18: 0 | Z18: 0 | AA18: 0 | AB18: 1
N19: Truck washing | O19: 40.12036108 | P19: 1 | Q19: 0 | R19: 0 | S19: 0 | T19: 0 | U19: 0 | V19: 0 | W19: 0 | X19: 0 | Y19: 0 | Z19: 0 | AA19: 0 | AB19: 1
M20: Slaughter and evisceration | N20: Viscera table wash sprays | O20: 60.18054162 | P20: 0 | Q20: 1 | R20: 0 | S20: 0 | T20: 0 | U20: 0 | V20: 0 | W20: 0 | X20: 0 | Y20: 0 | Z20: 0 | AA20: 0 | AB20: 1
N21: Head wash | O21: 3.009027081 | P21: 0 | Q21: 1 | R21: 0 | S21: 0 | T21: 0 | U21: 0 | V21: 0 | W21: 0 | X21: 0 | Y21: 0 | Z21: 0 | AA21: 0 | AB21: 1
N22: Carcase wash | O22: 40.12036108 | P22: 0 | Q22: 1 | R22: 0 | S22: 0 | T22: 0 | U22: 0 | V22: 0 | W22: 0 | X22: 0 | Y22: 0 | Z22: 0 | AA22: 0 | AB22: 1
N23: Carcase splitting saw | O23: 1.003009027 | P23: 0 | Q23: 1 | R23: 0 | S23: 0 | T23: 0 | U23: 0 | V23: 0 | W23: 0 | X23: 0 | Y23: 0 | Z23: 0 | AA23: 0 | AB23: 1
M24: Paunch, gut and offal washing | N24: Paunch dump and rinse | O24: 80.24072217 | P24: 0 | Q24: 0 | R24: 0 | S24: 0 | T24: 0 | U24: 1 | V24: 0 | W24: 0 | X24: 0 | Y24: 0 | Z24: 0 | AA24: 0 | AB24: 1
N25: Tripe / bible washing | O25: 30.09027081 | P25: 0 | Q25: 0 | R25: 0 | S25: 0 | T25: 0 | U25: 1 | V25: 0 | W25: 0 | X25: 0 | Y25: 0 | Z25: 0 | AA25: 0 | AB25: 1
N26: Gut washing | O26: 60.18054162 | P26: 0 | Q26: 0 | R26: 0 | S26: 0 | T26: 0 | U26: 0.5 | V26: 0.5 | W26: 0 | X26: 0 | Y26: 0 | Z26: 0 | AA26: 0 | AB26: 1
N27: Edible offal washing | O27: 30.09027081 | P27: 0 | Q27: 0 | R27: 0 | S27: 0 | T27: 0 | U27: 0 | V27: 1 | W27: 0 | X27: 0 | Y27: 0 | Z27: 0 | AA27: 0 | AB27: 1
L28: Fixed water use | M28: Rendering | N28: Rendering separators | O28: 10.03009027 | P28: 0 | Q28: 0 | R28: 0 | S28: 0 | T28: 1 | U28: 0 | V28: 0 | W28: 0 | X28: 0 | Y28: 0 | Z28: 0 | AA28: 0 | AB28: 1
N29: Rendering plant washdown | O29: 5.015045135 | P29: 0 | Q29: 0 | R29: 0 | S29: 0 | T29: 1 | U29: 0 | V29: 0 | W29: 0 | X29: 0 | Y29: 0 | Z29: 0 | AA29: 0 | AB29: 1
M30: Sterilisers and wash stations | N30: Knife sterilisers | O30: 60.18054162 | P30: 0 | Q30: 0.4 | R30: 0 | S30: 0 | T30: 0 | U30: 0 | V30: 0 | W30: 0 | X30: 0 | Y30: 0.6 | Z30: 0 | AA30: 0 | AB30: 1
N31: Equipment sterilisers | O31: 20.06018054 | P31: 0 | Q31: 0.1 | R31: 0.1 | S31: 0.1 | T31: 0.1 | U31: 0.1 | V31: 0.1 | W31: 0.1 | X31: 0.1 | Y31: 0.1 | Z31: 0.05 | AA31: 0.05 | AB31: 1
N32: Hand wash stations | O32: 20.06018054 | P32: =1/COUNTA($P$15:$AA$15) -> 0.08333333333 | Q32: =1/COUNTA($P$15:$AA$15) -> 0.08333333333 | R32: 0.08333333333 | S32: 0.08333333333 | T32: 0.08333333333 | U32: 0.08333333333 | V32: 0.08333333333 | W32: 0.08333333333 | X32: 0.08333333333 | Y32: 0.08333333333 | Z32: 0.08333333333 | AA32: 0.08333333333 | AB32: 1
M33: Amenities | N33: Exit / entry hand, boot and apron wash stations | O33: 40.12036108 | P33: =1/COUNTA($P$15:$AA$15) -> 0.08333333333 | Q33: 0.08333333333 | R33: 0.08333333333 | S33: 0.08333333333 | T33: 0.08333333333 | U33: 0.08333333333 | V33: 0.08333333333 | W33: 0.08333333333 | X33: 0.08333333333 | Y33: 0.08333333333 | Z33: 0.08333333333 | AA33: 0.08333333333 | AB33: 1
N34: Personnel amenities | O34: 25.07522568 | P34: =1/COUNTA($P$15:$AA$15) -> 0.08333333333 | Q34: 0.08333333333 | R34: 0.08333333333 | S34: 0.08333333333 | T34: 0.08333333333 | U34: 0.08333333333 | V34: 0.08333333333 | W34: 0.08333333333 | X34: 0.08333333333 | Y34: 0.08333333333 | Z34: 0.08333333333 | AA34: 0.08333333333 | AB34: 1
M35: Plant cleaning | N35: Wash down during shifts | O35: 20.06018054 | Q35: 0.5 | R35: 0.1 | S35: 0.1 | T35: 0.1 | U35: 0.05 | V35: 0.05 | Y35: 0.05 | AA35: 0.05 | AB35: 1
N36: Cleaning and sanitising at end of shift | O36: 170.49 | Q36: 0.3 | R36: 0.1 | S36: 0.1 | T36: 0.15 | U36: 0.05 | V36: 0.05 | Y36: 0.2 | AA36: 0.05 | AB36: 1
N37: Washing tubs, cutting boards and trays | O37: 30.09027081 | Q37: 0.5 | R37: 0.1 | S37: 0.1 | T37: 0.1 | U37: 0.05 | V37: 0.05 | Y37: 0.05 | AA37: 0.05 | AB37: 1
M38: Plant services | N38: Condensers | O38: 20.06018054 | P38: 0 | Q38: 0 | R38: 0 | S38: 0 | T38: 0 | U38: 0 | V38: 0 | W38: 0 | X38: 0.35 | Y38: 0 | Z38: 0 | AA38: 0.65 | AB38: 1
N39: Cooling tower makeup | O39: 10.03009027 | P39: 0 | Q39: 0 | R39: 0 | S39: 0 | T39: 0 | U39: 0 | V39: 0 | W39: 0 | X39: 0.35 | Y39: 0 | Z39: 0 | AA39: 0.65 | AB39: 1
N40: Boiler feed makeup | O40: 10.03009027 | P40: 0 | Q40: 0.2 | R40: 0 | S40: 0 | T40: 0.65 | U40: 0.05 | V40: 0.05 | W40: 0 | X40: 0 | Y40: 0.05 | Z40: 0 | AA40: 0 | AB40: 1
N41: Refrigeration defrost | O41: 3.009027081 | P41: 0.01 | Q41: 0.01 | R41: 0.01 | S41: 0.01 | T41: 0.01 | U41: 0.01 | V41: 0.01 | W41: 0.01 | X41: 0.3 | Y41: 0.01 | Z41: 0.01 | AA41: 0.6 | AB41: 1
N43: Total | O43: =SUM(O16:O41) -> 999.9784654 | P43: =SUMPRODUCT(P16:P41,$O$16:$O$41)/SUM($O$16:$O$41) -> 0.2578925479 | Q43: 0.2157588011 | R43: 0.03120547273 | S43: 0.03120547273 | T43: 0.06129531479 | U43: 0.1610990157 | V43: 0.08085656552 | W43: 0.009140952447 | X43: 0.02054541068 | Y43: 0.0823578812 | Z43: 0.00813792182 | AA43: 0.0405046434 | AB43: =SUM(P43:AA43) -> 1
K56: =B7 -> 3) From literature review, import figures for best-practice water use at a full-facility plant
M60: Manual Input of Production Uplift Factor | N60: Site | O60: Species Mix | P60: =TRANSPOSE(Facilities_List) -> Stockyards | Q60: Slaughter and Evisceration | R60: Hide Processing | S60: Blood Processing | T60: Rendering | U60: Paunch Processing | V60: Offal Washing | W60: Wastewater Treatment | X60: Chilling | Y60: Boning | Z60: Packaging | AA60: Freezing | AB60: Benchmark | AC60: Actual
M61: 1 | N61: E | O61: Large body (cattle & calves) | P61: Yes | Q61: Yes | R61: Yes | S61: Yes | T61: Yes | U61: Yes | V61: Yes | W61: Yes | X61: Yes | Y61: Yes | Z61: Yes | AA61: Yes | AB61: =AC61 -> 7.8 | AC61: 7.8 | AD61: kL / tHSCW
K64: =B8 -> 4) Import performance figures from real-world sites to cross-check best-practice figures for validation
M66: Manual Input of Production Uplift Factor | N66: Site | O66: Location | P66: =TRANSPOSE(Facilities_List) -> Stockyards | Q66: Slaughter and Evisceration | R66: Hide Processing | S66: Blood Processing | T66: Rendering | U66: Paunch Processing | V66: Offal Washing | W66: Wastewater Treatment | X66: Chilling | Y66: Boning | Z66: Packaging | AA66: Freezing | AB66: Benchmark | AC66: Actual
M67: 1 | N67: F | O67: Large body (cattle & calves) | P67: Yes | Q67: Yes | W67: Yes | X67: Yes | Y67: Yes | AA67: Yes | AB67: =AB$61/SUMPRODUCT(((P$61:AA$61)="Yes")*P$43:AA$43)*SUMPRODUCT(((P67:AA67)="Yes")*P$43:AA$43)*(M67/$M$61)*(INDEX('Benchmark-Adjustments'!$H$35:$H$36,MATCH(O67,'Benchmark-Adjustments'!$E$35:$E$36,0))/INDEX('Benchmark-Adjustments'!$H$35:$H$36,MATCH($O$61,'Benchmark-Adjustments'!$E$35:$E$36,0))) -> 4.884361846 | AC67: 7.3
M68: 1 | N68: H | O68: Large body (cattle & calves) | P68: Yes | Q68: Yes | S68: Yes | T68: Yes | U68: Yes | V68: Yes | W68: Yes | X68: Yes | Y68: Yes | Z68: Yes | AA68: Yes | AB68: =AB$61/SUMPRODUCT(((P$61:AA$61)="Yes")*P$43:AA$43)*SUMPRODUCT(((P68:AA68)="Yes")*P$43:AA$43)*(M68/$M$61)*(INDEX('Benchmark-Adjustments'!$H$35:$H$36,MATCH(O68,'Benchmark-Adjustments'!$E$35:$E$36,0))/INDEX('Benchmark-Adjustments'!$H$35:$H$36,MATCH($O$61,'Benchmark-Adjustments'!$E$35:$E$36,0))) -> 7.556597313 | AC68: 8.85
M69: 1 | N69: B | O69: Large body (cattle & calves) | P69: Yes | Q69: Yes | R69: Yes | S69: Yes | T69: Yes | U69: Yes | V69: Yes | W69: Yes | X69: Yes | Y69: Yes | Z69: Yes | AA69: Yes | AB69: =AB$61/SUMPRODUCT(((P$61:AA$61)="Yes")*P$43:AA$43)*SUMPRODUCT(((P69:AA69)="Yes")*P$43:AA$43)*(M69/$M$61)*(INDEX('Benchmark-Adjustments'!$H$35:$H$36,MATCH(O69,'Benchmark-Adjustments'!$E$35:$E$36,0))/INDEX('Benchmark-Adjustments'!$H$35:$H$36,MATCH($O$61,'Benchmark-Adjustments'!$E$35:$E$36,0))) -> 7.8 | AC69: 6.8
M70: 1 | N70: C | O70: Large body (cattle & calves) | P70: Yes | Q70: Yes | R70: Yes | S70: Yes | T70: Yes | U70: Yes | V70: Yes | W70: Yes | X70: Yes | Y70: Yes | Z70: Yes | AA70: Yes | AB70: =AB$61/SUMPRODUCT(((P$61:AA$61)="Yes")*P$43:AA$43)*SUMPRODUCT(((P70:AA70)="Yes")*P$43:AA$43)*(M70/$M$61)*(INDEX('Benchmark-Adjustments'!$H$35:$H$36,MATCH(O70,'Benchmark-Adjustments'!$E$35:$E$36,0))/INDEX('Benchmark-Adjustments'!$H$35:$H$36,MATCH($O$61,'Benchmark-Adjustments'!$E$35:$E$36,0))) -> 7.8 | AC70: 11.3
M71: 1 | N71: I | O71: Large body (cattle & calves) | P71: Yes | Q71: Yes | R71: Yes | S71: Yes | T71: Yes | U71: Yes | V71: Yes | W71: Yes | X71: Yes | Y71: Yes | Z71: Yes | AA71: Yes | AB71: =AB$61/SUMPRODUCT(((P$61:AA$61)="Yes")*P$43:AA$43)*SUMPRODUCT(((P71:AA71)="Yes")*P$43:AA$43)*(M71/$M$61)*(INDEX('Benchmark-Adjustments'!$H$35:$H$36,MATCH(O71,'Benchmark-Adjustments'!$E$35:$E$36,0))/INDEX('Benchmark-Adjustments'!$H$35:$H$36,MATCH($O$61,'Benchmark-Adjustments'!$E$35:$E$36,0))) -> 7.8 | AC71: 8.1
M72: 1 | N72: J | O72: Small body (all else) | P72: Yes | Q72: Yes | W72: Yes | X72: Yes | AB72: =AB$61/SUMPRODUCT(((P$61:AA$61)="Yes")*P$43:AA$43)*SUMPRODUCT(((P72:AA72)="Yes")*P$43:AA$43)*(M72/$M$61)*(INDEX('Benchmark-Adjustments'!$H$35:$H$36,MATCH(O72,'Benchmark-Adjustments'!$E$35:$E$36,0))/INDEX('Benchmark-Adjustments'!$H$35:$H$36,MATCH($O$61,'Benchmark-Adjustments'!$E$35:$E$36,0))) -> 1.963017077 | AC72: 0.18
M73: 1 | P73: Yes | Q73: Yes | W73: Yes | X73: Yes | AB73: =AB$61/SUMPRODUCT(((P$61:AA$61)="Yes")*P$43:AA$43)*SUMPRODUCT(((P73:AA73)="Yes")*P$43:AA$43)*(M73/$M$61)*(INDEX('Benchmark-Adjustments'!$H$35:$H$36,MATCH(O73,'Benchmark-Adjustments'!$E$35:$E$36,0))/INDEX('Benchmark-Adjustments'!$H$35:$H$36,MATCH($O$61,'Benchmark-Adjustments'!$E$35:$E$36,0))) -> 
M74: 1 | P74: Yes | Q74: Yes | W74: Yes | X74: Yes | AB74: =AB$61/SUMPRODUCT(((P$61:AA$61)="Yes")*P$43:AA$43)*SUMPRODUCT(((P74:AA74)="Yes")*P$43:AA$43)*(M74/$M$61)*(INDEX('Benchmark-Adjustments'!$H$35:$H$36,MATCH(O74,'Benchmark-Adjustments'!$E$35:$E$36,0))/INDEX('Benchmark-Adjustments'!$H$35:$H$36,MATCH($O$61,'Benchmark-Adjustments'!$E$35:$E$36,0))) -> 
M75: 1 | P75: Yes | Q75: Yes | W75: Yes | X75: Yes | AB75: =AB$61/SUMPRODUCT(((P$61:AA$61)="Yes")*P$43:AA$43)*SUMPRODUCT(((P75:AA75)="Yes")*P$43:AA$43)*(M75/$M$61)*(INDEX('Benchmark-Adjustments'!$H$35:$H$36,MATCH(O75,'Benchmark-Adjustments'!$E$35:$E$36,0))/INDEX('Benchmark-Adjustments'!$H$35:$H$36,MATCH($O$61,'Benchmark-Adjustments'!$E$35:$E$36,0))) -> 
M76: 1 | P76: Yes | Q76: Yes | W76: Yes | X76: Yes | AB76: =AB$61/SUMPRODUCT(((P$61:AA$61)="Yes")*P$43:AA$43)*SUMPRODUCT(((P76:AA76)="Yes")*P$43:AA$43)*(M76/$M$61)*(INDEX('Benchmark-Adjustments'!$H$35:$H$36,MATCH(O76,'Benchmark-Adjustments'!$E$35:$E$36,0))/INDEX('Benchmark-Adjustments'!$H$35:$H$36,MATCH($O$61,'Benchmark-Adjustments'!$E$35:$E$36,0))) -> 
K78: =B9 -> 5) From literature review, import spread of site performance to establish dial gauge range
M80: Source: Eco-Efficiency Manual for Meat Processing, Meat and Livestock Australia Ltd, 2002
M89: Source: Water Use in Red Meat Processing, Australian Meat Processor Corporation, n.d. [Doc#:2215379v1 pg 2]
O101: Leading | P101: Lagging | Q101: Average | R101: Lagging / Leading | S101: Source
N102: Above, Table 1.6 | O102: 6 | P102: 15 | Q102: 11.8 | R102: =P102/O102 -> 2.5 | S102: MLA (1998b). Benchmarking of environmental performance. Sydney.
N103: Above, Table 1 | O103: 4.7 | P103: 15.9 | Q103: 8.3 | R103: =P103/O103 -> 3.382978723
N104: Above, Table 1 | O104: 1.2 | P104: 4.8 | Q104: 2.8 | R104: =P104/O104 -> 4
N105: average | Q105: =AVERAGE(Q102:Q104) -> 7.633333333 | R105: =AVERAGE(R102:R104) -> 3.294326241
T107: Dial gauge range (as a multiple of best-practice benchmark): | U107: =R105 -> 3.294326241
M110: Dial gauge ranges: | N110: Calculation description | O110: For example, for a full-facility plant:
M111: Min | N111: Best-practice benchmark facility | O111: =AC61 -> 7.8 | P111: kL / tHSCW
M112: Max | N112: Best-practice benchmark facility x [lagging / leading] | O112: =AC61*U107 -> 25.69574468 | P112: kL / tHSCW
K116: =B10 -> 6) Establish performance range within dial gauge range for poor, average and good performance
P118: For example, for a full-facility plant:
M119: Performance | N119: Lower Bound | O119: Upper Bound | P119: Water
M120: =Performance_Descriptor_List -> Good | N120: 0 | O120: 0.25 | P120: =($O$112-$O$111)*$N120+$O$111 -> 7.8 | Q120: to | R120: =($O$112-$O$111)*$O120+$O$111 -> 12.27393617 | S120: =$AD$61 -> kL / tHSCW
M121: Fair | N121: =O120 -> 0.25 | O121: 0.75 | P121: =($O$112-$O$111)*$N121+$O$111 -> 12.27393617 | Q121: to | R121: =($O$112-$O$111)*$O121+$O$111 -> 21.22180851 | S121: =$AD$61 -> kL / tHSCW
M122: Poor | N122: =O121 -> 0.75 | O122: 1 | P122: 21.22180851 | Q122: to | R122: 25.69574468 | S122: kL / tHSCW

Sheet Benchmark-Adjustments (hidden)
B1: Development of Benchmark Adjustments
B3: Method
B5: 1) From literature review, import figures to identify species-specific performance
B6: 2) Apply industry experience to calculate performance differences between large body and small body species
B7: 3) From industry experience, model plant performance for partial-capacity production
A9: =B5 -> 1) From literature review, import figures to identify species-specific performance
C11: Energy | K11: Water
K13: Source: AMPC, Environmental Performance Review: Red Meat Processing Sector, 2015 §3.3 pp.9
K14: http://www.ampc.com.au/2015/05/Environmental-Performance-Review-Red-Meat-Processing-Sector-2015
K16: Small animal correction factor: | N16: 1.16
L17: i.e. processing a small animal requires this times as much water compared to cattle.
A23: =B6 -> 2) Apply industry experience to calculate performance differences between large body and small body species
B32: Here, a number less than zero indicates that per tonne of production, less energy or water is required to process this species type compared to the best-practice benchmark site
H34: Energy | I34: Water
E35: ='Drop-downs'!B18 -> Large body (cattle & calves) | H35: 1 | I35: 1
E36: ='Drop-downs'!B19 -> Small body (all else) | H36: 0.5 | I36: =N16 -> 1.16
A38: =B7 -> 3) From industry experience, model plant performance for partial-capacity production
B48: Here, a number greater than zero indicates that more energy or water is required to produce a tonne of meat compared to the best-practice benchmark site production figures
D50: % of production capacity | G50: Uplift factor on benchmark
D51: 0 | G51: 1.25
D52: 0.5 | G52: 1.25
D53: 1 | G53: 1
B71: Development of Facility Throughput Ratios
B73: The benchmarked site is based on 100% of all kills being boned, rendered and frozen, with no external inputs to any facility.
B74: The user's site may differ, and therefore the energy and water use apportioned to each facility should be changed accordingly.
B75: Examples: the user may receive external sources of rendering material, or they only bone part of the kills, or they don't freeze everything.
B77: Method
B79: 1) From literature review, import typical mass flow diagram to derive key figures
B80: 2) Import user's facility-based production rates
B81: 3) Calculate energy and water intensity adjustment figures
A83: =B79 -> 1) From literature review, import typical mass flow diagram to derive key figures
B84: Source: Eco-Efficiency Manual for Meat Processing, Meat and Livestock Australia Ltd, 2002
T87: Typical weight (kg) | U87: =TRANSPOSE(S89:S91)&" (ratio)" -> Hot Standard Carcass (ratio) | V87: Boning Yield (ratio) | W87: Render Material (ratio)
S88: Live Weight | T88: 400 | U88: =T89/T88 -> 0.55 | V88: =T90/T88 -> 0.38 | W88: =T91/T88 -> 0.385
S89: Hot Standard Carcass | T89: 220 | V89: =T90/T89 -> 0.6909090909 | W89: =T91/T89 -> 0.7
S90: Boning Yield | T90: 152 | W90: =T91/T90 -> 1.013157895
S91: Render Material | T91: 154
A110: =B80 -> 2) Import user's facility-based production rates
H112: Current | I112: Maximum
B113: Large or Small body? | C113: Species | D113: Current | E113: Maximum | F113: Unit | G113: tonnes / head | H113: tHSCW p.a. | I113: tHSCW p.a.
B114: Large | C114: =Inputs!I12 -> Cattle | D114: =Inputs!K12 -> 40000 | E114: =Inputs!J12 -> - | F114: =Inputs!L12 -> tHSCW / yr | G114: =IF(F114='Drop-downs'!$E$19,Inputs!Q12/1000,"") ->  | H114: =IF($F114='Drop-downs'!$E$19,D114*$G114,D114) -> 40000
B115: Large | C115: =Inputs!I13 -> Calves | D115: =Inputs!K13 -> 0 | E115: =Inputs!J13 -> - | F115: =Inputs!L13 -> tHSCW / yr | G115: =IF(F115='Drop-downs'!$E$19,Inputs!Q13/1000,"") ->  | H115: =IF($F115='Drop-downs'!$E$19,D115*$G115,D115) -> 0
B116: Small | C116: =Inputs!I15 -> Sheep | D116: =Inputs!K15 -> 0 | E116: =Inputs!J15 -> - | F116: =Inputs!L15 -> tHSCW / yr | G116: =IF(F116='Drop-downs'!$E$19,Inputs!Q14/1000,"") ->  | H116: =IF($F116='Drop-downs'!$E$19,D116*$G116,D116) -> 0
B117: Small | C117: =Inputs!I17 -> Lamb | D117: =Inputs!K17 -> 0 | E117: =Inputs!J17 -> - | F117: =Inputs!L17 -> tHSCW / yr | G117: =IF(F117='Drop-downs'!$E$19,Inputs!Q15/1000,"") ->  | H117: =IF($F117='Drop-downs'!$E$19,D117*$G117,D117) -> 0
B118: Small | C118: =Inputs!I18 -> Goat | D118: =Inputs!K18 -> 0 | E118: =Inputs!J18 -> - | F118: =Inputs!L18 -> tHSCW / yr | G118: =IF(F118='Drop-downs'!$E$19,Inputs!Q16/1000,"") ->  | H118: =IF($F118='Drop-downs'!$E$19,D118*$G118,D118) -> 0
H119: =SUM(H114:H118) -> 40000 | I119: =Inputs!$J$19 -> 45000 | J119: tHSCW / year
B122: =Inputs!C30 -> How much rendering product is external vs internal? | G122: =Inputs!I30 -> How much product enters the boning room? | K122: =Inputs!N30 -> How much final product leaves the site as chilled/frozen?
B123: =Inputs!C31 -> Internal input (t/yr) | E123: =Inputs!D31 -> 38000 | G123: =Inputs!I31 -> Boning room (tonnes/yr) | I123: =Inputs!K31 -> 34000 | K123: Chilled (t/yr) | M123: =Inputs!Q31 -> 4000
B124: =Inputs!C32 -> External input (t/yr) | E124: =Inputs!D32 -> 0 | G124: =Inputs!I32 -> Carcass only (t/yr) | I124: =Inputs!K32 -> 4000 | K124: Frozen (t/yr) | M124: =Inputs!Q32 -> 34000
B127: Hide processed (tonnes / yr) | E127: =Inputs!D37 -> 0 | G127: Paunch processed (tonnes / yr) | I127: =Inputs!K37 -> 3400
A130: =B81 -> 3) Calculate energy and water intensity adjustment figures
B132: Ratio of tHSCW to Internal Rendering | G132: Ratio of tHSCW to boning | K132: Does user's site have boning or freezing?
B133: Typical ratio | E133: =W89 -> 0.7 | G133: Typical ratio | I133: =V89 -> 0.6909090909 | K133: Boning | M133: =Inputs!$K$29 -> Yes
B134: User's site ratio | E134: =IF(E123="",E133,E123/H119) -> 0.95 | G134: User's site ratio | I134: =I123/I119 -> 0.7555555556 | K134: Freezing | M134: =Inputs!$Q$29 -> Yes
B136: Expected internal rendering production based on kill rate and 100% of material sent to rendering | G136: Expected internal boning production based on kill rate and 100% boning | K136: Expected input into freezer and chiller, and assuming all product is frozen (if the facility has freezing).
L137: Chiller | M137: =IF(M134="Yes",0,IF(M133="Yes",H119*V89,H119)) -> 0
B138: Expected production | E138: =H119*E133 -> 28000 | G138: Expected production | I138: =H119*I133 -> 27636.36364 | L138: Freezer | M138: =IF(M134="No",0,IF(M133="Yes",H119*V89,H119)) -> 27636.36364
L139: Total | M139: =SUM(M137:M138) -> 27636.36364
B140: Ratio of actual user production vs expected | G140: Ratio of actual user production vs expected
K141: Ratio of actual user input vs expected input:
E142: =IF(AND(E123="",E124=""),1,(IF(E123="",0,E123)+IF(E124="",0,E124))/E138) -> 1.357142857 | I142: =I123/I138 -> 1.230263158 | M142: =IF(AND(M123="",M124=""),1,(IF(M123="",0,M123)+IF(M124="",0,M124))/M139) -> 1.375
B143: This figure will be used as a multiplier to change the energy and water use of this facility to adjust the benchmark. | G143: This figure will be used as a multiplier to change the energy and water use of this facility to adjust the benchmark. | K143: Ratio of actual user's input to freezer vs chilled
M144: =IF(AND(M123="",M124=""),0,IF(M124+M123=0,0,M124/(M124+M123))) -> 0.8947368421
K146: Adjustment to apply to freezer facility, based on comparison to total expected production and to 100% freezer input: | O146: Adjustment to apply to chiller facility, based on comparison to total expected production:
M147: =M142*M144 -> 1.230263158 | Q147: =M142 -> 1.375
K148: This figure will be used as a multiplier to change the energy and water use of the freezer facility to adjust the benchmark. | O148: This figure will be used as a multiplier to change the energy and water use of the chiller facility to adjust the benchmark.
B152: Hide processing | E152: =Inputs!D35 -> No
B154: Typical ratio | E154: =36/220 -> 0.1636363636 | F154: << refer to diagram above
B155: User's site ratio | E155: =E127/H119 -> 0
B157: Expected production | E157: =E154*H119 -> 6545.454545 | F157: tonnes
B159: Hide procssing stages | E159: Inclusion | F159: Energy/Water intensity
B160: Fleshing | E160: =Inputs!D39 -> Yes | F160: =1/3 -> 0.3333333333 | G160: << assumption. TBC
B161: Salting/Curing/Brining | E161: =Inputs!D40 -> Yes | F161: =1/3 -> 0.3333333333
B162: Pickling | E162: =Inputs!D41 -> Yes | F162: =1/3 -> 0.3333333333
B163: Tanning | E163: =Inputs!D42 -> No | F163: 0.5 | G163: << finishing stage of leather producing. Not typically done at the meat processing plant. See https://www.usitc.gov/publications/docs/pubs/industry_trade_summaries/pub3015.pdf
B164: Ratio | E164: =(E160="Yes")*F160+(E161="Yes")*F161+(E162="Yes")*F162+(E163="Yes")*F163 -> 1
B166: Ratio of actual user production vs expected
E168: =E127/E157*E164 -> 0
B170: This figure will be used as a multiplier to change the energy and water use of this facility to adjust the benchmark.
B172: Fleshing
B173: Salting/Curing/Brining
B174: Pickling
B178: Paunch Processing
B180: Typical amount of wet paunch | E180: 358 | F180: t/week | G180: Figure from Dinmore. See https://www.mla.com.au/contentassets/786e5a343b0148529c09398ec4212d1a/p.pip.0104_final_report.pdf
B181: Typical amount of wet paunch | E181: =E180*50 -> 17900 | F181: t/yr | G181: Based on Dinmore 50 5-day-working weeks per year
B182: Dinmore tHSCW/yr | E182: 181392 | F182: tHSCW/yr | G182: Based on Dinmore Environmental Performance Review (d/n 2762476)
B184: Typical ratio | E184: =E181/E182 -> 0.09868130899
B185: User's site ratio | E185: =I127/H119 -> 0.085
B187: Expected production | E187: =H119*E184 -> 3947.25236
B189: Paunch procssing stages | E189: Inclusion | F189: Energy/Water intensity
B190: Open and empty content | E190: =Inputs!K39 -> Yes | F190: 0.1 | G190: << assumption. TBC
B191: Paunch cleaning | E191: =Inputs!K40 -> Yes | F191: 0.2 | G191: Stages source from https://training.gov.au/TrainingComponentFiles/AMP/AMPA2152_R1.pdf
B192: Paunch trimming | E192: =Inputs!K41 -> Yes | F192: 0.2
B193: Dewatering | E193: =Inputs!K42 -> Yes | F193: 0.5
E194: =(E190="Yes")*F190+(E191="Yes")*F191+(E192="Yes")*F192+(E193="Yes")*F193 -> 1
B196: Ratio of actual user production vs expected
E198: =I127/E187*E194 -> 0.8613586592
B201: This figure will be used as a multiplier to change the energy and water use of this facility to adjust the benchmark.

Sheet Performance Pyramid (hidden)
B1: "For each benchmark category, place the site on the performance pyramid. Performance in each benchmark category determines the progression of the site up the performance pyramid for that category. That progression determines which improvement opportunities are screened: good performance screens out basic opportunities and vice-versa."
B3: Method
B5: 1) Using industry experience, establish a performance pyramid to categorise performance improvement opportunities
B6: 2) Categorise pyramid steps into performance bands and provide descriptions of performance improvement opportunities and next actions
A10: =B5 -> 1) Using industry experience, establish a performance pyramid to categorise performance improvement opportunities
A39: =B6 -> 2) Categorise pyramid steps into performance bands and provide descriptions of performance improvement opportunities and next actions
C42: Opportunity Library
C47: Opportunity Category | D47: Will this opportunity category display in the preliminary results if the performance of the relevant saving area is ...? | G47: What is the description of this Opportunity Category and what are some next actions you could consider?
D48: =TRANSPOSE(Performance_Descriptor_List) -> Good | E48: Fair | F48: Poor | G48: Thermal | H48: Electrical | I48: Water
C49: Improve housekeeping | D49: FALSE | E49: FALSE | F49: TRUE | G49: Housekeeping involves the development and application of standard operating procedures, maintenance programs and work instructions to maintain and improve the efficiency of energy-intensive equipment. It is often possible to identify five to ten per cent or more of savings that can be achieved simply by taking basic maintenance steps and properly commissioning control systems. Effective operations develop and utilise operating procedures and work instructions for energy efficiency, which are then integrated with overall system operating procedures to ensure that energy efficiency is optimised. Most housekeeping activities will provide better than 1 year payback and can be either outsourced or integrated into site maintenance programs. | H49: Housekeeping involves the development and application of standard operating procedures, maintenance programs and work instructions to maintain and improve the efficiency of energy-intensive equipment. It is often possible to identify five to ten per cent or more of savings that can be achieved simply by taking basic maintenance steps and properly commissioning control systems. Effective operations develop and utilise operating procedures and work instructions for energy efficiency, which are then integrated with overall system operating procedures to ensure that energy efficiency is optimised. Most housekeeping activities will provide better than 1 year payback and can be either outsourced or integrated into site maintenance programs. | I49: Housekeeping involves the development and application of standard operating procedures, maintenance programs and work instructions to maintain and improve the efficiency of water using equipment. It is often possible to identify five to ten per cent or more of savings that can be achieved simply by taking basic maintenance steps and properly commissioning control systems. Effective operations develop and utilise operating procedures and work instructions for energy efficiency, which are then integrated with overall system operating procedures to ensure that energy efficiency is optimised. Most housekeeping activities will provide better than 1 year payback and can be either outsourced or integrated into site maintenance programs.
C50: Install efficient equipment | D50: FALSE | E50: TRUE | F50: FALSE | G50: The next step in an effective thermal efficiency improvement plan is to assess the scope for improving the energy efficiency of key thermal equipment such as boilers and hot water systems. | H50: The next step in an effective electricity efficiency improvement plan is to assess the scope for improving the energy efficiency of key electrical equipment such as refrigeration systems, air compressors and lighting systems. | I50: The next step in an effective water efficency improvement program is to assess the scope for improving water use in key water consumption areas such hot and cold water used for cleaning in stockyards, slaughter rooms, boning rooms and rendering plants.
C51: Improve process technology | D51: FALSE | E51: TRUE | F51: FALSE | G51: Once the housekeeping and energy efficiency elements are under control the next step in the program is to improve thermal energy use at a process level. This involves reviewing thermal energy use in plant areas such as rendering, plant condensers, hot water heat exchangers, sterilisers using hot water and other processes utilising hot water. | H51: Once the housekeeping and energy efficiency elements are under control the next step in the program is to improve electrical energy use at a process level. This involves reviewing electrical energy use in plant areas such as improving insulation in chillers and freezers, enclosing cold areas to reduce heat gain, and use of plate freezers instead of blast freezers. | I51: Once the housekeeping and water efficiency elements are under control the next step in the program is to improve water use at a process level. This involves reviewing water use in areas such as the water recycle and reuse systems, stockyards, sterilisation and washdown.
C52: Assess cogeneration | D52: TRUE | E52: FALSE | F52: FALSE | G52: Cogeneration is the generation of both electricity and thermal energy on site. Red meat processing plants generally have high thermal loads. As such, many cogeneration systems are sized to meet the site's electrical load, with heat generated from the system used to offset part of the thermal demand originally supplied by existing boilers. | H52: Cogeneration is the generation of both electricity and thermal energy on site. Red meat processing plants generally have high thermal loads. As such, many cogeneration systems are sized to meet the site's electrical load, with heat generated from the system used to offset part of the thermal demand originally supplied by existing boilers. | I52: Australian red meat processing plants generate significant volumes of high strength wastewater as part of normal operations. In the treatment of wastewater, Covered Anaerobic Lagoons (CAL’s) have become popular in the red meat industry in a number of Australian plants where land is available. The three most common uses of recovered biogas typically include (1) consumption as energy-rich boiler fuel; (2) co-generation using a reciprocating gas engine or microturbine to generate electricity and hot water; and (3) flaring in a purpose-built flare.
C53: Assess renewables | D53: TRUE | E53: FALSE | F53: FALSE | G53: Renewable thermal energy sources such as biomass fuels and biogas generated from wastwater treatment plants are common sources of energy for red meat processing plants. Hot water generation by solar thermal systems is another alternative energy source for many red meat processing plants, particularly those located in high solar irradiance areas. | H53: Renewable electricity generation from solar photovoltaic (PV) is becoming cost effective for plants with high electricity prices. The size of a solar PV system is generally limited by the electrical demand during peak periods (in order to reduce exporting electricity to back to the grid) or the roof size available - whichever is smaller. Larger scale systems with electricity export and battery storage are also under consideration. | I53: In plants with high water costs or water supply restrictions, rainwater collection and water recycling may be an option to reduce external water supply use. The conservation and optimisation of water use may also be part of the sustainability plan for your plant.
C55: # of FALSE's before | D55: =MATCH(TRUE,D49:D53,0)-1 -> 3 | E55: =MATCH(TRUE,E49:E53,0)-1 -> 1 | F55: =MATCH(TRUE,F49:F53,0)-1 -> 0
C56: # of TRUE's | D56: =COUNTIF(D49:D53,TRUE) -> 2 | E56: =COUNTIF(E49:E53,TRUE) -> 2 | F56: =COUNTIF(F49:F53,TRUE) -> 1
C57: # of FALSE's after | D57: =COUNTA(Opportunity_Category)-D55-D56 -> 0 | E57: =COUNTA(Opportunity_Category)-E55-E56 -> 2 | F57: =COUNTA(Opportunity_Category)-F55-F56 -> 4
D59: =INDEX(Opportunity_Category,D55+1) -> Assess cogeneration | E59: =INDEX(Opportunity_Category,E55+1) -> Install efficient equipment | F59: =INDEX(Opportunity_Category,F55+1) -> Improve housekeeping | I59: =IF('Performance Pyramid'!D$56>(ROW(I59)-ROW('Performance Pyramid'!$D$59)),INDEX(Opportunity_Category,'Performance Pyramid'!D$55+1+ROW(I59)-ROW('Performance Pyramid'!$D$59)),"") -> Assess cogeneration | J59: =IF('Performance Pyramid'!E$56>(ROW(J59)-ROW('Performance Pyramid'!$D$59)),INDEX(Opportunity_Category,'Performance Pyramid'!E$55+1+ROW(J59)-ROW('Performance Pyramid'!$D$59)),"") -> Install efficient equipment | K59: =IF('Performance Pyramid'!F$56>(ROW(K59)-ROW('Performance Pyramid'!$D$59)),INDEX(Opportunity_Category,'Performance Pyramid'!F$55+1+ROW(K59)-ROW('Performance Pyramid'!$D$59)),"") -> Improve housekeeping
D60: =IF(D$56>(ROW(D60)-ROW($D$59)),INDEX(Opportunity_Category,D$55+1+ROW(D60)-ROW($D$59)),"") -> Assess renewables | E60: =IF(E$56>(ROW(E60)-ROW($D$59)),INDEX(Opportunity_Category,E$55+1+ROW(E60)-ROW($D$59)),"") -> Improve process technology | F60: =IF(F$56>(ROW(F60)-ROW($D$59)),INDEX(Opportunity_Category,F$55+1+ROW(F60)-ROW($D$59)),"") ->  | I60: =IF('Performance Pyramid'!D$56>(ROW(I60)-ROW('Performance Pyramid'!$D$59)),INDEX(Opportunity_Category,'Performance Pyramid'!D$55+1+ROW(I60)-ROW('Performance Pyramid'!$D$59)),"") -> Assess renewables | J60: =IF('Performance Pyramid'!E$56>(ROW(J60)-ROW('Performance Pyramid'!$D$59)),INDEX(Opportunity_Category,'Performance Pyramid'!E$55+1+ROW(J60)-ROW('Performance Pyramid'!$D$59)),"") -> Improve process technology | K60: =IF('Performance Pyramid'!F$56>(ROW(K60)-ROW('Performance Pyramid'!$D$59)),INDEX(Opportunity_Category,'Performance Pyramid'!F$55+1+ROW(K60)-ROW('Performance Pyramid'!$D$59)),"") -> 
I61: =IF('Performance Pyramid'!D$56>(ROW(I61)-ROW('Performance Pyramid'!$D$59)),INDEX(Opportunity_Category,'Performance Pyramid'!D$55+1+ROW(I61)-ROW('Performance Pyramid'!$D$59)),"") ->  | J61: =IF('Performance Pyramid'!E$56>(ROW(J61)-ROW('Performance Pyramid'!$D$59)),INDEX(Opportunity_Category,'Performance Pyramid'!E$55+1+ROW(J61)-ROW('Performance Pyramid'!$D$59)),"") ->  | K61: =IF('Performance Pyramid'!F$56>(ROW(K61)-ROW('Performance Pyramid'!$D$59)),INDEX(Opportunity_Category,'Performance Pyramid'!F$55+1+ROW(K61)-ROW('Performance Pyramid'!$D$59)),"") -> 

Sheet Opportunity Library (hidden)
B2: Quantify each improvement opportunity, first using default cost figures. Then, if user's cost data is available, modify savings and payback periods with these figures. Screen out opportunities that exceed the user's maximum payback threshold.
B4: Method
B6: 1) From literature review, import performance improvement opportunities
B7: 2) Categorise each according to performance pyramid
B8: 3) Identify area of saving (water, hot water, steam, electricity) and perform initial screening based on performance pyramid
B9: 4) Conduct further screening, based on the specifics of the opportunity
B10: 5) Quantify expected site savings (water, thermal, electricity, other) and typical payback period range
B11: 6) back-calculate saving metrics based on commodity rates (including modifying the payback period)
B12: 7) Conduct final screening for user's maximum payback period
U15: Lower spread | V15: -0.25
U16: Upper spread | V16: 0.25
A17: =B6 -> 1) From literature review, import performance improvement opportunities | C17: =B8 -> 3) Identify area of saving (water, hot water, steam, electricity) and perform initial screening based on performance pyramid | M17: =B9 -> 4) Conduct further screening, based on the specifics of the opportunity | Q17: =B10 -> 5) Quantify expected site savings (water, thermal, electricity, other) and typical payback period range | Y17: =B11 -> 6) back-calculate saving metrics based on commodity rates (including modifying the payback period) | AQ17: =B12 -> 7) Conduct final screening for user's maximum payback period
A18: =B7 -> 2) Categorise each according to performance pyramid | AG18: =IFERROR(AL23*V23,AL23*10) -> 46500
C19: area of saving | I19: Consider Opportunity? | M19: Questionnaire trigger(s) | Q19: Saving Metrics | AX19: Eco-efficiency manual for meat processing
C20: water | D20: thermal | E20: thermal | F20: elec | G20: emissions | I20: =Calculations!G199 -> Fair | J20: =Calculations!G197 -> Fair | K20: =Calculations!G198 -> Good | M20: Facility Check | O20: Production Output Check | Q20: % of total site usage saved | U20: typical payback (years) | X20: Other net saving as a multiplier of total commodity savings | AB20: back-calculated default saving ($ / yr) | AG20: back-calculated adjusted CAPEX | AH20: back-calculated actual saving ($ / yr) | AM20: adjusted payback (years) | AX20: https://www.ecoefficiencygroup.com.au/wp-content/uploads/2017/11/ecomeat_manual.pdf
A21: Category of Opportunity | B21: Opportunity Description | C21: Water | D21: Steam | E21: Water heating | F21: Electricity | G21: Emissions | H21: Wastewater | I21: water | J21: thermal | K21: elec | L21: overall | M21: What facility required? | N21: Has Facility? T/F | O21: Minimum tHSCW output required? | P21: Meets production requirement? T/F | Q21: thermal (site /w rendering) | R21: thermal (site w/o rendering) | S21: elec | T21: water | U21: lower | V21: mid | W21: upper | Y21: thermal | Z21: elec | AA21: water | AB21: thermal | AC21: elec | AD21: water | AE21: net other | AF21: Total | AH21: thermal | AI21: elec | AJ21: water | AK21: net other | AL21: Total | AM21: lower | AN21: mid | AO21: upper | AP21: Has zero savings? | AQ21: Passes the payback threshold? | AR21: Emissions | AU21: Present to user? T/F | AV21: Hyperlink to URL | AX21: Water case study summary | BD21: Meat Processing refrig case study
A22: =A21 -> Category of Opportunity | B22: =B21 -> Opportunity Description | C22: =$C$19&"-"&C21 -> area of saving-Water | D22: =$C$19&"-"&D21 -> area of saving-Steam | E22: area of saving-Water heating | F22: area of saving-Electricity | G22: area of saving-Emissions | H22: area of saving-Wastewater | I22: =$I$19&"-"&I21 -> Consider Opportunity?-water | J22: =$I$19&"-"&J21 -> Consider Opportunity?-thermal | K22: Consider Opportunity?-elec | L22: Consider Opportunity?-overall | M22: =$M$19&"-"&M21 -> Questionnaire trigger(s)-What facility required? | N22: =$M$19&"-"&N21 -> Questionnaire trigger(s)-Has Facility? T/F | O22: Questionnaire trigger(s)-Minimum tHSCW output required? | P22: Questionnaire trigger(s)-Meets production requirement? T/F | Q22: =$Q$20&"-"&Q21 -> % of total site usage saved-thermal (site /w rendering) | R22: =$Q$20&"-"&R21 -> % of total site usage saved-thermal (site w/o rendering) | S22: =$Q$20&"-"&S21 -> % of total site usage saved-elec | T22: =$Q$20&"-"&T21 -> % of total site usage saved-water | U22: =$U$20&"-"&U21 -> typical payback (years)-lower | V22: =$U$20&"-"&V21 -> typical payback (years)-mid | W22: =$U$20&"-"&W21 -> typical payback (years)-upper | X22: =X20 -> Other net saving as a multiplier of total commodity savings | Y22: back-calculated saving ( [GJ] / year )-thermal | Z22: back-calculated saving ( [kWh] / year )-elec | AA22: back-calculated saving ( [kL] / year )-water | AB22: =$AB$20&"-"&AB21 -> back-calculated default saving ($ / yr)-thermal | AC22: =$AB$20&"-"&AC21 -> back-calculated default saving ($ / yr)-elec | AD22: back-calculated default saving ($ / yr)-water | AE22: back-calculated default saving ($ / yr)-net other | AF22: back-calculated default saving ($ / yr)-Total | AG22: =AG20 -> back-calculated adjusted CAPEX | AH22: =$AH$20&"-"&AH21 -> back-calculated actual saving ($ / yr)-thermal | AI22: =$AH$20&"-"&AI21 -> back-calculated actual saving ($ / yr)-elec | AJ22: =$AH$20&"-"&AJ21 -> back-calculated actual saving ($ / yr)-water | AK22: =$AH$20&"-"&AK21 -> back-calculated actual saving ($ / yr)-net other | AL22: =$AH$20&"-"&AL21 -> back-calculated actual saving ($ / yr)-Total | AM22: =$AM$20&"-"&AM21 -> adjusted payback (years)-lower | AN22: =$AM$20&"-"&AN21 -> adjusted payback (years)-mid | AO22: =$AM$20&"-"&AO21 -> adjusted payback (years)-upper | AP22: =AP21 -> Has zero savings? | AQ22: =AQ21 -> Passes the payback threshold? | AR22: Scope 1 saving | AS22: Scope 2 saving | AT22: Total emissions saving | AU22: =AU21 -> Present to user? T/F | AV22: =AV21 -> Hyperlink to URL | AW22: New reference | AX22: https://www.ampc.com.au/2011/11/AMPC-Water-Efficiency-Projects | BD22: http://www.environment.nsw.gov.au/resources/business/120158-cs-BEC-young.pdf
A23: Improve process technology | B23: Centralised control of water supplies. If turning off individual water supplies on the production line at breaks is delayed by around five minutes each time, then centralised control of water supply could save up to 30 minutes of water flow in a production day (assuming six breaks per day). (Eco-Efficiency Manual for Meat Processing - section 2.2.2, pg. 26-27) | C23: yes | G23: yes | I23: =IF(C23="Yes",INDEX(Opportunity_Category_Display_Matrix,MATCH($A23,Opportunity_Category,0),MATCH(I$20,Performance_Descriptor_List,0)),"") -> TRUE | J23: =IF(OR(D23="Yes",E23="Yes"),INDEX(Opportunity_Category_Display_Matrix,MATCH($A23,Opportunity_Category,0),MATCH(J$20,Performance_Descriptor_List,0)),"") ->  | K23: =IF(F23="Yes",INDEX(Opportunity_Category_Display_Matrix,MATCH($A23,Opportunity_Category,0),MATCH(K$20,Performance_Descriptor_List,0)),"") ->  | L23: =IFERROR(OR(I23,J23,K23),FALSE) -> TRUE | M23: nil | N23: TRUE | O23: not applied | P23: TRUE | T23: 0.005 | U23: 3 | V23: 4 | W23: 5 | X23: 1 | Y23: =IFERROR(IF(Inputs!$D$29='Drop-downs'!$K$21,R23,Q23)*Calculations!$D$64,0)/1000 -> 0 | Z23: =IFERROR(S23*Calculations!$D$65,0) -> 0 | AA23: =IFERROR(T23*Calculations!$D$67,0) -> 3000 | AB23: =IFERROR(Y23*Calculations!$I$64,0) -> 0 | AC23: =IFERROR(Z23*Calculations!$I$65,0) -> 0 | AD23: =IFERROR(AA23*Calculations!$I$67,0) -> 11625 | AE23: =SUM(AH23:AJ23)*(X23-1) -> 0 | AF23: =SUM(AB23:AE23) -> 11625 | AG23: =IFERROR(AF23*V23,AF23*10) -> 46500 | AH23: =IFERROR(Y23*Calculations!$J$64,0) -> 0 | AI23: =IFERROR(Z23*Calculations!$J$65,0) -> 0 | AJ23: =IFERROR(AA23*Calculations!$J$67,0) -> 11625 | AK23: =SUM(AH23:AJ23)*(X23-1) -> 0 | AL23: =SUM(AH23:AK23) -> 11625 | AM23: =IFERROR(AN23*(1+$V$15),AN23) -> 3 | AN23: =IF(AG23<=0,0,AG23/AL23) -> 4 | AO23: =IFERROR(AN23*(1+$V$16),AN23) -> 5 | AP23: =AL23<=0 -> FALSE | AQ23: =IFERROR(AN23<=Inputs!$P$51,FALSE) -> TRUE | AR23: =IF($G23="yes",IFERROR(Y23/Calculations!$C$228*Calculations!$G$228,0),0) -> 0 | AS23: =IF($G23="yes",IFERROR(Z23/Calculations!$C$232*Calculations!$G$232,0),0) -> 0 | AT23: =AR23+AS23 -> 0 | AU23: =AND(L23,N23,P23,NOT(AP23),AQ23) -> TRUE | AV23: https://www.ecoefficiencygroup.com.au/wp-content/uploads/2017/11/ecomeat_manual.pdf
A24: Install efficient equipment | B24: Intermittent flow for viscera (bleed) table wash sprays. Some types of modern viscera tables (and bleed tables) incorporate systems that turn wash sprays on only as the table moves forward. However for older style tables water sprays may run continuously. In these situations, it may be possible to install on/off controls linked to sensors or a limiting switch so that the water flows intermittently instead of continuously. (Eco-Efficiency Manual for Meat Processing - section 2.2.9, pg. 31) | C24: yes | G24: yes | I24: TRUE | L24: TRUE | M24: nil | N24: TRUE | O24: not applied | P24: TRUE | T24: 0.03 | U24: 0.2 | V24: 0.3 | W24: 0.4 | X24: 1 | Y24: =IFERROR(IF(Inputs!$D$29='Drop-downs'!$K$21,R24,Q24)*Calculations!$D$64,0)/1000 -> 0 | Z24: =IFERROR(S24*Calculations!$D$65,0) -> 0 | AA24: =IFERROR(T24*Calculations!$D$67,0) -> 18000 | AB24: =IFERROR(Y24*Calculations!$I$64,0) -> 0 | AC24: =IFERROR(Z24*Calculations!$I$65,0) -> 0 | AD24: =IFERROR(AA24*Calculations!$I$67,0) -> 69750 | AE24: =SUM(AH24:AJ24)*(X24-1) -> 0 | AF24: =SUM(AB24:AE24) -> 69750 | AG24: =IFERROR(AF24*V24,AF24*10) -> 20925 | AH24: =IFERROR(Y24*Calculations!$J$64,0) -> 0 | AI24: =IFERROR(Z24*Calculations!$J$65,0) -> 0 | AJ24: =IFERROR(AA24*Calculations!$J$67,0) -> 69750 | AK24: 0 | AL24: 69750 | AM24: =IFERROR(AN24*(1+$V$15),AN24) -> 0.225 | AN24: =IF(AG24<=0,0,AG24/AL24) -> 0.3 | AO24: =IFERROR(AN24*(1+$V$16),AN24) -> 0.375 | AP24: =AL24<=0 -> FALSE | AQ24: =IFERROR(AN24<=Inputs!$P$51,FALSE) -> TRUE | AR24: =IF($G24="yes",IFERROR(Y24/Calculations!$C$228*Calculations!$G$228,0),0) -> 0 | AS24: =IF($G24="yes",IFERROR(Z24/Calculations!$C$232*Calculations!$G$232,0),0) -> 0 | AT24: =AR24+AS24 -> 0 | AU24: TRUE | AV24: https://www.ampc.com.au/2013/01/Reuse-of-water-in-Tripe-processing | AZ24: Reports - Review of abattoir water usage reduction, recycling and reuse (29%)
A25: Improve housekeeping | B25: Set and maintain minimum flow rates for viscera table wash sprays. If flow rates of water to viscera table wash sprays are found by trial to be excessive, reducing consumption by 20% is possible. The correct selection and maintenance of nozzles on the wash sprays can also have a bearing on the flow rate. (Eco-Efficiency Manual for Meat Processing - section 2.2.10, pg. 32) | C25: yes | G25: yes | I25: FALSE | L25: FALSE | M25: nil | N25: TRUE | O25: not applied | P25: TRUE | T25: 0.012 | U25: 0.4 | V25: 0.6 | W25: 1 | X25: 1 | Y25: =IFERROR(IF(Inputs!$D$29='Drop-downs'!$K$21,R25,Q25)*Calculations!$D$64,0)/1000 -> 0 | Z25: =IFERROR(S25*Calculations!$D$65,0) -> 0 | AA25: =IFERROR(T25*Calculations!$D$67,0) -> 7200 | AB25: =IFERROR(Y25*Calculations!$I$64,0) -> 0 | AC25: =IFERROR(Z25*Calculations!$I$65,0) -> 0 | AD25: =IFERROR(AA25*Calculations!$I$67,0) -> 27900 | AE25: 0 | AF25: 27900 | AG25: 16740 | AH25: =IFERROR(Y25*Calculations!$J$64,0) -> 0 | AI25: =IFERROR(Z25*Calculations!$J$65,0) -> 0 | AJ25: =IFERROR(AA25*Calculations!$J$67,0) -> 27900 | AK25: 0 | AL25: 27900 | AM25: 0.45 | AN25: 0.6 | AO25: 0.75 | AP25: FALSE | AQ25: =IFERROR(AN25<=Inputs!$P$51,FALSE) -> TRUE | AR25: =IF($G25="yes",IFERROR(Y25/Calculations!$C$228*Calculations!$G$228,0),0) -> 0 | AS25: =IF($G25="yes",IFERROR(Z25/Calculations!$C$232*Calculations!$G$232,0),0) -> 0 | AT25: 0 | AU25: FALSE | AV25: https://www.ecoefficiencygroup.com.au/wp-content/uploads/2017/11/ecomeat_manual.pdf | AZ25: Reports - Optimised Water Reduction Through Steam Sanitation Technology (29%)
A26: Improve process technology | B26: Flow control on continuous flow sterilisers (Eco-Efficiency Manual for Meat Processing - section 2.2.14, pg. 36-37) | C26: yes | G26: yes | I26: TRUE | L26: TRUE | M26: nil | N26: TRUE | O26: not applied | P26: TRUE | T26: 0.03 | U26: 0.2 | V26: 0.3 | W26: 1 | X26: 1 | Y26: =IFERROR(IF(Inputs!$D$29='Drop-downs'!$K$21,R26,Q26)*Calculations!$D$64,0)/1000 -> 0 | Z26: =IFERROR(S26*Calculations!$D$65,0) -> 0 | AA26: =IFERROR(T26*Calculations!$D$67,0) -> 18000 | AB26: =IFERROR(Y26*Calculations!$I$64,0) -> 0 | AC26: =IFERROR(Z26*Calculations!$I$65,0) -> 0 | AD26: =IFERROR(AA26*Calculations!$I$67,0) -> 69750 | AE26: 0 | AF26: 69750 | AG26: 20925 | AH26: =IFERROR(Y26*Calculations!$J$64,0) -> 0 | AI26: =IFERROR(Z26*Calculations!$J$65,0) -> 0 | AJ26: =IFERROR(AA26*Calculations!$J$67,0) -> 69750 | AK26: 0 | AL26: 69750 | AM26: 0.225 | AN26: 0.3 | AO26: 0.375 | AP26: FALSE | AQ26: =IFERROR(AN26<=Inputs!$P$51,FALSE) -> TRUE | AR26: =IF($G26="yes",IFERROR(Y26/Calculations!$C$228*Calculations!$G$228,0),0) -> 0 | AS26: =IF($G26="yes",IFERROR(Z26/Calculations!$C$232*Calculations!$G$232,0),0) -> 0 | AT26: 0 | AU26: TRUE | AV26: https://www.ecoefficiencygroup.com.au/wp-content/uploads/2017/11/ecomeat_manual.pdf | AZ26: Reports - Investigation of reuse of boning room effluent streams (25%)
A27: Improve process technology | B27: Replace pot-style sterilisers with spray sterilisers. | C27: yes | G27: yes | I27: TRUE | L27: TRUE | M27: nil | N27: TRUE | O27: not applied | P27: TRUE | T27: 0.005 | U27: 0.3 | V27: 0.5 | W27: 1 | X27: 1 | Y27: =IFERROR(IF(Inputs!$D$29='Drop-downs'!$K$21,R27,Q27)*Calculations!$D$64,0)/1000 -> 0 | Z27: =IFERROR(S27*Calculations!$D$65,0) -> 0 | AA27: =IFERROR(T27*Calculations!$D$67,0) -> 3000 | AB27: =IFERROR(Y27*Calculations!$I$64,0) -> 0 | AC27: =IFERROR(Z27*Calculations!$I$65,0) -> 0 | AD27: =IFERROR(AA27*Calculations!$I$67,0) -> 11625 | AE27: 0 | AF27: 11625 | AG27: 5812.5 | AH27: =IFERROR(Y27*Calculations!$J$64,0) -> 0 | AI27: =IFERROR(Z27*Calculations!$J$65,0) -> 0 | AJ27: =IFERROR(AA27*Calculations!$J$67,0) -> 11625 | AK27: 0 | AL27: 11625 | AM27: 0.375 | AN27: 0.5 | AO27: 0.625 | AP27: FALSE | AQ27: =IFERROR(AN27<=Inputs!$P$51,FALSE) -> TRUE | AR27: =IF($G27="yes",IFERROR(Y27/Calculations!$C$228*Calculations!$G$228,0),0) -> 0 | AS27: =IF($G27="yes",IFERROR(Z27/Calculations!$C$232*Calculations!$G$232,0),0) -> 0 | AT27: 0 | AU27: TRUE | AV27: https://www.ecoefficiencygroup.com.au/wp-content/uploads/2017/11/ecomeat_manual.pdf | AZ27: Reports - Facilitation of the Water, Energy Efficiency and Food Safety Program (25%)
A28: Improve housekeeping | B28: Sensor control of automatic carcase washing. Sensors that detect the presence of a carcase can avoid unnecessary water use. Sensor control could be expected to reduce water use by 30-50%. (Eco-Efficiency Manual for Meat Processing - section 2.2.18, pg. 39-40) | C28: yes | G28: yes | I28: FALSE | L28: FALSE | M28: nil | N28: TRUE | O28: not applied | P28: TRUE | T28: 0.008 | U28: 1 | V28: 1.5 | W28: 2 | X28: 1 | Y28: =IFERROR(IF(Inputs!$D$29='Drop-downs'!$K$21,R28,Q28)*Calculations!$D$64,0)/1000 -> 0 | Z28: =IFERROR(S28*Calculations!$D$65,0) -> 0 | AA28: =IFERROR(T28*Calculations!$D$67,0) -> 4800 | AB28: =IFERROR(Y28*Calculations!$I$64,0) -> 0 | AC28: =IFERROR(Z28*Calculations!$I$65,0) -> 0 | AD28: =IFERROR(AA28*Calculations!$I$67,0) -> 18600 | AE28: 0 | AF28: 18600 | AG28: 27900 | AH28: =IFERROR(Y28*Calculations!$J$64,0) -> 0 | AI28: =IFERROR(Z28*Calculations!$J$65,0) -> 0 | AJ28: =IFERROR(AA28*Calculations!$J$67,0) -> 18600 | AK28: 0 | AL28: 18600 | AM28: 1.125 | AN28: 1.5 | AO28: 1.875 | AP28: FALSE | AQ28: =IFERROR(AN28<=Inputs!$P$51,FALSE) -> TRUE | AR28: =IF($G28="yes",IFERROR(Y28/Calculations!$C$228*Calculations!$G$228,0),0) -> 0 | AS28: =IF($G28="yes",IFERROR(Z28/Calculations!$C$232*Calculations!$G$232,0),0) -> 0 | AT28: 0 | AU28: FALSE | AV28: https://www.ecoefficiencygroup.com.au/wp-content/uploads/2017/11/ecomeat_manual.pdf | AZ28: Reports - Water saving in the cleaning of carcase chillers (22%)
A29: Install efficient equipment | B29: Water sprays on splitting saws to reduce bone dust and reduce carcase washing. Fitting a water spray kit to a splitting saw would reduce water use for carcase washing by 50% compared with a full carcase wash. (Eco-Efficiency Manual for Meat Processing - section 2.2.19, pg. 41) | C29: yes | G29: yes | I29: TRUE | L29: TRUE | M29: nil | N29: TRUE | O29: not applied | P29: TRUE | T29: 0.02 | U29: 0.8 | V29: 1 | W29: 1.2 | X29: 1 | Y29: =IFERROR(IF(Inputs!$D$29='Drop-downs'!$K$21,R29,Q29)*Calculations!$D$64,0)/1000 -> 0 | Z29: =IFERROR(S29*Calculations!$D$65,0) -> 0 | AA29: =IFERROR(T29*Calculations!$D$67,0) -> 12000 | AB29: =IFERROR(Y29*Calculations!$I$64,0) -> 0 | AC29: =IFERROR(Z29*Calculations!$I$65,0) -> 0 | AD29: =IFERROR(AA29*Calculations!$I$67,0) -> 46500 | AE29: 0 | AF29: 46500 | AG29: 46500 | AH29: =IFERROR(Y29*Calculations!$J$64,0) -> 0 | AI29: =IFERROR(Z29*Calculations!$J$65,0) -> 0 | AJ29: =IFERROR(AA29*Calculations!$J$67,0) -> 46500 | AK29: 0 | AL29: 46500 | AM29: 0.75 | AN29: 1 | AO29: 1.25 | AP29: FALSE | AQ29: =IFERROR(AN29<=Inputs!$P$51,FALSE) -> TRUE | AR29: =IF($G29="yes",IFERROR(Y29/Calculations!$C$228*Calculations!$G$228,0),0) -> 0 | AS29: =IF($G29="yes",IFERROR(Z29/Calculations!$C$232*Calculations!$G$232,0),0) -> 0 | AT29: 0 | AU29: TRUE | AV29: https://www.ecoefficiencygroup.com.au/wp-content/uploads/2017/11/ecomeat_manual.pdf | AZ29: Reports - Facilitation of Water Reuse Projects 2012-13 (22%)
A30: Install efficient equipment | B30: On/off controls for cooling water on breaking saws. Water use to breaking saws can be reduced by 50% through the installation of an on/off switch. (Eco-Efficiency Manual for Meat Processing - section 2.2.20, pg. 41) | C30: yes | G30: yes | I30: TRUE | L30: TRUE | M30: nil | N30: TRUE | O30: not applied | P30: TRUE | T30: 0.0005 | U30: 3 | V30: 4 | W30: 5 | X30: 1 | Y30: =IFERROR(IF(Inputs!$D$29='Drop-downs'!$K$21,R30,Q30)*Calculations!$D$64,0)/1000 -> 0 | Z30: =IFERROR(S30*Calculations!$D$65,0) -> 0 | AA30: =IFERROR(T30*Calculations!$D$67,0) -> 300 | AB30: =IFERROR(Y30*Calculations!$I$64,0) -> 0 | AC30: =IFERROR(Z30*Calculations!$I$65,0) -> 0 | AD30: =IFERROR(AA30*Calculations!$I$67,0) -> 1162.5 | AE30: 0 | AF30: 1162.5 | AG30: 4650 | AH30: =IFERROR(Y30*Calculations!$J$64,0) -> 0 | AI30: =IFERROR(Z30*Calculations!$J$65,0) -> 0 | AJ30: =IFERROR(AA30*Calculations!$J$67,0) -> 1162.5 | AK30: 0 | AL30: 1162.5 | AM30: 3 | AN30: 4 | AO30: 5 | AP30: FALSE | AQ30: =IFERROR(AN30<=Inputs!$P$51,FALSE) -> TRUE | AR30: =IF($G30="yes",IFERROR(Y30/Calculations!$C$228*Calculations!$G$228,0),0) -> 0 | AS30: =IF($G30="yes",IFERROR(Z30/Calculations!$C$232*Calculations!$G$232,0),0) -> 0 | AT30: 0 | AU30: TRUE | AV30: https://www.ecoefficiencygroup.com.au/wp-content/uploads/2017/11/ecomeat_manual.pdf | AZ30: Reports - Facilitation of Water Reuse Projects (18%)
A31: Install efficient equipment | B31: Efficient water use in tripe and bible washing machines. Water use for tripe / bible washing can be reduced by 25% through better flow control or a more efficient machine. (Eco-Efficiency Manual for Meat Processing - section 2.2.24, pg. 44) | C31: yes | G31: yes | I31: TRUE | L31: TRUE | M31: nil | N31: TRUE | O31: not applied | P31: TRUE | T31: 0.013 | U31: 1 | V31: 1.5 | W31: 2 | X31: 1 | Y31: =IFERROR(IF(Inputs!$D$29='Drop-downs'!$K$21,R31,Q31)*Calculations!$D$64,0)/1000 -> 0 | Z31: =IFERROR(S31*Calculations!$D$65,0) -> 0 | AA31: =IFERROR(T31*Calculations!$D$67,0) -> 7800 | AB31: =IFERROR(Y31*Calculations!$I$64,0) -> 0 | AC31: =IFERROR(Z31*Calculations!$I$65,0) -> 0 | AD31: =IFERROR(AA31*Calculations!$I$67,0) -> 30225 | AE31: 0 | AF31: 30225 | AG31: 45337.5 | AH31: =IFERROR(Y31*Calculations!$J$64,0) -> 0 | AI31: =IFERROR(Z31*Calculations!$J$65,0) -> 0 | AJ31: =IFERROR(AA31*Calculations!$J$67,0) -> 30225 | AK31: 0 | AL31: 30225 | AM31: 1.125 | AN31: 1.5 | AO31: 1.875 | AP31: FALSE | AQ31: =IFERROR(AN31<=Inputs!$P$51,FALSE) -> TRUE | AR31: =IF($G31="yes",IFERROR(Y31/Calculations!$C$228*Calculations!$G$228,0),0) -> 0 | AS31: =IF($G31="yes",IFERROR(Z31/Calculations!$C$232*Calculations!$G$232,0),0) -> 0 | AT31: 0 | AU31: TRUE | AV31: https://www.ecoefficiencygroup.com.au/wp-content/uploads/2017/11/ecomeat_manual.pdf | AZ31: Reports - AMPC Water Efficiency Projects (18%)
A32: Install efficient equipment | B32: Water efficient gut washing systems (Eco-Efficiency Manual for Meat Processing - section 2.2.26, pg. 45) | C32: yes | G32: yes | I32: TRUE | L32: TRUE | M32: nil | N32: TRUE | O32: not applied | P32: TRUE | T32: 0.024 | U32: 0.5 | V32: 1 | W32: 1.5 | X32: 1 | Y32: =IFERROR(IF(Inputs!$D$29='Drop-downs'!$K$21,R32,Q32)*Calculations!$D$64,0)/1000 -> 0 | Z32: =IFERROR(S32*Calculations!$D$65,0) -> 0 | AA32: =IFERROR(T32*Calculations!$D$67,0) -> 14400 | AB32: =IFERROR(Y32*Calculations!$I$64,0) -> 0 | AC32: =IFERROR(Z32*Calculations!$I$65,0) -> 0 | AD32: =IFERROR(AA32*Calculations!$I$67,0) -> 55800 | AE32: 0 | AF32: 55800 | AG32: 55800 | AH32: =IFERROR(Y32*Calculations!$J$64,0) -> 0 | AI32: =IFERROR(Z32*Calculations!$J$65,0) -> 0 | AJ32: =IFERROR(AA32*Calculations!$J$67,0) -> 55800 | AK32: 0 | AL32: 55800 | AM32: 0.75 | AN32: 1 | AO32: 1.25 | AP32: FALSE | AQ32: =IFERROR(AN32<=Inputs!$P$51,FALSE) -> TRUE | AR32: =IF($G32="yes",IFERROR(Y32/Calculations!$C$228*Calculations!$G$228,0),0) -> 0 | AS32: =IF($G32="yes",IFERROR(Z32/Calculations!$C$232*Calculations!$G$232,0),0) -> 0 | AT32: 0 | AU32: TRUE | AV32: https://www.ecoefficiencygroup.com.au/wp-content/uploads/2017/11/ecomeat_manual.pdf | AZ32: Reports - Optimising integrated water reuse and waste heat recovery in rendering plants and abattoirs (18%)
A33: Install efficient equipment | B33: Maximise condensate recovery in steam distribution systems. Improving condensate recovery reduces the amount of water used as boiler feed, and reduces chemicals use due to the reduced amount of boiler feed water requiring pre-treatment. (Eco-Efficiency Manual for Meat Processing - section 2.2.36, pg. 52-53) | C33: yes | G33: yes | I33: TRUE | L33: TRUE | M33: nil | N33: TRUE | O33: not applied | P33: TRUE | T33: 0.02 | U33: 0.25 | V33: 0.5 | W33: 1 | X33: 1 | Y33: =IFERROR(IF(Inputs!$D$29='Drop-downs'!$K$21,R33,Q33)*Calculations!$D$64,0)/1000 -> 0 | Z33: =IFERROR(S33*Calculations!$D$65,0) -> 0 | AA33: =IFERROR(T33*Calculations!$D$67,0) -> 12000 | AB33: =IFERROR(Y33*Calculations!$I$64,0) -> 0 | AC33: =IFERROR(Z33*Calculations!$I$65,0) -> 0 | AD33: =IFERROR(AA33*Calculations!$I$67,0) -> 46500 | AE33: 0 | AF33: 46500 | AG33: 23250 | AH33: =IFERROR(Y33*Calculations!$J$64,0) -> 0 | AI33: =IFERROR(Z33*Calculations!$J$65,0) -> 0 | AJ33: =IFERROR(AA33*Calculations!$J$67,0) -> 46500 | AK33: 0 | AL33: 46500 | AM33: 0.375 | AN33: 0.5 | AO33: 0.625 | AP33: FALSE | AQ33: =IFERROR(AN33<=Inputs!$P$51,FALSE) -> TRUE | AR33: =IF($G33="yes",IFERROR(Y33/Calculations!$C$228*Calculations!$G$228,0),0) -> 0 | AS33: =IF($G33="yes",IFERROR(Z33/Calculations!$C$232*Calculations!$G$232,0),0) -> 0 | AT33: 0 | AU33: TRUE | AV33: https://www.ecoefficiencygroup.com.au/wp-content/uploads/2017/11/ecomeat_manual.pdf | AZ33: Reports - Heat Recovery From Refrigeration Plant (18%)
A34: Install efficient equipment | B34: Conductivity controlled blowdown on cooling towers. For a typical plant that has continuous blowdown, cooling water makeup could be reduced by around 50% by installing automatic blowdown controls. (Eco-Efficiency Manual for Meat Processing - section 2.2.37, pg. 53) | C34: yes | G34: yes | I34: TRUE | L34: TRUE | M34: nil | N34: TRUE | O34: not applied | P34: TRUE | T34: 0.005 | U34: 0.25 | V34: 0.5 | W34: 1 | X34: 1 | Y34: =IFERROR(IF(Inputs!$D$29='Drop-downs'!$K$21,R34,Q34)*Calculations!$D$64,0)/1000 -> 0 | Z34: =IFERROR(S34*Calculations!$D$65,0) -> 0 | AA34: =IFERROR(T34*Calculations!$D$67,0) -> 3000 | AB34: =IFERROR(Y34*Calculations!$I$64,0) -> 0 | AC34: =IFERROR(Z34*Calculations!$I$65,0) -> 0 | AD34: =IFERROR(AA34*Calculations!$I$67,0) -> 11625 | AE34: 0 | AF34: 11625 | AG34: 5812.5 | AH34: =IFERROR(Y34*Calculations!$J$64,0) -> 0 | AI34: =IFERROR(Z34*Calculations!$J$65,0) -> 0 | AJ34: =IFERROR(AA34*Calculations!$J$67,0) -> 11625 | AK34: 0 | AL34: 11625 | AM34: 0.375 | AN34: 0.5 | AO34: 0.625 | AP34: FALSE | AQ34: =IFERROR(AN34<=Inputs!$P$51,FALSE) -> TRUE | AR34: =IF($G34="yes",IFERROR(Y34/Calculations!$C$228*Calculations!$G$228,0),0) -> 0 | AS34: =IF($G34="yes",IFERROR(Z34/Calculations!$C$232*Calculations!$G$232,0),0) -> 0 | AT34: 0 | AU34: TRUE | AV34: https://www.ecoefficiencygroup.com.au/wp-content/uploads/2017/11/ecomeat_manual.pdf | AZ34: Reports - Economic Analysis of Demineralisation (14%)
A35: Install efficient equipment | B35: Fitting efficient spray nozzles. This opportunity is based on assuming that 55% of total water use is related to hose use, and that a conservative 10% reduction in water use can be achieved from the improved selection and maintenance of spray nozzles. (Eco-Efficiency Manual for Meat Processing - section 2.2.1, pg. 25-26) | C35: yes | G35: yes | I35: TRUE | L35: TRUE | M35: nil | N35: TRUE | O35: not applied | P35: TRUE | T35: 0.06 | U35: 1 | V35: 1.5 | W35: 2 | X35: 1 | Y35: =IFERROR(IF(Inputs!$D$29='Drop-downs'!$K$21,R35,Q35)*Calculations!$D$64,0)/1000 -> 0 | Z35: =IFERROR(S35*Calculations!$D$65,0) -> 0 | AA35: =IFERROR(T35*Calculations!$D$67,0) -> 36000 | AB35: =IFERROR(Y35*Calculations!$I$64,0) -> 0 | AC35: =IFERROR(Z35*Calculations!$I$65,0) -> 0 | AD35: =IFERROR(AA35*Calculations!$I$67,0) -> 139500 | AE35: 0 | AF35: 139500 | AG35: 209250 | AH35: =IFERROR(Y35*Calculations!$J$64,0) -> 0 | AI35: =IFERROR(Z35*Calculations!$J$65,0) -> 0 | AJ35: =IFERROR(AA35*Calculations!$J$67,0) -> 139500 | AK35: 0 | AL35: 139500 | AM35: 1.125 | AN35: 1.5 | AO35: 1.875 | AP35: FALSE | AQ35: =IFERROR(AN35<=Inputs!$P$51,FALSE) -> TRUE | AR35: =IF($G35="yes",IFERROR(Y35/Calculations!$C$228*Calculations!$G$228,0),0) -> 0 | AS35: =IF($G35="yes",IFERROR(Z35/Calculations!$C$232*Calculations!$G$232,0),0) -> 0 | AT35: 0 | AU35: TRUE | AV35: https://www.ecoefficiencygroup.com.au/wp-content/uploads/2017/11/ecomeat_manual.pdf | AZ35: Reports - Assessing the Effectiveness of a Carcase Hot Water Decontamination Cabinet in Small Stock Processing (14%)
A36: Install efficient equipment | B36: Efficient continuous flow sterilisers (Eco-Efficiency Manual for Meat Processing - section 2.2.13, pg. 33) | C36: yes | G36: yes | I36: TRUE | L36: TRUE | M36: nil | N36: TRUE | O36: not applied | P36: TRUE | T36: 0.042 | U36: 0.5 | V36: 1 | W36: 1.5 | X36: 1 | Y36: =IFERROR(IF(Inputs!$D$29='Drop-downs'!$K$21,R36,Q36)*Calculations!$D$64,0)/1000 -> 0 | Z36: =IFERROR(S36*Calculations!$D$65,0) -> 0 | AA36: =IFERROR(T36*Calculations!$D$67,0) -> 25200 | AB36: =IFERROR(Y36*Calculations!$I$64,0) -> 0 | AC36: =IFERROR(Z36*Calculations!$I$65,0) -> 0 | AD36: =IFERROR(AA36*Calculations!$I$67,0) -> 97650 | AE36: 0 | AF36: 97650 | AG36: 97650 | AH36: =IFERROR(Y36*Calculations!$J$64,0) -> 0 | AI36: =IFERROR(Z36*Calculations!$J$65,0) -> 0 | AJ36: =IFERROR(AA36*Calculations!$J$67,0) -> 97650 | AK36: 0 | AL36: 97650 | AM36: 0.75 | AN36: 1 | AO36: 1.25 | AP36: FALSE | AQ36: =IFERROR(AN36<=Inputs!$P$51,FALSE) -> TRUE | AR36: =IF($G36="yes",IFERROR(Y36/Calculations!$C$228*Calculations!$G$228,0),0) -> 0 | AS36: =IF($G36="yes",IFERROR(Z36/Calculations!$C$232*Calculations!$G$232,0),0) -> 0 | AT36: 0 | AU36: TRUE | AV36: https://www.ecoefficiencygroup.com.au/wp-content/uploads/2017/11/ecomeat_manual.pdf | AZ36: Reports - Water Saving in the Routine Cleaning of Carcase Chillers (14%)
A37: Install efficient equipment | B37: Automatic spray washer for edible offal. Automatic spray washers for offal washing can reduce water use for offal washing by around 50%. | C37: yes | G37: yes | I37: TRUE | L37: TRUE | M37: nil | N37: TRUE | O37: not applied | P37: TRUE | T37: 0.015 | U37: 5 | V37: 6 | W37: 7 | X37: 1 | Y37: =IFERROR(IF(Inputs!$D$29='Drop-downs'!$K$21,R37,Q37)*Calculations!$D$64,0)/1000 -> 0 | Z37: =IFERROR(S37*Calculations!$D$65,0) -> 0 | AA37: =IFERROR(T37*Calculations!$D$67,0) -> 9000 | AB37: =IFERROR(Y37*Calculations!$I$64,0) -> 0 | AC37: =IFERROR(Z37*Calculations!$I$65,0) -> 0 | AD37: =IFERROR(AA37*Calculations!$I$67,0) -> 34875 | AE37: 0 | AF37: 34875 | AG37: 209250 | AH37: =IFERROR(Y37*Calculations!$J$64,0) -> 0 | AI37: =IFERROR(Z37*Calculations!$J$65,0) -> 0 | AJ37: =IFERROR(AA37*Calculations!$J$67,0) -> 34875 | AK37: 0 | AL37: 34875 | AM37: 4.5 | AN37: 6 | AO37: 7.5 | AP37: FALSE | AQ37: =IFERROR(AN37<=Inputs!$P$51,FALSE) -> TRUE | AR37: =IF($G37="yes",IFERROR(Y37/Calculations!$C$228*Calculations!$G$228,0),0) -> 0 | AS37: =IF($G37="yes",IFERROR(Z37/Calculations!$C$232*Calculations!$G$232,0),0) -> 0 | AT37: 0 | AU37: TRUE | AV37: https://www.ecoefficiencygroup.com.au/wp-content/uploads/2017/11/ecomeat_manual.pdf | AZ37: Reports - Water collection and data analysis (14%)
A38: Install efficient equipment | B38: Automatic washers for tubs, cutting boards and trays. An automatic washing machine used for washing tubs, cutting boards and trays, can reduce water use by up to 95%. (Eco-Efficiency Manual for Meat Processing - section 2.2.32, pg. 50) | C38: yes | G38: yes | I38: TRUE | L38: TRUE | M38: nil | N38: TRUE | O38: not applied | P38: TRUE | T38: 0.03 | U38: 1 | V38: 1.5 | W38: 2 | X38: 1 | Y38: =IFERROR(IF(Inputs!$D$29='Drop-downs'!$K$21,R38,Q38)*Calculations!$D$64,0)/1000 -> 0 | Z38: =IFERROR(S38*Calculations!$D$65,0) -> 0 | AA38: =IFERROR(T38*Calculations!$D$67,0) -> 18000 | AB38: =IFERROR(Y38*Calculations!$I$64,0) -> 0 | AC38: =IFERROR(Z38*Calculations!$I$65,0) -> 0 | AD38: =IFERROR(AA38*Calculations!$I$67,0) -> 69750 | AE38: 0 | AF38: 69750 | AG38: 104625 | AH38: =IFERROR(Y38*Calculations!$J$64,0) -> 0 | AI38: =IFERROR(Z38*Calculations!$J$65,0) -> 0 | AJ38: =IFERROR(AA38*Calculations!$J$67,0) -> 69750 | AK38: 0 | AL38: 69750 | AM38: 1.125 | AN38: 1.5 | AO38: 1.875 | AP38: FALSE | AQ38: =IFERROR(AN38<=Inputs!$P$51,FALSE) -> TRUE | AR38: =IF($G38="yes",IFERROR(Y38/Calculations!$C$228*Calculations!$G$228,0),0) -> 0 | AS38: =IF($G38="yes",IFERROR(Z38/Calculations!$C$232*Calculations!$G$232,0),0) -> 0 | AT38: 0 | AU38: TRUE | AV38: https://www.ecoefficiencygroup.com.au/wp-content/uploads/2017/11/ecomeat_manual.pdf | AZ38: Reports - Beef Spinal Cord Removal Stage 2 Process Risk and Benefits (11%)
A39: Install efficient equipment | B39: Floor cleaning machines for large areas (Eco-Efficiency Manual for Meat Processing - section 2.2.33, pg. 50) | C39: yes | G39: yes | I39: TRUE | L39: TRUE | M39: nil | N39: TRUE | O39: not applied | P39: TRUE | T39: 0.01 | U39: 2 | V39: 3 | W39: 5 | X39: 1 | Y39: =IFERROR(IF(Inputs!$D$29='Drop-downs'!$K$21,R39,Q39)*Calculations!$D$64,0)/1000 -> 0 | Z39: =IFERROR(S39*Calculations!$D$65,0) -> 0 | AA39: =IFERROR(T39*Calculations!$D$67,0) -> 6000 | AB39: =IFERROR(Y39*Calculations!$I$64,0) -> 0 | AC39: =IFERROR(Z39*Calculations!$I$65,0) -> 0 | AD39: =IFERROR(AA39*Calculations!$I$67,0) -> 23250 | AE39: 0 | AF39: 23250 | AG39: 69750 | AH39: =IFERROR(Y39*Calculations!$J$64,0) -> 0 | AI39: =IFERROR(Z39*Calculations!$J$65,0) -> 0 | AJ39: =IFERROR(AA39*Calculations!$J$67,0) -> 23250 | AK39: 0 | AL39: 23250 | AM39: 2.25 | AN39: 3 | AO39: 3.75 | AP39: FALSE | AQ39: =IFERROR(AN39<=Inputs!$P$51,FALSE) -> TRUE | AR39: =IF($G39="yes",IFERROR(Y39/Calculations!$C$228*Calculations!$G$228,0),0) -> 0 | AS39: =IF($G39="yes",IFERROR(Z39/Calculations!$C$232*Calculations!$G$232,0),0) -> 0 | AT39: 0 | AU39: TRUE | AV39: https://www.ecoefficiencygroup.com.au/wp-content/uploads/2017/11/ecomeat_manual.pdf | AZ39: Reports - Improved Abattoir Hygienic Design (11%)
A40: Install efficient equipment | B40: Rainwater harvesting. For those plants in urban areas that purchase municipal treated water from local councils or water boards, some savings can be made by supplementing water supplies with rainwater collected from roof surfaces. (Eco-Efficiency Manual for Meat Processing - section 2.4.1, pg. 56) | C40: yes | G40: yes | I40: TRUE | L40: TRUE | M40: nil | N40: TRUE | O40: not applied | P40: TRUE | T40: 0.03287671233 | U40: 1 | V40: 2 | W40: 3 | X40: 1 | Y40: =IFERROR(IF(Inputs!$D$29='Drop-downs'!$K$21,R40,Q40)*Calculations!$D$64,0)/1000 -> 0 | Z40: =IFERROR(S40*Calculations!$D$65,0) -> 0 | AA40: =IFERROR(T40*Calculations!$D$67,0) -> 19726.0274 | AB40: =IFERROR(Y40*Calculations!$I$64,0) -> 0 | AC40: =IFERROR(Z40*Calculations!$I$65,0) -> 0 | AD40: =IFERROR(AA40*Calculations!$I$67,0) -> 76438.35616 | AE40: 0 | AF40: 76438.35616 | AG40: 152876.7123 | AH40: =IFERROR(Y40*Calculations!$J$64,0) -> 0 | AI40: =IFERROR(Z40*Calculations!$J$65,0) -> 0 | AJ40: =IFERROR(AA40*Calculations!$J$67,0) -> 76438.35616 | AK40: 0 | AL40: 76438.35616 | AM40: 1.5 | AN40: 2 | AO40: 2.5 | AP40: FALSE | AQ40: =IFERROR(AN40<=Inputs!$P$51,FALSE) -> TRUE | AR40: =IF($G40="yes",IFERROR(Y40/Calculations!$C$228*Calculations!$G$228,0),0) -> 0 | AS40: =IF($G40="yes",IFERROR(Z40/Calculations!$C$232*Calculations!$G$232,0),0) -> 0 | AT40: 0 | AU40: TRUE | AV40: https://www.ecoefficiencygroup.com.au/wp-content/uploads/2017/11/ecomeat_manual.pdf | AZ40: Reports - Wingham Chiller Cleaning (11%)
A41: Install efficient equipment | B41: High-pressure water ring main for cleaning. This opportunity assumes that pressurised water could be used for 75% of end-of-day plant cleaning, with a conservative reduction in water use of 40%. There would also be energy savings as about 40% of the water used for cleaning is hot. (Eco-Efficiency Manual for Meat Processing - section 2.2.31, pg. 49) | C41: yes | G41: yes | I41: TRUE | L41: TRUE | M41: nil | N41: TRUE | O41: not applied | P41: TRUE | S41: 0.01 | T41: 0.05 | U41: 2 | V41: 3 | W41: 4 | X41: 1 | Y41: =IFERROR(IF(Inputs!$D$29='Drop-downs'!$K$21,R41,Q41)*Calculations!$D$64,0)/1000 -> 0 | Z41: =IFERROR(S41*Calculations!$D$65,0) -> 140000 | AA41: =IFERROR(T41*Calculations!$D$67,0) -> 30000 | AB41: =IFERROR(Y41*Calculations!$I$64,0) -> 0 | AC41: =IFERROR(Z41*Calculations!$I$65,0) -> 21500 | AD41: =IFERROR(AA41*Calculations!$I$67,0) -> 116250 | AE41: 0 | AF41: 137750 | AG41: 413250 | AH41: =IFERROR(Y41*Calculations!$J$64,0) -> 0 | AI41: =IFERROR(Z41*Calculations!$J$65,0) -> 21500 | AJ41: =IFERROR(AA41*Calculations!$J$67,0) -> 116250 | AK41: 0 | AL41: 137750 | AM41: 2.25 | AN41: 3 | AO41: 3.75 | AP41: FALSE | AQ41: =IFERROR(AN41<=Inputs!$P$51,FALSE) -> TRUE | AR41: =IF($G41="yes",IFERROR(Y41/Calculations!$C$228*Calculations!$G$228,0),0) -> 0 | AS41: =IF($G41="yes",IFERROR(Z41/Calculations!$C$232*Calculations!$G$232,0),0) -> 137.2 | AT41: 137.2 | AU41: TRUE | AV41: https://www.ecoefficiencygroup.com.au/wp-content/uploads/2017/11/ecomeat_manual.pdf | AZ41: Reports - Tripe Wash Water Reuse in Beef Processing (11%)
A42: Install efficient equipment | B42: Install a heat recovery system on the air compressor oil cooling circuit to produce hot water suitable for process cleaning (temperatures up to 70 degrees C). This opportunity may not be applicable if the plant already has enough hot water or there is insufficient hot water storage. | D42: yes | E42: yes | G42: yes | J42: TRUE | L42: TRUE | M42: nil | N42: TRUE | O42: not applied | P42: TRUE | Q42: 0.01 | R42: 0.01 | S42: 0 | U42: 2 | V42: 3 | W42: 4 | X42: 1 | Y42: =IFERROR(IF(Inputs!$D$29='Drop-downs'!$K$21,R42,Q42)*Calculations!$D$64,0)/1000 -> 1950 | Z42: =IFERROR(S42*Calculations!$D$65,0) -> 0 | AA42: =IFERROR(T42*Calculations!$D$67,0) -> 0 | AB42: =IFERROR(Y42*Calculations!$I$64,0) -> 2480 | AC42: =IFERROR(Z42*Calculations!$I$65,0) -> 0 | AD42: =IFERROR(AA42*Calculations!$I$67,0) -> 0 | AE42: 0 | AF42: 2480 | AG42: 7440 | AH42: =IFERROR(Y42*Calculations!$J$64,0) -> 2480 | AI42: =IFERROR(Z42*Calculations!$J$65,0) -> 0 | AJ42: =IFERROR(AA42*Calculations!$J$67,0) -> 0 | AK42: 0 | AL42: 2480 | AM42: 2.25 | AN42: 3 | AO42: 3.75 | AP42: FALSE | AQ42: =IFERROR(AN42<=Inputs!$P$51,FALSE) -> TRUE | AR42: =IF($G42="yes",IFERROR(Y42/Calculations!$C$228*Calculations!$G$228,0),0) -> 100.4835 | AS42: =IF($G42="yes",IFERROR(Z42/Calculations!$C$232*Calculations!$G$232,0),0) -> 0 | AT42: 100.4835 | AU42: TRUE | AZ42: Reports - Water Reuse in the Meat Industry - Opportunities and Issues (11%)
A43: Install efficient equipment | B43: Install a condensing economiser on one or more boilers. This project may be feasible if the site needs to generate additional hot water for the steam or hot water boiler. There may be a need to install additional hot water storage to capture the hot water generated from the condensing economiser. | D43: yes | E43: yes | G43: yes | J43: TRUE | L43: TRUE | M43: nil | N43: TRUE | O43: not applied | P43: TRUE | Q43: 0.05 | R43: 0.07 | S43: 0 | U43: 3 | V43: 4 | W43: 5 | X43: 1 | Y43: =IFERROR(IF(Inputs!$D$29='Drop-downs'!$K$21,R43,Q43)*Calculations!$D$64,0)/1000 -> 9750 | Z43: =IFERROR(S43*Calculations!$D$65,0) -> 0 | AA43: =IFERROR(T43*Calculations!$D$67,0) -> 0 | AB43: =IFERROR(Y43*Calculations!$I$64,0) -> 12400 | AC43: =IFERROR(Z43*Calculations!$I$65,0) -> 0 | AD43: =IFERROR(AA43*Calculations!$I$67,0) -> 0 | AE43: 0 | AF43: 12400 | AG43: 49600 | AH43: =IFERROR(Y43*Calculations!$J$64,0) -> 12400 | AI43: =IFERROR(Z43*Calculations!$J$65,0) -> 0 | AJ43: =IFERROR(AA43*Calculations!$J$67,0) -> 0 | AK43: 0 | AL43: 12400 | AM43: 3 | AN43: 4 | AO43: 5 | AP43: FALSE | AQ43: =IFERROR(AN43<=Inputs!$P$51,FALSE) -> TRUE | AR43: =IF($G43="yes",IFERROR(Y43/Calculations!$C$228*Calculations!$G$228,0),0) -> 502.4175 | AS43: =IF($G43="yes",IFERROR(Z43/Calculations!$C$232*Calculations!$G$232,0),0) -> 0 | AT43: 502.4175 | AU43: TRUE | AV43: https://www.sustainability.vic.gov.au/-/media/SV/Publications/Business/Efficient-business-operations/Energy-efficiency-for-business/Energy-efficiency-best-practice-guidelines/SRSB-BPG-Heating-Manual-Mar-2015.pdf?la=en | AZ43: Australian Meat Processing - Networked, Ethical, Sustainable & Intelligent - Australian Meat Processing - Networked, Ethical, Sustainable & Intelligent (7%)
A44: Install efficient equipment | B44: Upgrade boiler controls with oxygen trim control. To check boiler performance, test the oxygen levels in the flue gases at low, medium and high loads. If the oxygen readings are above 5% for high loads and/or over 10% for low loads consider oxygen trim control. | D44: yes | E44: yes | G44: yes | J44: TRUE | L44: TRUE | M44: nil | N44: TRUE | O44: not applied | P44: TRUE | Q44: 0.01 | R44: 0.015 | S44: 0 | U44: 2.5 | V44: 4 | W44: 3.5 | X44: 1 | Y44: =IFERROR(IF(Inputs!$D$29='Drop-downs'!$K$21,R44,Q44)*Calculations!$D$64,0)/1000 -> 1950 | Z44: =IFERROR(S44*Calculations!$D$65,0) -> 0 | AA44: =IFERROR(T44*Calculations!$D$67,0) -> 0 | AB44: =IFERROR(Y44*Calculations!$I$64,0) -> 2480 | AC44: =IFERROR(Z44*Calculations!$I$65,0) -> 0 | AD44: =IFERROR(AA44*Calculations!$I$67,0) -> 0 | AE44: 0 | AF44: 2480 | AG44: 9920 | AH44: =IFERROR(Y44*Calculations!$J$64,0) -> 2480 | AI44: =IFERROR(Z44*Calculations!$J$65,0) -> 0 | AJ44: =IFERROR(AA44*Calculations!$J$67,0) -> 0 | AK44: 0 | AL44: 2480 | AM44: 3 | AN44: 4 | AO44: 5 | AP44: FALSE | AQ44: =IFERROR(AN44<=Inputs!$P$51,FALSE) -> TRUE | AR44: =IF($G44="yes",IFERROR(Y44/Calculations!$C$228*Calculations!$G$228,0),0) -> 100.4835 | AS44: =IF($G44="yes",IFERROR(Z44/Calculations!$C$232*Calculations!$G$232,0),0) -> 0 | AT44: 100.4835 | AU44: TRUE | AV44: https://www.sustainability.vic.gov.au/-/media/SV/Publications/Business/Efficient-business-operations/Energy-efficiency-for-business/Energy-efficiency-best-practice-guidelines/SRSB-BPG-Heating-Manual-Mar-2015.pdf?la=en | AZ44: Reports - Economic and Technical Potential for Cogeneration in Industry (7%)
A45: Install efficient equipment | B45: Install boiler blowdown heat recovery Assess how much blowdown is being sent to drain based on total dissolved solids (TDS) levels and the TDS level in the feedwater. | D45: yes | E45: yes | G45: yes | J45: TRUE | L45: TRUE | M45: nil | N45: TRUE | O45: not applied | P45: TRUE | Q45: 0.005 | R45: 0.01 | S45: 0 | U45: 2 | V45: 4 | W45: 4 | X45: 1 | Y45: =IFERROR(IF(Inputs!$D$29='Drop-downs'!$K$21,R45,Q45)*Calculations!$D$64,0)/1000 -> 975 | Z45: =IFERROR(S45*Calculations!$D$65,0) -> 0 | AA45: =IFERROR(T45*Calculations!$D$67,0) -> 0 | AB45: =IFERROR(Y45*Calculations!$I$64,0) -> 1240 | AC45: =IFERROR(Z45*Calculations!$I$65,0) -> 0 | AD45: =IFERROR(AA45*Calculations!$I$67,0) -> 0 | AE45: 0 | AF45: 1240 | AG45: 4960 | AH45: =IFERROR(Y45*Calculations!$J$64,0) -> 1240 | AI45: =IFERROR(Z45*Calculations!$J$65,0) -> 0 | AJ45: =IFERROR(AA45*Calculations!$J$67,0) -> 0 | AK45: 0 | AL45: 1240 | AM45: 3 | AN45: 4 | AO45: 5 | AP45: FALSE | AQ45: =IFERROR(AN45<=Inputs!$P$51,FALSE) -> TRUE | AR45: =IF($G45="yes",IFERROR(Y45/Calculations!$C$228*Calculations!$G$228,0),0) -> 50.24175 | AS45: =IF($G45="yes",IFERROR(Z45/Calculations!$C$232*Calculations!$G$232,0),0) -> 0 | AT45: 50.24175 | AU45: TRUE | AV45: https://www.sustainability.vic.gov.au/-/media/SV/Publications/Business/Efficient-business-operations/Energy-efficiency-for-business/Energy-efficiency-best-practice-guidelines/SRSB-BPG-Heating-Manual-Mar-2015.pdf?la=en | AZ45: Reports - Innovation and Energy Management and Reduction (7%)
A46: Install efficient equipment | B46: Install additional hot water storage if clean hot water is being sent to drain after heat recovery from the rendering plant. | D46: yes | E46: yes | G46: yes | J46: TRUE | L46: TRUE | M46: Any rendering | N46: =NOT(Inputs!$D$29='Drop-downs'!$K$21) -> TRUE | O46: not applied | P46: TRUE | Q46: 0.005 | R46: 0.005 | S46: 0 | U46: 1 | V46: 2 | W46: 3 | X46: 1 | Y46: =IFERROR(IF(Inputs!$D$29='Drop-downs'!$K$21,R46,Q46)*Calculations!$D$64,0)/1000 -> 975 | Z46: =IFERROR(S46*Calculations!$D$65,0) -> 0 | AA46: =IFERROR(T46*Calculations!$D$67,0) -> 0 | AB46: =IFERROR(Y46*Calculations!$I$64,0) -> 1240 | AC46: =IFERROR(Z46*Calculations!$I$65,0) -> 0 | AD46: =IFERROR(AA46*Calculations!$I$67,0) -> 0 | AE46: 0 | AF46: 1240 | AG46: 2480 | AH46: =IFERROR(Y46*Calculations!$J$64,0) -> 1240 | AI46: =IFERROR(Z46*Calculations!$J$65,0) -> 0 | AJ46: =IFERROR(AA46*Calculations!$J$67,0) -> 0 | AK46: 0 | AL46: 1240 | AM46: 1.5 | AN46: 2 | AO46: 2.5 | AP46: FALSE | AQ46: =IFERROR(AN46<=Inputs!$P$51,FALSE) -> TRUE | AR46: =IF($G46="yes",IFERROR(Y46/Calculations!$C$228*Calculations!$G$228,0),0) -> 50.24175 | AS46: =IF($G46="yes",IFERROR(Z46/Calculations!$C$232*Calculations!$G$232,0),0) -> 0 | AT46: 50.24175 | AU46: TRUE | AZ46: Reports - NGERS and Wastewater Management – Mapping Waste Streams and Quantifying the Impacts (7%)
A47: Install efficient equipment | B47: Enhance heat transfer on fire tube boiler with turbulators. | D47: yes | E47: yes | G47: yes | J47: TRUE | L47: TRUE | M47: nil | N47: TRUE | O47: not applied | P47: TRUE | Q47: 0.015 | R47: 0.02 | S47: 0 | U47: 0.5 | V47: 1 | W47: 1.5 | X47: 1 | Y47: =IFERROR(IF(Inputs!$D$29='Drop-downs'!$K$21,R47,Q47)*Calculations!$D$64,0)/1000 -> 2925 | Z47: =IFERROR(S47*Calculations!$D$65,0) -> 0 | AA47: =IFERROR(T47*Calculations!$D$67,0) -> 0 | AB47: =IFERROR(Y47*Calculations!$I$64,0) -> 3720 | AC47: =IFERROR(Z47*Calculations!$I$65,0) -> 0 | AD47: =IFERROR(AA47*Calculations!$I$67,0) -> 0 | AE47: 0 | AF47: 3720 | AG47: 3720 | AH47: =IFERROR(Y47*Calculations!$J$64,0) -> 3720 | AI47: =IFERROR(Z47*Calculations!$J$65,0) -> 0 | AJ47: =IFERROR(AA47*Calculations!$J$67,0) -> 0 | AK47: 0 | AL47: 3720 | AM47: 0.75 | AN47: 1 | AO47: 1.25 | AP47: FALSE | AQ47: =IFERROR(AN47<=Inputs!$P$51,FALSE) -> TRUE | AR47: =IF($G47="yes",IFERROR(Y47/Calculations!$C$228*Calculations!$G$228,0),0) -> 150.72525 | AS47: =IF($G47="yes",IFERROR(Z47/Calculations!$C$232*Calculations!$G$232,0),0) -> 0 | AT47: 150.72525 | AU47: TRUE | AZ47: Reports - First Waterless Cleaning Workshop - Summary (7%)
A48: Install efficient equipment | B48: Refrigeration variable head pressure and condenser fan speed control. Variable Head Pressure Control (VHPC) provides a good business case in regions with low night and winter temperatures. This option may not be suitable for warmer regions. | F48: yes | G48: yes | K48: FALSE | L48: FALSE | M48: nil | N48: TRUE | O48: not applied | P48: TRUE | Q48: 0 | R48: 0 | S48: 0.03 | U48: 2 | V48: 3 | W48: 4 | X48: 1 | Y48: =IFERROR(IF(Inputs!$D$29='Drop-downs'!$K$21,R48,Q48)*Calculations!$D$64,0)/1000 -> 0 | Z48: =IFERROR(S48*Calculations!$D$65,0) -> 420000 | AA48: =IFERROR(T48*Calculations!$D$67,0) -> 0 | AB48: =IFERROR(Y48*Calculations!$I$64,0) -> 0 | AC48: =IFERROR(Z48*Calculations!$I$65,0) -> 64500 | AD48: =IFERROR(AA48*Calculations!$I$67,0) -> 0 | AE48: 0 | AF48: 64500 | AG48: 193500 | AH48: =IFERROR(Y48*Calculations!$J$64,0) -> 0 | AI48: =IFERROR(Z48*Calculations!$J$65,0) -> 64500 | AJ48: =IFERROR(AA48*Calculations!$J$67,0) -> 0 | AK48: 0 | AL48: 64500 | AM48: 2.25 | AN48: 3 | AO48: 3.75 | AP48: FALSE | AQ48: =IFERROR(AN48<=Inputs!$P$51,FALSE) -> TRUE | AR48: =IF($G48="yes",IFERROR(Y48/Calculations!$C$228*Calculations!$G$228,0),0) -> 0 | AS48: =IF($G48="yes",IFERROR(Z48/Calculations!$C$232*Calculations!$G$232,0),0) -> 411.6 | AT48: 411.6 | AU48: FALSE | AV48: https://www.environment.nsw.gov.au/resources/business/IndustrialRefrigerationTechnologyReport.pdf | AZ48: Meat Matters! We All Have a Steak in this! - Meat Matters! We All Have a Steak in this! (7%)
A49: Install efficient equipment | B49: Compressor Staging and Capacity Control. This opportunity is appliable to multiple refrigeration compressor installations and involves staging the operation of compressors based on refrigeration load in order to reduce electricity required. | F49: yes | G49: yes | K49: FALSE | L49: FALSE | M49: nil | N49: TRUE | O49: not applied | P49: TRUE | Q49: 0 | R49: 0 | S49: 0.02 | U49: 2 | V49: 3 | W49: 4 | X49: 1 | Y49: =IFERROR(IF(Inputs!$D$29='Drop-downs'!$K$21,R49,Q49)*Calculations!$D$64,0)/1000 -> 0 | Z49: =IFERROR(S49*Calculations!$D$65,0) -> 280000 | AA49: =IFERROR(T49*Calculations!$D$67,0) -> 0 | AB49: =IFERROR(Y49*Calculations!$I$64,0) -> 0 | AC49: =IFERROR(Z49*Calculations!$I$65,0) -> 43000 | AD49: =IFERROR(AA49*Calculations!$I$67,0) -> 0 | AE49: 0 | AF49: 43000 | AG49: 129000 | AH49: =IFERROR(Y49*Calculations!$J$64,0) -> 0 | AI49: =IFERROR(Z49*Calculations!$J$65,0) -> 43000 | AJ49: =IFERROR(AA49*Calculations!$J$67,0) -> 0 | AK49: 0 | AL49: 43000 | AM49: 2.25 | AN49: 3 | AO49: 3.75 | AP49: FALSE | AQ49: =IFERROR(AN49<=Inputs!$P$51,FALSE) -> TRUE | AR49: =IF($G49="yes",IFERROR(Y49/Calculations!$C$228*Calculations!$G$228,0),0) -> 0 | AS49: =IF($G49="yes",IFERROR(Z49/Calculations!$C$232*Calculations!$G$232,0),0) -> 274.4 | AT49: 274.4 | AU49: FALSE | AV49: https://www.environment.nsw.gov.au/resources/business/IndustrialRefrigerationTechnologyReport.pdf | AZ49: Where Might a Career in Red Meat Processing Take You? - Where Might a Career in Red Meat Processing Take You? (7%)
A50: Install efficient equipment | B50: Install fan speed control on chiller rooms and freezers. | F50: yes | G50: yes | K50: FALSE | L50: FALSE | M50: nil | N50: TRUE | O50: not applied | P50: TRUE | Q50: 0 | R50: 0 | S50: 0.02 | U50: 2 | V50: 3 | W50: 4 | X50: 1 | Y50: =IFERROR(IF(Inputs!$D$29='Drop-downs'!$K$21,R50,Q50)*Calculations!$D$64,0)/1000 -> 0 | Z50: =IFERROR(S50*Calculations!$D$65,0) -> 280000 | AA50: =IFERROR(T50*Calculations!$D$67,0) -> 0 | AB50: =IFERROR(Y50*Calculations!$I$64,0) -> 0 | AC50: =IFERROR(Z50*Calculations!$I$65,0) -> 43000 | AD50: =IFERROR(AA50*Calculations!$I$67,0) -> 0 | AE50: 0 | AF50: 43000 | AG50: 129000 | AH50: =IFERROR(Y50*Calculations!$J$64,0) -> 0 | AI50: =IFERROR(Z50*Calculations!$J$65,0) -> 43000 | AJ50: =IFERROR(AA50*Calculations!$J$67,0) -> 0 | AK50: 0 | AL50: 43000 | AM50: 2.25 | AN50: 3 | AO50: 3.75 | AP50: FALSE | AQ50: =IFERROR(AN50<=Inputs!$P$51,FALSE) -> TRUE | AR50: =IF($G50="yes",IFERROR(Y50/Calculations!$C$228*Calculations!$G$228,0),0) -> 0 | AS50: =IF($G50="yes",IFERROR(Z50/Calculations!$C$232*Calculations!$G$232,0),0) -> 274.4 | AT50: 274.4 | AU50: FALSE | AV50: https://www.environment.nsw.gov.au/resources/business/IndustrialRefrigerationTechnologyReport.pdf | AZ50: Reports - Environmental Performance Review: Red Meat Processing Sector 2015 (7%)
A51: Install efficient equipment | B51: Install speed control on vacuum systems in the boning room and kill floor. (Eco-Efficiency Manual - 3.6.9, pg. 83) | F51: yes | G51: yes | K51: FALSE | L51: FALSE | M51: nil | N51: TRUE | O51: not applied | P51: TRUE | Q51: 0 | R51: 0 | S51: 0.005 | U51: 2 | V51: 3 | W51: 4 | X51: 1 | Y51: =IFERROR(IF(Inputs!$D$29='Drop-downs'!$K$21,R51,Q51)*Calculations!$D$64,0)/1000 -> 0 | Z51: =IFERROR(S51*Calculations!$D$65,0) -> 70000 | AA51: =IFERROR(T51*Calculations!$D$67,0) -> 0 | AB51: =IFERROR(Y51*Calculations!$I$64,0) -> 0 | AC51: =IFERROR(Z51*Calculations!$I$65,0) -> 10750 | AD51: =IFERROR(AA51*Calculations!$I$67,0) -> 0 | AE51: 0 | AF51: 10750 | AG51: 32250 | AH51: =IFERROR(Y51*Calculations!$J$64,0) -> 0 | AI51: =IFERROR(Z51*Calculations!$J$65,0) -> 10750 | AJ51: =IFERROR(AA51*Calculations!$J$67,0) -> 0 | AK51: 0 | AL51: 10750 | AM51: 2.25 | AN51: 3 | AO51: 3.75 | AP51: FALSE | AQ51: =IFERROR(AN51<=Inputs!$P$51,FALSE) -> TRUE | AR51: =IF($G51="yes",IFERROR(Y51/Calculations!$C$228*Calculations!$G$228,0),0) -> 0 | AS51: =IF($G51="yes",IFERROR(Z51/Calculations!$C$232*Calculations!$G$232,0),0) -> 68.6 | AT51: 68.6 | AU51: FALSE | AV51: https://www.ecoefficiencygroup.com.au/wp-content/uploads/2017/11/ecomeat_manual.pdf | AZ51: Reports - Sanitation of Viscera Tables using Steam (7%)
A52: Install efficient equipment | B52: Install new VSD air compressor to replace old fixed speed compressors. | F52: yes | G52: yes | K52: FALSE | L52: FALSE | M52: nil | N52: TRUE | O52: not applied | P52: TRUE | Q52: 0 | R52: 0 | S52: 0.005 | U52: 3 | V52: 4 | W52: 5 | X52: 1 | Y52: =IFERROR(IF(Inputs!$D$29='Drop-downs'!$K$21,R52,Q52)*Calculations!$D$64,0)/1000 -> 0 | Z52: =IFERROR(S52*Calculations!$D$65,0) -> 70000 | AA52: =IFERROR(T52*Calculations!$D$67,0) -> 0 | AB52: =IFERROR(Y52*Calculations!$I$64,0) -> 0 | AC52: =IFERROR(Z52*Calculations!$I$65,0) -> 10750 | AD52: =IFERROR(AA52*Calculations!$I$67,0) -> 0 | AE52: 0 | AF52: 10750 | AG52: 43000 | AH52: =IFERROR(Y52*Calculations!$J$64,0) -> 0 | AI52: =IFERROR(Z52*Calculations!$J$65,0) -> 10750 | AJ52: =IFERROR(AA52*Calculations!$J$67,0) -> 0 | AK52: 0 | AL52: 10750 | AM52: 3 | AN52: 4 | AO52: 5 | AP52: FALSE | AQ52: =IFERROR(AN52<=Inputs!$P$51,FALSE) -> TRUE | AR52: =IF($G52="yes",IFERROR(Y52/Calculations!$C$228*Calculations!$G$228,0),0) -> 0 | AS52: =IF($G52="yes",IFERROR(Z52/Calculations!$C$232*Calculations!$G$232,0),0) -> 68.6 | AT52: 68.6 | AU52: FALSE | AV52: https://www.environment.nsw.gov.au/resources/business/compressed-air-guide-170257.pdf | AZ52: Reports - Waste Water Management Manual (7%)
A53: Install efficient equipment | B53: Replace old lighting technology with LED lighting or induction lighting systems. Both of these technologies will reduce energy use and last 2 to 3 times longer than most older technologies such as metal halide and fluorescent tubes. | F53: yes | G53: yes | K53: FALSE | L53: FALSE | M53: nil | N53: TRUE | O53: not applied | P53: TRUE | Q53: 0.004843396836 | R53: 0.004843396836 | S53: 0.02 | U53: 2 | V53: 3 | W53: 4 | X53: 1 | Y53: =IFERROR(IF(Inputs!$D$29='Drop-downs'!$K$21,R53,Q53)*Calculations!$D$64,0)/1000 -> 944.462383 | Z53: =IFERROR(S53*Calculations!$D$65,0) -> 280000 | AA53: =IFERROR(T53*Calculations!$D$67,0) -> 0 | AB53: =IFERROR(Y53*Calculations!$I$64,0) -> 1201.162415 | AC53: =IFERROR(Z53*Calculations!$I$65,0) -> 43000 | AD53: =IFERROR(AA53*Calculations!$I$67,0) -> 0 | AE53: 0 | AF53: 44201.16242 | AG53: 132603.4872 | AH53: =IFERROR(Y53*Calculations!$J$64,0) -> 1201.162415 | AI53: =IFERROR(Z53*Calculations!$J$65,0) -> 43000 | AJ53: =IFERROR(AA53*Calculations!$J$67,0) -> 0 | AK53: 0 | AL53: 44201.16242 | AM53: 2.25 | AN53: 3 | AO53: 3.75 | AP53: FALSE | AQ53: =IFERROR(AN53<=Inputs!$P$51,FALSE) -> TRUE | AR53: =IF($G53="yes",IFERROR(Y53/Calculations!$C$228*Calculations!$G$228,0),0) -> 48.66814659 | AS53: =IF($G53="yes",IFERROR(Z53/Calculations!$C$232*Calculations!$G$232,0),0) -> 274.4 | AT53: 323.0681466 | AU53: FALSE | AV53: http://www.ampc.com.au/2015/07/Efficient-lighting-options-and-review-of-lighting-standards-for-abattoirs | AZ53: Reports - Waterless Cleaning of Meat Processing Plants (7%)
A54: Install efficient equipment | B54: Install variable speed drives on evaporator fans to reduce heat loads in cool rooms and freezers. | F54: yes | G54: yes | K54: FALSE | L54: =IFERROR(OR(I54,J54,K54),FALSE) -> FALSE | M54: nil | N54: TRUE | O54: not applied | P54: TRUE | Q54: 0 | R54: 0 | S54: 0.02 | U54: 3 | V54: 4 | W54: 5 | X54: 1 | Y54: =IFERROR(IF(Inputs!$D$29='Drop-downs'!$K$21,R54,Q54)*Calculations!$D$64,0)/1000 -> 0 | Z54: =IFERROR(S54*Calculations!$D$65,0) -> 280000 | AA54: =IFERROR(T54*Calculations!$D$67,0) -> 0 | AB54: =IFERROR(Y54*Calculations!$I$64,0) -> 0 | AC54: =IFERROR(Z54*Calculations!$I$65,0) -> 43000 | AD54: =IFERROR(AA54*Calculations!$I$67,0) -> 0 | AE54: =SUM(AH54:AJ54)*(X54-1) -> 0 | AF54: =SUM(AB54:AE54) -> 43000 | AG54: =IFERROR(AF54*V54,AF54*10) -> 172000 | AH54: =IFERROR(Y54*Calculations!$J$64,0) -> 0 | AI54: =IFERROR(Z54*Calculations!$J$65,0) -> 43000 | AJ54: =IFERROR(AA54*Calculations!$J$67,0) -> 0 | AK54: =SUM(AH54:AJ54)*(X54-1) -> 0 | AL54: =SUM(AH54:AK54) -> 43000 | AM54: =IFERROR(AN54*(1+$V$15),AN54) -> 3 | AN54: =IF(AG54<=0,0,AG54/AL54) -> 4 | AO54: =IFERROR(AN54*(1+$V$16),AN54) -> 5 | AP54: =AL54<=0 -> FALSE | AQ54: =IFERROR(AN54<=Inputs!$P$51,FALSE) -> TRUE | AR54: =IF($G54="yes",IFERROR(Y54/Calculations!$C$228*Calculations!$G$228,0),0) -> 0 | AS54: =IF($G54="yes",IFERROR(Z54/Calculations!$C$232*Calculations!$G$232,0),0) -> 274.4 | AT54: 274.4 | AU54: =AND(L54,N54,P54,NOT(AP54),AQ54) -> FALSE | AV54: https://www.environment.nsw.gov.au/resources/business/IndustrialRefrigerationTechnologyReport.pdf
A55: Install efficient equipment | B55: Replace degraded refrigeration compressors. Most compressors will be degraded if they are over 20 years old and have not been upgraded during that time. Degradation in performance of up to 30% or more is possible. | F55: yes | G55: yes | I55: =IF(C55="Yes",INDEX(Opportunity_Category_Display_Matrix,MATCH($A55,Opportunity_Category,0),MATCH(I$20,Performance_Descriptor_List,0)),"") ->  | J55: =IF(OR(D55="Yes",E55="Yes"),INDEX(Opportunity_Category_Display_Matrix,MATCH($A55,Opportunity_Category,0),MATCH(J$20,Performance_Descriptor_List,0)),"") ->  | K55: =IF(F55="Yes",INDEX(Opportunity_Category_Display_Matrix,MATCH($A55,Opportunity_Category,0),MATCH(K$20,Performance_Descriptor_List,0)),"") -> FALSE | L55: FALSE | M55: nil | N55: TRUE | O55: not applied | P55: TRUE | Q55: 0 | R55: 0 | S55: 0.04 | U55: 3 | V55: 4 | W55: 5 | X55: 1 | Y55: =IFERROR(IF(Inputs!$D$29='Drop-downs'!$K$21,R55,Q55)*Calculations!$D$64,0)/1000 -> 0 | Z55: =IFERROR(S55*Calculations!$D$65,0) -> 560000 | AA55: =IFERROR(T55*Calculations!$D$67,0) -> 0 | AB55: =IFERROR(Y55*Calculations!$I$64,0) -> 0 | AC55: =IFERROR(Z55*Calculations!$I$65,0) -> 86000 | AD55: =IFERROR(AA55*Calculations!$I$67,0) -> 0 | AE55: 0 | AF55: 86000 | AG55: 344000 | AH55: =IFERROR(Y55*Calculations!$J$64,0) -> 0 | AI55: =IFERROR(Z55*Calculations!$J$65,0) -> 86000 | AJ55: =IFERROR(AA55*Calculations!$J$67,0) -> 0 | AK55: 0 | AL55: 86000 | AM55: 3 | AN55: 4 | AO55: 5 | AP55: FALSE | AQ55: =IFERROR(AN55<=Inputs!$P$51,FALSE) -> TRUE | AR55: =IF($G55="yes",IFERROR(Y55/Calculations!$C$228*Calculations!$G$228,0),0) -> 0 | AS55: =IF($G55="yes",IFERROR(Z55/Calculations!$C$232*Calculations!$G$232,0),0) -> 548.8 | AT55: 548.8 | AU55: =AND(L55,N55,P55,NOT(AP55),AQ55) -> FALSE | AV55: https://www.environment.nsw.gov.au/resources/business/IndustrialRefrigerationTechnologyReport.pdf | AZ55: Reports - Meat Technology: Information Sheet - Environmental Control in the Rendering Industry (3%)
A56: Improve process technology | B56: Dry dumping of paunch contents (Eco-Efficiency Manual for Meat Processing - section 2.2.23, pg. 43-44) | C56: yes | G56: yes | I56: TRUE | L56: TRUE | M56: nil | N56: TRUE | O56: not applied | P56: TRUE | T56: 0.044 | U56: 0.5 | V56: 0.75 | W56: 1 | X56: 1 | Y56: =IFERROR(IF(Inputs!$D$29='Drop-downs'!$K$21,R56,Q56)*Calculations!$D$64,0)/1000 -> 0 | Z56: =IFERROR(S56*Calculations!$D$65,0) -> 0 | AA56: =IFERROR(T56*Calculations!$D$67,0) -> 26400 | AB56: =IFERROR(Y56*Calculations!$I$64,0) -> 0 | AC56: =IFERROR(Z56*Calculations!$I$65,0) -> 0 | AD56: =IFERROR(AA56*Calculations!$I$67,0) -> 102300 | AE56: 0 | AF56: 102300 | AG56: 76725 | AH56: =IFERROR(Y56*Calculations!$J$64,0) -> 0 | AI56: =IFERROR(Z56*Calculations!$J$65,0) -> 0 | AJ56: =IFERROR(AA56*Calculations!$J$67,0) -> 102300 | AK56: =SUM(AH56:AJ56)*(X56-1) -> 0 | AL56: 102300 | AM56: 0.5625 | AN56: 0.75 | AO56: 0.9375 | AP56: =AL56<=0 -> FALSE | AQ56: =IFERROR(AN56<=Inputs!$P$51,FALSE) -> TRUE | AR56: =IF($G56="yes",IFERROR(Y56/Calculations!$C$228*Calculations!$G$228,0),0) -> 0 | AS56: =IF($G56="yes",IFERROR(Z56/Calculations!$C$232*Calculations!$G$232,0),0) -> 0 | AT56: 0 | AU56: =AND(L56,N56,P56,NOT(AP56),AQ56) -> TRUE | AV56: https://www.ecoefficiencygroup.com.au/wp-content/uploads/2017/11/ecomeat_manual.pdf | AZ56: Reports - Review of Wastewater Treatment Chemicals and Organic Chemistry Alternatives for Abattoir Effluent (3%)
A57: Improve process technology | B57: Install storm water recovery and collection systems to reduce water used for washing cattle and potentially some process water uses. | C57: yes | G57: yes | I57: =IF(C57="Yes",INDEX(Opportunity_Category_Display_Matrix,MATCH($A57,Opportunity_Category,0),MATCH(I$20,Performance_Descriptor_List,0)),"") -> TRUE | J57: =IF(OR(D57="Yes",E57="Yes"),INDEX(Opportunity_Category_Display_Matrix,MATCH($A57,Opportunity_Category,0),MATCH(J$20,Performance_Descriptor_List,0)),"") ->  | K57: =IF(F57="Yes",INDEX(Opportunity_Category_Display_Matrix,MATCH($A57,Opportunity_Category,0),MATCH(K$20,Performance_Descriptor_List,0)),"") ->  | L57: =IFERROR(OR(I57,J57,K57),FALSE) -> TRUE | M57: nil | N57: TRUE | O57: not applied | P57: TRUE | T57: 0.02 | U57: 1 | V57: 2 | W57: 3 | X57: 1 | Y57: =IFERROR(IF(Inputs!$D$29='Drop-downs'!$K$21,R57,Q57)*Calculations!$D$64,0)/1000 -> 0 | Z57: =IFERROR(S57*Calculations!$D$65,0) -> 0 | AA57: =IFERROR(T57*Calculations!$D$67,0) -> 12000 | AB57: =IFERROR(Y57*Calculations!$I$64,0) -> 0 | AC57: =IFERROR(Z57*Calculations!$I$65,0) -> 0 | AD57: =IFERROR(AA57*Calculations!$I$67,0) -> 46500 | AE57: =SUM(AH57:AJ57)*(X57-1) -> 0 | AF57: =SUM(AB57:AE57) -> 46500 | AG57: =IFERROR(AF57*V57,AF57*10) -> 93000 | AH57: =IFERROR(Y57*Calculations!$J$64,0) -> 0 | AI57: =IFERROR(Z57*Calculations!$J$65,0) -> 0 | AJ57: =IFERROR(AA57*Calculations!$J$67,0) -> 46500 | AK57: =SUM(AH57:AJ57)*(X57-1) -> 0 | AL57: =SUM(AH57:AK57) -> 46500 | AM57: =IFERROR(AN57*(1+$V$15),AN57) -> 1.5 | AN57: =IF(AG57<=0,0,AG57/AL57) -> 2 | AO57: =IFERROR(AN57*(1+$V$16),AN57) -> 2.5 | AP57: =AL57<=0 -> FALSE | AQ57: =IFERROR(AN57<=Inputs!$P$51,FALSE) -> TRUE | AR57: =IF($G57="yes",IFERROR(Y57/Calculations!$C$228*Calculations!$G$228,0),0) -> 0 | AS57: =IF($G57="yes",IFERROR(Z57/Calculations!$C$232*Calculations!$G$232,0),0) -> 0 | AT57: 0 | AU57: =AND(L57,N57,P57,NOT(AP57),AQ57) -> TRUE | AV57: https://www.ecoefficiencygroup.com.au/wp-content/uploads/2017/11/ecomeat_manual.pdf
A58: Improve process technology | B58: Suspended mesh flooring in stockyards (Eco-Efficiency Manual for Meat Processing - section 2.2.8, pg. 30) | C58: yes | G58: yes | I58: TRUE | L58: TRUE | M58: nil | N58: TRUE | O58: not applied | P58: TRUE | T58: 0.1 | U58: 2 | V58: 3 | W58: 4 | X58: 1 | Y58: =IFERROR(IF(Inputs!$D$29='Drop-downs'!$K$21,R58,Q58)*Calculations!$D$64,0)/1000 -> 0 | Z58: =IFERROR(S58*Calculations!$D$65,0) -> 0 | AA58: =IFERROR(T58*Calculations!$D$67,0) -> 60000 | AB58: =IFERROR(Y58*Calculations!$I$64,0) -> 0 | AC58: =IFERROR(Z58*Calculations!$I$65,0) -> 0 | AD58: =IFERROR(AA58*Calculations!$I$67,0) -> 232500 | AE58: 0 | AF58: 232500 | AG58: 697500 | AH58: =IFERROR(Y58*Calculations!$J$64,0) -> 0 | AI58: =IFERROR(Z58*Calculations!$J$65,0) -> 0 | AJ58: =IFERROR(AA58*Calculations!$J$67,0) -> 232500 | AK58: 0 | AL58: 232500 | AM58: 2.25 | AN58: 3 | AO58: 3.75 | AP58: FALSE | AQ58: =IFERROR(AN58<=Inputs!$P$51,FALSE) -> TRUE | AR58: =IF($G58="yes",IFERROR(Y58/Calculations!$C$228*Calculations!$G$228,0),0) -> 0 | AS58: =IF($G58="yes",IFERROR(Z58/Calculations!$C$232*Calculations!$G$232,0),0) -> 0 | AT58: 0 | AU58: =AND(L58,N58,P58,NOT(AP58),AQ58) -> TRUE | AV58: https://www.ecoefficiencygroup.com.au/wp-content/uploads/2017/11/ecomeat_manual.pdf | AZ58: Reports - Year 7/8: Meat Matters - Student Project File (3%)
A59: Improve process technology | B59: Install a refrigeration heat recovery system to supplement hot water supply. This opportunity applies when additional hot water is required and there is sufficient hot water storage to ensure that hot water is not sent to drain. | D59: yes | E59: yes | G59: yes | J59: TRUE | L59: TRUE | M59: nil | N59: TRUE | O59: not applied | P59: TRUE | Q59: 0.03 | R59: 0.05 | S59: 0 | U59: 2 | V59: 3 | W59: 4 | X59: 1 | Y59: =IFERROR(IF(Inputs!$D$29='Drop-downs'!$K$21,R59,Q59)*Calculations!$D$64,0)/1000 -> 5850 | Z59: =IFERROR(S59*Calculations!$D$65,0) -> 0 | AA59: =IFERROR(T59*Calculations!$D$67,0) -> 0 | AB59: =IFERROR(Y59*Calculations!$I$64,0) -> 7440 | AC59: =IFERROR(Z59*Calculations!$I$65,0) -> 0 | AD59: =IFERROR(AA59*Calculations!$I$67,0) -> 0 | AE59: 0 | AF59: 7440 | AG59: 22320 | AH59: =IFERROR(Y59*Calculations!$J$64,0) -> 7440 | AI59: =IFERROR(Z59*Calculations!$J$65,0) -> 0 | AJ59: =IFERROR(AA59*Calculations!$J$67,0) -> 0 | AK59: 0 | AL59: 7440 | AM59: 2.25 | AN59: 3 | AO59: 3.75 | AP59: FALSE | AQ59: =IFERROR(AN59<=Inputs!$P$51,FALSE) -> TRUE | AR59: =IF($G59="yes",IFERROR(Y59/Calculations!$C$228*Calculations!$G$228,0),0) -> 301.4505 | AS59: =IF($G59="yes",IFERROR(Z59/Calculations!$C$232*Calculations!$G$232,0),0) -> 0 | AT59: 301.4505 | AU59: TRUE | AV59: https://www.ampc.com.au/2010/07/Heat-Recovery-From-Refrigeration-Plant | AZ59: Reports - Environmental Performance Review: Red Meat Processing Sector 2015 (3%)
A60: Improve process technology | B60: If the site has an old blood dryer such as a ring dryer, consider replacing with modern quad pass rotary dryer. | D60: yes | E60: yes | G60: yes | J60: TRUE | L60: TRUE | M60: nil | N60: TRUE | O60: not applied | P60: TRUE | Q60: 0.006 | R60: 0.006 | S60: 0 | U60: 4 | V60: 5 | W60: 6 | X60: 2 | Y60: =IFERROR(IF(Inputs!$D$29='Drop-downs'!$K$21,R60,Q60)*Calculations!$D$64,0)/1000 -> 1170 | Z60: =IFERROR(S60*Calculations!$D$65,0) -> 0 | AA60: =IFERROR(T60*Calculations!$D$67,0) -> 0 | AB60: =IFERROR(Y60*Calculations!$I$64,0) -> 1488 | AC60: =IFERROR(Z60*Calculations!$I$65,0) -> 0 | AD60: =IFERROR(AA60*Calculations!$I$67,0) -> 0 | AE60: 1488 | AF60: 2976 | AG60: 14880 | AH60: =IFERROR(Y60*Calculations!$J$64,0) -> 1488 | AI60: =IFERROR(Z60*Calculations!$J$65,0) -> 0 | AJ60: =IFERROR(AA60*Calculations!$J$67,0) -> 0 | AK60: 1488 | AL60: 2976 | AM60: 3.75 | AN60: 5 | AO60: 6.25 | AP60: FALSE | AQ60: =IFERROR(AN60<=Inputs!$P$51,FALSE) -> TRUE | AR60: =IF($G60="yes",IFERROR(Y60/Calculations!$C$228*Calculations!$G$228,0),0) -> 60.2901 | AS60: =IF($G60="yes",IFERROR(Z60/Calculations!$C$232*Calculations!$G$232,0),0) -> 0 | AT60: 60.2901 | AU60: TRUE | AZ60: Reports - Year 7/8: Meat Matters! We All Have a Steak in this! (3%)
A61: Improve process technology | B61: Install odour bio-filter to replace gas fired burners used to destroy odours from the rendering plant. | D61: yes | E61: yes | G61: yes | J61: TRUE | L61: TRUE | M61: Any rendering | N61: =NOT(Inputs!$D$29='Drop-downs'!$K$21) -> TRUE | O61: not applied | P61: TRUE | Q61: 0.02 | R61: 0.03 | S61: 0 | U61: 6 | V61: 6 | W61: 10 | X61: 1.5 | Y61: =IFERROR(IF(Inputs!$D$29='Drop-downs'!$K$21,R61,Q61)*Calculations!$D$64,0)/1000 -> 3900 | Z61: =IFERROR(S61*Calculations!$D$65,0) -> 0 | AA61: =IFERROR(T61*Calculations!$D$67,0) -> 0 | AB61: =IFERROR(Y61*Calculations!$I$64,0) -> 4960 | AC61: =IFERROR(Z61*Calculations!$I$65,0) -> 0 | AD61: =IFERROR(AA61*Calculations!$I$67,0) -> 0 | AE61: 2480 | AF61: 7440 | AG61: 44640 | AH61: =IFERROR(Y61*Calculations!$J$64,0) -> 4960 | AI61: =IFERROR(Z61*Calculations!$J$65,0) -> 0 | AJ61: =IFERROR(AA61*Calculations!$J$67,0) -> 0 | AK61: 2480 | AL61: 7440 | AM61: 4.5 | AN61: 6 | AO61: 7.5 | AP61: FALSE | AQ61: =IFERROR(AN61<=Inputs!$P$51,FALSE) -> TRUE | AR61: =IF($G61="yes",IFERROR(Y61/Calculations!$C$228*Calculations!$G$228,0),0) -> 200.967 | AS61: =IF($G61="yes",IFERROR(Z61/Calculations!$C$232*Calculations!$G$232,0),0) -> 0 | AT61: 200.967 | AU61: TRUE | AZ61: Reports - Novel microbial technologies for improved treatment of industrial wastewater - Pilot plant study (3%)
A62: Improve process technology | B62: Install energy and water flow meters for major loads and monitor use via a central process control system or web based system. Extend system to provide online alarms and SMS alerts available remotely. | C62: yes | D62: yes | E62: yes | F62: yes | G62: yes | I62: TRUE | J62: TRUE | K62: FALSE | L62: TRUE | M62: nil | N62: TRUE | O62: not applied | P62: TRUE | Q62: 0.02 | R62: 0.02 | S62: 0.02 | T62: 0.02 | U62: 1 | V62: 2 | W62: 3 | X62: 1 | Y62: =IFERROR(IF(Inputs!$D$29='Drop-downs'!$K$21,R62,Q62)*Calculations!$D$64,0)/1000 -> 3900 | Z62: =IFERROR(S62*Calculations!$D$65,0) -> 280000 | AA62: =IFERROR(T62*Calculations!$D$67,0) -> 12000 | AB62: =IFERROR(Y62*Calculations!$I$64,0) -> 4960 | AC62: =IFERROR(Z62*Calculations!$I$65,0) -> 43000 | AD62: =IFERROR(AA62*Calculations!$I$67,0) -> 46500 | AE62: 0 | AF62: 94460 | AG62: 188920 | AH62: =IFERROR(Y62*Calculations!$J$64,0) -> 4960 | AI62: =IFERROR(Z62*Calculations!$J$65,0) -> 43000 | AJ62: =IFERROR(AA62*Calculations!$J$67,0) -> 46500 | AK62: 0 | AL62: 94460 | AM62: 1.5 | AN62: 2 | AO62: 2.5 | AP62: FALSE | AQ62: =IFERROR(AN62<=Inputs!$P$51,FALSE) -> TRUE | AR62: =IF($G62="yes",IFERROR(Y62/Calculations!$C$228*Calculations!$G$228,0),0) -> 200.967 | AS62: =IF($G62="yes",IFERROR(Z62/Calculations!$C$232*Calculations!$G$232,0),0) -> 274.4 | AT62: 475.367 | AU62: TRUE | AZ62: News - The Indonesian Australian Partnership on Food Security Launches News Letter (3%)
A63: Install efficient equipment | B63: Consider the installation of an economiser or air preheater for boilers. | F63: yes | G63: yes | K63: FALSE | L63: FALSE | M63: nil | N63: TRUE | O63: not applied | P63: TRUE | Q63: 0.005 | R63: 0.008 | S63: -2e-05 | U63: 3 | V63: 4 | W63: 5 | X63: 1 | Y63: =IFERROR(IF(Inputs!$D$29='Drop-downs'!$K$21,R63,Q63)*Calculations!$D$64,0)/1000 -> 975 | Z63: =IFERROR(S63*Calculations!$D$65,0) -> -280 | AA63: =IFERROR(T63*Calculations!$D$67,0) -> 0 | AB63: =IFERROR(Y63*Calculations!$I$64,0) -> 1240 | AC63: =IFERROR(Z63*Calculations!$I$65,0) -> -43 | AD63: =IFERROR(AA63*Calculations!$I$67,0) -> 0 | AE63: 0 | AF63: 1197 | AG63: 4788 | AH63: =IFERROR(Y63*Calculations!$J$64,0) -> 1240 | AI63: =IFERROR(Z63*Calculations!$J$65,0) -> -43 | AJ63: =IFERROR(AA63*Calculations!$J$67,0) -> 0 | AK63: 0 | AL63: 1197 | AM63: 3 | AN63: 4 | AO63: 5 | AP63: FALSE | AQ63: =IFERROR(AN63<=Inputs!$P$51,FALSE) -> TRUE | AR63: =IF($G63="yes",IFERROR(Y63/Calculations!$C$228*Calculations!$G$228,0),0) -> 50.24175 | AS63: =IF($G63="yes",IFERROR(Z63/Calculations!$C$232*Calculations!$G$232,0),0) -> -0.2744 | AT63: 49.96735 | AU63: FALSE | AV63: https://www.sustainability.vic.gov.au/Business/Energy-efficiency-for-business/Business-energy-efficiency/Energy-efficiency-best-practice-guidelines | AZ63: A Feast of Ideas - A Feast of Ideas (3%)
A64: Improve process technology | B64: Install or upgrade power factor correction (PFC) equipment. Check that the electricity tariff has a power factor charge ($/kVA). Often the power factor reading for the highest demand kVA is available on the monthly invoice (check with electricity supplier if in doubt). Check that power factor is above 0.95. If it is below 0.95 there may be a need to upgrade existing PFC equipment or install new PFC equipment. | F64: yes | G64: yes | K64: FALSE | L64: FALSE | M64: nil | N64: TRUE | O64: not applied | P64: TRUE | Q64: 0 | R64: 0 | S64: 0.005 | U64: 1 | V64: 2 | W64: 3 | X64: 1 | Y64: =IFERROR(IF(Inputs!$D$29='Drop-downs'!$K$21,R64,Q64)*Calculations!$D$64,0)/1000 -> 0 | Z64: =IFERROR(S64*Calculations!$D$65,0) -> 70000 | AA64: =IFERROR(T64*Calculations!$D$67,0) -> 0 | AB64: =IFERROR(Y64*Calculations!$I$64,0) -> 0 | AC64: =IFERROR(Z64*Calculations!$I$65,0) -> 10750 | AD64: =IFERROR(AA64*Calculations!$I$67,0) -> 0 | AE64: 0 | AF64: 10750 | AG64: 21500 | AH64: =IFERROR(Y64*Calculations!$J$64,0) -> 0 | AI64: =IFERROR(Z64*Calculations!$J$65,0) -> 10750 | AJ64: =IFERROR(AA64*Calculations!$J$67,0) -> 0 | AK64: 0 | AL64: 10750 | AM64: 1.5 | AN64: 2 | AO64: 2.5 | AP64: FALSE | AQ64: =IFERROR(AN64<=Inputs!$P$51,FALSE) -> TRUE | AR64: =IF($G64="yes",IFERROR(Y64/Calculations!$C$228*Calculations!$G$228,0),0) -> 0 | AS64: =IF($G64="yes",IFERROR(Z64/Calculations!$C$232*Calculations!$G$232,0),0) -> 68.6 | AT64: 68.6 | AU64: FALSE | AZ64: News - Haverick Meats, back on track in time for Christmas (3%)
A65: Improve housekeeping | B65: Improved dry cleaning practices prior to wash down. Dry cleaning of plant and equipment prior to wash down is practiced widely in the industry, however there may still be room for improvement at various times. Operator training is a key factor in achieving good dry cleaning, however making the dry cleaning process easier for operators may help maintain good performance. Industrial vacuum cleaners for easier collection of solids and transfer to rendering may be worth considering. Typically water use for cleaning can be reduced by 20—30% by using good dry cleaning practices (March Consulting Group, 1998 and Walford et al, 1994). (Eco-Efficiency Manual for Meat Processing - section 2.2.30, pg. 48) | C65: yes | G65: yes | I65: FALSE | L65: FALSE | M65: nil | N65: TRUE | O65: not applied | P65: TRUE | T65: 0.03 | U65: 0.1 | V65: 0.2 | W65: 0.3 | X65: 1 | Y65: =IFERROR(IF(Inputs!$D$29='Drop-downs'!$K$21,R65,Q65)*Calculations!$D$64,0)/1000 -> 0 | Z65: =IFERROR(S65*Calculations!$D$65,0) -> 0 | AA65: =IFERROR(T65*Calculations!$D$67,0) -> 18000 | AB65: =IFERROR(Y65*Calculations!$I$64,0) -> 0 | AC65: =IFERROR(Z65*Calculations!$I$65,0) -> 0 | AD65: =IFERROR(AA65*Calculations!$I$67,0) -> 69750 | AE65: 0 | AF65: 69750 | AG65: 13950 | AH65: =IFERROR(Y65*Calculations!$J$64,0) -> 0 | AI65: =IFERROR(Z65*Calculations!$J$65,0) -> 0 | AJ65: =IFERROR(AA65*Calculations!$J$67,0) -> 69750 | AK65: 0 | AL65: 69750 | AM65: 0.15 | AN65: 0.2 | AO65: 0.25 | AP65: FALSE | AQ65: =IFERROR(AN65<=Inputs!$P$51,FALSE) -> TRUE | AR65: =IF($G65="yes",IFERROR(Y65/Calculations!$C$228*Calculations!$G$228,0),0) -> 0 | AS65: =IF($G65="yes",IFERROR(Z65/Calculations!$C$232*Calculations!$G$232,0),0) -> 0 | AT65: 0 | AU65: FALSE | AV65: https://www.ecoefficiencygroup.com.au/wp-content/uploads/2017/11/ecomeat_manual.pdf | AZ65: News - The WHS Website for Meat Processing Supervisors (3%)
A66: Improve housekeeping | B66: Timers on water taps. For some cleaning jobs, water may be wasted because hoses or taps are left on unnecessarily. Careful observation of cleaning practices will identify where this is occurring, and then timers can be installed to stop the flow of water after a set period of time. | C66: yes | G66: yes | I66: FALSE | L66: FALSE | M66: nil | N66: TRUE | O66: not applied | P66: TRUE | T66: 0.01 | U66: 0.1 | V66: 0.2 | W66: 0.3 | X66: 1 | Y66: =IFERROR(IF(Inputs!$D$29='Drop-downs'!$K$21,R66,Q66)*Calculations!$D$64,0)/1000 -> 0 | Z66: =IFERROR(S66*Calculations!$D$65,0) -> 0 | AA66: =IFERROR(T66*Calculations!$D$67,0) -> 6000 | AB66: =IFERROR(Y66*Calculations!$I$64,0) -> 0 | AC66: =IFERROR(Z66*Calculations!$I$65,0) -> 0 | AD66: =IFERROR(AA66*Calculations!$I$67,0) -> 23250 | AE66: 0 | AF66: 23250 | AG66: 4650 | AH66: =IFERROR(Y66*Calculations!$J$64,0) -> 0 | AI66: =IFERROR(Z66*Calculations!$J$65,0) -> 0 | AJ66: =IFERROR(AA66*Calculations!$J$67,0) -> 23250 | AK66: 0 | AL66: 23250 | AM66: 0.15 | AN66: 0.2 | AO66: 0.25 | AP66: FALSE | AQ66: =IFERROR(AN66<=Inputs!$P$51,FALSE) -> TRUE | AR66: =IF($G66="yes",IFERROR(Y66/Calculations!$C$228*Calculations!$G$228,0),0) -> 0 | AS66: =IF($G66="yes",IFERROR(Z66/Calculations!$C$232*Calculations!$G$232,0),0) -> 0 | AT66: 0 | AU66: FALSE | AV66: https://www.ecoefficiencygroup.com.au/wp-content/uploads/2017/11/ecomeat_manual.pdf | AZ66: Reports - Australian Red Meat Processor Opportunities for Emissions Reduction Fund Participation (3%)
A67: Improve housekeeping | B67: Minimising receipt of very dirty stock (Eco-Efficiency Manual for Meat Processing - section 2.2.3, pg. 28) | C67: yes | G67: yes | I67: FALSE | L67: FALSE | M67: nil | N67: TRUE | O67: not applied | P67: TRUE | T67: 0.01 | U67: 0.1 | V67: 0.2 | W67: 0.3 | X67: 1 | Y67: =IFERROR(IF(Inputs!$D$29='Drop-downs'!$K$21,R67,Q67)*Calculations!$D$64,0)/1000 -> 0 | Z67: =IFERROR(S67*Calculations!$D$65,0) -> 0 | AA67: =IFERROR(T67*Calculations!$D$67,0) -> 6000 | AB67: =IFERROR(Y67*Calculations!$I$64,0) -> 0 | AC67: =IFERROR(Z67*Calculations!$I$65,0) -> 0 | AD67: =IFERROR(AA67*Calculations!$I$67,0) -> 23250 | AE67: 0 | AF67: 23250 | AG67: 4650 | AH67: =IFERROR(Y67*Calculations!$J$64,0) -> 0 | AI67: =IFERROR(Z67*Calculations!$J$65,0) -> 0 | AJ67: =IFERROR(AA67*Calculations!$J$67,0) -> 23250 | AK67: 0 | AL67: 23250 | AM67: 0.15 | AN67: 0.2 | AO67: 0.25 | AP67: FALSE | AQ67: =IFERROR(AN67<=Inputs!$P$51,FALSE) -> TRUE | AR67: =IF($G67="yes",IFERROR(Y67/Calculations!$C$228*Calculations!$G$228,0),0) -> 0 | AS67: =IF($G67="yes",IFERROR(Z67/Calculations!$C$232*Calculations!$G$232,0),0) -> 0 | AT67: 0 | AU67: FALSE | AV67: https://www.ecoefficiencygroup.com.au/wp-content/uploads/2017/11/ecomeat_manual.pdf | AZ67: Reports - Cost Benefit Analysis of Dewatering Abattoir Sludge using Three-Way Decanter (3%)
A68: Improve housekeeping | B68: Dry cleaning manure from stockyards before washing. Dry cleaning is the removal of the bulk of the solid manure from the yards before washing with water. This can potentially reduce the amount of water used by around 20-30% (March Consulting Group, 1998 and Walford et al, 1994). The practicality of dry cleaning will depend on how the stockyards are constructed and may not be possible for some stockyards. (Eco-Efficiency Manual for Meat Processing - section 2.2.6, pg. 29) | C68: yes | G68: yes | I68: FALSE | L68: FALSE | M68: nil | N68: TRUE | O68: not applied | P68: TRUE | T68: 0.025 | U68: 0.1 | V68: 0.2 | W68: 0.3 | X68: 1 | Y68: =IFERROR(IF(Inputs!$D$29='Drop-downs'!$K$21,R68,Q68)*Calculations!$D$64,0)/1000 -> 0 | Z68: =IFERROR(S68*Calculations!$D$65,0) -> 0 | AA68: =IFERROR(T68*Calculations!$D$67,0) -> 15000 | AB68: =IFERROR(Y68*Calculations!$I$64,0) -> 0 | AC68: =IFERROR(Z68*Calculations!$I$65,0) -> 0 | AD68: =IFERROR(AA68*Calculations!$I$67,0) -> 58125 | AE68: 0 | AF68: 58125 | AG68: 11625 | AH68: =IFERROR(Y68*Calculations!$J$64,0) -> 0 | AI68: =IFERROR(Z68*Calculations!$J$65,0) -> 0 | AJ68: =IFERROR(AA68*Calculations!$J$67,0) -> 58125 | AK68: 0 | AL68: 58125 | AM68: 0.15 | AN68: 0.2 | AO68: 0.25 | AP68: FALSE | AQ68: =IFERROR(AN68<=Inputs!$P$51,FALSE) -> TRUE | AR68: =IF($G68="yes",IFERROR(Y68/Calculations!$C$228*Calculations!$G$228,0),0) -> 0 | AS68: =IF($G68="yes",IFERROR(Z68/Calculations!$C$232*Calculations!$G$232,0),0) -> 0 | AT68: 0 | AU68: FALSE | AV68: https://www.ecoefficiencygroup.com.au/wp-content/uploads/2017/11/ecomeat_manual.pdf | AZ68: Reports - Environmental Best Practice Manual: Wastewater (3%)
A69: Improve housekeeping | B69: Avoiding under utilisation of spray capacity for stock washing. Some meat plants have large pens capable of holding 50-100 head (cattle), with floor mounted and possibly overhead jets covering the entire area. If a small number of stock are washed at a time (say 20- 50), then water is wasted, since stock tend to crowd into the corner and only a portion (50-75%) of the spray capacity is utilised. (Eco-Efficiency Manual - section 2.2.4, pg. 28) | C69: yes | G69: yes | I69: FALSE | L69: FALSE | M69: nil | N69: TRUE | O69: not applied | P69: TRUE | T69: 0.035 | U69: 0.5 | V69: 1 | W69: 1.5 | X69: 1 | Y69: =IFERROR(IF(Inputs!$D$29='Drop-downs'!$K$21,R69,Q69)*Calculations!$D$64,0)/1000 -> 0 | Z69: =IFERROR(S69*Calculations!$D$65,0) -> 0 | AA69: =IFERROR(T69*Calculations!$D$67,0) -> 21000 | AB69: =IFERROR(Y69*Calculations!$I$64,0) -> 0 | AC69: =IFERROR(Z69*Calculations!$I$65,0) -> 0 | AD69: =IFERROR(AA69*Calculations!$I$67,0) -> 81375 | AE69: 0 | AF69: 81375 | AG69: 81375 | AH69: =IFERROR(Y69*Calculations!$J$64,0) -> 0 | AI69: =IFERROR(Z69*Calculations!$J$65,0) -> 0 | AJ69: =IFERROR(AA69*Calculations!$J$67,0) -> 81375 | AK69: 0 | AL69: 81375 | AM69: 0.75 | AN69: 1 | AO69: 1.25 | AP69: FALSE | AQ69: =IFERROR(AN69<=Inputs!$P$51,FALSE) -> TRUE | AR69: =IF($G69="yes",IFERROR(Y69/Calculations!$C$228*Calculations!$G$228,0),0) -> 0 | AS69: =IF($G69="yes",IFERROR(Z69/Calculations!$C$232*Calculations!$G$232,0),0) -> 0 | AT69: 0 | AU69: FALSE | AV69: https://www.ecoefficiencygroup.com.au/wp-content/uploads/2017/11/ecomeat_manual.pdf | AZ69: Reports - Feasibility study on using integrated aquaculture to treat wastewater from the meat processing industry (3%)
A70: Improve housekeeping | B70: Limiting water use in casings washing. There is a tendency in some casings departments to leave water running unnecessarily. To avoid this, water supply can be controlled by interlocking the operation of the machine to a timer switch. Given that casings washing is occurring for 60% of the time that the machine is in operation, this could reduce water use by 40%. | C70: yes | G70: yes | I70: FALSE | L70: FALSE | M70: nil | N70: TRUE | O70: not applied | P70: TRUE | T70: 0.012 | U70: 0 | V70: 0.25 | W70: 0.5 | X70: 1 | Y70: =IFERROR(IF(Inputs!$D$29='Drop-downs'!$K$21,R70,Q70)*Calculations!$D$64,0)/1000 -> 0 | Z70: =IFERROR(S70*Calculations!$D$65,0) -> 0 | AA70: =IFERROR(T70*Calculations!$D$67,0) -> 7200 | AB70: =IFERROR(Y70*Calculations!$I$64,0) -> 0 | AC70: =IFERROR(Z70*Calculations!$I$65,0) -> 0 | AD70: =IFERROR(AA70*Calculations!$I$67,0) -> 27900 | AE70: 0 | AF70: 27900 | AG70: 6975 | AH70: =IFERROR(Y70*Calculations!$J$64,0) -> 0 | AI70: =IFERROR(Z70*Calculations!$J$65,0) -> 0 | AJ70: =IFERROR(AA70*Calculations!$J$67,0) -> 27900 | AK70: 0 | AL70: 27900 | AM70: 0.1875 | AN70: 0.25 | AO70: 0.3125 | AP70: FALSE | AQ70: =IFERROR(AN70<=Inputs!$P$51,FALSE) -> TRUE | AR70: =IF($G70="yes",IFERROR(Y70/Calculations!$C$228*Calculations!$G$228,0),0) -> 0 | AS70: =IF($G70="yes",IFERROR(Z70/Calculations!$C$232*Calculations!$G$232,0),0) -> 0 | AT70: 0 | AU70: FALSE | AV70: https://www.ecoefficiencygroup.com.au/wp-content/uploads/2017/11/ecomeat_manual.pdf | AZ70: Reports - Industry Environmental Sustainability Review 2010 (3%)
A71: Improve housekeeping | B71: Water-efficient shower roses for edible offal washing. In many plants, standard shower roses are used at offal washing stations. More water efficient shower roses or spray nozzles could reduce the amount of water used for offal washing, while still maintaining effective washing. | C71: yes | G71: yes | I71: FALSE | L71: FALSE | M71: nil | N71: TRUE | O71: not applied | P71: TRUE | T71: 0.005 | U71: 0.25 | V71: 0.5 | W71: 1 | X71: 1 | Y71: =IFERROR(IF(Inputs!$D$29='Drop-downs'!$K$21,R71,Q71)*Calculations!$D$64,0)/1000 -> 0 | Z71: =IFERROR(S71*Calculations!$D$65,0) -> 0 | AA71: =IFERROR(T71*Calculations!$D$67,0) -> 3000 | AB71: =IFERROR(Y71*Calculations!$I$64,0) -> 0 | AC71: =IFERROR(Z71*Calculations!$I$65,0) -> 0 | AD71: =IFERROR(AA71*Calculations!$I$67,0) -> 11625 | AE71: 0 | AF71: 11625 | AG71: 5812.5 | AH71: =IFERROR(Y71*Calculations!$J$64,0) -> 0 | AI71: =IFERROR(Z71*Calculations!$J$65,0) -> 0 | AJ71: =IFERROR(AA71*Calculations!$J$67,0) -> 11625 | AK71: 0 | AL71: 11625 | AM71: 0.375 | AN71: 0.5 | AO71: 0.625 | AP71: FALSE | AQ71: =IFERROR(AN71<=Inputs!$P$51,FALSE) -> TRUE | AR71: =IF($G71="yes",IFERROR(Y71/Calculations!$C$228*Calculations!$G$228,0),0) -> 0 | AS71: =IF($G71="yes",IFERROR(Z71/Calculations!$C$232*Calculations!$G$232,0),0) -> 0 | AT71: 0 | AU71: FALSE | AV71: https://www.ecoefficiencygroup.com.au/wp-content/uploads/2017/11/ecomeat_manual.pdf | AZ71: Reports - Efficient lighting options and review of lighting standards for abattoirs (3%)
A72: Improve housekeeping | B72: On/off control of flow for edible offal washing. Through the use of more efficient shower roses and/or an on/off flow control device, water for edible offal washing can be reduced by 20%. | C72: yes | G72: yes | I72: FALSE | L72: FALSE | M72: nil | N72: TRUE | O72: not applied | P72: TRUE | T72: 0.006 | U72: 0.5 | V72: 1 | W72: 1.5 | X72: 1 | Y72: =IFERROR(IF(Inputs!$D$29='Drop-downs'!$K$21,R72,Q72)*Calculations!$D$64,0)/1000 -> 0 | Z72: =IFERROR(S72*Calculations!$D$65,0) -> 0 | AA72: =IFERROR(T72*Calculations!$D$67,0) -> 3600 | AB72: =IFERROR(Y72*Calculations!$I$64,0) -> 0 | AC72: =IFERROR(Z72*Calculations!$I$65,0) -> 0 | AD72: =IFERROR(AA72*Calculations!$I$67,0) -> 13950 | AE72: 0 | AF72: 13950 | AG72: 13950 | AH72: =IFERROR(Y72*Calculations!$J$64,0) -> 0 | AI72: =IFERROR(Z72*Calculations!$J$65,0) -> 0 | AJ72: =IFERROR(AA72*Calculations!$J$67,0) -> 13950 | AK72: 0 | AL72: 13950 | AM72: 0.75 | AN72: 1 | AO72: 1.25 | AP72: FALSE | AQ72: =IFERROR(AN72<=Inputs!$P$51,FALSE) -> TRUE | AR72: =IF($G72="yes",IFERROR(Y72/Calculations!$C$228*Calculations!$G$228,0),0) -> 0 | AS72: =IF($G72="yes",IFERROR(Z72/Calculations!$C$232*Calculations!$G$232,0),0) -> 0 | AT72: 0 | AU72: FALSE | AV72: https://www.ecoefficiencygroup.com.au/wp-content/uploads/2017/11/ecomeat_manual.pdf | AZ72: Reports - Wastewater Management (3%)
A73: Improve housekeeping | B73: If you have a steam system, check condensate return amount by measuring the chemical content in the hot well before chemical addition. If condensate return is below 60%, check that there are no major steam leaks or water leaks and review the business case for connecting remote steam users to the condensate return system. | D73: yes | E73: yes | G73: yes | J73: FALSE | L73: FALSE | M73: nil | N73: TRUE | O73: not applied | P73: TRUE | Q73: 0.005 | R73: 0.01 | S73: 0 | T73: 0.02 | U73: 0.5 | V73: 1.25 | W73: 2 | X73: 1 | Y73: =IFERROR(IF(Inputs!$D$29='Drop-downs'!$K$21,R73,Q73)*Calculations!$D$64,0)/1000 -> 975 | Z73: =IFERROR(S73*Calculations!$D$65,0) -> 0 | AA73: =IFERROR(T73*Calculations!$D$67,0) -> 12000 | AB73: =IFERROR(Y73*Calculations!$I$64,0) -> 1240 | AC73: =IFERROR(Z73*Calculations!$I$65,0) -> 0 | AD73: =IFERROR(AA73*Calculations!$I$67,0) -> 46500 | AE73: 0 | AF73: 47740 | AG73: 59675 | AH73: =IFERROR(Y73*Calculations!$J$64,0) -> 1240 | AI73: =IFERROR(Z73*Calculations!$J$65,0) -> 0 | AJ73: =IFERROR(AA73*Calculations!$J$67,0) -> 46500 | AK73: 0 | AL73: 47740 | AM73: 0.9375 | AN73: 1.25 | AO73: 1.5625 | AP73: FALSE | AQ73: =IFERROR(AN73<=Inputs!$P$51,FALSE) -> TRUE | AR73: =IF($G73="yes",IFERROR(Y73/Calculations!$C$228*Calculations!$G$228,0),0) -> 50.24175 | AS73: =IF($G73="yes",IFERROR(Z73/Calculations!$C$232*Calculations!$G$232,0),0) -> 0 | AT73: 50.24175 | AU73: FALSE | AZ73: News - A Year in Review (3%)
A74: Improve housekeeping | B74: Conduct steam trap and system review and fix leaks. The best approach is to employ an expert steam trap leak detection company to conduct investigations and fix the identified leaks. (Eco-Efficiency Manual - 3.3.3, p 63) | D74: yes | E74: yes | G74: yes | J74: FALSE | L74: FALSE | M74: nil | N74: TRUE | O74: not applied | P74: TRUE | Q74: 0.005 | R74: 0.01 | S74: 0 | U74: 0.5 | V74: 1 | W74: 1.5 | X74: 1 | Y74: =IFERROR(IF(Inputs!$D$29='Drop-downs'!$K$21,R74,Q74)*Calculations!$D$64,0)/1000 -> 975 | Z74: =IFERROR(S74*Calculations!$D$65,0) -> 0 | AA74: =IFERROR(T74*Calculations!$D$67,0) -> 0 | AB74: =IFERROR(Y74*Calculations!$I$64,0) -> 1240 | AC74: =IFERROR(Z74*Calculations!$I$65,0) -> 0 | AD74: =IFERROR(AA74*Calculations!$I$67,0) -> 0 | AE74: 0 | AF74: 1240 | AG74: 1240 | AH74: =IFERROR(Y74*Calculations!$J$64,0) -> 1240 | AI74: =IFERROR(Z74*Calculations!$J$65,0) -> 0 | AJ74: =IFERROR(AA74*Calculations!$J$67,0) -> 0 | AK74: 0 | AL74: 1240 | AM74: 0.75 | AN74: 1 | AO74: 1.25 | AP74: FALSE | AQ74: =IFERROR(AN74<=Inputs!$P$51,FALSE) -> TRUE | AR74: =IF($G74="yes",IFERROR(Y74/Calculations!$C$228*Calculations!$G$228,0),0) -> 50.24175 | AS74: =IF($G74="yes",IFERROR(Z74/Calculations!$C$232*Calculations!$G$232,0),0) -> 0 | AT74: 50.24175 | AU74: FALSE | AV74: https://www.ecoefficiencygroup.com.au/wp-content/uploads/2017/11/ecomeat_manual.pdf | AZ74: Reports - Wastewater Treatment with Anaerobic Digestion & Anammox (3%)
A75: Improve housekeeping | B75: Ensure that your boiler maintenance contractors have checked and adjusted boiler air/fuel control to minimise energy losses. (Eco-Efficiency Manual - section 3.3.6, pg. 65) | D75: yes | E75: yes | G75: yes | J75: FALSE | L75: FALSE | M75: nil | N75: TRUE | O75: not applied | P75: TRUE | Q75: 0.005 | R75: 0.01 | S75: 0 | U75: 0 | V75: 0.1 | W75: 0.2 | X75: 1 | Y75: =IFERROR(IF(Inputs!$D$29='Drop-downs'!$K$21,R75,Q75)*Calculations!$D$64,0)/1000 -> 975 | Z75: =IFERROR(S75*Calculations!$D$65,0) -> 0 | AA75: =IFERROR(T75*Calculations!$D$67,0) -> 0 | AB75: =IFERROR(Y75*Calculations!$I$64,0) -> 1240 | AC75: =IFERROR(Z75*Calculations!$I$65,0) -> 0 | AD75: =IFERROR(AA75*Calculations!$I$67,0) -> 0 | AE75: 0 | AF75: 1240 | AG75: 124 | AH75: =IFERROR(Y75*Calculations!$J$64,0) -> 1240 | AI75: =IFERROR(Z75*Calculations!$J$65,0) -> 0 | AJ75: =IFERROR(AA75*Calculations!$J$67,0) -> 0 | AK75: 0 | AL75: 1240 | AM75: 0.075 | AN75: 0.1 | AO75: 0.125 | AP75: FALSE | AQ75: =IFERROR(AN75<=Inputs!$P$51,FALSE) -> TRUE | AR75: =IF($G75="yes",IFERROR(Y75/Calculations!$C$228*Calculations!$G$228,0),0) -> 50.24175 | AS75: =IF($G75="yes",IFERROR(Z75/Calculations!$C$232*Calculations!$G$232,0),0) -> 0 | AT75: 50.24175 | AU75: FALSE | AV75: https://www.ecoefficiencygroup.com.au/wp-content/uploads/2017/11/ecomeat_manual.pdf
A76: Improve housekeeping | B76: Conduct after hours review of plant energy and water use using metering data. Investigate times when energy use is higher than expected to identify the equipment involved. Institute a manual or automatic control system/procedure to reduce unnecessary energy use. | C76: yes | D76: yes | E76: yes | F76: yes | G76: yes | I76: FALSE | J76: FALSE | K76: FALSE | L76: FALSE | M76: nil | N76: TRUE | O76: not applied | P76: TRUE | Q76: 0.02 | R76: 0.02 | S76: 0.01 | U76: 0.25 | V76: 0.5 | W76: 0.75 | X76: 1 | Y76: =IFERROR(IF(Inputs!$D$29='Drop-downs'!$K$21,R76,Q76)*Calculations!$D$64,0)/1000 -> 3900 | Z76: =IFERROR(S76*Calculations!$D$65,0) -> 140000 | AA76: =IFERROR(T76*Calculations!$D$67,0) -> 0 | AB76: =IFERROR(Y76*Calculations!$I$64,0) -> 4960 | AC76: =IFERROR(Z76*Calculations!$I$65,0) -> 21500 | AD76: =IFERROR(AA76*Calculations!$I$67,0) -> 0 | AE76: 0 | AF76: 26460 | AG76: 13230 | AH76: =IFERROR(Y76*Calculations!$J$64,0) -> 4960 | AI76: =IFERROR(Z76*Calculations!$J$65,0) -> 21500 | AJ76: =IFERROR(AA76*Calculations!$J$67,0) -> 0 | AK76: 0 | AL76: 26460 | AM76: 0.375 | AN76: 0.5 | AO76: 0.625 | AP76: FALSE | AQ76: =IFERROR(AN76<=Inputs!$P$51,FALSE) -> TRUE | AR76: =IF($G76="yes",IFERROR(Y76/Calculations!$C$228*Calculations!$G$228,0),0) -> 200.967 | AS76: =IF($G76="yes",IFERROR(Z76/Calculations!$C$232*Calculations!$G$232,0),0) -> 137.2 | AT76: 338.167 | AU76: FALSE | AV76: https://www.ecoefficiencygroup.com.au/wp-content/uploads/2017/11/ecomeat_manual.pdf
A77: Improve housekeeping | B77: Optimise the existing power factor correction (PFC) system. Check that the PFC system is reading at least 0.95 and above at maximum demand peaks. | F77: yes | G77: yes | K77: FALSE | L77: FALSE | M77: nil | N77: TRUE | O77: not applied | P77: TRUE | Q77: 0 | R77: 0 | S77: 0.005 | U77: 1 | V77: 2 | W77: 3 | X77: 1 | Y77: =IFERROR(IF(Inputs!$D$29='Drop-downs'!$K$21,R77,Q77)*Calculations!$D$64,0)/1000 -> 0 | Z77: =IFERROR(S77*Calculations!$D$65,0) -> 70000 | AA77: =IFERROR(T77*Calculations!$D$67,0) -> 0 | AB77: =IFERROR(Y77*Calculations!$I$64,0) -> 0 | AC77: =IFERROR(Z77*Calculations!$I$65,0) -> 10750 | AD77: =IFERROR(AA77*Calculations!$I$67,0) -> 0 | AE77: 0 | AF77: 10750 | AG77: 21500 | AH77: =IFERROR(Y77*Calculations!$J$64,0) -> 0 | AI77: =IFERROR(Z77*Calculations!$J$65,0) -> 10750 | AJ77: =IFERROR(AA77*Calculations!$J$67,0) -> 0 | AK77: 0 | AL77: 10750 | AM77: 1.5 | AN77: 2 | AO77: 2.5 | AP77: FALSE | AQ77: =IFERROR(AN77<=Inputs!$P$51,FALSE) -> TRUE | AR77: =IF($G77="yes",IFERROR(Y77/Calculations!$C$228*Calculations!$G$228,0),0) -> 0 | AS77: =IF($G77="yes",IFERROR(Z77/Calculations!$C$232*Calculations!$G$232,0),0) -> 68.6 | AT77: 68.6 | AU77: FALSE
A78: Improve housekeeping | B78: Identify and repair compressed air leaks . The best approach is to employ an expert compressed air leak detection company to conduct investigations and fix identified leaks. (Eco-Efficiency Manual - 3.3.6, pg. 81) | F78: yes | G78: yes | K78: FALSE | L78: FALSE | M78: nil | N78: TRUE | O78: not applied | P78: TRUE | Q78: 0.002906038101 | R78: 0.002906038101 | S78: 0.005 | U78: 0.5 | V78: 1 | W78: 1.5 | X78: 1 | Y78: =IFERROR(IF(Inputs!$D$29='Drop-downs'!$K$21,R78,Q78)*Calculations!$D$64,0)/1000 -> 566.6774298 | Z78: =IFERROR(S78*Calculations!$D$65,0) -> 70000 | AA78: =IFERROR(T78*Calculations!$D$67,0) -> 0 | AB78: =IFERROR(Y78*Calculations!$I$64,0) -> 720.6974491 | AC78: =IFERROR(Z78*Calculations!$I$65,0) -> 10750 | AD78: =IFERROR(AA78*Calculations!$I$67,0) -> 0 | AE78: 0 | AF78: 11470.69745 | AG78: 11470.69745 | AH78: =IFERROR(Y78*Calculations!$J$64,0) -> 720.6974491 | AI78: =IFERROR(Z78*Calculations!$J$65,0) -> 10750 | AJ78: =IFERROR(AA78*Calculations!$J$67,0) -> 0 | AK78: 0 | AL78: 11470.69745 | AM78: 0.75 | AN78: 1 | AO78: 1.25 | AP78: FALSE | AQ78: =IFERROR(AN78<=Inputs!$P$51,FALSE) -> TRUE | AR78: =IF($G78="yes",IFERROR(Y78/Calculations!$C$228*Calculations!$G$228,0),0) -> 29.20088796 | AS78: =IF($G78="yes",IFERROR(Z78/Calculations!$C$232*Calculations!$G$232,0),0) -> 68.6 | AT78: 97.80088796 | AU78: FALSE | AV78: https://www.ecoefficiencygroup.com.au/wp-content/uploads/2017/11/ecomeat_manual.pdf
A79: Improve housekeeping | B79: Review electricity demand cost and tariff charges for peak and off-peak electricity. Consider moving loads from peak periods into off-peak periods where electricity charges are cheaper. Review demand peaks and assess the options for reducing demand costs. | F79: yes | G79: yes | K79: FALSE | L79: FALSE | M79: nil | N79: TRUE | O79: not applied | P79: TRUE | Q79: 0 | R79: 0 | S79: 0.005 | U79: 0 | V79: 0.1 | W79: 0.2 | X79: 1 | Y79: =IFERROR(IF(Inputs!$D$29='Drop-downs'!$K$21,R79,Q79)*Calculations!$D$64,0)/1000 -> 0 | Z79: =IFERROR(S79*Calculations!$D$65,0) -> 70000 | AA79: =IFERROR(T79*Calculations!$D$67,0) -> 0 | AB79: =IFERROR(Y79*Calculations!$I$64,0) -> 0 | AC79: =IFERROR(Z79*Calculations!$I$65,0) -> 10750 | AD79: =IFERROR(AA79*Calculations!$I$67,0) -> 0 | AE79: 0 | AF79: 10750 | AG79: 1075 | AH79: =IFERROR(Y79*Calculations!$J$64,0) -> 0 | AI79: =IFERROR(Z79*Calculations!$J$65,0) -> 10750 | AJ79: =IFERROR(AA79*Calculations!$J$67,0) -> 0 | AK79: 0 | AL79: 10750 | AM79: 0.075 | AN79: 0.1 | AO79: 0.125 | AP79: FALSE | AQ79: =IFERROR(AN79<=Inputs!$P$51,FALSE) -> TRUE | AR79: =IF($G79="yes",IFERROR(Y79/Calculations!$C$228*Calculations!$G$228,0),0) -> 0 | AS79: =IF($G79="yes",IFERROR(Z79/Calculations!$C$232*Calculations!$G$232,0),0) -> 68.6 | AT79: 68.6 | AU79: FALSE
A80: Improve housekeeping | B80: Automatic controls for hand washing (Eco-Efficiency Manual for Meat Processing - section 2.2.35, pg. 51-52) | C80: yes | G80: yes | I80: FALSE | L80: FALSE | M80: nil | N80: TRUE | O80: not applied | P80: TRUE | T80: 0.012 | U80: 0.5 | V80: 1 | W80: 1.5 | X80: 1 | Y80: =IFERROR(IF(Inputs!$D$29='Drop-downs'!$K$21,R80,Q80)*Calculations!$D$64,0)/1000 -> 0 | Z80: =IFERROR(S80*Calculations!$D$65,0) -> 0 | AA80: =IFERROR(T80*Calculations!$D$67,0) -> 7200 | AB80: =IFERROR(Y80*Calculations!$I$64,0) -> 0 | AC80: =IFERROR(Z80*Calculations!$I$65,0) -> 0 | AD80: =IFERROR(AA80*Calculations!$I$67,0) -> 27900 | AE80: 0 | AF80: 27900 | AG80: 27900 | AH80: =IFERROR(Y80*Calculations!$J$64,0) -> 0 | AI80: =IFERROR(Z80*Calculations!$J$65,0) -> 0 | AJ80: =IFERROR(AA80*Calculations!$J$67,0) -> 27900 | AK80: 0 | AL80: 27900 | AM80: 0.75 | AN80: 1 | AO80: 1.25 | AP80: FALSE | AQ80: =IFERROR(AN80<=Inputs!$P$51,FALSE) -> TRUE | AR80: =IF($G80="yes",IFERROR(Y80/Calculations!$C$228*Calculations!$G$228,0),0) -> 0 | AS80: =IF($G80="yes",IFERROR(Z80/Calculations!$C$232*Calculations!$G$232,0),0) -> 0 | AT80: 0 | AU80: FALSE | AV80: https://www.ecoefficiencygroup.com.au/wp-content/uploads/2017/11/ecomeat_manual.pdf
A81: Assess renewables | B81: Install covered anaerobic lagoons (CALs) and capture biogas for boiler fuel. | C81: yes | D81: yes | E81: yes | G81: yes | I81: FALSE | J81: FALSE | L81: FALSE | M81: nil | N81: TRUE | O81: not applied | P81: TRUE | Q81: 0.15 | R81: 0.1 | S81: 0 | U81: 3.75 | V81: 5 | W81: 6.25 | X81: 1 | Y81: =IFERROR(IF(Inputs!$D$29='Drop-downs'!$K$21,R81,Q81)*Calculations!$D$64,0)/1000 -> 29250 | Z81: =IFERROR(S81*Calculations!$D$65,0) -> 0 | AA81: =IFERROR(T81*Calculations!$D$67,0) -> 0 | AB81: =IFERROR(Y81*Calculations!$I$64,0) -> 37200 | AC81: =IFERROR(Z81*Calculations!$I$65,0) -> 0 | AD81: =IFERROR(AA81*Calculations!$I$67,0) -> 0 | AE81: 0 | AF81: 37200 | AG81: 186000 | AH81: =IFERROR(Y81*Calculations!$J$64,0) -> 37200 | AI81: =IFERROR(Z81*Calculations!$J$65,0) -> 0 | AJ81: =IFERROR(AA81*Calculations!$J$67,0) -> 0 | AK81: 0 | AL81: 37200 | AM81: 3.75 | AN81: 5 | AO81: 6.25 | AP81: FALSE | AQ81: =IFERROR(AN81<=Inputs!$P$51,FALSE) -> TRUE | AR81: =IF($G81="yes",IFERROR(Y81/Calculations!$C$228*Calculations!$G$228,0),0) -> 1507.2525 | AS81: =IF($G81="yes",IFERROR(Z81/Calculations!$C$232*Calculations!$G$232,0),0) -> 0 | AT81: 1507.2525 | AU81: FALSE | AV81: https://www.ampc.com.au/2011/09/Using-Covered-Anaerobic-Ponds-to-Treat-Abattoir-Wastewater-Reduce-Greenhouse-Gases-and-Generate-Bio-Energy
A82: Assess renewables | B82: Install biomass (including dried paunch) boiler for steam generation. This project is generally attractive if a low cost waste wood or other biomass source is available. Prices as low as a $3/GJ have been seen in the market (2017). The business case is based on the cost of biomass to be 10% to 20% of the LPG price and 20% to 30% of natural gas price. | D82: yes | E82: yes | G82: yes | J82: FALSE | L82: FALSE | M82: nil | N82: TRUE | O82: not applied | P82: TRUE | Q82: 1 | R82: 1 | S82: 0 | U82: 3 | V82: 5 | W82: 7 | X82: 1 | Y82: =IFERROR(IF(Inputs!$D$29='Drop-downs'!$K$21,R82,Q82)*Calculations!$D$64,0)/1000 -> 195000 | Z82: =IFERROR(S82*Calculations!$D$65,0) -> 0 | AA82: =IFERROR(T82*Calculations!$D$67,0) -> 0 | AB82: =IFERROR(Y82*Calculations!$I$64,0) -> 248000 | AC82: =IFERROR(Z82*Calculations!$I$65,0) -> 0 | AD82: =IFERROR(AA82*Calculations!$I$67,0) -> 0 | AE82: 0 | AF82: 248000 | AG82: 1240000 | AH82: =IFERROR(Y82*Calculations!$J$64,0) -> 248000 | AI82: =IFERROR(Z82*Calculations!$J$65,0) -> 0 | AJ82: =IFERROR(AA82*Calculations!$J$67,0) -> 0 | AK82: 0 | AL82: 248000 | AM82: 3.75 | AN82: 5 | AO82: 6.25 | AP82: FALSE | AQ82: =IFERROR(AN82<=Inputs!$P$51,FALSE) -> TRUE | AR82: =IF($G82="yes",IFERROR(Y82/Calculations!$C$228*Calculations!$G$228,0),0) -> 10048.35 | AS82: =IF($G82="yes",IFERROR(Z82/Calculations!$C$232*Calculations!$G$232,0),0) -> 0 | AT82: 10048.35 | AU82: FALSE | AV82: https://www.ampc.com.au/2010/08/Use-of-Paunch-Waste-as-a-Boiler-Fuel
A83: Assess renewables | B83: Install a biomass boiler to generate steam and a steam turbine for electricity generation. The steam turbine offsets some or all of the electricity use on site and the remaining low pressure steam is used for hot water generation and, if applicable, in the rendering plant. | D83: yes | E83: yes | F83: yes | G83: yes | J83: FALSE | K83: TRUE | L83: TRUE | M83: nil | N83: TRUE | O83: not applied | P83: TRUE | Q83: 0.3 | R83: 0.5 | S83: 1 | U83: 4 | V83: 5 | W83: 6 | X83: 1 | Y83: =IFERROR(IF(Inputs!$D$29='Drop-downs'!$K$21,R83,Q83)*Calculations!$D$64,0)/1000 -> 58500 | Z83: =IFERROR(S83*Calculations!$D$65,0) -> 14000000 | AA83: =IFERROR(T83*Calculations!$D$67,0) -> 0 | AB83: =IFERROR(Y83*Calculations!$I$64,0) -> 74400 | AC83: =IFERROR(Z83*Calculations!$I$65,0) -> 2150000 | AD83: =IFERROR(AA83*Calculations!$I$67,0) -> 0 | AE83: 0 | AF83: 2224400 | AG83: 11122000 | AH83: =IFERROR(Y83*Calculations!$J$64,0) -> 74400 | AI83: =IFERROR(Z83*Calculations!$J$65,0) -> 2150000 | AJ83: =IFERROR(AA83*Calculations!$J$67,0) -> 0 | AK83: 0 | AL83: 2224400 | AM83: 3.75 | AN83: 5 | AO83: 6.25 | AP83: FALSE | AQ83: =IFERROR(AN83<=Inputs!$P$51,FALSE) -> TRUE | AR83: =IF($G83="yes",IFERROR(Y83/Calculations!$C$228*Calculations!$G$228,0),0) -> 3014.505 | AS83: =IF($G83="yes",IFERROR(Z83/Calculations!$C$232*Calculations!$G$232,0),0) -> 13720 | AT83: 16734.505 | AU83: TRUE | AV83: https://www.ampc.com.au/uploads/cgblog/id151/ENV_2010_Economic_&_technical_potential_ENV.0102-final-report1.pdf
A84: Assess renewables | B84: Consider installation of solar PV array on a floating platform using the wastewater ponds. | F84: yes | G84: yes | I84: =IF(C84="Yes",INDEX(Opportunity_Category_Display_Matrix,MATCH($A84,Opportunity_Category,0),MATCH(I$20,Performance_Descriptor_List,0)),"") ->  | J84: =IF(OR(D84="Yes",E84="Yes"),INDEX(Opportunity_Category_Display_Matrix,MATCH($A84,Opportunity_Category,0),MATCH(J$20,Performance_Descriptor_List,0)),"") ->  | K84: =IF(F84="Yes",INDEX(Opportunity_Category_Display_Matrix,MATCH($A84,Opportunity_Category,0),MATCH(K$20,Performance_Descriptor_List,0)),"") -> TRUE | L84: =IFERROR(OR(I84,J84,K84),FALSE) -> TRUE | M84: nil | N84: TRUE | O84: not applied | P84: TRUE | Q84: 0 | R84: 0 | S84: 0.05 | U84: 3 | V84: 4 | W84: 6 | X84: 1 | Y84: =IFERROR(IF(Inputs!$D$29='Drop-downs'!$K$21,R84,Q84)*Calculations!$D$64,0)/1000 -> 0 | Z84: =IFERROR(S84*Calculations!$D$65,0) -> 700000 | AA84: =IFERROR(T84*Calculations!$D$67,0) -> 0 | AB84: =IFERROR(Y84*Calculations!$I$64,0) -> 0 | AC84: =IFERROR(Z84*Calculations!$I$65,0) -> 107500 | AD84: =IFERROR(AA84*Calculations!$I$67,0) -> 0 | AE84: =SUM(AH84:AJ84)*(X84-1) -> 0 | AF84: =SUM(AB84:AE84) -> 107500 | AG84: =IFERROR(AF84*V84,AF84*10) -> 430000 | AH84: =IFERROR(Y84*Calculations!$J$64,0) -> 0 | AI84: =IFERROR(Z84*Calculations!$J$65,0) -> 107500 | AJ84: =IFERROR(AA84*Calculations!$J$67,0) -> 0 | AK84: =SUM(AH84:AJ84)*(X84-1) -> 0 | AL84: =SUM(AH84:AK84) -> 107500 | AM84: =IFERROR(AN84*(1+$V$15),AN84) -> 3 | AN84: =IF(AG84<=0,0,AG84/AL84) -> 4 | AO84: =IFERROR(AN84*(1+$V$16),AN84) -> 5 | AP84: =AL84<=0 -> FALSE | AQ84: =IFERROR(AN84<=Inputs!$P$51,FALSE) -> TRUE | AR84: =IF($G84="yes",IFERROR(Y84/Calculations!$C$228*Calculations!$G$228,0),0) -> 0 | AS84: =IF($G84="yes",IFERROR(Z84/Calculations!$C$232*Calculations!$G$232,0),0) -> 686 | AT84: 686 | AU84: =AND(L84,N84,P84,NOT(AP84),AQ84) -> TRUE | AV84: https://rohanhamden.com.au/assets/1613-Floating-Solar-brochure-WEB.pdf
A85: Assess renewables | B85: Consider the installation of solar PV electricity generation. | F85: yes | G85: yes | K85: TRUE | L85: TRUE | M85: nil | N85: TRUE | O85: not applied | P85: TRUE | Q85: 0 | R85: 0 | S85: 0.2 | U85: 3 | V85: 4 | W85: 5 | X85: 1 | Y85: =IFERROR(IF(Inputs!$D$29='Drop-downs'!$K$21,R85,Q85)*Calculations!$D$64,0)/1000 -> 0 | Z85: =IFERROR(S85*Calculations!$D$65,0) -> 2800000 | AA85: =IFERROR(T85*Calculations!$D$67,0) -> 0 | AB85: =IFERROR(Y85*Calculations!$I$64,0) -> 0 | AC85: =IFERROR(Z85*Calculations!$I$65,0) -> 430000 | AD85: =IFERROR(AA85*Calculations!$I$67,0) -> 0 | AE85: 0 | AF85: 430000 | AG85: 1720000 | AH85: =IFERROR(Y85*Calculations!$J$64,0) -> 0 | AI85: =IFERROR(Z85*Calculations!$J$65,0) -> 430000 | AJ85: =IFERROR(AA85*Calculations!$J$67,0) -> 0 | AK85: 0 | AL85: 430000 | AM85: 3 | AN85: 4 | AO85: 5 | AP85: FALSE | AQ85: =IFERROR(AN85<=Inputs!$P$51,FALSE) -> TRUE | AR85: =IF($G85="yes",IFERROR(Y85/Calculations!$C$228*Calculations!$G$228,0),0) -> 0 | AS85: =IF($G85="yes",IFERROR(Z85/Calculations!$C$232*Calculations!$G$232,0),0) -> 2744 | AT85: 2744 | AU85: =AND(L85,N85,P85,NOT(AP85),AQ85) -> TRUE | AV85: https://www.ampc.com.au/2014/03/Extension-guide-Renewable-Energy-and-Energy-Storage-Technologies-Applicable-to-Red-Meat-Processing-Manufacturing-businesses
A86: Assess renewables | B86: Install wind turbine(s) if you have sufficient land along side your plant operation. The first step is to assess the wind speeds and duration of wind in your area. | F86: yes | G86: yes | K86: TRUE | L86: TRUE | M86: nil | N86: TRUE | O86: not applied | P86: TRUE | Q86: 0 | R86: 0 | S86: 0.3 | U86: 4 | V86: 5 | W86: 6 | X86: 1 | Y86: =IFERROR(IF(Inputs!$D$29='Drop-downs'!$K$21,R86,Q86)*Calculations!$D$64,0)/1000 -> 0 | Z86: =IFERROR(S86*Calculations!$D$65,0) -> 4200000 | AA86: =IFERROR(T86*Calculations!$D$67,0) -> 0 | AB86: =IFERROR(Y86*Calculations!$I$64,0) -> 0 | AC86: =IFERROR(Z86*Calculations!$I$65,0) -> 645000 | AD86: =IFERROR(AA86*Calculations!$I$67,0) -> 0 | AE86: 0 | AF86: 645000 | AG86: 3225000 | AH86: =IFERROR(Y86*Calculations!$J$64,0) -> 0 | AI86: =IFERROR(Z86*Calculations!$J$65,0) -> 645000 | AJ86: =IFERROR(AA86*Calculations!$J$67,0) -> 0 | AK86: 0 | AL86: 645000 | AM86: 3.75 | AN86: 5 | AO86: 6.25 | AP86: FALSE | AQ86: =IFERROR(AN86<=Inputs!$P$51,FALSE) -> TRUE | AR86: =IF($G86="yes",IFERROR(Y86/Calculations!$C$228*Calculations!$G$228,0),0) -> 0 | AS86: =IF($G86="yes",IFERROR(Z86/Calculations!$C$232*Calculations!$G$232,0),0) -> 4116 | AT86: 4116 | AU86: =AND(L86,N86,P86,NOT(AP86),AQ86) -> TRUE | AV86: https://www.ampc.com.au/2014/03/Extension-guide-Renewable-Energy-and-Energy-Storage-Technologies-Applicable-to-Red-Meat-Processing-Manufacturing-businesses
A87: Assess cogeneration | B87: Install combined heat and power (CHP) plant (cogeneration or trigeneration) using an existing fuel source. | D87: yes | E87: yes | F87: yes | G87: yes | J87: FALSE | K87: TRUE | L87: =IFERROR(OR(I87,J87,K87),FALSE) -> TRUE | M87: nil | N87: TRUE | O87: not applied | P87: TRUE | Q87: -0.5 | R87: -0.3 | S87: 0.75 | U87: 4 | V87: 6 | W87: 8 | X87: 1 | Y87: =IFERROR(IF(Inputs!$D$29='Drop-downs'!$K$21,R87,Q87)*Calculations!$D$64,0)/1000 -> -97500 | Z87: =IFERROR(S87*Calculations!$D$65,0) -> 10500000 | AA87: =IFERROR(T87*Calculations!$D$67,0) -> 0 | AB87: =IFERROR(Y87*Calculations!$I$64,0) -> -124000 | AC87: =IFERROR(Z87*Calculations!$I$65,0) -> 1612500 | AD87: =IFERROR(AA87*Calculations!$I$67,0) -> 0 | AE87: 0 | AF87: 1488500 | AG87: 8931000 | AH87: =IFERROR(Y87*Calculations!$J$64,0) -> -124000 | AI87: =IFERROR(Z87*Calculations!$J$65,0) -> 1612500 | AJ87: =IFERROR(AA87*Calculations!$J$67,0) -> 0 | AK87: 0 | AL87: =SUM(AH87:AK87) -> 1488500 | AM87: 4.5 | AN87: 6 | AO87: 7.5 | AP87: FALSE | AQ87: =IFERROR(AN87<=Inputs!$P$51,FALSE) -> TRUE | AR87: =IF($G87="yes",IFERROR(Y87/Calculations!$C$228*Calculations!$G$228,0),0) -> -5024.175 | AS87: =IF($G87="yes",IFERROR(Z87/Calculations!$C$232*Calculations!$G$232,0),0) -> 10290 | AT87: =AR87+AS87 -> 5265.825 | AU87: =AND(L87,N87,P87,NOT(AP87),AQ87) -> TRUE | AV87: https://www.ampc.com.au/uploads/pdf/Environment-Sustainability/2016-1002-Final-Report-Investigation-Into-Modular-Micro-Turbine-Cogenerators.pdf
A88: Assess renewables | B88: Install evacuated tube solar hot water systems | E88: yes | G88: yes | I88: =IF(C88="Yes",INDEX(Opportunity_Category_Display_Matrix,MATCH($A88,Opportunity_Category,0),MATCH(I$20,Performance_Descriptor_List,0)),"") ->  | J88: =IF(OR(D88="Yes",E88="Yes"),INDEX(Opportunity_Category_Display_Matrix,MATCH($A88,Opportunity_Category,0),MATCH(J$20,Performance_Descriptor_List,0)),"") -> FALSE | K88: =IF(F88="Yes",INDEX(Opportunity_Category_Display_Matrix,MATCH($A88,Opportunity_Category,0),MATCH(K$20,Performance_Descriptor_List,0)),"") ->  | L88: =IFERROR(OR(I88,J88,K88),FALSE) -> FALSE | M88: nil | N88: TRUE | O88: not applied | P88: TRUE | Q88: 0.01 | R88: 0.01 | S88: 0 | U88: 3 | V88: 4 | W88: 6 | X88: 1 | Y88: =IFERROR(IF(Inputs!$D$29='Drop-downs'!$K$21,R88,Q88)*Calculations!$D$64,0)/1000 -> 1950 | Z88: =IFERROR(S88*Calculations!$D$65,0) -> 0 | AA88: =IFERROR(T88*Calculations!$D$67,0) -> 0 | AB88: =IFERROR(Y88*Calculations!$I$64,0) -> 2480 | AC88: =IFERROR(Z88*Calculations!$I$65,0) -> 0 | AD88: =IFERROR(AA88*Calculations!$I$67,0) -> 0 | AE88: 0 | AF88: 2480 | AG88: 9920 | AH88: =IFERROR(Y88*Calculations!$J$64,0) -> 2480 | AI88: =IFERROR(Z88*Calculations!$J$65,0) -> 0 | AJ88: =IFERROR(AA88*Calculations!$J$67,0) -> 0 | AK88: 0 | AL88: =SUM(AH88:AK88) -> 2480 | AM88: 3 | AN88: 4 | AO88: 5 | AP88: FALSE | AQ88: =IFERROR(AN88<=Inputs!$P$51,FALSE) -> TRUE | AR88: =IF($G88="yes",IFERROR(Y88/Calculations!$C$228*Calculations!$G$228,0),0) -> 100.4835 | AS88: =IF($G88="yes",IFERROR(Z88/Calculations!$C$232*Calculations!$G$232,0),0) -> 0 | AT88: 100.4835 | AU88: =AND(L88,N88,P88,NOT(AP88),AQ88) -> FALSE | AV88: https://www.ampc.com.au/2014/03/Extension-guide-Renewable-Energy-and-Energy-Storage-Technologies-Applicable-to-Red-Meat-Processing-Manufacturing-businesses
A89: Install efficient equipment | B89: Invest in more advanced options for water recycle and reuse within the plant | C89: yes | G89: yes | I89: =IF(C89="Yes",INDEX(Opportunity_Category_Display_Matrix,MATCH($A89,Opportunity_Category,0),MATCH(I$20,Performance_Descriptor_List,0)),"") -> TRUE | J89: =IF(OR(D89="Yes",E89="Yes"),INDEX(Opportunity_Category_Display_Matrix,MATCH($A89,Opportunity_Category,0),MATCH(J$20,Performance_Descriptor_List,0)),"") ->  | K89: =IF(F89="Yes",INDEX(Opportunity_Category_Display_Matrix,MATCH($A89,Opportunity_Category,0),MATCH(K$20,Performance_Descriptor_List,0)),"") ->  | L89: =IFERROR(OR(I89,J89,K89),FALSE) -> TRUE | M89: Insufficient water recycling | N89: =Inputs!$D$83<0.4*Inputs!$D$81 -> TRUE | O89: not applied | P89: TRUE | Q89: 0 | R89: 0 | S89: 0 | T89: 0.1 | U89: 2 | V89: 4 | W89: 6 | X89: 1 | Y89: =IFERROR(IF(Inputs!$D$29='Drop-downs'!$K$21,R89,Q89)*Calculations!$D$64,0)/1000 -> 0 | Z89: =IFERROR(S89*Calculations!$D$65,0) -> 0 | AA89: =IFERROR(T89*Calculations!$D$67,0) -> 60000 | AB89: =IFERROR(Y89*Calculations!$I$64,0) -> 0 | AC89: =IFERROR(Z89*Calculations!$I$65,0) -> 0 | AD89: =IFERROR(AA89*Calculations!$I$67,0) -> 232500 | AE89: 0 | AF89: 232500 | AG89: 930000 | AH89: =IFERROR(Y89*Calculations!$J$64,0) -> 0 | AI89: =IFERROR(Z89*Calculations!$J$65,0) -> 0 | AJ89: =IFERROR(AA89*Calculations!$J$67,0) -> 232500 | AK89: =SUM(AH89:AJ89)*(X89-1) -> 0 | AL89: 232500 | AM89: 3 | AN89: 4 | AO89: 5 | AP89: FALSE | AQ89: =IFERROR(AN89<=Inputs!$P$51,FALSE) -> TRUE | AR89: =IF($G89="yes",IFERROR(Y89/Calculations!$C$228*Calculations!$G$228,0),0) -> 0 | AS89: =IF($G89="yes",IFERROR(Z89/Calculations!$C$232*Calculations!$G$232,0),0) -> 0 | AT89: 0 | AU89: TRUE | AV89: https://www.ampc.com.au/uploads/cgblog/id165/CAP_2008_Review-of-Abattoir-water-usage-reduction-recycling-and-reuse__Final-report.pdf
A90: Improve process technology | B90: Install ammonia heat pump heat recovery system using existing waste heat available from the site refrigeration system. | E90: yes | G90: yes | I90: =IF(C90="Yes",INDEX(Opportunity_Category_Display_Matrix,MATCH($A90,Opportunity_Category,0),MATCH(I$20,Performance_Descriptor_List,0)),"") ->  | J90: =IF(OR(D90="Yes",E90="Yes"),INDEX(Opportunity_Category_Display_Matrix,MATCH($A90,Opportunity_Category,0),MATCH(J$20,Performance_Descriptor_List,0)),"") -> TRUE | K90: =IF(F90="Yes",INDEX(Opportunity_Category_Display_Matrix,MATCH($A90,Opportunity_Category,0),MATCH(K$20,Performance_Descriptor_List,0)),"") ->  | L90: =IFERROR(OR(I90,J90,K90),FALSE) -> TRUE | N90: TRUE | O90: not applied | P90: TRUE | Q90: 0.12 | R90: 0.12 | S90: -0.02 | U90: 4 | V90: 6 | W90: 8 | X90: 1 | Y90: =IFERROR(IF(Inputs!$D$29='Drop-downs'!$K$21,R90,Q90)*Calculations!$D$64,0)/1000 -> 23400 | Z90: =IFERROR(S90*Calculations!$D$65,0) -> -280000 | AA90: =IFERROR(T90*Calculations!$D$67,0) -> 0 | AB90: =IFERROR(Y90*Calculations!$I$64,0) -> 29760 | AC90: =IFERROR(Z90*Calculations!$I$65,0) -> -43000 | AD90: =IFERROR(AA90*Calculations!$I$67,0) -> 0 | AE90: =SUM(AH90:AJ90)*(X90-1) -> 0 | AF90: =SUM(AB90:AE90) -> -13240 | AG90: =IFERROR(AF90*V90,AF90*10) -> -79440 | AH90: =IFERROR(Y90*Calculations!$J$64,0) -> 29760 | AI90: =IFERROR(Z90*Calculations!$J$65,0) -> -43000 | AJ90: =IFERROR(AA90*Calculations!$J$67,0) -> 0 | AK90: 0 | AL90: =SUM(AH90:AK90) -> -13240 | AM90: =IFERROR(AN90*(1+$V$15),AN90) -> 0 | AN90: =IF(AG90<=0,0,AG90/AL90) -> 0 | AO90: =IFERROR(AN90*(1+$V$16),AN90) -> 0 | AP90: =AL90<=0 -> TRUE | AQ90: =IFERROR(AN90<=Inputs!$P$51,FALSE) -> TRUE | AR90: =IF($G90="yes",IFERROR(Y90/Calculations!$C$228*Calculations!$G$228,0),0) -> 1205.802 | AS90: =IF($G90="yes",IFERROR(Z90/Calculations!$C$232*Calculations!$G$232,0),0) -> -274.4 | AT90: 931.402 | AU90: FALSE | AV90: https://www.ampc.com.au/uploads/cgblog/id28/Heat-Recovery-From-Refrigeration-Plant.pdf
A91: Improve process technology | B91: Replace batch rendering with continuous rendering equipment. | D91: yes | E91: yes | G91: yes | J91: TRUE | L91: TRUE | M91: Batch rendering | N91: =OR(Inputs!$D$29='Drop-downs'!$K$19,Inputs!$D$29='Drop-downs'!$K$20) -> FALSE | O91: not applied | P91: TRUE | Q91: 0.1 | U91: 3 | V91: 4 | W91: 6 | X91: 1 | Y91: =IFERROR(IF(Inputs!$D$29='Drop-downs'!$K$21,R91,Q91)*Calculations!$D$64,0)/1000 -> 19500 | Z91: =IFERROR(S91*Calculations!$D$65,0) -> 0 | AA91: =IFERROR(T91*Calculations!$D$67,0) -> 0 | AB91: =IFERROR(Y91*Calculations!$I$64,0) -> 24800 | AC91: =IFERROR(Z91*Calculations!$I$65,0) -> 0 | AD91: =IFERROR(AA91*Calculations!$I$67,0) -> 0 | AE91: =SUM(AH91:AJ91)*(X91-1) -> 0 | AF91: =SUM(AB91:AE91) -> 24800 | AG91: =IFERROR(AF91*V91,AF91*10) -> 99200 | AH91: =IFERROR(Y91*Calculations!$J$64,0) -> 24800 | AI91: =IFERROR(Z91*Calculations!$J$65,0) -> 0 | AJ91: =IFERROR(AA91*Calculations!$J$67,0) -> 0 | AK91: 0 | AL91: =SUM(AH91:AK91) -> 24800 | AM91: =IFERROR(AN91*(1+$V$15),AN91) -> 3 | AN91: =IF(AG91<=0,0,AG91/AL91) -> 4 | AO91: =IFERROR(AN91*(1+$V$16),AN91) -> 5 | AP91: FALSE | AQ91: =IFERROR(AN91<=Inputs!$P$51,FALSE) -> TRUE | AR91: =IF($G91="yes",IFERROR(Y91/Calculations!$C$228*Calculations!$G$228,0),0) -> 1004.835 | AS91: =IF($G91="yes",IFERROR(Z91/Calculations!$C$232*Calculations!$G$232,0),0) -> 0 | AT91: 1004.835 | AU91: =AND(L91,N91,P91,NOT(AP91),AQ91) -> FALSE
AV96: https://www.environment.nsw.gov.au/resources/business/IndustrialRefrigerationTechnologyReport.pdf
AV99: https://www.sustainability.vic.gov.au/Business/Efficient-business-operations/Energy-efficiency-for-business/Energy-efficiency-best-practice-guidelines
A100: Updates to opportunities
A102: · Ammonia heat pump | B102: · Stormwater collection
A103: · Biomass boiler | B103: · Floating solar PV
A104: · Refrigeration improvements | B104: · Composting
B107: Composting??? - what are the water and energy benefits?

Sheet Opp Library - PT (hidden)
A2: Present benchmarking results and quantified improvement opportunities to the user. The top 4 opportunities that save the most cost per annum for each benchmark category are presented to the user.
A4: Method (presented in reverse due to the pivot tables and lookup formula)
A6: 1) create pivot tables of the opportunities list, applying filters to identify key metrics
A7: 2) summarise these pivot tables via offest formula to make presentation to the end output sheet easier.
A8: 3) apply rounding to provide approximate savings figures to the end user so as not to offer false precision
A11: =A8 -> 3) apply rounding to provide approximate savings figures to the end user so as not to offer false precision
A14: number of significant figures for $ values: | B14: 2
A15: number of significant figures for payback period: | B15: 1
A16: number of significant figures to round benchmark figures to | B16: 2
A18: Opportunity Description | B18: Savings $ / year total | C18: CAPEX | D18: Payback Min | E18: Payback Max | F18: URL | G18: Scope 1 Emissions Saving
A19: Thermal
A20: =A45 -> Opportunity Description | B20: =C45 -> Sum of back-calculated actual saving ($ / yr)-Total | C20: =G45 -> Sum of back-calculated adjusted CAPEX | D20: =H45 -> Min of adjusted payback (years)-lower | E20: =I45 -> Max of adjusted payback (years)-upper | F20: =B45 -> Hyperlink to URL
A21: =A46 -> Enhance heat transfer on fire tube boiler with turbulators. | B21: =IF(C46=0,0,ROUND(C46,$B$14-(1+INT(LOG10(ABS(C46)))))) -> 3700 | C21: =IF(G46=0,0,ROUND(G46,$B$14-(1+INT(LOG10(ABS(G46)))))) -> 3700 | D21: =IF(H46=0,0,ROUND(H46,$B$15-(1+INT(LOG10(ABS(H46)))))) -> 0.8 | E21: =IF(I46=0,0,ROUND(I46,$B$15-(1+INT(LOG10(ABS(I46)))))) -> 1 | F21: =IF(OR(LEN(B46)=1,B46="(blank)"),"",B46) ->  | G21: =IF(J46=0,0,ROUND(J46,$B$14-(1+INT(LOG10(ABS(J46)))))) -> 150
A22: =A47 -> Install odour bio-filter to replace gas fired burners used to destroy odours from the rendering plant. | B22: =IF(C47=0,0,ROUND(C47,$B$14-(1+INT(LOG10(ABS(C47)))))) -> 7400 | C22: =IF(G47=0,0,ROUND(G47,$B$14-(1+INT(LOG10(ABS(G47)))))) -> 45000 | D22: =IF(H47=0,0,ROUND(H47,$B$15-(1+INT(LOG10(ABS(H47)))))) -> 5 | E22: =IF(I47=0,0,ROUND(I47,$B$15-(1+INT(LOG10(ABS(I47)))))) -> 8 | F22: =IF(OR(LEN(B47)=1,B47="(blank)"),"",B47) ->  | G22: =IF(J47=0,0,ROUND(J47,$B$14-(1+INT(LOG10(ABS(J47)))))) -> 200
A23: =A48 -> Install a heat recovery system on the air compressor oil cooling circuit to produce hot water suitable for process cleaning (temperatures up to 70 degrees C). This opportunity may not be applicable if the plant already has enough hot water or there is insufficient hot water storage. | B23: 2500 | C23: =IF(G48=0,0,ROUND(G48,$B$14-(1+INT(LOG10(ABS(G48)))))) -> 7400 | D23: 2 | E23: 4 | G23: 100
A24: =A49 -> Install a condensing economiser on one or more boilers. This project may be feasible if the site needs to generate additional hot water for the steam or hot water boiler. There may be a need to install additional hot water storage to capture the hot water generated from the condensing economiser. | B24: 12000 | C24: =IF(G49=0,0,ROUND(G49,$B$14-(1+INT(LOG10(ABS(G49)))))) -> 50000 | D24: 3 | E24: 5 | F24: https://www.sustainability.vic.gov.au/-/media/SV/Publications/Business/Efficient-business-operations/Energy-efficiency-for-business/Energy-efficiency-best-practice-guidelines/SRSB-BPG-Heating-Manual-Mar-2015.pdf?la=en | G24: 500
A26: =A51 -> Electricity
A27: Opportunity Description | B27: =C52 -> Sum of back-calculated actual saving ($ / yr)-Total | C27: =G52 -> Sum of back-calculated adjusted CAPEX | D27: =H52 -> Min of adjusted payback (years)-lower | E27: =I52 -> Max of adjusted payback (years)-upper | F27: =B52 -> Hyperlink to URL | G27: Scope 2 Emissions Saving
A28: Consider the installation of solar PV electricity generation. | B28: =IF(C53=0,0,ROUND(C53,$B$14-(1+INT(LOG10(ABS(C53)))))) -> 430000 | C28: =IF(G53=0,0,ROUND(G53,$B$14-(1+INT(LOG10(ABS(G53)))))) -> 1700000 | D28: =IF(H53=0,0,ROUND(H53,$B$15-(1+INT(LOG10(ABS(H53)))))) -> 3 | E28: 5 | F28: =IF(OR(LEN(B53)=1,B53="(blank)"),"",B53) -> https://www.ampc.com.au/2014/03/Extension-guide-Renewable-Energy-and-Energy-Storage-Technologies-Applicable-to-Red-Meat-Processing-Manufacturing-businesses | G28: =IF(K53=0,0,ROUND(K53,$B$14-(1+INT(LOG10(ABS(K53)))))) -> 2700
A29: Install a biomass boiler to generate steam and a steam turbine for electricity generation. The steam turbine offsets some or all of the electricity use on site and the remaining low pressure steam is used for hot water generation and, if applicable, in the rendering plant. | B29: =IF(C54=0,0,ROUND(C54,$B$14-(1+INT(LOG10(ABS(C54)))))) -> 2200000 | C29: =IF(G54=0,0,ROUND(G54,$B$14-(1+INT(LOG10(ABS(G54)))))) -> 11000000 | D29: 4 | E29: 6 | F29: https://www.ampc.com.au/uploads/cgblog/id151/ENV_2010_Economic_&_technical_potential_ENV.0102-final-report1.pdf | G29: =IF(K54=0,0,ROUND(K54,$B$14-(1+INT(LOG10(ABS(K54)))))) -> 14000
A30: Install wind turbine(s) if you have sufficient land along side your plant operation. The first step is to assess the wind speeds and duration of wind in your area. | B30: 650000 | C30: =IF(G55=0,0,ROUND(G55,$B$14-(1+INT(LOG10(ABS(G55)))))) -> 3200000 | D30: 4 | E30: 6 | F30: https://www.ampc.com.au/2014/03/Extension-guide-Renewable-Energy-and-Energy-Storage-Technologies-Applicable-to-Red-Meat-Processing-Manufacturing-businesses | G30: 4100
A31: Install combined heat and power (CHP) plant (cogeneration or trigeneration) using an existing fuel source. | B31: 1500000 | C31: =IF(G56=0,0,ROUND(G56,$B$14-(1+INT(LOG10(ABS(G56)))))) -> 8900000 | D31: 5 | E31: 8 | F31: https://www.ampc.com.au/uploads/pdf/Environment-Sustainability/2016-1002-Final-Report-Investigation-Into-Modular-Micro-Turbine-Cogenerators.pdf | G31: 10000
A33: =A58 -> Water
A34: Opportunity Description | B34: =C59 -> Sum of back-calculated actual saving ($ / yr)-Total | C34: =G59 -> Sum of back-calculated adjusted CAPEX | D34: =H59 -> Min of adjusted payback (years)-lower | E34: =I59 -> Max of adjusted payback (years)-upper | F34: =B59 -> Hyperlink to URL
A35: Replace pot-style sterilisers with spray sterilisers. | B35: =IF(C60=0,0,ROUND(C60,$B$14-(1+INT(LOG10(ABS(C60)))))) -> 12000 | C35: =IF(G60=0,0,ROUND(G60,$B$14-(1+INT(LOG10(ABS(G60)))))) -> 5800 | D35: =IF(H60=0,0,ROUND(H60,$B$15-(1+INT(LOG10(ABS(H60)))))) -> 0.4 | E35: 0.6 | F35: =IF(OR(LEN(B60)=1,B60="(blank)"),"",B60) -> https://www.ecoefficiencygroup.com.au/wp-content/uploads/2017/11/ecomeat_manual.pdf
A36: Automatic spray washer for edible offal. Automatic spray washers for offal washing can reduce water use for offal washing by around 50%. | B36: =IF(C61=0,0,ROUND(C61,$B$14-(1+INT(LOG10(ABS(C61)))))) -> 35000 | C36: =IF(G61=0,0,ROUND(G61,$B$14-(1+INT(LOG10(ABS(G61)))))) -> 210000 | D36: 5 | E36: 8 | F36: https://www.ecoefficiencygroup.com.au/wp-content/uploads/2017/11/ecomeat_manual.pdf
A37: Install energy and water flow meters for major loads and monitor use via a central process control system or web based system. Extend system to provide online alarms and SMS alerts available remotely. | B37: 94000 | C37: =IF(G62=0,0,ROUND(G62,$B$14-(1+INT(LOG10(ABS(G62)))))) -> 190000 | D37: 2 | E37: 3
A38: Install storm water recovery and collection systems to reduce water used for washing cattle and potentially some process water uses. | B38: 47000 | C38: =IF(G63=0,0,ROUND(G63,$B$14-(1+INT(LOG10(ABS(G63)))))) -> 93000 | D38: 2 | E38: 3 | F38: https://www.ecoefficiencygroup.com.au/wp-content/uploads/2017/11/ecomeat_manual.pdf
A42: =A7 -> 2) summarise these pivot tables via offest formula to make presentation to the end output sheet easier.
A44: Thermal
A45: =OFFSET($A$70,MATCH('Opportunity Library'!$J$22,'Opp Library - PT'!$A$71:$A$365,0)+3+(ROW(A45)-ROW($A$46)),COLUMN(A45)-COLUMN($A$46)) -> Opportunity Description | B45: =OFFSET($A$70,MATCH('Opportunity Library'!$J$22,'Opp Library - PT'!$A$71:$A$365,0)+3+(ROW(B45)-ROW($A$46)),COLUMN(B45)-COLUMN($A$46)) -> Hyperlink to URL | C45: =OFFSET($A$70,MATCH('Opportunity Library'!$J$22,'Opp Library - PT'!$A$71:$A$365,0)+3+(ROW(C45)-ROW($A$46)),COLUMN(C45)-COLUMN($A$46)) -> Sum of back-calculated actual saving ($ / yr)-Total | D45: =OFFSET($A$70,MATCH('Opportunity Library'!$J$22,'Opp Library - PT'!$A$71:$A$365,0)+3+(ROW(D45)-ROW($A$46)),COLUMN(D45)-COLUMN($A$46)) -> Sum of back-calculated actual saving ($ / yr)-thermal | E45: =OFFSET($A$70,MATCH('Opportunity Library'!$J$22,'Opp Library - PT'!$A$71:$A$365,0)+3+(ROW(E45)-ROW($A$46)),COLUMN(E45)-COLUMN($A$46)) -> Sum of back-calculated actual saving ($ / yr)-elec | F45: =OFFSET($A$70,MATCH('Opportunity Library'!$J$22,'Opp Library - PT'!$A$71:$A$365,0)+3+(ROW(F45)-ROW($A$46)),COLUMN(F45)-COLUMN($A$46)) -> Sum of back-calculated actual saving ($ / yr)-water | G45: =OFFSET($A$70,MATCH('Opportunity Library'!$J$22,'Opp Library - PT'!$A$71:$A$365,0)+3+(ROW(G45)-ROW($A$46)),COLUMN(G45)-COLUMN($A$46)) -> Sum of back-calculated adjusted CAPEX | H45: =OFFSET($A$70,MATCH('Opportunity Library'!$J$22,'Opp Library - PT'!$A$71:$A$365,0)+3+(ROW(H45)-ROW($A$46)),COLUMN(H45)-COLUMN($A$46)) -> Min of adjusted payback (years)-lower | I45: =OFFSET($A$70,MATCH('Opportunity Library'!$J$22,'Opp Library - PT'!$A$71:$A$365,0)+3+(ROW(I45)-ROW($A$46)),COLUMN(I45)-COLUMN($A$46)) -> Max of adjusted payback (years)-upper | J45: =OFFSET($A$70,MATCH('Opportunity Library'!$J$22,'Opp Library - PT'!$A$71:$A$365,0)+3+(ROW(J45)-ROW($A$46)),COLUMN(J45)-COLUMN($A$46)) -> Sum of Scope 1 saving | K45: =OFFSET($A$70,MATCH('Opportunity Library'!$J$22,'Opp Library - PT'!$A$71:$A$365,0)+3+(ROW(K45)-ROW($A$46)),COLUMN(K45)-COLUMN($A$46)) -> Sum of Scope 2 saving | L45: =OFFSET($A$70,MATCH('Opportunity Library'!$J$22,'Opp Library - PT'!$A$71:$A$365,0)+3+(ROW(L45)-ROW($A$46)),COLUMN(L45)-COLUMN($A$46)) -> Sum of Total emissions saving
A46: =OFFSET($A$70,MATCH('Opportunity Library'!$J$22,'Opp Library - PT'!$A$71:$A$365,0)+3+(ROW(A46)-ROW($A$46)),COLUMN(A46)-COLUMN($A$46)) -> Enhance heat transfer on fire tube boiler with turbulators. | B46: =OFFSET($A$70,MATCH('Opportunity Library'!$J$22,'Opp Library - PT'!$A$71:$A$365,0)+3+(ROW(B46)-ROW($A$46)),COLUMN(B46)-COLUMN($A$46)) -> (blank) | C46: =OFFSET($A$70,MATCH('Opportunity Library'!$J$22,'Opp Library - PT'!$A$71:$A$365,0)+3+(ROW(C46)-ROW($A$46)),COLUMN(C46)-COLUMN($A$46)) -> 3720 | D46: =OFFSET($A$70,MATCH('Opportunity Library'!$J$22,'Opp Library - PT'!$A$71:$A$365,0)+3+(ROW(D46)-ROW($A$46)),COLUMN(D46)-COLUMN($A$46)) -> 3720 | E46: =OFFSET($A$70,MATCH('Opportunity Library'!$J$22,'Opp Library - PT'!$A$71:$A$365,0)+3+(ROW(E46)-ROW($A$46)),COLUMN(E46)-COLUMN($A$46)) -> 0 | F46: =OFFSET($A$70,MATCH('Opportunity Library'!$J$22,'Opp Library - PT'!$A$71:$A$365,0)+3+(ROW(F46)-ROW($A$46)),COLUMN(F46)-COLUMN($A$46)) -> 0 | G46: =OFFSET($A$70,MATCH('Opportunity Library'!$J$22,'Opp Library - PT'!$A$71:$A$365,0)+3+(ROW(G46)-ROW($A$46)),COLUMN(G46)-COLUMN($A$46)) -> 3720 | H46: =OFFSET($A$70,MATCH('Opportunity Library'!$J$22,'Opp Library - PT'!$A$71:$A$365,0)+3+(ROW(H46)-ROW($A$46)),COLUMN(H46)-COLUMN($A$46)) -> 0.75 | I46: =OFFSET($A$70,MATCH('Opportunity Library'!$J$22,'Opp Library - PT'!$A$71:$A$365,0)+3+(ROW(I46)-ROW($A$46)),COLUMN(I46)-COLUMN($A$46)) -> 1.25 | J46: =OFFSET($A$70,MATCH('Opportunity Library'!$J$22,'Opp Library - PT'!$A$71:$A$365,0)+3+(ROW(J46)-ROW($A$46)),COLUMN(J46)-COLUMN($A$46)) -> 150.72525 | K46: =OFFSET($A$70,MATCH('Opportunity Library'!$J$22,'Opp Library - PT'!$A$71:$A$365,0)+3+(ROW(K46)-ROW($A$46)),COLUMN(K46)-COLUMN($A$46)) -> 0 | L46: =OFFSET($A$70,MATCH('Opportunity Library'!$J$22,'Opp Library - PT'!$A$71:$A$365,0)+3+(ROW(L46)-ROW($A$46)),COLUMN(L46)-COLUMN($A$46)) -> 150.72525
A47: =OFFSET($A$70,MATCH('Opportunity Library'!$J$22,'Opp Library - PT'!$A$71:$A$365,0)+3+(ROW(A47)-ROW($A$46)),COLUMN(A47)-COLUMN($A$46)) -> Install odour bio-filter to replace gas fired burners used to destroy odours from the rendering plant. | B47: =OFFSET($A$70,MATCH('Opportunity Library'!$J$22,'Opp Library - PT'!$A$71:$A$365,0)+3+(ROW(B47)-ROW($A$46)),COLUMN(B47)-COLUMN($A$46)) -> (blank) | C47: =OFFSET($A$70,MATCH('Opportunity Library'!$J$22,'Opp Library - PT'!$A$71:$A$365,0)+3+(ROW(C47)-ROW($A$46)),COLUMN(C47)-COLUMN($A$46)) -> 7440 | D47: =OFFSET($A$70,MATCH('Opportunity Library'!$J$22,'Opp Library - PT'!$A$71:$A$365,0)+3+(ROW(D47)-ROW($A$46)),COLUMN(D47)-COLUMN($A$46)) -> 4960 | E47: =OFFSET($A$70,MATCH('Opportunity Library'!$J$22,'Opp Library - PT'!$A$71:$A$365,0)+3+(ROW(E47)-ROW($A$46)),COLUMN(E47)-COLUMN($A$46)) -> 0 | F47: =OFFSET($A$70,MATCH('Opportunity Library'!$J$22,'Opp Library - PT'!$A$71:$A$365,0)+3+(ROW(F47)-ROW($A$46)),COLUMN(F47)-COLUMN($A$46)) -> 0 | G47: =OFFSET($A$70,MATCH('Opportunity Library'!$J$22,'Opp Library - PT'!$A$71:$A$365,0)+3+(ROW(G47)-ROW($A$46)),COLUMN(G47)-COLUMN($A$46)) -> 44640 | H47: =OFFSET($A$70,MATCH('Opportunity Library'!$J$22,'Opp Library - PT'!$A$71:$A$365,0)+3+(ROW(H47)-ROW($A$46)),COLUMN(H47)-COLUMN($A$46)) -> 4.5 | I47: =OFFSET($A$70,MATCH('Opportunity Library'!$J$22,'Opp Library - PT'!$A$71:$A$365,0)+3+(ROW(I47)-ROW($A$46)),COLUMN(I47)-COLUMN($A$46)) -> 7.5 | J47: =OFFSET($A$70,MATCH('Opportunity Library'!$J$22,'Opp Library - PT'!$A$71:$A$365,0)+3+(ROW(J47)-ROW($A$46)),COLUMN(J47)-COLUMN($A$46)) -> 200.967 | K47: =OFFSET($A$70,MATCH('Opportunity Library'!$J$22,'Opp Library - PT'!$A$71:$A$365,0)+3+(ROW(K47)-ROW($A$46)),COLUMN(K47)-COLUMN($A$46)) -> 0 | L47: =OFFSET($A$70,MATCH('Opportunity Library'!$J$22,'Opp Library - PT'!$A$71:$A$365,0)+3+(ROW(L47)-ROW($A$46)),COLUMN(L47)-COLUMN($A$46)) -> 200.967
A48: =OFFSET($A$70,MATCH('Opportunity Library'!$J$22,'Opp Library - PT'!$A$71:$A$365,0)+3+(ROW(A48)-ROW($A$46)),COLUMN(A48)-COLUMN($A$46)) -> Install a heat recovery system on the air compressor oil cooling circuit to produce hot water suitable for process cleaning (temperatures up to 70 degrees C). This opportunity may not be applicable if the plant already has enough hot water or there is insufficient hot water storage. | B48: =OFFSET($A$70,MATCH('Opportunity Library'!$J$22,'Opp Library - PT'!$A$71:$A$365,0)+3+(ROW(B48)-ROW($A$46)),COLUMN(B48)-COLUMN($A$46)) -> (blank) | C48: =OFFSET($A$70,MATCH('Opportunity Library'!$J$22,'Opp Library - PT'!$A$71:$A$365,0)+3+(ROW(C48)-ROW($A$46)),COLUMN(C48)-COLUMN($A$46)) -> 2480 | D48: =OFFSET($A$70,MATCH('Opportunity Library'!$J$22,'Opp Library - PT'!$A$71:$A$365,0)+3+(ROW(D48)-ROW($A$46)),COLUMN(D48)-COLUMN($A$46)) -> 2480 | E48: =OFFSET($A$70,MATCH('Opportunity Library'!$J$22,'Opp Library - PT'!$A$71:$A$365,0)+3+(ROW(E48)-ROW($A$46)),COLUMN(E48)-COLUMN($A$46)) -> 0 | F48: =OFFSET($A$70,MATCH('Opportunity Library'!$J$22,'Opp Library - PT'!$A$71:$A$365,0)+3+(ROW(F48)-ROW($A$46)),COLUMN(F48)-COLUMN($A$46)) -> 0 | G48: =OFFSET($A$70,MATCH('Opportunity Library'!$J$22,'Opp Library - PT'!$A$71:$A$365,0)+3+(ROW(G48)-ROW($A$46)),COLUMN(G48)-COLUMN($A$46)) -> 7440 | H48: =OFFSET($A$70,MATCH('Opportunity Library'!$J$22,'Opp Library - PT'!$A$71:$A$365,0)+3+(ROW(H48)-ROW($A$46)),COLUMN(H48)-COLUMN($A$46)) -> 2.25 | I48: =OFFSET($A$70,MATCH('Opportunity Library'!$J$22,'Opp Library - PT'!$A$71:$A$365,0)+3+(ROW(I48)-ROW($A$46)),COLUMN(I48)-COLUMN($A$46)) -> 3.75 | J48: =OFFSET($A$70,MATCH('Opportunity Library'!$J$22,'Opp Library - PT'!$A$71:$A$365,0)+3+(ROW(J48)-ROW($A$46)),COLUMN(J48)-COLUMN($A$46)) -> 100.4835 | K48: =OFFSET($A$70,MATCH('Opportunity Library'!$J$22,'Opp Library - PT'!$A$71:$A$365,0)+3+(ROW(K48)-ROW($A$46)),COLUMN(K48)-COLUMN($A$46)) -> 0 | L48: =OFFSET($A$70,MATCH('Opportunity Library'!$J$22,'Opp Library - PT'!$A$71:$A$365,0)+3+(ROW(L48)-ROW($A$46)),COLUMN(L48)-COLUMN($A$46)) -> 100.4835
A49: =OFFSET($A$70,MATCH('Opportunity Library'!$J$22,'Opp Library - PT'!$A$71:$A$365,0)+3+(ROW(A49)-ROW($A$46)),COLUMN(A49)-COLUMN($A$46)) -> Install a condensing economiser on one or more boilers. This project may be feasible if the site needs to generate additional hot water for the steam or hot water boiler. There may be a need to install additional hot water storage to capture the hot water generated from the condensing economiser. | B49: =OFFSET($A$70,MATCH('Opportunity Library'!$J$22,'Opp Library - PT'!$A$71:$A$365,0)+3+(ROW(B49)-ROW($A$46)),COLUMN(B49)-COLUMN($A$46)) -> https://www.sustainability.vic.gov.au/-/media/SV/Publications/Business/Efficient-business-operations/Energy-efficiency-for-business/Energy-efficiency-best-practice-guidelines/SRSB-BPG-Heating-Manual-Mar-2015.pdf?la=en | C49: =OFFSET($A$70,MATCH('Opportunity Library'!$J$22,'Opp Library - PT'!$A$71:$A$365,0)+3+(ROW(C49)-ROW($A$46)),COLUMN(C49)-COLUMN($A$46)) -> 12400 | D49: =OFFSET($A$70,MATCH('Opportunity Library'!$J$22,'Opp Library - PT'!$A$71:$A$365,0)+3+(ROW(D49)-ROW($A$46)),COLUMN(D49)-COLUMN($A$46)) -> 12400 | E49: =OFFSET($A$70,MATCH('Opportunity Library'!$J$22,'Opp Library - PT'!$A$71:$A$365,0)+3+(ROW(E49)-ROW($A$46)),COLUMN(E49)-COLUMN($A$46)) -> 0 | F49: =OFFSET($A$70,MATCH('Opportunity Library'!$J$22,'Opp Library - PT'!$A$71:$A$365,0)+3+(ROW(F49)-ROW($A$46)),COLUMN(F49)-COLUMN($A$46)) -> 0 | G49: =OFFSET($A$70,MATCH('Opportunity Library'!$J$22,'Opp Library - PT'!$A$71:$A$365,0)+3+(ROW(G49)-ROW($A$46)),COLUMN(G49)-COLUMN($A$46)) -> 49600 | H49: =OFFSET($A$70,MATCH('Opportunity Library'!$J$22,'Opp Library - PT'!$A$71:$A$365,0)+3+(ROW(H49)-ROW($A$46)),COLUMN(H49)-COLUMN($A$46)) -> 3 | I49: =OFFSET($A$70,MATCH('Opportunity Library'!$J$22,'Opp Library - PT'!$A$71:$A$365,0)+3+(ROW(I49)-ROW($A$46)),COLUMN(I49)-COLUMN($A$46)) -> 5 | J49: =OFFSET($A$70,MATCH('Opportunity Library'!$J$22,'Opp Library - PT'!$A$71:$A$365,0)+3+(ROW(J49)-ROW($A$46)),COLUMN(J49)-COLUMN($A$46)) -> 502.4175 | K49: =OFFSET($A$70,MATCH('Opportunity Library'!$J$22,'Opp Library - PT'!$A$71:$A$365,0)+3+(ROW(K49)-ROW($A$46)),COLUMN(K49)-COLUMN($A$46)) -> 0 | L49: =OFFSET($A$70,MATCH('Opportunity Library'!$J$22,'Opp Library - PT'!$A$71:$A$365,0)+3+(ROW(L49)-ROW($A$46)),COLUMN(L49)-COLUMN($A$46)) -> 502.4175
A51: Electricity
A52: =OFFSET($A$70,MATCH('Opportunity Library'!$K$22,'Opp Library - PT'!$A$71:$A$365,0)+3+(ROW(A45)-ROW($A$46)),COLUMN(A45)-COLUMN($A$46)) -> Opportunity Description | B52: =OFFSET($A$70,MATCH('Opportunity Library'!$K$22,'Opp Library - PT'!$A$71:$A$365,0)+3+(ROW(B45)-ROW($A$46)),COLUMN(B45)-COLUMN($A$46)) -> Hyperlink to URL | C52: =OFFSET($A$70,MATCH('Opportunity Library'!$K$22,'Opp Library - PT'!$A$71:$A$365,0)+3+(ROW(C45)-ROW($A$46)),COLUMN(C45)-COLUMN($A$46)) -> Sum of back-calculated actual saving ($ / yr)-Total | D52: =OFFSET($A$70,MATCH('Opportunity Library'!$K$22,'Opp Library - PT'!$A$71:$A$365,0)+3+(ROW(D45)-ROW($A$46)),COLUMN(D45)-COLUMN($A$46)) -> Sum of back-calculated actual saving ($ / yr)-thermal | E52: =OFFSET($A$70,MATCH('Opportunity Library'!$K$22,'Opp Library - PT'!$A$71:$A$365,0)+3+(ROW(E45)-ROW($A$46)),COLUMN(E45)-COLUMN($A$46)) -> Sum of back-calculated actual saving ($ / yr)-elec | F52: =OFFSET($A$70,MATCH('Opportunity Library'!$K$22,'Opp Library - PT'!$A$71:$A$365,0)+3+(ROW(F45)-ROW($A$46)),COLUMN(F45)-COLUMN($A$46)) -> Sum of back-calculated actual saving ($ / yr)-water | G52: =OFFSET($A$70,MATCH('Opportunity Library'!$K$22,'Opp Library - PT'!$A$71:$A$365,0)+3+(ROW(G45)-ROW($A$46)),COLUMN(G45)-COLUMN($A$46)) -> Sum of back-calculated adjusted CAPEX | H52: =OFFSET($A$70,MATCH('Opportunity Library'!$K$22,'Opp Library - PT'!$A$71:$A$365,0)+3+(ROW(H45)-ROW($A$46)),COLUMN(H45)-COLUMN($A$46)) -> Min of adjusted payback (years)-lower | I52: =OFFSET($A$70,MATCH('Opportunity Library'!$K$22,'Opp Library - PT'!$A$71:$A$365,0)+3+(ROW(I45)-ROW($A$46)),COLUMN(I45)-COLUMN($A$46)) -> Max of adjusted payback (years)-upper | J52: =OFFSET($A$70,MATCH('Opportunity Library'!$K$22,'Opp Library - PT'!$A$71:$A$365,0)+3+(ROW(J45)-ROW($A$46)),COLUMN(J45)-COLUMN($A$46)) -> Sum of Scope 1 saving | K52: =OFFSET($A$70,MATCH('Opportunity Library'!$K$22,'Opp Library - PT'!$A$71:$A$365,0)+3+(ROW(K45)-ROW($A$46)),COLUMN(K45)-COLUMN($A$46)) -> Sum of Scope 2 saving | L52: =OFFSET($A$70,MATCH('Opportunity Library'!$K$22,'Opp Library - PT'!$A$71:$A$365,0)+3+(ROW(L45)-ROW($A$46)),COLUMN(L45)-COLUMN($A$46)) -> Sum of Total emissions saving
A53: =OFFSET($A$70,MATCH('Opportunity Library'!$K$22,'Opp Library - PT'!$A$71:$A$365,0)+3+(ROW(A46)-ROW($A$46)),COLUMN(A46)-COLUMN($A$46)) -> Consider the installation of solar PV electricity generation. | B53: =OFFSET($A$70,MATCH('Opportunity Library'!$K$22,'Opp Library - PT'!$A$71:$A$365,0)+3+(ROW(B46)-ROW($A$46)),COLUMN(B46)-COLUMN($A$46)) -> https://www.ampc.com.au/2014/03/Extension-guide-Renewable-Energy-and-Energy-Storage-Technologies-Applicable-to-Red-Meat-Processing-Manufacturing-businesses | C53: =OFFSET($A$70,MATCH('Opportunity Library'!$K$22,'Opp Library - PT'!$A$71:$A$365,0)+3+(ROW(C46)-ROW($A$46)),COLUMN(C46)-COLUMN($A$46)) -> 430000 | D53: =OFFSET($A$70,MATCH('Opportunity Library'!$K$22,'Opp Library - PT'!$A$71:$A$365,0)+3+(ROW(D46)-ROW($A$46)),COLUMN(D46)-COLUMN($A$46)) -> 0 | E53: =OFFSET($A$70,MATCH('Opportunity Library'!$K$22,'Opp Library - PT'!$A$71:$A$365,0)+3+(ROW(E46)-ROW($A$46)),COLUMN(E46)-COLUMN($A$46)) -> 430000 | F53: =OFFSET($A$70,MATCH('Opportunity Library'!$K$22,'Opp Library - PT'!$A$71:$A$365,0)+3+(ROW(F46)-ROW($A$46)),COLUMN(F46)-COLUMN($A$46)) -> 0 | G53: =OFFSET($A$70,MATCH('Opportunity Library'!$K$22,'Opp Library - PT'!$A$71:$A$365,0)+3+(ROW(G46)-ROW($A$46)),COLUMN(G46)-COLUMN($A$46)) -> 1720000 | H53: =OFFSET($A$70,MATCH('Opportunity Library'!$K$22,'Opp Library - PT'!$A$71:$A$365,0)+3+(ROW(H46)-ROW($A$46)),COLUMN(H46)-COLUMN($A$46)) -> 3 | I53: =OFFSET($A$70,MATCH('Opportunity Library'!$K$22,'Opp Library - PT'!$A$71:$A$365,0)+3+(ROW(I46)-ROW($A$46)),COLUMN(I46)-COLUMN($A$46)) -> 5 | J53: =OFFSET($A$70,MATCH('Opportunity Library'!$K$22,'Opp Library - PT'!$A$71:$A$365,0)+3+(ROW(J46)-ROW($A$46)),COLUMN(J46)-COLUMN($A$46)) -> 0 | K53: =OFFSET($A$70,MATCH('Opportunity Library'!$K$22,'Opp Library - PT'!$A$71:$A$365,0)+3+(ROW(K46)-ROW($A$46)),COLUMN(K46)-COLUMN($A$46)) -> 2744 | L53: =OFFSET($A$70,MATCH('Opportunity Library'!$K$22,'Opp Library - PT'!$A$71:$A$365,0)+3+(ROW(L46)-ROW($A$46)),COLUMN(L46)-COLUMN($A$46)) -> 2744
A54: =OFFSET($A$70,MATCH('Opportunity Library'!$K$22,'Opp Library - PT'!$A$71:$A$365,0)+3+(ROW(A47)-ROW($A$46)),COLUMN(A47)-COLUMN($A$46)) -> Install a biomass boiler to generate steam and a steam turbine for electricity generation. The steam turbine offsets some or all of the electricity use on site and the remaining low pressure steam is used for hot water generation and, if applicable, in the rendering plant. | B54: =OFFSET($A$70,MATCH('Opportunity Library'!$K$22,'Opp Library - PT'!$A$71:$A$365,0)+3+(ROW(B47)-ROW($A$46)),COLUMN(B47)-COLUMN($A$46)) -> https://www.ampc.com.au/uploads/cgblog/id151/ENV_2010_Economic_&_technical_potential_ENV.0102-final-report1.pdf | C54: =OFFSET($A$70,MATCH('Opportunity Library'!$K$22,'Opp Library - PT'!$A$71:$A$365,0)+3+(ROW(C47)-ROW($A$46)),COLUMN(C47)-COLUMN($A$46)) -> 2224400 | D54: =OFFSET($A$70,MATCH('Opportunity Library'!$K$22,'Opp Library - PT'!$A$71:$A$365,0)+3+(ROW(D47)-ROW($A$46)),COLUMN(D47)-COLUMN($A$46)) -> 74400 | E54: =OFFSET($A$70,MATCH('Opportunity Library'!$K$22,'Opp Library - PT'!$A$71:$A$365,0)+3+(ROW(E47)-ROW($A$46)),COLUMN(E47)-COLUMN($A$46)) -> 2150000 | F54: =OFFSET($A$70,MATCH('Opportunity Library'!$K$22,'Opp Library - PT'!$A$71:$A$365,0)+3+(ROW(F47)-ROW($A$46)),COLUMN(F47)-COLUMN($A$46)) -> 0 | G54: =OFFSET($A$70,MATCH('Opportunity Library'!$K$22,'Opp Library - PT'!$A$71:$A$365,0)+3+(ROW(G47)-ROW($A$46)),COLUMN(G47)-COLUMN($A$46)) -> 11122000 | H54: =OFFSET($A$70,MATCH('Opportunity Library'!$K$22,'Opp Library - PT'!$A$71:$A$365,0)+3+(ROW(H47)-ROW($A$46)),COLUMN(H47)-COLUMN($A$46)) -> 3.75 | I54: =OFFSET($A$70,MATCH('Opportunity Library'!$K$22,'Opp Library - PT'!$A$71:$A$365,0)+3+(ROW(I47)-ROW($A$46)),COLUMN(I47)-COLUMN($A$46)) -> 6.25 | J54: =OFFSET($A$70,MATCH('Opportunity Library'!$K$22,'Opp Library - PT'!$A$71:$A$365,0)+3+(ROW(J47)-ROW($A$46)),COLUMN(J47)-COLUMN($A$46)) -> 3014.505 | K54: =OFFSET($A$70,MATCH('Opportunity Library'!$K$22,'Opp Library - PT'!$A$71:$A$365,0)+3+(ROW(K47)-ROW($A$46)),COLUMN(K47)-COLUMN($A$46)) -> 13720 | L54: =OFFSET($A$70,MATCH('Opportunity Library'!$K$22,'Opp Library - PT'!$A$71:$A$365,0)+3+(ROW(L47)-ROW($A$46)),COLUMN(L47)-COLUMN($A$46)) -> 16734.505
A55: =OFFSET($A$70,MATCH('Opportunity Library'!$K$22,'Opp Library - PT'!$A$71:$A$365,0)+3+(ROW(A48)-ROW($A$46)),COLUMN(A48)-COLUMN($A$46)) -> Install wind turbine(s) if you have sufficient land along side your plant operation. The first step is to assess the wind speeds and duration of wind in your area. | B55: =OFFSET($A$70,MATCH('Opportunity Library'!$K$22,'Opp Library - PT'!$A$71:$A$365,0)+3+(ROW(B48)-ROW($A$46)),COLUMN(B48)-COLUMN($A$46)) -> https://www.ampc.com.au/2014/03/Extension-guide-Renewable-Energy-and-Energy-Storage-Technologies-Applicable-to-Red-Meat-Processing-Manufacturing-businesses | C55: =OFFSET($A$70,MATCH('Opportunity Library'!$K$22,'Opp Library - PT'!$A$71:$A$365,0)+3+(ROW(C48)-ROW($A$46)),COLUMN(C48)-COLUMN($A$46)) -> 645000 | D55: =OFFSET($A$70,MATCH('Opportunity Library'!$K$22,'Opp Library - PT'!$A$71:$A$365,0)+3+(ROW(D48)-ROW($A$46)),COLUMN(D48)-COLUMN($A$46)) -> 0 | E55: =OFFSET($A$70,MATCH('Opportunity Library'!$K$22,'Opp Library - PT'!$A$71:$A$365,0)+3+(ROW(E48)-ROW($A$46)),COLUMN(E48)-COLUMN($A$46)) -> 645000 | F55: =OFFSET($A$70,MATCH('Opportunity Library'!$K$22,'Opp Library - PT'!$A$71:$A$365,0)+3+(ROW(F48)-ROW($A$46)),COLUMN(F48)-COLUMN($A$46)) -> 0 | G55: =OFFSET($A$70,MATCH('Opportunity Library'!$K$22,'Opp Library - PT'!$A$71:$A$365,0)+3+(ROW(G48)-ROW($A$46)),COLUMN(G48)-COLUMN($A$46)) -> 3225000 | H55: =OFFSET($A$70,MATCH('Opportunity Library'!$K$22,'Opp Library - PT'!$A$71:$A$365,0)+3+(ROW(H48)-ROW($A$46)),COLUMN(H48)-COLUMN($A$46)) -> 3.75 | I55: =OFFSET($A$70,MATCH('Opportunity Library'!$K$22,'Opp Library - PT'!$A$71:$A$365,0)+3+(ROW(I48)-ROW($A$46)),COLUMN(I48)-COLUMN($A$46)) -> 6.25 | J55: =OFFSET($A$70,MATCH('Opportunity Library'!$K$22,'Opp Library - PT'!$A$71:$A$365,0)+3+(ROW(J48)-ROW($A$46)),COLUMN(J48)-COLUMN($A$46)) -> 0 | K55: =OFFSET($A$70,MATCH('Opportunity Library'!$K$22,'Opp Library - PT'!$A$71:$A$365,0)+3+(ROW(K48)-ROW($A$46)),COLUMN(K48)-COLUMN($A$46)) -> 4116 | L55: =OFFSET($A$70,MATCH('Opportunity Library'!$K$22,'Opp Library - PT'!$A$71:$A$365,0)+3+(ROW(L48)-ROW($A$46)),COLUMN(L48)-COLUMN($A$46)) -> 4116
A56: =OFFSET($A$70,MATCH('Opportunity Library'!$K$22,'Opp Library - PT'!$A$71:$A$365,0)+3+(ROW(A49)-ROW($A$46)),COLUMN(A49)-COLUMN($A$46)) -> Install combined heat and power (CHP) plant (cogeneration or trigeneration) using an existing fuel source. | B56: =OFFSET($A$70,MATCH('Opportunity Library'!$K$22,'Opp Library - PT'!$A$71:$A$365,0)+3+(ROW(B49)-ROW($A$46)),COLUMN(B49)-COLUMN($A$46)) -> https://www.ampc.com.au/uploads/pdf/Environment-Sustainability/2016-1002-Final-Report-Investigation-Into-Modular-Micro-Turbine-Cogenerators.pdf | C56: =OFFSET($A$70,MATCH('Opportunity Library'!$K$22,'Opp Library - PT'!$A$71:$A$365,0)+3+(ROW(C49)-ROW($A$46)),COLUMN(C49)-COLUMN($A$46)) -> 1488500 | D56: =OFFSET($A$70,MATCH('Opportunity Library'!$K$22,'Opp Library - PT'!$A$71:$A$365,0)+3+(ROW(D49)-ROW($A$46)),COLUMN(D49)-COLUMN($A$46)) -> -124000 | E56: =OFFSET($A$70,MATCH('Opportunity Library'!$K$22,'Opp Library - PT'!$A$71:$A$365,0)+3+(ROW(E49)-ROW($A$46)),COLUMN(E49)-COLUMN($A$46)) -> 1612500 | F56: =OFFSET($A$70,MATCH('Opportunity Library'!$K$22,'Opp Library - PT'!$A$71:$A$365,0)+3+(ROW(F49)-ROW($A$46)),COLUMN(F49)-COLUMN($A$46)) -> 0 | G56: =OFFSET($A$70,MATCH('Opportunity Library'!$K$22,'Opp Library - PT'!$A$71:$A$365,0)+3+(ROW(G49)-ROW($A$46)),COLUMN(G49)-COLUMN($A$46)) -> 8931000 | H56: =OFFSET($A$70,MATCH('Opportunity Library'!$K$22,'Opp Library - PT'!$A$71:$A$365,0)+3+(ROW(H49)-ROW($A$46)),COLUMN(H49)-COLUMN($A$46)) -> 4.5 | I56: =OFFSET($A$70,MATCH('Opportunity Library'!$K$22,'Opp Library - PT'!$A$71:$A$365,0)+3+(ROW(I49)-ROW($A$46)),COLUMN(I49)-COLUMN($A$46)) -> 7.5 | J56: =OFFSET($A$70,MATCH('Opportunity Library'!$K$22,'Opp Library - PT'!$A$71:$A$365,0)+3+(ROW(J49)-ROW($A$46)),COLUMN(J49)-COLUMN($A$46)) -> -5024.175 | K56: =OFFSET($A$70,MATCH('Opportunity Library'!$K$22,'Opp Library - PT'!$A$71:$A$365,0)+3+(ROW(K49)-ROW($A$46)),COLUMN(K49)-COLUMN($A$46)) -> 10290 | L56: =OFFSET($A$70,MATCH('Opportunity Library'!$K$22,'Opp Library - PT'!$A$71:$A$365,0)+3+(ROW(L49)-ROW($A$46)),COLUMN(L49)-COLUMN($A$46)) -> 5265.825
A58: Water
A59: =OFFSET($A$70,MATCH('Opportunity Library'!$I$22,'Opp Library - PT'!$A$71:$A$365,0)+3+(ROW(A45)-ROW($A$46)),COLUMN(A45)-COLUMN($A$46)) -> Opportunity Description | B59: =OFFSET($A$70,MATCH('Opportunity Library'!$I$22,'Opp Library - PT'!$A$71:$A$365,0)+3+(ROW(B45)-ROW($A$46)),COLUMN(B45)-COLUMN($A$46)) -> Hyperlink to URL | C59: =OFFSET($A$70,MATCH('Opportunity Library'!$I$22,'Opp Library - PT'!$A$71:$A$365,0)+3+(ROW(C45)-ROW($A$46)),COLUMN(C45)-COLUMN($A$46)) -> Sum of back-calculated actual saving ($ / yr)-Total | D59: =OFFSET($A$70,MATCH('Opportunity Library'!$I$22,'Opp Library - PT'!$A$71:$A$365,0)+3+(ROW(D45)-ROW($A$46)),COLUMN(D45)-COLUMN($A$46)) -> Sum of Consider Opportunity?-thermal | E59: =OFFSET($A$70,MATCH('Opportunity Library'!$I$22,'Opp Library - PT'!$A$71:$A$365,0)+3+(ROW(E45)-ROW($A$46)),COLUMN(E45)-COLUMN($A$46)) -> Sum of Consider Opportunity?-elec | F59: =OFFSET($A$70,MATCH('Opportunity Library'!$I$22,'Opp Library - PT'!$A$71:$A$365,0)+3+(ROW(F45)-ROW($A$46)),COLUMN(F45)-COLUMN($A$46)) -> Sum of back-calculated actual saving ($ / yr)-water | G59: =OFFSET($A$70,MATCH('Opportunity Library'!$I$22,'Opp Library - PT'!$A$71:$A$365,0)+3+(ROW(G45)-ROW($A$46)),COLUMN(G45)-COLUMN($A$46)) -> Sum of back-calculated adjusted CAPEX | H59: =OFFSET($A$70,MATCH('Opportunity Library'!$I$22,'Opp Library - PT'!$A$71:$A$365,0)+3+(ROW(H45)-ROW($A$46)),COLUMN(H45)-COLUMN($A$46)) -> Min of adjusted payback (years)-lower | I59: =OFFSET($A$70,MATCH('Opportunity Library'!$I$22,'Opp Library - PT'!$A$71:$A$365,0)+3+(ROW(I45)-ROW($A$46)),COLUMN(I45)-COLUMN($A$46)) -> Max of adjusted payback (years)-upper | J59: =OFFSET($A$70,MATCH('Opportunity Library'!$I$22,'Opp Library - PT'!$A$71:$A$365,0)+3+(ROW(J45)-ROW($A$46)),COLUMN(J45)-COLUMN($A$46)) -> 0 | K59: =OFFSET($A$70,MATCH('Opportunity Library'!$I$22,'Opp Library - PT'!$A$71:$A$365,0)+3+(ROW(K45)-ROW($A$46)),COLUMN(K45)-COLUMN($A$46)) -> 0 | L59: =OFFSET($A$70,MATCH('Opportunity Library'!$I$22,'Opp Library - PT'!$A$71:$A$365,0)+3+(ROW(L45)-ROW($A$46)),COLUMN(L45)-COLUMN($A$46)) -> 0
A60: =OFFSET($A$70,MATCH('Opportunity Library'!$I$22,'Opp Library - PT'!$A$71:$A$365,0)+3+(ROW(A46)-ROW($A$46)),COLUMN(A46)-COLUMN($A$46)) -> Replace pot-style sterilisers with spray sterilisers. | B60: =OFFSET($A$70,MATCH('Opportunity Library'!$I$22,'Opp Library - PT'!$A$71:$A$365,0)+3+(ROW(B46)-ROW($A$46)),COLUMN(B46)-COLUMN($A$46)) -> https://www.ecoefficiencygroup.com.au/wp-content/uploads/2017/11/ecomeat_manual.pdf | C60: =OFFSET($A$70,MATCH('Opportunity Library'!$I$22,'Opp Library - PT'!$A$71:$A$365,0)+3+(ROW(C46)-ROW($A$46)),COLUMN(C46)-COLUMN($A$46)) -> 11625 | D60: =OFFSET($A$70,MATCH('Opportunity Library'!$I$22,'Opp Library - PT'!$A$71:$A$365,0)+3+(ROW(D46)-ROW($A$46)),COLUMN(D46)-COLUMN($A$46)) -> 0 | E60: =OFFSET($A$70,MATCH('Opportunity Library'!$I$22,'Opp Library - PT'!$A$71:$A$365,0)+3+(ROW(E46)-ROW($A$46)),COLUMN(E46)-COLUMN($A$46)) -> 0 | F60: =OFFSET($A$70,MATCH('Opportunity Library'!$I$22,'Opp Library - PT'!$A$71:$A$365,0)+3+(ROW(F46)-ROW($A$46)),COLUMN(F46)-COLUMN($A$46)) -> 11625 | G60: =OFFSET($A$70,MATCH('Opportunity Library'!$I$22,'Opp Library - PT'!$A$71:$A$365,0)+3+(ROW(G46)-ROW($A$46)),COLUMN(G46)-COLUMN($A$46)) -> 5812.5 | H60: =OFFSET($A$70,MATCH('Opportunity Library'!$I$22,'Opp Library - PT'!$A$71:$A$365,0)+3+(ROW(H46)-ROW($A$46)),COLUMN(H46)-COLUMN($A$46)) -> 0.375 | I60: =OFFSET($A$70,MATCH('Opportunity Library'!$I$22,'Opp Library - PT'!$A$71:$A$365,0)+3+(ROW(I46)-ROW($A$46)),COLUMN(I46)-COLUMN($A$46)) -> 0.625 | J60: =OFFSET($A$70,MATCH('Opportunity Library'!$I$22,'Opp Library - PT'!$A$71:$A$365,0)+3+(ROW(J46)-ROW($A$46)),COLUMN(J46)-COLUMN($A$46)) -> 0 | K60: =OFFSET($A$70,MATCH('Opportunity Library'!$I$22,'Opp Library - PT'!$A$71:$A$365,0)+3+(ROW(K46)-ROW($A$46)),COLUMN(K46)-COLUMN($A$46)) -> 0 | L60: =OFFSET($A$70,MATCH('Opportunity Library'!$I$22,'Opp Library - PT'!$A$71:$A$365,0)+3+(ROW(L46)-ROW($A$46)),COLUMN(L46)-COLUMN($A$46)) -> 0
A61: =OFFSET($A$70,MATCH('Opportunity Library'!$I$22,'Opp Library - PT'!$A$71:$A$365,0)+3+(ROW(A47)-ROW($A$46)),COLUMN(A47)-COLUMN($A$46)) -> Automatic spray washer for edible offal. Automatic spray washers for offal washing can reduce water use for offal washing by around 50%. | B61: =OFFSET($A$70,MATCH('Opportunity Library'!$I$22,'Opp Library - PT'!$A$71:$A$365,0)+3+(ROW(B47)-ROW($A$46)),COLUMN(B47)-COLUMN($A$46)) -> https://www.ecoefficiencygroup.com.au/wp-content/uploads/2017/11/ecomeat_manual.pdf | C61: =OFFSET($A$70,MATCH('Opportunity Library'!$I$22,'Opp Library - PT'!$A$71:$A$365,0)+3+(ROW(C47)-ROW($A$46)),COLUMN(C47)-COLUMN($A$46)) -> 34875 | D61: =OFFSET($A$70,MATCH('Opportunity Library'!$I$22,'Opp Library - PT'!$A$71:$A$365,0)+3+(ROW(D47)-ROW($A$46)),COLUMN(D47)-COLUMN($A$46)) -> 0 | E61: =OFFSET($A$70,MATCH('Opportunity Library'!$I$22,'Opp Library - PT'!$A$71:$A$365,0)+3+(ROW(E47)-ROW($A$46)),COLUMN(E47)-COLUMN($A$46)) -> 0 | F61: =OFFSET($A$70,MATCH('Opportunity Library'!$I$22,'Opp Library - PT'!$A$71:$A$365,0)+3+(ROW(F47)-ROW($A$46)),COLUMN(F47)-COLUMN($A$46)) -> 34875 | G61: =OFFSET($A$70,MATCH('Opportunity Library'!$I$22,'Opp Library - PT'!$A$71:$A$365,0)+3+(ROW(G47)-ROW($A$46)),COLUMN(G47)-COLUMN($A$46)) -> 209250 | H61: =OFFSET($A$70,MATCH('Opportunity Library'!$I$22,'Opp Library - PT'!$A$71:$A$365,0)+3+(ROW(H47)-ROW($A$46)),COLUMN(H47)-COLUMN($A$46)) -> 4.5 | I61: =OFFSET($A$70,MATCH('Opportunity Library'!$I$22,'Opp Library - PT'!$A$71:$A$365,0)+3+(ROW(I47)-ROW($A$46)),COLUMN(I47)-COLUMN($A$46)) -> 7.5 | J61: =OFFSET($A$70,MATCH('Opportunity Library'!$I$22,'Opp Library - PT'!$A$71:$A$365,0)+3+(ROW(J47)-ROW($A$46)),COLUMN(J47)-COLUMN($A$46)) -> 0 | K61: =OFFSET($A$70,MATCH('Opportunity Library'!$I$22,'Opp Library - PT'!$A$71:$A$365,0)+3+(ROW(K47)-ROW($A$46)),COLUMN(K47)-COLUMN($A$46)) -> 0 | L61: =OFFSET($A$70,MATCH('Opportunity Library'!$I$22,'Opp Library - PT'!$A$71:$A$365,0)+3+(ROW(L47)-ROW($A$46)),COLUMN(L47)-COLUMN($A$46)) -> 0
A62: =OFFSET($A$70,MATCH('Opportunity Library'!$I$22,'Opp Library - PT'!$A$71:$A$365,0)+3+(ROW(A48)-ROW($A$46)),COLUMN(A48)-COLUMN($A$46)) -> Install energy and water flow meters for major loads and monitor use via a central process control system or web based system. Extend system to provide online alarms and SMS alerts available remotely. | B62: =OFFSET($A$70,MATCH('Opportunity Library'!$I$22,'Opp Library - PT'!$A$71:$A$365,0)+3+(ROW(B48)-ROW($A$46)),COLUMN(B48)-COLUMN($A$46)) -> (blank) | C62: =OFFSET($A$70,MATCH('Opportunity Library'!$I$22,'Opp Library - PT'!$A$71:$A$365,0)+3+(ROW(C48)-ROW($A$46)),COLUMN(C48)-COLUMN($A$46)) -> 94460 | D62: =OFFSET($A$70,MATCH('Opportunity Library'!$I$22,'Opp Library - PT'!$A$71:$A$365,0)+3+(ROW(D48)-ROW($A$46)),COLUMN(D48)-COLUMN($A$46)) -> 0 | E62: =OFFSET($A$70,MATCH('Opportunity Library'!$I$22,'Opp Library - PT'!$A$71:$A$365,0)+3+(ROW(E48)-ROW($A$46)),COLUMN(E48)-COLUMN($A$46)) -> 0 | F62: =OFFSET($A$70,MATCH('Opportunity Library'!$I$22,'Opp Library - PT'!$A$71:$A$365,0)+3+(ROW(F48)-ROW($A$46)),COLUMN(F48)-COLUMN($A$46)) -> 46500 | G62: =OFFSET($A$70,MATCH('Opportunity Library'!$I$22,'Opp Library - PT'!$A$71:$A$365,0)+3+(ROW(G48)-ROW($A$46)),COLUMN(G48)-COLUMN($A$46)) -> 188920 | H62: =OFFSET($A$70,MATCH('Opportunity Library'!$I$22,'Opp Library - PT'!$A$71:$A$365,0)+3+(ROW(H48)-ROW($A$46)),COLUMN(H48)-COLUMN($A$46)) -> 1.5 | I62: =OFFSET($A$70,MATCH('Opportunity Library'!$I$22,'Opp Library - PT'!$A$71:$A$365,0)+3+(ROW(I48)-ROW($A$46)),COLUMN(I48)-COLUMN($A$46)) -> 2.5 | J62: =OFFSET($A$70,MATCH('Opportunity Library'!$I$22,'Opp Library - PT'!$A$71:$A$365,0)+3+(ROW(J48)-ROW($A$46)),COLUMN(J48)-COLUMN($A$46)) -> 0 | K62: =OFFSET($A$70,MATCH('Opportunity Library'!$I$22,'Opp Library - PT'!$A$71:$A$365,0)+3+(ROW(K48)-ROW($A$46)),COLUMN(K48)-COLUMN($A$46)) -> 0 | L62: =OFFSET($A$70,MATCH('Opportunity Library'!$I$22,'Opp Library - PT'!$A$71:$A$365,0)+3+(ROW(L48)-ROW($A$46)),COLUMN(L48)-COLUMN($A$46)) -> 0
A63: =OFFSET($A$70,MATCH('Opportunity Library'!$I$22,'Opp Library - PT'!$A$71:$A$365,0)+3+(ROW(A49)-ROW($A$46)),COLUMN(A49)-COLUMN($A$46)) -> Install storm water recovery and collection systems to reduce water used for washing cattle and potentially some process water uses. | B63: =OFFSET($A$70,MATCH('Opportunity Library'!$I$22,'Opp Library - PT'!$A$71:$A$365,0)+3+(ROW(B49)-ROW($A$46)),COLUMN(B49)-COLUMN($A$46)) -> https://www.ecoefficiencygroup.com.au/wp-content/uploads/2017/11/ecomeat_manual.pdf | C63: =OFFSET($A$70,MATCH('Opportunity Library'!$I$22,'Opp Library - PT'!$A$71:$A$365,0)+3+(ROW(C49)-ROW($A$46)),COLUMN(C49)-COLUMN($A$46)) -> 46500 | D63: =OFFSET($A$70,MATCH('Opportunity Library'!$I$22,'Opp Library - PT'!$A$71:$A$365,0)+3+(ROW(D49)-ROW($A$46)),COLUMN(D49)-COLUMN($A$46)) -> 0 | E63: =OFFSET($A$70,MATCH('Opportunity Library'!$I$22,'Opp Library - PT'!$A$71:$A$365,0)+3+(ROW(E49)-ROW($A$46)),COLUMN(E49)-COLUMN($A$46)) -> 0 | F63: =OFFSET($A$70,MATCH('Opportunity Library'!$I$22,'Opp Library - PT'!$A$71:$A$365,0)+3+(ROW(F49)-ROW($A$46)),COLUMN(F49)-COLUMN($A$46)) -> 46500 | G63: =OFFSET($A$70,MATCH('Opportunity Library'!$I$22,'Opp Library - PT'!$A$71:$A$365,0)+3+(ROW(G49)-ROW($A$46)),COLUMN(G49)-COLUMN($A$46)) -> 93000 | H63: =OFFSET($A$70,MATCH('Opportunity Library'!$I$22,'Opp Library - PT'!$A$71:$A$365,0)+3+(ROW(H49)-ROW($A$46)),COLUMN(H49)-COLUMN($A$46)) -> 1.5 | I63: =OFFSET($A$70,MATCH('Opportunity Library'!$I$22,'Opp Library - PT'!$A$71:$A$365,0)+3+(ROW(I49)-ROW($A$46)),COLUMN(I49)-COLUMN($A$46)) -> 2.5 | J63: =OFFSET($A$70,MATCH('Opportunity Library'!$I$22,'Opp Library - PT'!$A$71:$A$365,0)+3+(ROW(J49)-ROW($A$46)),COLUMN(J49)-COLUMN($A$46)) -> 0 | K63: =OFFSET($A$70,MATCH('Opportunity Library'!$I$22,'Opp Library - PT'!$A$71:$A$365,0)+3+(ROW(K49)-ROW($A$46)),COLUMN(K49)-COLUMN($A$46)) -> 0 | L63: =OFFSET($A$70,MATCH('Opportunity Library'!$I$22,'Opp Library - PT'!$A$71:$A$365,0)+3+(ROW(L49)-ROW($A$46)),COLUMN(L49)-COLUMN($A$46)) -> 0
A68: =A6 -> 1) create pivot tables of the opportunities list, applying filters to identify key metrics
A71: Present to user? T/F | B71: TRUE
A72: Consider Opportunity?-thermal | B72: TRUE
A74: Opportunity Description | B74: Hyperlink to URL | C74: Sum of back-calculated actual saving ($ / yr)-Total | D74: Sum of back-calculated actual saving ($ / yr)-thermal | E74: Sum of back-calculated actual saving ($ / yr)-elec | F74: Sum of back-calculated actual saving ($ / yr)-water | G74: Sum of back-calculated adjusted CAPEX | H74: Min of adjusted payback (years)-lower | I74: Max of adjusted payback (years)-upper | J74: Sum of Scope 1 saving | K74: Sum of Scope 2 saving | L74: Sum of Total emissions saving
A75: Enhance heat transfer on fire tube boiler with turbulators. | B75: (blank) | C75: 3720 | D75: 3720 | E75: 0 | F75: 0 | G75: 3720 | H75: 0.75 | I75: 1.25 | J75: 150.72525 | K75: 0 | L75: 150.72525
A76: Install odour bio-filter to replace gas fired burners used to destroy odours from the rendering plant. | B76: (blank) | C76: 7440 | D76: 4960 | E76: 0 | F76: 0 | G76: 44640 | H76: 4.5 | I76: 7.5 | J76: 200.967 | K76: 0 | L76: 200.967
A77: Install a heat recovery system on the air compressor oil cooling circuit to produce hot water suitable for process cleaning (temperatures up to 70 degrees C). This opportunity may not be applicable if the plant already has enough hot water or there is insufficient hot water storage. | B77: (blank) | C77: 2480 | D77: 2480 | E77: 0 | F77: 0 | G77: 7440 | H77: 2.25 | I77: 3.75 | J77: 100.4835 | K77: 0 | L77: 100.4835
A78: Install a condensing economiser on one or more boilers. This project may be feasible if the site needs to generate additional hot water for the steam or hot water boiler. There may be a need to install additional hot water storage to capture the hot water generated from the condensing economiser. | B78: https://www.sustainability.vic.gov.au/-/media/SV/Publications/Business/Efficient-business-operations/Energy-efficiency-for-business/Energy-efficiency-best-practice-guidelines/SRSB-BPG-Heating-Manual-Mar-2015.pdf?la=en | C78: 12400 | D78: 12400 | E78: 0 | F78: 0 | G78: 49600 | H78: 3 | I78: 5 | J78: 502.4175 | K78: 0 | L78: 502.4175
A79: Install additional hot water storage if clean hot water is being sent to drain after heat recovery from the rendering plant. | B79: (blank) | C79: 1240 | D79: 1240 | E79: 0 | F79: 0 | G79: 2480 | H79: 1.5 | I79: 2.5 | J79: 50.24175 | K79: 0 | L79: 50.24175
A80: Install a refrigeration heat recovery system to supplement hot water supply. This opportunity applies when additional hot water is required and there is sufficient hot water storage to ensure that hot water is not sent to drain. | B80: https://www.ampc.com.au/2010/07/Heat-Recovery-From-Refrigeration-Plant | C80: 7440 | D80: 7440 | E80: 0 | F80: 0 | G80: 22320 | H80: 2.25 | I80: 3.75 | J80: 301.4505 | K80: 0 | L80: 301.4505
A81: If the site has an old blood dryer such as a ring dryer, consider replacing with modern quad pass rotary dryer. | B81: (blank) | C81: 2976 | D81: 1488 | E81: 0 | F81: 0 | G81: 14880 | H81: 3.75 | I81: 6.25 | J81: 60.2901 | K81: 0 | L81: 60.2901
A82: Upgrade boiler controls with oxygen trim control. To check boiler performance, test the oxygen levels in the flue gases at low, medium and high loads. If the oxygen readings are above 5% for high loads and/or over 10% for low loads consider oxygen trim control. | B82: https://www.sustainability.vic.gov.au/-/media/SV/Publications/Business/Efficient-business-operations/Energy-efficiency-for-business/Energy-efficiency-best-practice-guidelines/SRSB-BPG-Heating-Manual-Mar-2015.pdf?la=en | C82: 2480 | D82: 2480 | E82: 0 | F82: 0 | G82: 9920 | H82: 3 | I82: 5 | J82: 100.4835 | K82: 0 | L82: 100.4835
A83: Install boiler blowdown heat recovery Assess how much blowdown is being sent to drain based on total dissolved solids (TDS) levels and the TDS level in the feedwater. | B83: https://www.sustainability.vic.gov.au/-/media/SV/Publications/Business/Efficient-business-operations/Energy-efficiency-for-business/Energy-efficiency-best-practice-guidelines/SRSB-BPG-Heating-Manual-Mar-2015.pdf?la=en | C83: 1240 | D83: 1240 | E83: 0 | F83: 0 | G83: 4960 | H83: 3 | I83: 5 | J83: 50.24175 | K83: 0 | L83: 50.24175
A84: Install energy and water flow meters for major loads and monitor use via a central process control system or web based system. Extend system to provide online alarms and SMS alerts available remotely. | B84: (blank) | C84: 94460 | D84: 4960 | E84: 43000 | F84: 46500 | G84: 188920 | H84: 1.5 | I84: 2.5 | J84: 200.967 | K84: 274.4 | L84: 475.367
A101: Present to user? T/F | B101: TRUE
A102: Consider Opportunity?-elec | B102: TRUE
A104: Opportunity Description | B104: Hyperlink to URL | C104: Sum of back-calculated actual saving ($ / yr)-Total | D104: Sum of back-calculated actual saving ($ / yr)-thermal | E104: Sum of back-calculated actual saving ($ / yr)-elec | F104: Sum of back-calculated actual saving ($ / yr)-water | G104: Sum of back-calculated adjusted CAPEX | H104: Min of adjusted payback (years)-lower | I104: Max of adjusted payback (years)-upper | J104: Sum of Scope 1 saving | K104: Sum of Scope 2 saving | L104: Sum of Total emissions saving
A105: Consider the installation of solar PV electricity generation. | B105: https://www.ampc.com.au/2014/03/Extension-guide-Renewable-Energy-and-Energy-Storage-Technologies-Applicable-to-Red-Meat-Processing-Manufacturing-businesses | C105: 430000 | D105: 0 | E105: 430000 | F105: 0 | G105: 1720000 | H105: 3 | I105: 5 | J105: 0 | K105: 2744 | L105: 2744
A106: Install a biomass boiler to generate steam and a steam turbine for electricity generation. The steam turbine offsets some or all of the electricity use on site and the remaining low pressure steam is used for hot water generation and, if applicable, in the rendering plant. | B106: https://www.ampc.com.au/uploads/cgblog/id151/ENV_2010_Economic_&_technical_potential_ENV.0102-final-report1.pdf | C106: 2224400 | D106: 74400 | E106: 2150000 | F106: 0 | G106: 11122000 | H106: 3.75 | I106: 6.25 | J106: 3014.505 | K106: 13720 | L106: 16734.505
A107: Install wind turbine(s) if you have sufficient land along side your plant operation. The first step is to assess the wind speeds and duration of wind in your area. | B107: https://www.ampc.com.au/2014/03/Extension-guide-Renewable-Energy-and-Energy-Storage-Technologies-Applicable-to-Red-Meat-Processing-Manufacturing-businesses | C107: 645000 | D107: 0 | E107: 645000 | F107: 0 | G107: 3225000 | H107: 3.75 | I107: 6.25 | J107: 0 | K107: 4116 | L107: 4116
A108: Install combined heat and power (CHP) plant (cogeneration or trigeneration) using an existing fuel source. | B108: https://www.ampc.com.au/uploads/pdf/Environment-Sustainability/2016-1002-Final-Report-Investigation-Into-Modular-Micro-Turbine-Cogenerators.pdf | C108: 1488500 | D108: -124000 | E108: 1612500 | F108: 0 | G108: 8931000 | H108: 4.5 | I108: 7.5 | J108: -5024.175 | K108: 10290 | L108: 5265.825
A109: Consider installation of solar PV array on a floating platform using the wastewater ponds. | B109: https://rohanhamden.com.au/assets/1613-Floating-Solar-brochure-WEB.pdf | C109: 107500 | D109: 0 | E109: 107500 | F109: 0 | G109: 430000 | H109: 3 | I109: 5 | J109: 0 | K109: 686 | L109: 686
A131: Present to user? T/F | B131: TRUE
A132: Consider Opportunity?-water | B132: TRUE
A134: Opportunity Description | B134: Hyperlink to URL | C134: Sum of back-calculated actual saving ($ / yr)-Total | D134: Sum of Consider Opportunity?-thermal | E134: Sum of Consider Opportunity?-elec | F134: Sum of back-calculated actual saving ($ / yr)-water | G134: Sum of back-calculated adjusted CAPEX | H134: Min of adjusted payback (years)-lower | I134: Max of adjusted payback (years)-upper
A135: Replace pot-style sterilisers with spray sterilisers. | B135: https://www.ecoefficiencygroup.com.au/wp-content/uploads/2017/11/ecomeat_manual.pdf | C135: 11625 | D135: 0 | E135: 0 | F135: 11625 | G135: 5812.5 | H135: 0.375 | I135: 0.625
A136: Automatic spray washer for edible offal. Automatic spray washers for offal washing can reduce water use for offal washing by around 50%. | B136: https://www.ecoefficiencygroup.com.au/wp-content/uploads/2017/11/ecomeat_manual.pdf | C136: 34875 | D136: 0 | E136: 0 | F136: 34875 | G136: 209250 | H136: 4.5 | I136: 7.5
A137: Install energy and water flow meters for major loads and monitor use via a central process control system or web based system. Extend system to provide online alarms and SMS alerts available remotely. | B137: (blank) | C137: 94460 | D137: 0 | E137: 0 | F137: 46500 | G137: 188920 | H137: 1.5 | I137: 2.5
A138: Install storm water recovery and collection systems to reduce water used for washing cattle and potentially some process water uses. | B138: https://www.ecoefficiencygroup.com.au/wp-content/uploads/2017/11/ecomeat_manual.pdf | C138: 46500 | D138: 0 | E138: 0 | F138: 46500 | G138: 93000 | H138: 1.5 | I138: 2.5
A139: Centralised control of water supplies. If turning off individual water supplies on the production line at breaks is delayed by around five minutes each time, then centralised control of water supply could save up to 30 minutes of water flow in a production day (assuming six breaks per day). (Eco-Efficiency Manual for Meat Processing - section 2.2.2, pg. 26-27) | B139: https://www.ecoefficiencygroup.com.au/wp-content/uploads/2017/11/ecomeat_manual.pdf | C139: 11625 | D139: 0 | E139: 0 | F139: 11625 | G139: 46500 | H139: 3 | I139: 5
A140: Intermittent flow for viscera (bleed) table wash sprays. Some types of modern viscera tables (and bleed tables) incorporate systems that turn wash sprays on only as the table moves forward. However for older style tables water sprays may run continuously. In these situations, it may be possible to install on/off controls linked to sensors or a limiting switch so that the water flows intermittently instead of continuously. (Eco-Efficiency Manual for Meat Processing - section 2.2.9, pg. 31) | B140: https://www.ampc.com.au/2013/01/Reuse-of-water-in-Tripe-processing | C140: 69750 | D140: 0 | E140: 0 | F140: 69750 | G140: 20925 | H140: 0.225 | I140: 0.375
A141: Flow control on continuous flow sterilisers (Eco-Efficiency Manual for Meat Processing - section 2.2.14, pg. 36-37) | B141: https://www.ecoefficiencygroup.com.au/wp-content/uploads/2017/11/ecomeat_manual.pdf | C141: 69750 | D141: 0 | E141: 0 | F141: 69750 | G141: 20925 | H141: 0.225 | I141: 0.375
A142: Water sprays on splitting saws to reduce bone dust and reduce carcase washing. Fitting a water spray kit to a splitting saw would reduce water use for carcase washing by 50% compared with a full carcase wash. (Eco-Efficiency Manual for Meat Processing - section 2.2.19, pg. 41) | B142: https://www.ecoefficiencygroup.com.au/wp-content/uploads/2017/11/ecomeat_manual.pdf | C142: 46500 | D142: 0 | E142: 0 | F142: 46500 | G142: 46500 | H142: 0.75 | I142: 1.25
A143: On/off controls for cooling water on breaking saws. Water use to breaking saws can be reduced by 50% through the installation of an on/off switch. (Eco-Efficiency Manual for Meat Processing - section 2.2.20, pg. 41) | B143: https://www.ecoefficiencygroup.com.au/wp-content/uploads/2017/11/ecomeat_manual.pdf | C143: 1162.5 | D143: 0 | E143: 0 | F143: 1162.5 | G143: 4650 | H143: 3 | I143: 5
A144: Efficient water use in tripe and bible washing machines. Water use for tripe / bible washing can be reduced by 25% through better flow control or a more efficient machine. (Eco-Efficiency Manual for Meat Processing - section 2.2.24, pg. 44) | B144: https://www.ecoefficiencygroup.com.au/wp-content/uploads/2017/11/ecomeat_manual.pdf | C144: 30225 | D144: 0 | E144: 0 | F144: 30225 | G144: 45337.5 | H144: 1.125 | I144: 1.875
A145: Water efficient gut washing systems (Eco-Efficiency Manual for Meat Processing - section 2.2.26, pg. 45) | B145: https://www.ecoefficiencygroup.com.au/wp-content/uploads/2017/11/ecomeat_manual.pdf | C145: 55800 | D145: 0 | E145: 0 | F145: 55800 | G145: 55800 | H145: 0.75 | I145: 1.25
A146: Maximise condensate recovery in steam distribution systems. Improving condensate recovery reduces the amount of water used as boiler feed, and reduces chemicals use due to the reduced amount of boiler feed water requiring pre-treatment. (Eco-Efficiency Manual for Meat Processing - section 2.2.36, pg. 52-53) | B146: https://www.ecoefficiencygroup.com.au/wp-content/uploads/2017/11/ecomeat_manual.pdf | C146: 46500 | D146: 0 | E146: 0 | F146: 46500 | G146: 23250 | H146: 0.375 | I146: 0.625
A147: Conductivity controlled blowdown on cooling towers. For a typical plant that has continuous blowdown, cooling water makeup could be reduced by around 50% by installing automatic blowdown controls. (Eco-Efficiency Manual for Meat Processing - section 2.2.37, pg. 53) | B147: https://www.ecoefficiencygroup.com.au/wp-content/uploads/2017/11/ecomeat_manual.pdf | C147: 11625 | D147: 0 | E147: 0 | F147: 11625 | G147: 5812.5 | H147: 0.375 | I147: 0.625
A148: Fitting efficient spray nozzles. This opportunity is based on assuming that 55% of total water use is related to hose use, and that a conservative 10% reduction in water use can be achieved from the improved selection and maintenance of spray nozzles. (Eco-Efficiency Manual for Meat Processing - section 2.2.1, pg. 25-26) | B148: https://www.ecoefficiencygroup.com.au/wp-content/uploads/2017/11/ecomeat_manual.pdf | C148: 139500 | D148: 0 | E148: 0 | F148: 139500 | G148: 209250 | H148: 1.125 | I148: 1.875
A149: Efficient continuous flow sterilisers (Eco-Efficiency Manual for Meat Processing - section 2.2.13, pg. 33) | B149: https://www.ecoefficiencygroup.com.au/wp-content/uploads/2017/11/ecomeat_manual.pdf | C149: 97650 | D149: 0 | E149: 0 | F149: 97650 | G149: 97650 | H149: 0.75 | I149: 1.25
A150: Automatic washers for tubs, cutting boards and trays. An automatic washing machine used for washing tubs, cutting boards and trays, can reduce water use by up to 95%. (Eco-Efficiency Manual for Meat Processing - section 2.2.32, pg. 50) | B150: https://www.ecoefficiencygroup.com.au/wp-content/uploads/2017/11/ecomeat_manual.pdf | C150: 69750 | D150: 0 | E150: 0 | F150: 69750 | G150: 104625 | H150: 1.125 | I150: 1.875
A151: Floor cleaning machines for large areas (Eco-Efficiency Manual for Meat Processing - section 2.2.33, pg. 50) | B151: https://www.ecoefficiencygroup.com.au/wp-content/uploads/2017/11/ecomeat_manual.pdf | C151: 23250 | D151: 0 | E151: 0 | F151: 23250 | G151: 69750 | H151: 2.25 | I151: 3.75
A152: Rainwater harvesting. For those plants in urban areas that purchase municipal treated water from local councils or water boards, some savings can be made by supplementing water supplies with rainwater collected from roof surfaces. (Eco-Efficiency Manual for Meat Processing - section 2.4.1, pg. 56) | B152: https://www.ecoefficiencygroup.com.au/wp-content/uploads/2017/11/ecomeat_manual.pdf | C152: 76438.35616 | D152: 0 | E152: 0 | F152: 76438.35616 | G152: 152876.7123 | H152: 1.5 | I152: 2.5
A153: High-pressure water ring main for cleaning. This opportunity assumes that pressurised water could be used for 75% of end-of-day plant cleaning, with a conservative reduction in water use of 40%. There would also be energy savings as about 40% of the water used for cleaning is hot. (Eco-Efficiency Manual for Meat Processing - section 2.2.31, pg. 49) | B153: https://www.ecoefficiencygroup.com.au/wp-content/uploads/2017/11/ecomeat_manual.pdf | C153: 137750 | D153: 0 | E153: 0 | F153: 116250 | G153: 413250 | H153: 2.25 | I153: 3.75
A154: Dry dumping of paunch contents (Eco-Efficiency Manual for Meat Processing - section 2.2.23, pg. 43-44) | B154: https://www.ecoefficiencygroup.com.au/wp-content/uploads/2017/11/ecomeat_manual.pdf | C154: 102300 | D154: 0 | E154: 0 | F154: 102300 | G154: 76725 | H154: 0.5625 | I154: 0.9375
A155: Suspended mesh flooring in stockyards (Eco-Efficiency Manual for Meat Processing - section 2.2.8, pg. 30) | B155: https://www.ecoefficiencygroup.com.au/wp-content/uploads/2017/11/ecomeat_manual.pdf | C155: 232500 | D155: 0 | E155: 0 | F155: 232500 | G155: 697500 | H155: 2.25 | I155: 3.75
